{"text_format":"1","workbook":"xlsx","n_sheets":14,"sheets":["Protokół","Prod. roślinna","Prod. roślinna str 2","Prod. roślinna str 3","Prod. roślinna str 4","Prod. roślinna-rozpisanie szkód","Prod. zwierzęca towar.","Prod. ryb","Środki trwałe","Uprawy trwałe","Regiony FADN","Dane średnie","Koszty nieponiesione","Kalendarz"],"not_rendered":{"charts":0,"images":0,"macros":0,"external_links":0,"defined_names":11,"comments":0,"pivot_tables":0},"unopened":[],"bounds":{"document_bytes":16777216,"sheet_cells":100000,"rows_first":2000,"rows_last":500,"rows_between":2000,"halvings":0,"cell_chars":16384,"cell_head_chars":4096},"cells_cut":0,"cells_raw":0,"read":"whole","date_system":"1900"}

{"sheet":"Protokół","index":0,"n_rows":149,"n_cols":22,"rows_kept":149,"cut":false,"hidden":false,"merged":[[54,14,54,15],[55,14,55,15],[58,14,58,15],[59,14,59,15],[60,14,60,15],[35,9,35,13],[141,17,141,21],[139,18,139,22],[140,13,140,15],[140,17,140,21],[136,12,136,19],[135,18,135,22],[128,11,128,14],[129,11,129,14],[135,12,135,17],[52,0,52,12],[61,14,61,15],[87,20,87,22],[54,0,54,11],[91,17,91,19],[118,19,118,22],[101,5,101,8],[92,1,92,8],[93,1,93,8],[135,0,142,8],[133,0,133,22],[10,0,10,14],[29,17,29,18],[65,19,65,23],[65,17,65,18],[52,19,52,23],[47,19,47,23],[42,19,42,23],[42,17,42,18],[47,17,47,18],[52,17,52,18],[57,0,57,12],[42,14,42,15],[44,14,44,15],[45,14,45,15],[47,14,47,15],[49,14,49,15],[126,16,126,21],[127,16,127,21],[128,16,128,21],[129,16,129,21],[126,11,126,14],[127,11,127,14],[89,1,89,2],[87,0,87,5],[84,13,84,14],[91,9,91,11],[92,9,92,11],[93,9,93,11],[94,9,94,11],[84,0,84,12],[126,0,126,8],[95,13,95,16],[95,9,95,11],[99,4,99,5],[98,0,98,22],[96,17,96,19],[96,1,96,8],[96,13,96,16],[99,0,99,3],[104,0,104,3],[104,6,104,8],[104,9,104,10],[104,4,104,5],[101,0,101,4],[103,0,103,4],[100,5,100,8],[1,0,1,6],[0,10,0,12],[0,13,0,15],[0,0,0,6],[9,0,9,3],[9,5,9,7],[9,9,9,10],[7,0,7,5],[7,6,7,10],[5,0,5,22],[0,18,0,20],[8,0,8,5],[8,6,8,10],[7,11,7,16],[2,0,2,22],[3,2,3,7],[3,13,3,15],[4,2,4,7],[4,13,4,15],[7,17,7,23],[11,0,11,2],[11,3,11,6],[31,9,31,13],[32,9,32,13],[35,1,35,5],[44,0,44,12],[29,8,29,13],[34,1,34,7],[24,8,24,10],[34,9,34,13],[30,1,30,5],[31,1,31,5],[32,1,32,5],[37,0,37,12],[18,1,18,2],[39,7,39,16],[38,1,38,3],[29,1,29,3],[33,1,33,5],[28,0,28,13],[28,15,28,16],[29,15,29,16],[21,8,21,10],[12,0,12,11],[12,16,12,17],[12,18,12,21],[12,12,12,15],[16,0,16,3],[14,0,14,22],[17,0,17,2],[17,3,17,6],[15,11,15,15],[17,9,17,12],[17,14,17,15],[15,17,15,20],[20,1,20,6],[21,1,21,6],[47,0,47,12],[49,0,49,12],[50,0,50,12],[15,0,15,10],[87,7,87,9],[52,14,52,15],[50,14,50,15],[65,15,65,16],[65,0,65,12],[65,13,65,14],[83,0,83,22],[72,0,72,12],[73,0,73,12],[74,0,74,12],[59,0,59,12],[60,0,60,12],[61,0,61,12],[66,0,66,10],[20,17,20,20],[21,17,21,20],[58,0,58,12],[22,17,22,20],[23,17,23,20],[24,17,24,20],[33,9,33,13],[42,0,42,12],[39,1,39,4],[39,19,39,21],[21,13,21,15],[22,13,22,15],[23,13,23,15],[26,0,26,22],[27,0,27,5],[27,6,27,8],[24,13,24,15],[40,7,40,17],[24,1,24,6],[22,8,22,10],[23,8,23,10],[20,13,20,15],[20,8,20,10],[55,0,55,12],[22,1,22,6],[23,1,23,6],[91,13,91,16],[92,13,92,16],[93,13,93,16],[94,13,94,16],[76,0,76,22],[77,9,77,11],[68,0,68,22],[91,1,91,8],[70,0,70,12],[71,0,71,12],[63,0,63,15],[67,0,67,22],[89,8,89,9],[78,9,78,10],[79,9,79,10],[80,9,80,10],[81,9,81,10],[69,0,69,1],[69,2,69,5],[148,20,149,22],[61,20,62,22],[60,20,60,22],[89,20,89,22],[118,16,118,18],[148,17,149,19],[119,0,119,22],[122,10,122,11],[121,10,121,11],[121,0,121,8],[122,3,122,8],[125,0,125,8],[125,16,125,21],[125,11,125,14],[118,0,118,8],[96,9,96,11],[105,0,105,22],[106,9,106,11],[114,0,114,22],[107,9,107,10],[89,17,89,18],[69,6,69,7],[93,17,93,19],[92,17,92,19],[94,1,94,8],[95,1,95,8],[95,17,95,19],[94,17,94,19],[116,16,117,17],[117,1,117,9],[117,10,117,15],[117,18,117,22],[100,0,100,4],[102,5,102,8],[103,5,103,8],[111,0,111,10],[112,1,112,3],[113,7,113,22],[107,0,107,8],[109,7,109,22],[113,1,113,6],[102,0,102,4]]}
["………………………...………….…",null,null,null,null,null,null,null,null,null,"PROTOKÓŁ NR",null,null,"……………………..",null,null,null,null,"DLA REGIONU FADN",null,null,"A"]
["(gmina)"]
["z oszacowania zakresu i wysokości szkód w gospodarstwie rolnym lub dziale specjalnym produkcji rolnej spowodowanych wystąpieniem niekorzystnego zjawiska atmosferycznego:"]
[null,null,"(właściwe zaznacz - ",null,null,null,null,null,"x",")"]
[null,"□ ","z całego gospodarstwa",null,null,null,null,null,null,null,null,null,"□ ","z części gospodarstwa"]
["1. Dane producenta rolnego:"]
[]
["Imię i nazwisko/nazwa producenta rolnego",null,null,null,null,null,"………………………………………\n\n………………………...……………",null,null,null,null,"Adres i miejsce zamieszkania/adres i siedziba producenta rolnego/adres i miejsce położenia gospodarstwa rolnego lub prowadzenia działu specjalnego produkcji rolnej",null,null,null,null,null,"…………………………...………………\n\n………………………...……….....……."]
["Gmina"]
[]
["Numer identyfikacyjny producenta rolnego nadawany w trybie przepisów o krajowym systemie ewidencji producentów, ewidencji gospodarstw rolnych oraz ewidencji wniosków o przyznanie  płatności – jeżeli został nadany"]
[]
["Szkoda została zgłoszona przez producenta rolnego do Urzędu Gminy/Miasta",null,null,null,null,null,null,null,null,null,null,null,"…………………………………..",null,null,null,"w dniu",null,"…………...………….."]
[]
["2. Dane dotyczące komisji ds. oszacowania szkód:"]
["Komisja ds. oszacowania szkód w gospodarstwach rolnych lub działach specjalnych produkcji rolnej powołana przez Wojewodę",null,null,null,null,null,null,null,null,null,null,"……………………………………………….……..",null,null,null,null,null,"zarządzeniem/pismem"]
[]
["numer/znak",null,null,"……………………….",null,null,null,null,"z dnia ","……………………………..…………",null,null,null,null,"w składzie:"]
[]
[null,"Imię i Nazwisko",null,null,null,null,null,null,"Instytucja:",null,null,null,null,"Imię i Nazwisko",null,null,null,"Instytucja:"]
["1.","………………………………….",null,null,null,null,null,null,"…….…………………….",null,null,null,"6.","…………...……………………….",null,null,null,"………………………………"]
["2.","………………………………….",null,null,null,null,null,null,"…….…………………….",null,null,null,"7.","…………...……………………….",null,null,null,"………………………………"]
["3.","………………………………….",null,null,null,null,null,null,"…….…………………….",null,null,null,"8.","…………...……………………….",null,null,null,"………………………………"]
["4.","………………………………….",null,null,null,null,null,null,"…….…………………….",null,null,null,"9.","…………...……………………….",null,null,null,"………………………………"]
["5.","………………………………….",null,null,null,null,null,null,"…….…………………….",null,null,null,"10.","…………...……………………….",null,null,null,"………………………………"]
[]
["3. Dane dotyczące oszacowania szkód:"]
["Komisja przeprowadziła w dniu",null,null,null,null,null,"……………………….",null,null,"oszacowanie szkód na miejscu w ww. gospodarstwie rolnym/dziale specjalnym produkcji rolnej poszkodowanego oraz "]
[" stwierdziła wystąpienie szkód powstałych w wyniku następującego zjawiska atmosferycznego:",null,null,null,null,null,null,null,null,null,null,null,null,null,"Dzień","Miesiąc",null,"Rok"]
[null,"(właściwe zaznacz - ",null,null,"x",")",null,null,"data wystąpienia szkód (należy wybrać datę z listy rozwijanej)",null,null,null,null,null,1,"Styczeń",null,2026]
[]
["□ ","suszy w środku trwałym",null,null,null,null,null,null,"□ ","powodzi"]
["□ ","gradu",null,null,null,null,null,null,"□ ","huraganu"]
["□ ","deszczu nawalnego",null,null,null,null,null,null,"□ ","piorunu"]
["□ ","ujemnych skutków przezimowania",null,null,null,null,null,null,"□ ","obsunięcia się ziemi "]
["□ ","przymrozków wiosennych",null,null,null,null,null,null,"□ ","lawiny"]
[]
["Średni plon i cena sprzedaży  ustalona w gospodarstwie na podstawie:"]
["(","właściwe zaznacz - ",null,null,"x",")"]
["□","ksiąg rachunkowych",null,null,null,null,"□","innej ewidencji lub dokumentów przedłożonych przez producenta rolnego potwierdzających uzyskanie plonów (podać jakie): ",null,null,null,null,null,null,null,null,null,null,"□","danych IERiGŻ"]
[null,null,null,null,null,null,null,"…………………………………………………………………………………………………………"]
[]
["Kwota obniżenia dochodu w wyniku szkód w produkcji roślinnej wynosi",null,null,null,null,null,null,null,null,null,null,null,null,{"$f":"'Prod. roślinna'!M47-N45+N46+'Prod. roślinna'!I64","v":0},"zł, co stanowi",null,null,{"$f":"IFERROR((N43/N60),0)","v":0},null,"średniej rocznej produkcji,"]
[]
["Koszty nieponiesione wynoszą łącznie",null,null,null,null,null,null,null,null,null,null,null,null,{"$f":"'Prod. roślinna'!N47+'Prod. roślinna'!K64","v":0},"zł,"]
["Koszty poniesione z powodu nie zebrania plonów wynoszą łącznie ",null,null,null,null,null,null,null,null,null,null,null,null,{"$f":"'Prod. roślinna'!R47+'Prod. roślinna'!L64","v":0},"zł"]
[]
["Kwota obniżenia dochodu w wyniku szkód w produkcji zwierzęcej  towarowej bez produkcji ryb wynosi",null,null,null,null,null,null,null,null,null,null,null,null,{"$f":"'Prod. roślinna'!K47+'Prod. roślinna'!H64+'Prod. zwierzęca towar.'!K57-N50+N51","v":0},"zł, co stanowi",null,null,{"$f":"IFERROR((N48/N61),0)","v":0},null,"średniej rocznej produkcji,"]
[]
["Koszty nieponiesione  wynoszą łącznie ",null,null,null,null,null,null,null,null,null,null,null,null,{"$f":"'Prod. zwierzęca towar.'!L57","v":0},"zł,"]
["Koszty poniesione z powodu wystąpienia niekorzystnych zjawisk wynoszą  łącznie ",null,null,null,null,null,null,null,null,null,null,null,null,{"$f":"'Prod. zwierzęca towar.'!M57","v":0},"zł"]
[]
["Kwota obniżenia dochodu w wyniku szkód w produkcji ryb wynosi",null,null,null,null,null,null,null,null,null,null,null,null,{"$f":" 'Prod. ryb'!K20-N55+N56","v":0},"zł, co stanowi",null,null,{"$f":"IFERROR((N53/N62),0)","v":0},null,"średniej rocznej produkcji,"]
[]
["Koszty nieponiesione  wynoszą łącznie ",null,null,null,null,null,null,null,null,null,null,null,null,{"$f":"'Prod. ryb'!M20","v":0},"zł,"]
["Koszty poniesione z powodu wystąpienia niekorzystnych zjawisk wynoszą  łącznie ",null,null,null,null,null,null,null,null,null,null,null,null,{"$f":"'Prod. ryb'!N20","v":0},"zł"]
[]
["Średnia wartość produkcji ( roślinnej + zwierzęcej towarowej bez produkcji ryb  + ryb) z gospodarstwa rolnego "]
["wyniosła ogółem ",null,null,null,null,null,null,null,null,null,null,null,null,{"$f":"N60+N61+N62","v":0},"zł, w tym:"]
["wartość produkcji roślinnej ",null,null,null,null,null,null,null,null,null,null,null,null,{"$f":"'Prod. roślinna'!H47+'Prod. roślinna'!G64","v":0},"zł"]
["wartość produkcji zwierzęcej towarowej bez produkcji ryb",null,null,null,null,null,null,null,null,null,null,null,null,{"$f":"'Prod. zwierzęca towar.'!H57","v":0},"zł",null,null,null,null,null,"PROTOKÓŁ NR"]
["wartość produkcji ryb",null,null,null,null,null,null,null,null,null,null,null,null,{"$f":"'Prod. ryb'!H20","v":0},"zł",null,null,null,null,null,{"$f":"N1","v":"…………………….."}]
[]
["Łączna wysokość oszacowanych szkód wg kwoty obniżenia dochodu w gospodarstwie rolnym"]
[]
[" (produkcji roślinnej + produkcji zwierzęcej towarowej bez produkcji ryb +produkcji ryb) wyniosła ogółem",null,null,null,null,null,null,null,null,null,null,null,null,{"$f":"N43+N48+N53","v":0},null,"zł, co stanowi",null,{"$f":"IFERROR((N66/N59),0)","v":0},null," średniej rocznej produkcji w gospodarstwie rolnym. "]
[]
["4. Powierzchnie w gospodarstwie rolnym:"]
["Całkowita powierzchnia upraw rolnych w danym sezonie wegetacyjnym, z których w danym roku przewidziany jest zbiór plonu w gospodarstwie  rolnym \n(zgodnie z wnioskiem o płatności w ramach wsparcia bezpośredniego, o ile został złożony, bez uwzględnienia ugorów, odłogów, czy nieużytków)  "]
["wynosi:",null,{"$f":"'Prod. roślinna'!D47+'Prod. roślinna'!F64","v":0},null,null,null,"ha, w tym:"]
[]
["powierzchnia upraw rolnych w dniu wystąpienia szkód z wyłączeniem wieloletnich użytków zielonych (UZ)",null,null,null,null,null,null,null,null,null,null,null,null,{"$f":"'Prod. roślinna'!D47-'Prod. roślinna'!Q47+'Prod. roślinna'!N64","v":0},"ha"]
["powierzchnia upraw rolnych dotknięta zjawiskiem wynosi  ",null,null,null,null,null,null,null,null,null,null,null,null,{"$f":"'Prod. roślinna'!S47+'Prod. roślinna'!M64","v":0},"ha"]
["powierzchnia upraw w których wystąpiły szkody co najmniej 70 %",null,null,null,null,null,null,null,null,null,null,null,null,{"$f":"'Prod. roślinna'!P47+'Prod. roślinna'!R64","v":0},"ha"]
["Powierzchnia gospodarstwa rolnego ",null,null,null,null,null,null,null,null,null,null,null,null,"…….……","ha"]
[]
["5. Szkody w środkach trwałych:"]
["Szkody w środkach trwałych wynoszą łącznie",null,null,null,null,null,null,null,null,{"$f":"J79+J80+J81+J82","v":0},null,null,"zł, w tym:"]
["sadach i plantacjach wieloletnich",null,null,null,null,null,null,null,null,{"$f":"'Uprawy trwałe'!K23","v":0},null,"zł"]
["stadach podstawowych zwierząt gospodarskich",null,null,null,null,null,null,null,null,{"$f":"'Środki trwałe'!E16","v":0},null,"zł"]
["budynkach i budowlach służących do produkcji rolnej",null,null,null,null,null,null,null,null,{"$f":"'Środki trwałe'!E34","v":0},null,"zł"]
["maszynach i narzędziach służących do produkcji rolnej",null,null,null,null,null,null,null,null,{"$f":"'Środki trwałe'!E25","v":0},null,"zł"]
[]
["6. Dane dotyczące ubezpieczenia:"]
["Czy producent rolny zawarł umowę obowiązkowego lub dobrowolnego ubezpieczenia",null,null,null,null,null,null,null,null,null,null,null,null,"(właściwe zaznacz - ",null,"x ",")"]
["□  ","NIE",null,null,"□","TAK"]
[]
["Jeżeli tak to w jakim zakresie: ",null,null,null,null,null,null,"(właściwe zaznacz - ",null,null,"x",")",null,null,null,null,null,null,null,null,"PROTOKÓŁ NR"]
[]
["□  ","uprawy",null,null,null,null,null,"□  ","zwierzęta",null,null,null,"□  ","budynki ",null,null,"□  ","maszyny",null,null,{"$f":"N1","v":"…………………….."}]
[]
[null,"Nazwa upraw",null,null,null,null,null,null,null,"Powierzchnia upraw ubezpieczonych",null,null,null,"Nazwa zwierząt",null,null,null,"Liczba zwierząt ubezpieczonych"]
[]
[]
[]
[]
[]
[]
["Kwota uzyskanego odszkodowania z tytułu ubezpieczenia upraw rolnych, zwierząt gospodarskich, ryb,  środków trwałych wynosi:"]
[]
["upraw rolnych",null,null,null,null,"……………………",null,null,null,"zł"]
["zwierząt gospodarskich",null,null,null,null,"…………………….",null,null,null,"zł"]
["ryb",null,null,null,null,"…………………….",null,null,null,"zł"]
["środków trwałych",null,null,null,null,"…………………….",null,null,null,"zł"]
[]
["7. Dane dotyczące gruntów rolnych w innych gminach:"]
[null,null,null,null,null,null,null,null,null,"(właściwe zaznacz - ",null,null,"x",")"]
["Czy rolnik posiada grunty w innych gminach "]
["□ ","NIE"]
["□ ","TAK (jeśli tak wymienić w jakich?)",null,null,null,null,null,"………………………………………………………………………………………………….…...…………………………………………"]
[]
["W protokole uwzględnione zostały szkody z innej gminy"]
["□ ","NIE"]
["□ ","TAK (jeśli tak wymienić z jakiej)",null,null,null,null,null,"………………………………………………………………………………………………….…...…………………………………………"]
["W protokole uwzględnione zostały szkody z innego województwa oszacowane przez komisję powołaną przez Wojewodę "]
["□ ","NIE"]
["□ ","TAK  ",null,null,null,null,null,null,null,null,null,null,null,null,null,null,"z protokołu nr "]
[null,"oszacowane przez Komisję powołaną przez Wojewodę ",null,null,null,null,null,null,null,null,"………………………………………………………………..",null,null,null,null,null,null,null,"……………..…………"]
["Załączniki stanowią integralną część protokołu.",null,null,null,null,null,null,null,null,null,null,null,null,null,null,null,"PROTOKÓŁ NR",null,null,{"$f":"N1","v":"…………………….."}]
["Oświadczam, że wszystkie dane podane w protokole oraz w załącznikach do niego są prawdziwe i zgodne ze stanem faktycznym, a także, że znane mi są skutki składania fałszywych oświadczeń wynikające z art. 297 Kodeksu karnego (Dz.U. z 2025 r. poz. 383 z późn. zm.)."]
[]
["Na tym protokół zakończono i podpisano:",null,null,null,null,null,null,null,null,"Dzień","Miesiąc",null,"Rok"]
[null,null,null,"Data sporządzenia protokołu: ",null,null,null,null,null,1,"Styczeń",null,2026]
[]
[null,null,null,null,null,null,null,null,null,null,"Czytelne podpisy członków komisji"]
["………………………………………………………….",null,null,null,null,null,null,null,null,null,"1.","……………………………………………..",null,null,null,"6.","…………………………...………………"]
["(data i czytelny podpis rolnika)",null,null,null,null,null,null,null,null,null,"2.","……………………………………………..",null,null,null,"7.","…………………………...………………"]
[null,null,null,null,null,null,null,null,null,null,"3.","……………………………………………..",null,null,null,"8.","…………………………...………………"]
[null,null,null,null,null,null,null,null,null,null,"4.","……………………………………………..",null,null,null,"9.","…………………………...………………"]
[null,null,null,null,null,null,null,null,null,null,"5.","……………………………………………..",null,null,null,"10.","…………………………...………………"]
[]
[]
[]
["Protokół sporządzono w dwóch jednobrzmiących egzemplarzach, z których jeden otrzymuje wojewoda właściwy ze względu na miejsce wystąpienia szkód a drugi producent rolny, przy czym w przypadku szkód powyżej 30 proc. średniej rocznej produkcji rolnej lub 3350 zł w środkach trwałych producent rolny otrzymuje protokół potwierdzony przez wojewodę."]
[]
["Uwagi:",null,null,null,null,null,null,null,null,null,null,null,"Potwierdzam wystąpienie szkód powstałych w wyniku",null,null,null,null,null,{"$f":"_xlfn.TEXTJOIN(\", \",TRUE,IF(LOWER(A32)=\"x\",\"suszy w środku trwałym\",\"\"),IF(LOWER(A33)=\"x\",\"gradu\",\"\"),IF(LOWER(A34)=\"x\",\"deszczu nawalnego\",\"\"),IF(LOWER(A35)=\"x\",\"ujemnych skutków przezimowania\",\"\"),IF(LOWER(A36)=\"x\",\"przymrozków wiosennych\",\"\"),IF(LOWER(I32)=\"x\",\"powodzi\",\"\"),IF(LOWER(I33)=\"x\",\"huraganu\",\"\"),IF(LOWER(I34)=\"x\",\"piorunu\",\"\"),IF(LOWER(I35)=\"x\",\"obsunięcia się ziemi\",\"\"),IF(LOWER(I36)=\"x\",\"lawiny\",\"\"))","v":""}]
[null,null,null,null,null,null,null,null,null,null,null,null," w przedmiotowym gospodarstwie rolnym."]
[]
[]
[]
[null,null,null,null,null,null,null,null,null,null,null,null,null,"………………………..",null,null,null,"…………………………………."]
[null,null,null,null,null,null,null,null,null,null,null,null,null,null,"(data) ",null,null,"(podpis Wojewody)"]
[]
[]
[]
[]
[]
[]
[null,null,null,null,null,null,null,null,null,null,null,null,null,null,null,null,null,"PROTOKÓŁ NR",null,null,{"$f":"N1","v":"…………………….."}]

{"sheet":"Prod. roślinna","index":1,"n_rows":70,"n_cols":19,"rows_kept":70,"cut":false,"hidden":false,"merged":[[69,2,69,3],[69,6,69,10],[69,13,69,18],[50,12,51,12],[50,5,51,5],[50,3,50,4],[50,7,51,7],[64,2,64,6],[65,2,65,3],[66,2,66,3],[67,2,67,3],[68,2,68,3],[63,1,63,2],[67,6,67,10],[68,6,68,10],[68,13,68,18],[0,12,0,13],[0,1,0,7],[46,1,46,2],[1,1,1,4],[1,5,1,8],[66,6,66,10],[50,6,51,6],[50,8,51,8],[50,10,51,10],[47,1,47,20],[48,1,48,18],[50,11,51,11],[50,1,51,1],[50,2,51,2],[65,6,65,10],[50,13,51,13],[50,14,51,14],[50,15,51,15],[50,16,51,16],[50,17,51,17]]}
[null,"Załącznik 1  Szkody w produkcji roślinnej ",null,null,null,null,null,null,null,null,null,null,"DLA REGIONU FADN",null,null,null,null,{"$f":"Protokół!V1","v":"A"}]
[null,"Imię i nazwisko producenta rolnego",null,"Imię i nazwisko producenta rolnego",null,{"$f":"Protokół!G8","v":"………………………………………\n\n………………………...……………"}]
[]
[null,"L.p","Nazwa wszystkich upraw w gospodarstwie  rolnym","Powierzchnia uprawy w roku wystąpienia niekorzystnego zjawiska atmosferycznego","Średni plon z 1 ha danej uprawy ","Średnia cena","Średni dochód z 1 ha","Średnia roczna wartość produkcji ","Straty plonu w % w roku wystąpienia szkody",null,"Wysokość szkód w uprawach uwzględnianych w produkcji zwierzęcej *   ","Wartość produkcji w roku wystąpienia szkód po wystąpieniu niekorzystnego zjawiska atmosferycznego","Kwota obniżenia dochodu  w wyniku szkód ","Koszty nieponiesione w związku z wystąpieniem szkód łącznie",null,"suma pow 70%","pow UZ","Koszty poniesione z powodu niezebrania plonów w wyniku szkód łącznie","Powierzchnia upraw rolnych dotknięta zjawiskiem wynosi"]
[null,null,null,"ha","dt/ha ","w zł/dt","w zł/ha","w zł ","%",null,"zł","zł","zł","zł",null,null,null,"zł"]
[null,null,"NAZWA"]
[null,1,2,3,4,5,"6=4x5","7=3x6",8,null,"9=7x8","10= 7x(100%-8)","11=7-10",12,null,null,null,13,14]
[{"$f":"C8&region","v":"A"},1,null,null,{"$f":"IFERROR(VLOOKUP(region&'Prod. roślinna'!$C8,Dane_srednie_baza,6,0),0)","v":0},{"$f":"IFERROR(VLOOKUP(region&'Prod. roślinna'!$C8,Dane_srednie_baza,7,0),0)","v":0},{"$f":"E8*F8","v":0},{"$f":"D8*G8","v":0},null,{"$f":"AND(VLOOKUP(C8,rosliny_baza,2,0),('Prod. zwierzęca towar.'!$B$6>0))","v":{"$error":"#N/A"}},null,{"$f":"H8*(100%-I8)","v":0},{"$f":"H8-L8","v":0},{"$f":"I8*O8","v":0},{"$f":"IF(I8>=70%,VLOOKUP(A8,Koszty_nieponiesione_baza,2,0)*D8,0)","v":0},{"$f":"IF(I8>=70%,D8,0)","v":0},{"$f":"IF(OR(C8='Koszty nieponiesione'!$A$283,C8='Koszty nieponiesione'!$A$291,C8='Koszty nieponiesione'!$A$295,C8='Koszty nieponiesione'!$A$303,C8='Koszty nieponiesione'!$A$307,C8='Koszty nieponiesione'!$A$311,C8='Koszty nieponiesione'!$A$315,C8='Koszty nieponiesione'!$A$319), 'Prod. roślinna'!D8,0)","v":0},null,{"$f":"IF(I8>0,D8,0)","v":0}]
["A",2,null,null,{"$f":"IFERROR(VLOOKUP(region&'Prod. roślinna'!$C9,Dane_srednie_baza,6,0),0)","v":0},{"$f":"IFERROR(VLOOKUP(region&'Prod. roślinna'!C9,Dane_srednie_baza,7,0),0)","v":0},{"$f":"E9*F9","v":0},{"$f":"D9*G9","v":0},null,{"$f":"AND(VLOOKUP(C9,rosliny_baza,2,0),('Prod. zwierzęca towar.'!$B$6>0))","v":{"$error":"#N/A"}},null,0,0,{"$f":"I9*O9","v":0},0,{"$f":"IF(I9>=70%,D9,0)","v":0},{"$f":"IF(OR(C9='Koszty nieponiesione'!$A$283,C9='Koszty nieponiesione'!$A$291,C9='Koszty nieponiesione'!$A$295,C9='Koszty nieponiesione'!$A$303,C9='Koszty nieponiesione'!$A$307,C9='Koszty nieponiesione'!$A$311,C9='Koszty nieponiesione'!$A$315,C9='Koszty nieponiesione'!$A$319), 'Prod. roślinna'!D9,0)","v":0},null,0]
["A",3,null,null,{"$f":"IFERROR(VLOOKUP(region&'Prod. roślinna'!$C10,Dane_srednie_baza,6,0),0)","v":0},{"$f":"IFERROR(VLOOKUP(region&'Prod. roślinna'!C10,Dane_srednie_baza,7,0),0)","v":0},0,0,null,{"$f":"AND(VLOOKUP(C10,rosliny_baza,2,0),('Prod. zwierzęca towar.'!$B$6>0))","v":{"$error":"#N/A"}},null,0,0,{"$f":"I10*O10","v":0},0,0,{"$f":"IF(OR(C10='Koszty nieponiesione'!$A$283,C10='Koszty nieponiesione'!$A$291,C10='Koszty nieponiesione'!$A$295,C10='Koszty nieponiesione'!$A$303,C10='Koszty nieponiesione'!$A$307,C10='Koszty nieponiesione'!$A$311,C10='Koszty nieponiesione'!$A$315,C10='Koszty nieponiesione'!$A$319), 'Prod. roślinna'!D10,0)","v":0},null,0]
["A",4,null,null,{"$f":"IFERROR(VLOOKUP(region&'Prod. roślinna'!$C11,Dane_srednie_baza,6,0),0)","v":0},{"$f":"IFERROR(VLOOKUP(region&'Prod. roślinna'!C11,Dane_srednie_baza,7,0),0)","v":0},0,0,null,{"$f":"AND(VLOOKUP(C11,rosliny_baza,2,0),('Prod. zwierzęca towar.'!$B$6>0))","v":{"$error":"#N/A"}},null,0,0,{"$f":"I11*O11","v":0},0,0,{"$f":"IF(OR(C11='Koszty nieponiesione'!$A$283,C11='Koszty nieponiesione'!$A$291,C11='Koszty nieponiesione'!$A$295,C11='Koszty nieponiesione'!$A$303,C11='Koszty nieponiesione'!$A$307,C11='Koszty nieponiesione'!$A$311,C11='Koszty nieponiesione'!$A$315,C11='Koszty nieponiesione'!$A$319), 'Prod. roślinna'!D11,0)","v":0},null,0]
["A",5,null,null,{"$f":"IFERROR(VLOOKUP(region&'Prod. roślinna'!$C12,Dane_srednie_baza,6,0),0)","v":0},{"$f":"IFERROR(VLOOKUP(region&'Prod. roślinna'!C12,Dane_srednie_baza,7,0),0)","v":0},0,0,null,{"$f":"AND(VLOOKUP(C12,rosliny_baza,2,0),('Prod. zwierzęca towar.'!$B$6>0))","v":{"$error":"#N/A"}},null,0,0,0,0,0,{"$f":"IF(OR(C12='Koszty nieponiesione'!$A$283,C12='Koszty nieponiesione'!$A$291,C12='Koszty nieponiesione'!$A$295,C12='Koszty nieponiesione'!$A$303,C12='Koszty nieponiesione'!$A$307,C12='Koszty nieponiesione'!$A$311,C12='Koszty nieponiesione'!$A$315,C12='Koszty nieponiesione'!$A$319), 'Prod. roślinna'!D12,0)","v":0},null,0]
["A",6,null,null,{"$f":"IFERROR(VLOOKUP(region&'Prod. roślinna'!$C13,Dane_srednie_baza,6,0),0)","v":0},{"$f":"IFERROR(VLOOKUP(region&'Prod. roślinna'!$C13,Dane_srednie_baza,7,0),0)","v":0},0,0,null,{"$f":"AND(VLOOKUP(C13,rosliny_baza,2,0),('Prod. zwierzęca towar.'!$B$6>0))","v":{"$error":"#N/A"}},null,0,0,{"$f":"I13*O13","v":0},0,0,{"$f":"IF(OR(C13='Koszty nieponiesione'!$A$283,C13='Koszty nieponiesione'!$A$291,C13='Koszty nieponiesione'!$A$295,C13='Koszty nieponiesione'!$A$303,C13='Koszty nieponiesione'!$A$307,C13='Koszty nieponiesione'!$A$311,C13='Koszty nieponiesione'!$A$315,C13='Koszty nieponiesione'!$A$319), 'Prod. roślinna'!D13,0)","v":0},null,0]
["A",7,null,null,{"$f":"IFERROR(VLOOKUP(region&'Prod. roślinna'!$C14,Dane_srednie_baza,6,0),0)","v":0},{"$f":"IFERROR(VLOOKUP(region&'Prod. roślinna'!C14,Dane_srednie_baza,7,0),0)","v":0},0,0,null,{"$f":"AND(VLOOKUP(C14,rosliny_baza,2,0),('Prod. zwierzęca towar.'!$B$6>0))","v":{"$error":"#N/A"}},null,0,0,0,0,0,{"$f":"IF(OR(C14='Koszty nieponiesione'!$A$283,C14='Koszty nieponiesione'!$A$291,C14='Koszty nieponiesione'!$A$295,C14='Koszty nieponiesione'!$A$303,C14='Koszty nieponiesione'!$A$307,C14='Koszty nieponiesione'!$A$311,C14='Koszty nieponiesione'!$A$315,C14='Koszty nieponiesione'!$A$319), 'Prod. roślinna'!D14,0)","v":0},null,0]
["A",8,null,null,{"$f":"IFERROR(VLOOKUP(region&'Prod. roślinna'!$C15,Dane_srednie_baza,6,0),0)","v":0},{"$f":"IFERROR(VLOOKUP(region&'Prod. roślinna'!C15,Dane_srednie_baza,7,0),0)","v":0},0,0,null,{"$f":"AND(VLOOKUP(C15,rosliny_baza,2,0),('Prod. zwierzęca towar.'!$B$6>0))","v":{"$error":"#N/A"}},null,0,0,0,0,0,{"$f":"IF(OR(C15='Koszty nieponiesione'!$A$283,C15='Koszty nieponiesione'!$A$291,C15='Koszty nieponiesione'!$A$295,C15='Koszty nieponiesione'!$A$303,C15='Koszty nieponiesione'!$A$307,C15='Koszty nieponiesione'!$A$311,C15='Koszty nieponiesione'!$A$315,C15='Koszty nieponiesione'!$A$319), 'Prod. roślinna'!D15,0)","v":0},null,0]
["A",9,null,null,{"$f":"IFERROR(VLOOKUP(region&'Prod. roślinna'!$C16,Dane_srednie_baza,6,0),0)","v":0},{"$f":"IFERROR(VLOOKUP(region&'Prod. roślinna'!C16,Dane_srednie_baza,7,0),0)","v":0},0,0,null,{"$f":"AND(VLOOKUP(C16,rosliny_baza,2,0),('Prod. zwierzęca towar.'!$B$6>0))","v":{"$error":"#N/A"}},null,0,0,0,0,0,{"$f":"IF(OR(C16='Koszty nieponiesione'!$A$283,C16='Koszty nieponiesione'!$A$291,C16='Koszty nieponiesione'!$A$295,C16='Koszty nieponiesione'!$A$303,C16='Koszty nieponiesione'!$A$307,C16='Koszty nieponiesione'!$A$311,C16='Koszty nieponiesione'!$A$315,C16='Koszty nieponiesione'!$A$319), 'Prod. roślinna'!D16,0)","v":0},null,0]
["A",10,null,null,{"$f":"IFERROR(VLOOKUP(region&'Prod. roślinna'!$C17,Dane_srednie_baza,6,0),0)","v":0},{"$f":"IFERROR(VLOOKUP(region&'Prod. roślinna'!C17,Dane_srednie_baza,7,0),0)","v":0},0,0,null,{"$f":"AND(VLOOKUP(C17,rosliny_baza,2,0),('Prod. zwierzęca towar.'!$B$6>0))","v":{"$error":"#N/A"}},null,0,0,0,0,0,{"$f":"IF(OR(C17='Koszty nieponiesione'!$A$283,C17='Koszty nieponiesione'!$A$291,C17='Koszty nieponiesione'!$A$295,C17='Koszty nieponiesione'!$A$303,C17='Koszty nieponiesione'!$A$307,C17='Koszty nieponiesione'!$A$311,C17='Koszty nieponiesione'!$A$315,C17='Koszty nieponiesione'!$A$319), 'Prod. roślinna'!D17,0)","v":0},null,0]
["A",11,null,null,{"$f":"IFERROR(VLOOKUP(region&'Prod. roślinna'!$C18,Dane_srednie_baza,6,0),0)","v":0},{"$f":"IFERROR(VLOOKUP(region&'Prod. roślinna'!$C18,Dane_srednie_baza,7,0),0)","v":0},0,0,null,{"$f":"AND(VLOOKUP(C18,rosliny_baza,2,0),('Prod. zwierzęca towar.'!$B$6>0))","v":{"$error":"#N/A"}},null,0,0,{"$f":"I18*O18","v":0},0,0,{"$f":"IF(OR(C18='Koszty nieponiesione'!$A$283,C18='Koszty nieponiesione'!$A$291,C18='Koszty nieponiesione'!$A$295,C18='Koszty nieponiesione'!$A$303,C18='Koszty nieponiesione'!$A$307,C18='Koszty nieponiesione'!$A$311,C18='Koszty nieponiesione'!$A$315,C18='Koszty nieponiesione'!$A$319), 'Prod. roślinna'!D18,0)","v":0},null,0]
["A",12,null,null,{"$f":"IFERROR(VLOOKUP(region&'Prod. roślinna'!$C19,Dane_srednie_baza,6,0),0)","v":0},{"$f":"IFERROR(VLOOKUP(region&'Prod. roślinna'!C19,Dane_srednie_baza,7,0),0)","v":0},0,0,null,{"$f":"AND(VLOOKUP(C19,rosliny_baza,2,0),('Prod. zwierzęca towar.'!$B$6>0))","v":{"$error":"#N/A"}},null,0,0,0,0,0,{"$f":"IF(OR(C19='Koszty nieponiesione'!$A$283,C19='Koszty nieponiesione'!$A$291,C19='Koszty nieponiesione'!$A$295,C19='Koszty nieponiesione'!$A$303,C19='Koszty nieponiesione'!$A$307,C19='Koszty nieponiesione'!$A$311,C19='Koszty nieponiesione'!$A$315,C19='Koszty nieponiesione'!$A$319), 'Prod. roślinna'!D19,0)","v":0},null,0]
["A",13,null,null,{"$f":"IFERROR(VLOOKUP(region&'Prod. roślinna'!$C20,Dane_srednie_baza,6,0),0)","v":0},{"$f":"IFERROR(VLOOKUP(region&'Prod. roślinna'!C20,Dane_srednie_baza,7,0),0)","v":0},0,0,null,{"$f":"AND(VLOOKUP(C20,rosliny_baza,2,0),('Prod. zwierzęca towar.'!$B$6>0))","v":{"$error":"#N/A"}},null,0,0,0,0,0,{"$f":"IF(OR(C20='Koszty nieponiesione'!$A$283,C20='Koszty nieponiesione'!$A$291,C20='Koszty nieponiesione'!$A$295,C20='Koszty nieponiesione'!$A$303,C20='Koszty nieponiesione'!$A$307,C20='Koszty nieponiesione'!$A$311,C20='Koszty nieponiesione'!$A$315,C20='Koszty nieponiesione'!$A$319), 'Prod. roślinna'!D20,0)","v":0},null,0]
["A",14,null,null,{"$f":"IFERROR(VLOOKUP(region&'Prod. roślinna'!$C21,Dane_srednie_baza,6,0),0)","v":0},{"$f":"IFERROR(VLOOKUP(region&'Prod. roślinna'!C21,Dane_srednie_baza,7,0),0)","v":0},0,0,null,{"$f":"AND(VLOOKUP(C21,rosliny_baza,2,0),('Prod. zwierzęca towar.'!$B$6>0))","v":{"$error":"#N/A"}},null,0,0,0,0,0,{"$f":"IF(OR(C21='Koszty nieponiesione'!$A$283,C21='Koszty nieponiesione'!$A$291,C21='Koszty nieponiesione'!$A$295,C21='Koszty nieponiesione'!$A$303,C21='Koszty nieponiesione'!$A$307,C21='Koszty nieponiesione'!$A$311,C21='Koszty nieponiesione'!$A$315,C21='Koszty nieponiesione'!$A$319), 'Prod. roślinna'!D21,0)","v":0},null,0]
["A",15,null,null,{"$f":"IFERROR(VLOOKUP(region&'Prod. roślinna'!$C22,Dane_srednie_baza,6,0),0)","v":0},{"$f":"IFERROR(VLOOKUP(region&'Prod. roślinna'!C22,Dane_srednie_baza,7,0),0)","v":0},0,0,null,{"$f":"AND(VLOOKUP(C22,rosliny_baza,2,0),('Prod. zwierzęca towar.'!$B$6>0))","v":{"$error":"#N/A"}},null,0,0,0,0,0,{"$f":"IF(OR(C22='Koszty nieponiesione'!$A$283,C22='Koszty nieponiesione'!$A$291,C22='Koszty nieponiesione'!$A$295,C22='Koszty nieponiesione'!$A$303,C22='Koszty nieponiesione'!$A$307,C22='Koszty nieponiesione'!$A$311,C22='Koszty nieponiesione'!$A$315,C22='Koszty nieponiesione'!$A$319), 'Prod. roślinna'!D22,0)","v":0},null,0]
["A",16,null,null,{"$f":"IFERROR(VLOOKUP(region&'Prod. roślinna'!$C23,Dane_srednie_baza,6,0),0)","v":0},{"$f":"IFERROR(VLOOKUP(region&'Prod. roślinna'!C23,Dane_srednie_baza,7,0),0)","v":0},0,0,null,{"$f":"AND(VLOOKUP(C23,rosliny_baza,2,0),('Prod. zwierzęca towar.'!$B$6>0))","v":{"$error":"#N/A"}},null,0,0,0,0,0,{"$f":"IF(OR(C23='Koszty nieponiesione'!$A$283,C23='Koszty nieponiesione'!$A$291,C23='Koszty nieponiesione'!$A$295,C23='Koszty nieponiesione'!$A$303,C23='Koszty nieponiesione'!$A$307,C23='Koszty nieponiesione'!$A$311,C23='Koszty nieponiesione'!$A$315,C23='Koszty nieponiesione'!$A$319), 'Prod. roślinna'!D23,0)","v":0},null,0]
["A",17,null,null,{"$f":"IFERROR(VLOOKUP(region&'Prod. roślinna'!$C24,Dane_srednie_baza,6,0),0)","v":0},{"$f":"IFERROR(VLOOKUP(region&'Prod. roślinna'!C24,Dane_srednie_baza,7,0),0)","v":0},0,0,null,{"$f":"AND(VLOOKUP(C24,rosliny_baza,2,0),('Prod. zwierzęca towar.'!$B$6>0))","v":{"$error":"#N/A"}},null,0,0,0,0,0,{"$f":"IF(OR(C24='Koszty nieponiesione'!$A$283,C24='Koszty nieponiesione'!$A$291,C24='Koszty nieponiesione'!$A$295,C24='Koszty nieponiesione'!$A$303,C24='Koszty nieponiesione'!$A$307,C24='Koszty nieponiesione'!$A$311,C24='Koszty nieponiesione'!$A$315,C24='Koszty nieponiesione'!$A$319), 'Prod. roślinna'!D24,0)","v":0},null,0]
["A",18,null,null,{"$f":"IFERROR(VLOOKUP(region&'Prod. roślinna'!$C25,Dane_srednie_baza,6,0),0)","v":0},{"$f":"IFERROR(VLOOKUP(region&'Prod. roślinna'!C25,Dane_srednie_baza,7,0),0)","v":0},0,0,null,{"$f":"AND(VLOOKUP(C25,rosliny_baza,2,0),('Prod. zwierzęca towar.'!$B$6>0))","v":{"$error":"#N/A"}},null,0,0,0,0,0,{"$f":"IF(OR(C25='Koszty nieponiesione'!$A$283,C25='Koszty nieponiesione'!$A$291,C25='Koszty nieponiesione'!$A$295,C25='Koszty nieponiesione'!$A$303,C25='Koszty nieponiesione'!$A$307,C25='Koszty nieponiesione'!$A$311,C25='Koszty nieponiesione'!$A$315,C25='Koszty nieponiesione'!$A$319), 'Prod. roślinna'!D25,0)","v":0},null,0]
["A",19,null,null,{"$f":"IFERROR(VLOOKUP(region&'Prod. roślinna'!$C26,Dane_srednie_baza,6,0),0)","v":0},{"$f":"IFERROR(VLOOKUP(region&'Prod. roślinna'!C26,Dane_srednie_baza,7,0),0)","v":0},0,0,null,{"$f":"AND(VLOOKUP(C26,rosliny_baza,2,0),('Prod. zwierzęca towar.'!$B$6>0))","v":{"$error":"#N/A"}},null,0,0,0,0,0,{"$f":"IF(OR(C26='Koszty nieponiesione'!$A$283,C26='Koszty nieponiesione'!$A$291,C26='Koszty nieponiesione'!$A$295,C26='Koszty nieponiesione'!$A$303,C26='Koszty nieponiesione'!$A$307,C26='Koszty nieponiesione'!$A$311,C26='Koszty nieponiesione'!$A$315,C26='Koszty nieponiesione'!$A$319), 'Prod. roślinna'!D26,0)","v":0},null,0]
["A",20,null,null,{"$f":"IFERROR(VLOOKUP(region&'Prod. roślinna'!$C27,Dane_srednie_baza,6,0),0)","v":0},{"$f":"IFERROR(VLOOKUP(region&'Prod. roślinna'!C27,Dane_srednie_baza,7,0),0)","v":0},0,0,null,{"$f":"AND(VLOOKUP(C27,rosliny_baza,2,0),('Prod. zwierzęca towar.'!$B$6>0))","v":{"$error":"#N/A"}},null,0,0,0,0,0,{"$f":"IF(OR(C27='Koszty nieponiesione'!$A$283,C27='Koszty nieponiesione'!$A$291,C27='Koszty nieponiesione'!$A$295,C27='Koszty nieponiesione'!$A$303,C27='Koszty nieponiesione'!$A$307,C27='Koszty nieponiesione'!$A$311,C27='Koszty nieponiesione'!$A$315,C27='Koszty nieponiesione'!$A$319), 'Prod. roślinna'!D27,0)","v":0},null,0]
["A",21,null,null,{"$f":"IFERROR(VLOOKUP(region&'Prod. roślinna'!$C28,Dane_srednie_baza,6,0),0)","v":0},{"$f":"IFERROR(VLOOKUP(region&'Prod. roślinna'!C28,Dane_srednie_baza,7,0),0)","v":0},0,0,null,{"$f":"AND(VLOOKUP(C28,rosliny_baza,2,0),('Prod. zwierzęca towar.'!$B$6>0))","v":{"$error":"#N/A"}},null,0,0,0,0,0,{"$f":"IF(OR(C28='Koszty nieponiesione'!$A$283,C28='Koszty nieponiesione'!$A$291,C28='Koszty nieponiesione'!$A$295,C28='Koszty nieponiesione'!$A$303,C28='Koszty nieponiesione'!$A$307,C28='Koszty nieponiesione'!$A$311,C28='Koszty nieponiesione'!$A$315,C28='Koszty nieponiesione'!$A$319), 'Prod. roślinna'!D28,0)","v":0},null,0]
["A",22,null,null,{"$f":"IFERROR(VLOOKUP(region&'Prod. roślinna'!$C29,Dane_srednie_baza,6,0),0)","v":0},{"$f":"IFERROR(VLOOKUP(region&'Prod. roślinna'!C29,Dane_srednie_baza,7,0),0)","v":0},0,0,null,{"$f":"AND(VLOOKUP(C29,rosliny_baza,2,0),('Prod. zwierzęca towar.'!$B$6>0))","v":{"$error":"#N/A"}},null,0,0,0,0,0,{"$f":"IF(OR(C29='Koszty nieponiesione'!$A$283,C29='Koszty nieponiesione'!$A$291,C29='Koszty nieponiesione'!$A$295,C29='Koszty nieponiesione'!$A$303,C29='Koszty nieponiesione'!$A$307,C29='Koszty nieponiesione'!$A$311,C29='Koszty nieponiesione'!$A$315,C29='Koszty nieponiesione'!$A$319), 'Prod. roślinna'!D29,0)","v":0},null,0]
["A",23,null,null,{"$f":"IFERROR(VLOOKUP(region&'Prod. roślinna'!$C30,Dane_srednie_baza,6,0),0)","v":0},{"$f":"IFERROR(VLOOKUP(region&'Prod. roślinna'!C30,Dane_srednie_baza,7,0),0)","v":0},0,0,null,{"$f":"AND(VLOOKUP(C30,rosliny_baza,2,0),('Prod. zwierzęca towar.'!$B$6>0))","v":{"$error":"#N/A"}},null,0,0,0,0,0,{"$f":"IF(OR(C30='Koszty nieponiesione'!$A$283,C30='Koszty nieponiesione'!$A$291,C30='Koszty nieponiesione'!$A$295,C30='Koszty nieponiesione'!$A$303,C30='Koszty nieponiesione'!$A$307,C30='Koszty nieponiesione'!$A$311,C30='Koszty nieponiesione'!$A$315,C30='Koszty nieponiesione'!$A$319), 'Prod. roślinna'!D30,0)","v":0},null,0]
["A",24,null,null,{"$f":"IFERROR(VLOOKUP(region&'Prod. roślinna'!$C31,Dane_srednie_baza,6,0),0)","v":0},{"$f":"IFERROR(VLOOKUP(region&'Prod. roślinna'!C31,Dane_srednie_baza,7,0),0)","v":0},0,0,null,{"$f":"AND(VLOOKUP(C31,rosliny_baza,2,0),('Prod. zwierzęca towar.'!$B$6>0))","v":{"$error":"#N/A"}},null,0,0,0,0,0,{"$f":"IF(OR(C31='Koszty nieponiesione'!$A$283,C31='Koszty nieponiesione'!$A$291,C31='Koszty nieponiesione'!$A$295,C31='Koszty nieponiesione'!$A$303,C31='Koszty nieponiesione'!$A$307,C31='Koszty nieponiesione'!$A$311,C31='Koszty nieponiesione'!$A$315,C31='Koszty nieponiesione'!$A$319), 'Prod. roślinna'!D31,0)","v":0},null,0]
["A",25,null,null,{"$f":"IFERROR(VLOOKUP(region&'Prod. roślinna'!$C32,Dane_srednie_baza,6,0),0)","v":0},{"$f":"IFERROR(VLOOKUP(region&'Prod. roślinna'!C32,Dane_srednie_baza,7,0),0)","v":0},0,0,null,{"$f":"AND(VLOOKUP(C32,rosliny_baza,2,0),('Prod. zwierzęca towar.'!$B$6>0))","v":{"$error":"#N/A"}},null,0,0,0,0,0,{"$f":"IF(OR(C32='Koszty nieponiesione'!$A$283,C32='Koszty nieponiesione'!$A$291,C32='Koszty nieponiesione'!$A$295,C32='Koszty nieponiesione'!$A$303,C32='Koszty nieponiesione'!$A$307,C32='Koszty nieponiesione'!$A$311,C32='Koszty nieponiesione'!$A$315,C32='Koszty nieponiesione'!$A$319), 'Prod. roślinna'!D32,0)","v":0},null,0]
["A",26,null,null,{"$f":"IFERROR(VLOOKUP(region&'Prod. roślinna'!$C33,Dane_srednie_baza,6,0),0)","v":0},{"$f":"IFERROR(VLOOKUP(region&'Prod. roślinna'!C33,Dane_srednie_baza,7,0),0)","v":0},0,0,null,{"$f":"AND(VLOOKUP(C33,rosliny_baza,2,0),('Prod. zwierzęca towar.'!$B$6>0))","v":{"$error":"#N/A"}},null,0,0,0,0,0,{"$f":"IF(OR(C33='Koszty nieponiesione'!$A$283,C33='Koszty nieponiesione'!$A$291,C33='Koszty nieponiesione'!$A$295,C33='Koszty nieponiesione'!$A$303,C33='Koszty nieponiesione'!$A$307,C33='Koszty nieponiesione'!$A$311,C33='Koszty nieponiesione'!$A$315,C33='Koszty nieponiesione'!$A$319), 'Prod. roślinna'!D33,0)","v":0},null,0]
["A",27,null,null,{"$f":"IFERROR(VLOOKUP(region&'Prod. roślinna'!$C34,Dane_srednie_baza,6,0),0)","v":0},{"$f":"IFERROR(VLOOKUP(region&'Prod. roślinna'!C34,Dane_srednie_baza,7,0),0)","v":0},0,0,null,{"$f":"AND(VLOOKUP(C34,rosliny_baza,2,0),('Prod. zwierzęca towar.'!$B$6>0))","v":{"$error":"#N/A"}},null,0,0,0,0,0,{"$f":"IF(OR(C34='Koszty nieponiesione'!$A$283,C34='Koszty nieponiesione'!$A$291,C34='Koszty nieponiesione'!$A$295,C34='Koszty nieponiesione'!$A$303,C34='Koszty nieponiesione'!$A$307,C34='Koszty nieponiesione'!$A$311,C34='Koszty nieponiesione'!$A$315,C34='Koszty nieponiesione'!$A$319), 'Prod. roślinna'!D34,0)","v":0},null,0]
["A",28,null,null,{"$f":"IFERROR(VLOOKUP(region&'Prod. roślinna'!$C35,Dane_srednie_baza,6,0),0)","v":0},{"$f":"IFERROR(VLOOKUP(region&'Prod. roślinna'!C35,Dane_srednie_baza,7,0),0)","v":0},0,0,null,{"$f":"AND(VLOOKUP(C35,rosliny_baza,2,0),('Prod. zwierzęca towar.'!$B$6>0))","v":{"$error":"#N/A"}},null,0,0,0,0,0,{"$f":"IF(OR(C35='Koszty nieponiesione'!$A$283,C35='Koszty nieponiesione'!$A$291,C35='Koszty nieponiesione'!$A$295,C35='Koszty nieponiesione'!$A$303,C35='Koszty nieponiesione'!$A$307,C35='Koszty nieponiesione'!$A$311,C35='Koszty nieponiesione'!$A$315,C35='Koszty nieponiesione'!$A$319), 'Prod. roślinna'!D35,0)","v":0},null,0]
["A",29,null,null,{"$f":"IFERROR(VLOOKUP(region&'Prod. roślinna'!$C36,Dane_srednie_baza,6,0),0)","v":0},{"$f":"IFERROR(VLOOKUP(region&'Prod. roślinna'!C36,Dane_srednie_baza,7,0),0)","v":0},0,0,null,{"$f":"AND(VLOOKUP(C36,rosliny_baza,2,0),('Prod. zwierzęca towar.'!$B$6>0))","v":{"$error":"#N/A"}},null,0,0,0,0,0,{"$f":"IF(OR(C36='Koszty nieponiesione'!$A$283,C36='Koszty nieponiesione'!$A$291,C36='Koszty nieponiesione'!$A$295,C36='Koszty nieponiesione'!$A$303,C36='Koszty nieponiesione'!$A$307,C36='Koszty nieponiesione'!$A$311,C36='Koszty nieponiesione'!$A$315,C36='Koszty nieponiesione'!$A$319), 'Prod. roślinna'!D36,0)","v":0},null,0]
["A",30,null,null,{"$f":"IFERROR(VLOOKUP(region&'Prod. roślinna'!$C37,Dane_srednie_baza,6,0),0)","v":0},{"$f":"IFERROR(VLOOKUP(region&'Prod. roślinna'!C37,Dane_srednie_baza,7,0),0)","v":0},0,0,null,{"$f":"AND(VLOOKUP(C37,rosliny_baza,2,0),('Prod. zwierzęca towar.'!$B$6>0))","v":{"$error":"#N/A"}},null,0,0,0,0,0,{"$f":"IF(OR(C37='Koszty nieponiesione'!$A$283,C37='Koszty nieponiesione'!$A$291,C37='Koszty nieponiesione'!$A$295,C37='Koszty nieponiesione'!$A$303,C37='Koszty nieponiesione'!$A$307,C37='Koszty nieponiesione'!$A$311,C37='Koszty nieponiesione'!$A$315,C37='Koszty nieponiesione'!$A$319), 'Prod. roślinna'!D37,0)","v":0},null,0]
["A",31,null,null,{"$f":"IFERROR(VLOOKUP(region&'Prod. roślinna'!$C38,Dane_srednie_baza,6,0),0)","v":0},{"$f":"IFERROR(VLOOKUP(region&'Prod. roślinna'!C38,Dane_srednie_baza,7,0),0)","v":0},0,0,null,{"$f":"AND(VLOOKUP(C38,rosliny_baza,2,0),('Prod. zwierzęca towar.'!$B$6>0))","v":{"$error":"#N/A"}},null,0,0,0,0,0,{"$f":"IF(OR(C38='Koszty nieponiesione'!$A$283,C38='Koszty nieponiesione'!$A$291,C38='Koszty nieponiesione'!$A$295,C38='Koszty nieponiesione'!$A$303,C38='Koszty nieponiesione'!$A$307,C38='Koszty nieponiesione'!$A$311,C38='Koszty nieponiesione'!$A$315,C38='Koszty nieponiesione'!$A$319), 'Prod. roślinna'!D38,0)","v":0},null,0]
["A",32,null,null,{"$f":"IFERROR(VLOOKUP(region&'Prod. roślinna'!$C39,Dane_srednie_baza,6,0),0)","v":0},{"$f":"IFERROR(VLOOKUP(region&'Prod. roślinna'!C39,Dane_srednie_baza,7,0),0)","v":0},0,0,null,{"$f":"AND(VLOOKUP(C39,rosliny_baza,2,0),('Prod. zwierzęca towar.'!$B$6>0))","v":{"$error":"#N/A"}},null,0,0,0,0,0,{"$f":"IF(OR(C39='Koszty nieponiesione'!$A$283,C39='Koszty nieponiesione'!$A$291,C39='Koszty nieponiesione'!$A$295,C39='Koszty nieponiesione'!$A$303,C39='Koszty nieponiesione'!$A$307,C39='Koszty nieponiesione'!$A$311,C39='Koszty nieponiesione'!$A$315,C39='Koszty nieponiesione'!$A$319), 'Prod. roślinna'!D39,0)","v":0},null,0]
["A",33,null,null,{"$f":"IFERROR(VLOOKUP(region&'Prod. roślinna'!$C40,Dane_srednie_baza,6,0),0)","v":0},{"$f":"IFERROR(VLOOKUP(region&'Prod. roślinna'!C40,Dane_srednie_baza,7,0),0)","v":0},{"$f":"E40*F40","v":0},0,null,{"$f":"AND(VLOOKUP(C40,rosliny_baza,2,0),('Prod. zwierzęca towar.'!$B$6>0))","v":{"$error":"#N/A"}},null,0,0,0,0,0,{"$f":"IF(OR(C40='Koszty nieponiesione'!$A$283,C40='Koszty nieponiesione'!$A$291,C40='Koszty nieponiesione'!$A$295,C40='Koszty nieponiesione'!$A$303,C40='Koszty nieponiesione'!$A$307,C40='Koszty nieponiesione'!$A$311,C40='Koszty nieponiesione'!$A$315,C40='Koszty nieponiesione'!$A$319), 'Prod. roślinna'!D40,0)","v":0},null,0]
["A",34,null,null,{"$f":"IFERROR(VLOOKUP(region&'Prod. roślinna'!$C41,Dane_srednie_baza,6,0),0)","v":0},{"$f":"IFERROR(VLOOKUP(region&'Prod. roślinna'!C41,Dane_srednie_baza,7,0),0)","v":0},0,0,null,{"$f":"AND(VLOOKUP(C41,rosliny_baza,2,0),('Prod. zwierzęca towar.'!$B$6>0))","v":{"$error":"#N/A"}},null,0,0,0,0,0,{"$f":"IF(OR(C41='Koszty nieponiesione'!$A$283,C41='Koszty nieponiesione'!$A$291,C41='Koszty nieponiesione'!$A$295,C41='Koszty nieponiesione'!$A$303,C41='Koszty nieponiesione'!$A$307,C41='Koszty nieponiesione'!$A$311,C41='Koszty nieponiesione'!$A$315,C41='Koszty nieponiesione'!$A$319), 'Prod. roślinna'!D41,0)","v":0},null,0]
["A",35,null,null,{"$f":"IFERROR(VLOOKUP(region&'Prod. roślinna'!$C42,Dane_srednie_baza,6,0),0)","v":0},{"$f":"IFERROR(VLOOKUP(region&'Prod. roślinna'!C42,Dane_srednie_baza,7,0),0)","v":0},0,0,null,{"$f":"AND(VLOOKUP(C42,rosliny_baza,2,0),('Prod. zwierzęca towar.'!$B$6>0))","v":{"$error":"#N/A"}},null,0,0,0,0,0,{"$f":"IF(OR(C42='Koszty nieponiesione'!$A$283,C42='Koszty nieponiesione'!$A$291,C42='Koszty nieponiesione'!$A$295,C42='Koszty nieponiesione'!$A$303,C42='Koszty nieponiesione'!$A$307,C42='Koszty nieponiesione'!$A$311,C42='Koszty nieponiesione'!$A$315,C42='Koszty nieponiesione'!$A$319), 'Prod. roślinna'!D42,0)","v":0},null,0]
["A",36,null,null,{"$f":"IFERROR(VLOOKUP(region&'Prod. roślinna'!$C43,Dane_srednie_baza,6,0),0)","v":0},{"$f":"IFERROR(VLOOKUP(region&'Prod. roślinna'!C43,Dane_srednie_baza,7,0),0)","v":0},0,0,null,{"$f":"AND(VLOOKUP(C43,rosliny_baza,2,0),('Prod. zwierzęca towar.'!$B$6>0))","v":{"$error":"#N/A"}},null,0,0,0,0,0,{"$f":"IF(OR(C43='Koszty nieponiesione'!$A$283,C43='Koszty nieponiesione'!$A$291,C43='Koszty nieponiesione'!$A$295,C43='Koszty nieponiesione'!$A$303,C43='Koszty nieponiesione'!$A$307,C43='Koszty nieponiesione'!$A$311,C43='Koszty nieponiesione'!$A$315,C43='Koszty nieponiesione'!$A$319), 'Prod. roślinna'!D43,0)","v":0},null,0]
["A",37,null,null,{"$f":"IFERROR(VLOOKUP(region&'Prod. roślinna'!$C44,Dane_srednie_baza,6,0),0)","v":0},{"$f":"IFERROR(VLOOKUP(region&'Prod. roślinna'!C44,Dane_srednie_baza,7,0),0)","v":0},0,0,null,{"$f":"AND(VLOOKUP(C44,rosliny_baza,2,0),('Prod. zwierzęca towar.'!$B$6>0))","v":{"$error":"#N/A"}},null,0,0,0,0,0,{"$f":"IF(OR(C44='Koszty nieponiesione'!$A$283,C44='Koszty nieponiesione'!$A$291,C44='Koszty nieponiesione'!$A$295,C44='Koszty nieponiesione'!$A$303,C44='Koszty nieponiesione'!$A$307,C44='Koszty nieponiesione'!$A$311,C44='Koszty nieponiesione'!$A$315,C44='Koszty nieponiesione'!$A$319), 'Prod. roślinna'!D44,0)","v":0},null,0]
["A",38,null,null,{"$f":"IFERROR(VLOOKUP(region&'Prod. roślinna'!$C45,Dane_srednie_baza,6,0),0)","v":0},{"$f":"IFERROR(VLOOKUP(region&'Prod. roślinna'!C45,Dane_srednie_baza,7,0),0)","v":0},0,0,null,{"$f":"AND(VLOOKUP(C45,rosliny_baza,2,0),('Prod. zwierzęca towar.'!$B$6>0))","v":{"$error":"#N/A"}},null,0,0,0,0,0,{"$f":"IF(OR(C45='Koszty nieponiesione'!$A$283,C45='Koszty nieponiesione'!$A$291,C45='Koszty nieponiesione'!$A$295,C45='Koszty nieponiesione'!$A$303,C45='Koszty nieponiesione'!$A$307,C45='Koszty nieponiesione'!$A$311,C45='Koszty nieponiesione'!$A$315,C45='Koszty nieponiesione'!$A$319), 'Prod. roślinna'!D45,0)","v":0},null,0]
["A",39,null,null,{"$f":"IFERROR(VLOOKUP(region&'Prod. roślinna'!$C46,Dane_srednie_baza,6,0),0)","v":0},{"$f":"IFERROR(VLOOKUP(region&'Prod. roślinna'!C46,Dane_srednie_baza,7,0),0)","v":0},{"$f":"E46*F46","v":0},0,null,{"$f":"AND(VLOOKUP(C46,rosliny_baza,2,0),('Prod. zwierzęca towar.'!$B$6>0))","v":{"$error":"#N/A"}},null,0,0,0,0,0,{"$f":"IF(OR(C46='Koszty nieponiesione'!$A$283,C46='Koszty nieponiesione'!$A$291,C46='Koszty nieponiesione'!$A$295,C46='Koszty nieponiesione'!$A$303,C46='Koszty nieponiesione'!$A$307,C46='Koszty nieponiesione'!$A$311,C46='Koszty nieponiesione'!$A$315,C46='Koszty nieponiesione'!$A$319), 'Prod. roślinna'!D46,0)","v":0},null,0]
[null,"Razem (poz. 1 - 186)",null,{"$f":"SUM(D8:D46, 'Prod. roślinna str 2'!D57, 'Prod. roślinna str 3'!D57, 'Prod. roślinna str 4'!D57)","v":0},"x","x","x",{"$f":"SUM(H8:H46, 'Prod. roślinna str 2'!H57, 'Prod. roślinna str 3'!H57, 'Prod. roślinna str 4'!H57)","v":0},"x",null,{"$f":"MIN( SUM(K8:K46, 'Prod. roślinna str 2'!K57, 'Prod. roślinna str 3'!K57, 'Prod. roślinna str 4'!K57), 'Prod. zwierzęca towar.'!H57 )","v":0},{"$f":"SUM(L8:L46, 'Prod. roślinna str 2'!L57, 'Prod. roślinna str 3'!L57, 'Prod. roślinna str 4'!L57)","v":0},{"$f":"SUM(M8:M46, 'Prod. roślinna str 2'!M57, 'Prod. roślinna str 3'!M57, 'Prod. roślinna str 4'!M57)","v":0},{"$f":"SUM(N8:N46, 'Prod. roślinna str 2'!N57, 'Prod. roślinna str 3'!N57, 'Prod. roślinna str 4'!N57)","v":0},{"$f":"SUM(O8:O46, 'Prod. roślinna str 2'!O57, 'Prod. roślinna str 3'!O57, 'Prod. roślinna str 4'!O57)","v":0},{"$f":"SUM(P8:P46, 'Prod. roślinna str 2'!P57, 'Prod. roślinna str 3'!P57, 'Prod. roślinna str 4'!P57)","v":0},{"$f":"SUM(Q8:Q46, 'Prod. roślinna str 2'!Q57, 'Prod. roślinna str 3'!Q57, 'Prod. roślinna str 4'!Q57)","v":0},{"$f":"SUM(R8:R46, 'Prod. roślinna str 2'!R57, 'Prod. roślinna str 3'!R57, 'Prod. roślinna str 4'!R57)","v":0},{"$f":"SUM(S8:S46, 'Prod. roślinna str 2'!S57, 'Prod. roślinna str 3'!S57, 'Prod. roślinna str 4'!S57)","v":0}]
[null,"*Dane w kolumnie 9 \"Wysokości szkód w uprawach uwzględnianych w produkcji zwierzęcej” oblicza się w zakresie upraw : rośliny pastewne objętościowe na gruntach ornych, okopowe pastewne na pasze, buraki pastewne na pasze, brukiew pastewna na pasze, marchew pastewna na pasze, dynia pastewna na pasze, pozostałe okopowe pastewne na pasze, kukurydza pastewna na zielonkę, zboża na zielonkę i mieszanki zbóż z innymi roślinami na zielonkę, trawy w uprawie polowej na zielonkę, strączkowe na zielonkę, motylkowe drobnonasienne na zielonkę, mieszanki motylkowych z trawami, pozostałe polowe uprawy pastewne na zielonkę, rośliny pastewne objętościowe z użytków zielonych (uprawa lub zielonka), rośliny pastewne objętościowe z łąk – zielonka, rośliny pastewne objętościowe z pastwisk, rośliny pastewne objętościowe z pastwisk pielęgnowanych, rośliny pastewne objętościowe z pastwisk niepielęgnowanych, kukurydza (sucha i wilgotna) na ziarno, proso na ziarno, strączkowe pastewne na nasiona suche, groch pastewny (peluszka) na nasiona suche, pozostałe strączkowe pastewne na nasiona suche, mieszanki strączkowych z innymi roślinami jare na nasiona suche, mieszanki strączkowych z innymi roślinami ozime na nasiona suche. w przypadku prowadzenia produkcji zwierzęcej w zakresie: byki do opasu, wolce 2-letnie i starsze, jałówki do opasu 2-letnie i starsze, byczki od 1 do 2 lat, jałówki od 1 do 2 lat, owce 1 roczne i starsze, mleko krowie, mleko owcze, mleko kozie, kozy 1 roczne i starsze, konie, tuczniki o wadze 50 kg i więcej, warchlaki do tuczu o wadze od 20 do 50 kg."]
[null,"Załącznik 1b  Dane z protokołu oszacowania szkód spowodowanych wystąpieniem niekorzystnego zjawiska atmosferycznego w gospodarstwie rolnym lub dziale specjalnym produkcji rolnej położonym na terenie innego województwa, gminy (kserokopia potwierdzona za zgodność z oryginałem w załączeniu)."]
[]
[null,"L.p","Nazwa innego województwa na terenie, którego producent rolny posiada grunty rolne, w których wystąpiły szkody spowodowane wystąpieniem niekorzystnego zjawiska atmosferycznego ","Dane protokołu",null,"Suma powierzchni upraw w roku wystąpienia niekorzystnego zjawiska atmosferycznego (z kolumny nr 3)","Suma średniorocznej wartości produkcji na terenie województwa (z kolumny nr 7)","Suma wartości wysokosci szkód (z kolumny nr 9)","Suma kwot obniżenia dochodów w wyniku szkód (z kolumny nr 11)",null,"Suma kosztów nieponiesionych w związku z wystąpieniem szkód łącznie (z kolumny nr 12)","Suma kosztów poniesionych z powodu niezebrania plonów w wyniku szkód łącznie (z kolumny nr 13)","Suma powierzchni upraw rolnych dotknięta zjawiskiem wynosi (z kolumny nr 14)","Powierzchnia upraw rolnych w dniu wystąpienia szkód z wyłączeniem wieloletnich użytków zielonych (UZ) (z pkt 4 protokołu)","Suma powierzchni upraw rolnych dotknięta zjawiskiem wynosi (z kolumny nr 14)","Suma powierzchni upraw rolnych dotknięta zjawiskiem wynosi (z kolumny nr 14)","Suma powierzchni upraw rolnych dotknięta zjawiskiem wynosi (z kolumny nr 14)","Powierzchnia upraw w których wystąpiły szkody co najmniej 70 % (z pkt 4 protokołu)"]
[null,null,null,"z dnia","numer"]
[null,1,2,3,4,5,6,7,8,null,9,10,11,12,11,11,11,13]
[null,1]
[null,2]
[null,3]
[null,4]
[null,5]
[null,6]
[null,7]
[null,8]
[null,9]
[null,10]
[null,"Razem",null,"x","x",{"$f":"SUM(F54:F63)","v":0},{"$f":"SUM(G54:G63)","v":0},{"$f":"SUM(H54:H63)","v":0},{"$f":"SUM(I54:I63)","v":0},null,{"$f":"SUM(K54:K63)","v":0},{"$f":"SUM(L54:L63)","v":0},{"$f":"SUM(M54:M63)","v":0},{"$f":"SUM(N54:N63)","v":0},{"$f":"SUM(O54:O63)","v":0},0,0,{"$f":"SUM(R54:R63)","v":0}]
[null,null," Czytelne podpisy członków komisji powołanych przez Wojewodę"]
[null,"1.","……………………………………………………………………………………………….………",null,null,"6.","……………………………………………………………………………………………….………"]
[null,"2.","……………………………………………………………………………………………….………",null,null,"7.","……………………………………………………………………………………………….………"]
[null,"3.","……………………………………………………………………………………………….………",null,null,"8.","……………………………………………………………………………………………….………"]
[null,"4.","……………………………………………………………………………………………….………",null,null,"9.","……………………………………………………………………………………………….………",null,null,null,null,null,null,"…………………………………..……………..……….…."]
[null,"5.","……………………………………………………………………………………………….………",null,null,"10.","……………………………………………………………………………………………….………",null,null,null,null,null,null,"(data i czytelny podpis rolnika)"]

{"sheet":"Prod. roślinna str 2","index":2,"n_rows":66,"n_cols":19,"rows_kept":66,"cut":false,"hidden":false,"merged":[[65,2,65,3],[65,6,65,10],[65,13,65,17],[60,2,60,6],[61,2,61,3],[61,6,61,10],[62,2,62,3],[62,6,62,10],[63,2,63,3],[63,6,63,10],[64,2,64,3],[64,6,64,10],[64,13,64,18],[58,1,58,18],[0,1,0,7],[0,12,0,13],[1,1,1,4],[1,5,1,8],[56,1,56,2],[57,1,57,20]]}
[null,"Załącznik 1  Szkody w produkcji roślinnej ",null,null,null,null,null,null,null,null,null,null,"DLA REGIONU FADN",null,null,null,null,{"$f":"Protokół!V1","v":"A"}]
[null,"Imię i nazwisko producenta rolnego",null,"Imię i nazwisko producenta rolnego",null,{"$f":"Protokół!G8","v":"………………………………………\n\n………………………...……………"}]
[]
[null,"L.p","Nazwa wszystkich upraw w gospodarstwie  rolnym ","Powierzchnia uprawy w roku wystąpienia niekorzystnego zjawiska atmosferycznego","Średni plon z 1 ha danej uprawy ","Średnia cena","Średni dochód z 1 ha","Średnia roczna wartość produkcji ","Straty plonu w % w roku wystąpienia szkody",null,"Wysokość szkód w uprawach uwzględnianych w produkcji zwierzęcej *   ","Wartość produkcji w roku wystąpienia szkód po wystąpieniu niekorzystnego zjawiska atmosferycznego","Kwota obniżenia dochodu  w wyniku szkód ","Koszty nieponiesione w związku z wystąpieniem szkód łącznie",null,"pow 70%","pow UZ","Koszty poniesione z powodu niezebrania plonów w wyniku szkód łącznie","Powierzchnia upraw rolnych dotknięta zjawiskiem wynosi"]
[null,null,null,"ha","dt/ha ","w zł/dt","w zł/ha","w zł ","%",null,"zł","zł","zł","zł",null,null,null,"zł"]
[null,null,"NAZWA"]
[null,1,2,3,4,5,"6=4x5","7=3x6",8,null,"9=7x8","10= 7x(100%-8)","11=7-10",12,null,null,null,13,14]
[{"$f":"C8&region","v":"A"},40,null,null,{"$f":"IFERROR(VLOOKUP(region&'Prod. roślinna str 2'!$C8,Dane_srednie_baza,6,0),0)","v":0},{"$f":"IFERROR(VLOOKUP(region&'Prod. roślinna str 2'!C8,Dane_srednie_baza,7,0),0)","v":0},{"$f":"E8*F8","v":0},{"$f":"D8*G8","v":0},null,{"$f":"AND(VLOOKUP(C8,rosliny_baza,2,0),('Prod. zwierzęca towar.'!$B$6>0))","v":{"$error":"#N/A"}},null,{"$f":"H8*(100%-I8)","v":0},{"$f":"H8-L8","v":0},{"$f":"I8*O8","v":0},{"$f":"IF(I8>=70%,VLOOKUP(A8,Koszty_nieponiesione_baza,2,0)*D8,0)","v":0},{"$f":"IF(I8>=70%,D8,0)","v":0},{"$f":"IF(OR(C8='Koszty nieponiesione'!$A$283,C8='Koszty nieponiesione'!$A$291,C8='Koszty nieponiesione'!$A$295,C8='Koszty nieponiesione'!$A$303,C8='Koszty nieponiesione'!$A$307,C8='Koszty nieponiesione'!$A$311,C8='Koszty nieponiesione'!$A$315,C8='Koszty nieponiesione'!$A$319), 'Prod. roślinna'!D8,0)","v":0},null,{"$f":"IF(I8>0,D8,0)","v":0}]
["A",41,null,null,{"$f":"IFERROR(VLOOKUP(region&'Prod. roślinna str 2'!$C9,Dane_srednie_baza,6,0),0)","v":0},{"$f":"IFERROR(VLOOKUP(region&'Prod. roślinna str 2'!C9,Dane_srednie_baza,7,0),0)","v":0},{"$f":"E9*F9","v":0},{"$f":"D9*G9","v":0},null,{"$f":"AND(VLOOKUP(C9,rosliny_baza,2,0),('Prod. zwierzęca towar.'!$B$6>0))","v":{"$error":"#N/A"}},null,{"$f":"H9*(100%-I9)","v":0},{"$f":"H9-L9","v":0},{"$f":"I9*O9","v":0},0,0,{"$f":"IF(OR(C9='Koszty nieponiesione'!$A$283,C9='Koszty nieponiesione'!$A$291,C9='Koszty nieponiesione'!$A$295,C9='Koszty nieponiesione'!$A$303,C9='Koszty nieponiesione'!$A$307,C9='Koszty nieponiesione'!$A$311,C9='Koszty nieponiesione'!$A$315,C9='Koszty nieponiesione'!$A$319), 'Prod. roślinna'!D9,0)","v":0},null,0]
["A",42,null,null,{"$f":"IFERROR(VLOOKUP(region&'Prod. roślinna str 2'!$C10,Dane_srednie_baza,6,0),0)","v":0},{"$f":"IFERROR(VLOOKUP(region&'Prod. roślinna str 2'!C10,Dane_srednie_baza,7,0),0)","v":0},0,0,null,{"$f":"AND(VLOOKUP(C10,rosliny_baza,2,0),('Prod. zwierzęca towar.'!$B$6>0))","v":{"$error":"#N/A"}},null,0,0,0,0,0,{"$f":"IF(OR(C10='Koszty nieponiesione'!$A$283,C10='Koszty nieponiesione'!$A$291,C10='Koszty nieponiesione'!$A$295,C10='Koszty nieponiesione'!$A$303,C10='Koszty nieponiesione'!$A$307,C10='Koszty nieponiesione'!$A$311,C10='Koszty nieponiesione'!$A$315,C10='Koszty nieponiesione'!$A$319), 'Prod. roślinna'!D10,0)","v":0},null,0]
["A",43,null,null,{"$f":"IFERROR(VLOOKUP(region&'Prod. roślinna str 2'!$C11,Dane_srednie_baza,6,0),0)","v":0},{"$f":"IFERROR(VLOOKUP(region&'Prod. roślinna str 2'!C11,Dane_srednie_baza,7,0),0)","v":0},0,0,null,{"$f":"AND(VLOOKUP(C11,rosliny_baza,2,0),('Prod. zwierzęca towar.'!$B$6>0))","v":{"$error":"#N/A"}},null,0,0,0,0,0,{"$f":"IF(OR(C11='Koszty nieponiesione'!$A$283,C11='Koszty nieponiesione'!$A$291,C11='Koszty nieponiesione'!$A$295,C11='Koszty nieponiesione'!$A$303,C11='Koszty nieponiesione'!$A$307,C11='Koszty nieponiesione'!$A$311,C11='Koszty nieponiesione'!$A$315,C11='Koszty nieponiesione'!$A$319), 'Prod. roślinna'!D11,0)","v":0},null,0]
["A",44,null,null,{"$f":"IFERROR(VLOOKUP(region&'Prod. roślinna str 2'!$C12,Dane_srednie_baza,6,0),0)","v":0},{"$f":"IFERROR(VLOOKUP(region&'Prod. roślinna str 2'!C12,Dane_srednie_baza,7,0),0)","v":0},0,0,null,{"$f":"AND(VLOOKUP(C12,rosliny_baza,2,0),('Prod. zwierzęca towar.'!$B$6>0))","v":{"$error":"#N/A"}},null,0,0,0,0,0,{"$f":"IF(OR(C12='Koszty nieponiesione'!$A$283,C12='Koszty nieponiesione'!$A$291,C12='Koszty nieponiesione'!$A$295,C12='Koszty nieponiesione'!$A$303,C12='Koszty nieponiesione'!$A$307,C12='Koszty nieponiesione'!$A$311,C12='Koszty nieponiesione'!$A$315,C12='Koszty nieponiesione'!$A$319), 'Prod. roślinna'!D12,0)","v":0},null,0]
["A",45,null,null,{"$f":"IFERROR(VLOOKUP(region&'Prod. roślinna str 2'!$C13,Dane_srednie_baza,6,0),0)","v":0},{"$f":"IFERROR(VLOOKUP(region&'Prod. roślinna str 2'!C13,Dane_srednie_baza,7,0),0)","v":0},0,0,null,{"$f":"AND(VLOOKUP(C13,rosliny_baza,2,0),('Prod. zwierzęca towar.'!$B$6>0))","v":{"$error":"#N/A"}},null,0,0,0,0,0,{"$f":"IF(OR(C13='Koszty nieponiesione'!$A$283,C13='Koszty nieponiesione'!$A$291,C13='Koszty nieponiesione'!$A$295,C13='Koszty nieponiesione'!$A$303,C13='Koszty nieponiesione'!$A$307,C13='Koszty nieponiesione'!$A$311,C13='Koszty nieponiesione'!$A$315,C13='Koszty nieponiesione'!$A$319), 'Prod. roślinna'!D13,0)","v":0},null,0]
["A",46,null,null,{"$f":"IFERROR(VLOOKUP(region&'Prod. roślinna str 2'!$C14,Dane_srednie_baza,6,0),0)","v":0},{"$f":"IFERROR(VLOOKUP(region&'Prod. roślinna str 2'!C14,Dane_srednie_baza,7,0),0)","v":0},0,0,null,{"$f":"AND(VLOOKUP(C14,rosliny_baza,2,0),('Prod. zwierzęca towar.'!$B$6>0))","v":{"$error":"#N/A"}},null,0,0,0,0,0,{"$f":"IF(OR(C14='Koszty nieponiesione'!$A$283,C14='Koszty nieponiesione'!$A$291,C14='Koszty nieponiesione'!$A$295,C14='Koszty nieponiesione'!$A$303,C14='Koszty nieponiesione'!$A$307,C14='Koszty nieponiesione'!$A$311,C14='Koszty nieponiesione'!$A$315,C14='Koszty nieponiesione'!$A$319), 'Prod. roślinna'!D14,0)","v":0},null,0]
["A",47,null,null,{"$f":"IFERROR(VLOOKUP(region&'Prod. roślinna str 2'!$C15,Dane_srednie_baza,6,0),0)","v":0},{"$f":"IFERROR(VLOOKUP(region&'Prod. roślinna str 2'!C15,Dane_srednie_baza,7,0),0)","v":0},0,0,null,{"$f":"AND(VLOOKUP(C15,rosliny_baza,2,0),('Prod. zwierzęca towar.'!$B$6>0))","v":{"$error":"#N/A"}},null,0,0,0,0,0,{"$f":"IF(OR(C15='Koszty nieponiesione'!$A$283,C15='Koszty nieponiesione'!$A$291,C15='Koszty nieponiesione'!$A$295,C15='Koszty nieponiesione'!$A$303,C15='Koszty nieponiesione'!$A$307,C15='Koszty nieponiesione'!$A$311,C15='Koszty nieponiesione'!$A$315,C15='Koszty nieponiesione'!$A$319), 'Prod. roślinna'!D15,0)","v":0},null,0]
["A",48,null,null,{"$f":"IFERROR(VLOOKUP(region&'Prod. roślinna str 2'!$C16,Dane_srednie_baza,6,0),0)","v":0},{"$f":"IFERROR(VLOOKUP(region&'Prod. roślinna str 2'!C16,Dane_srednie_baza,7,0),0)","v":0},0,0,null,{"$f":"AND(VLOOKUP(C16,rosliny_baza,2,0),('Prod. zwierzęca towar.'!$B$6>0))","v":{"$error":"#N/A"}},null,0,0,0,0,0,{"$f":"IF(OR(C16='Koszty nieponiesione'!$A$283,C16='Koszty nieponiesione'!$A$291,C16='Koszty nieponiesione'!$A$295,C16='Koszty nieponiesione'!$A$303,C16='Koszty nieponiesione'!$A$307,C16='Koszty nieponiesione'!$A$311,C16='Koszty nieponiesione'!$A$315,C16='Koszty nieponiesione'!$A$319), 'Prod. roślinna'!D16,0)","v":0},null,0]
["A",49,null,null,{"$f":"IFERROR(VLOOKUP(region&'Prod. roślinna str 2'!$C17,Dane_srednie_baza,6,0),0)","v":0},{"$f":"IFERROR(VLOOKUP(region&'Prod. roślinna str 2'!C17,Dane_srednie_baza,7,0),0)","v":0},0,0,null,{"$f":"AND(VLOOKUP(C17,rosliny_baza,2,0),('Prod. zwierzęca towar.'!$B$6>0))","v":{"$error":"#N/A"}},null,0,0,0,0,0,{"$f":"IF(OR(C17='Koszty nieponiesione'!$A$283,C17='Koszty nieponiesione'!$A$291,C17='Koszty nieponiesione'!$A$295,C17='Koszty nieponiesione'!$A$303,C17='Koszty nieponiesione'!$A$307,C17='Koszty nieponiesione'!$A$311,C17='Koszty nieponiesione'!$A$315,C17='Koszty nieponiesione'!$A$319), 'Prod. roślinna'!D17,0)","v":0},null,0]
["A",50,null,null,{"$f":"IFERROR(VLOOKUP(region&'Prod. roślinna str 2'!$C18,Dane_srednie_baza,6,0),0)","v":0},{"$f":"IFERROR(VLOOKUP(region&'Prod. roślinna str 2'!C18,Dane_srednie_baza,7,0),0)","v":0},0,0,null,{"$f":"AND(VLOOKUP(C18,rosliny_baza,2,0),('Prod. zwierzęca towar.'!$B$6>0))","v":{"$error":"#N/A"}},null,0,0,0,0,0,{"$f":"IF(OR(C18='Koszty nieponiesione'!$A$283,C18='Koszty nieponiesione'!$A$291,C18='Koszty nieponiesione'!$A$295,C18='Koszty nieponiesione'!$A$303,C18='Koszty nieponiesione'!$A$307,C18='Koszty nieponiesione'!$A$311,C18='Koszty nieponiesione'!$A$315,C18='Koszty nieponiesione'!$A$319), 'Prod. roślinna'!D18,0)","v":0},null,0]
["A",51,null,null,{"$f":"IFERROR(VLOOKUP(region&'Prod. roślinna str 2'!$C19,Dane_srednie_baza,6,0),0)","v":0},{"$f":"IFERROR(VLOOKUP(region&'Prod. roślinna str 2'!C19,Dane_srednie_baza,7,0),0)","v":0},0,0,null,{"$f":"AND(VLOOKUP(C19,rosliny_baza,2,0),('Prod. zwierzęca towar.'!$B$6>0))","v":{"$error":"#N/A"}},null,0,0,0,0,0,{"$f":"IF(OR(C19='Koszty nieponiesione'!$A$283,C19='Koszty nieponiesione'!$A$291,C19='Koszty nieponiesione'!$A$295,C19='Koszty nieponiesione'!$A$303,C19='Koszty nieponiesione'!$A$307,C19='Koszty nieponiesione'!$A$311,C19='Koszty nieponiesione'!$A$315,C19='Koszty nieponiesione'!$A$319), 'Prod. roślinna'!D19,0)","v":0},null,0]
["A",52,null,null,{"$f":"IFERROR(VLOOKUP(region&'Prod. roślinna str 2'!$C20,Dane_srednie_baza,6,0),0)","v":0},{"$f":"IFERROR(VLOOKUP(region&'Prod. roślinna str 2'!C20,Dane_srednie_baza,7,0),0)","v":0},0,0,null,{"$f":"AND(VLOOKUP(C20,rosliny_baza,2,0),('Prod. zwierzęca towar.'!$B$6>0))","v":{"$error":"#N/A"}},null,0,0,0,0,0,{"$f":"IF(OR(C20='Koszty nieponiesione'!$A$283,C20='Koszty nieponiesione'!$A$291,C20='Koszty nieponiesione'!$A$295,C20='Koszty nieponiesione'!$A$303,C20='Koszty nieponiesione'!$A$307,C20='Koszty nieponiesione'!$A$311,C20='Koszty nieponiesione'!$A$315,C20='Koszty nieponiesione'!$A$319), 'Prod. roślinna'!D20,0)","v":0},null,0]
["A",53,null,null,{"$f":"IFERROR(VLOOKUP(region&'Prod. roślinna str 2'!$C21,Dane_srednie_baza,6,0),0)","v":0},{"$f":"IFERROR(VLOOKUP(region&'Prod. roślinna str 2'!C21,Dane_srednie_baza,7,0),0)","v":0},0,0,null,{"$f":"AND(VLOOKUP(C21,rosliny_baza,2,0),('Prod. zwierzęca towar.'!$B$6>0))","v":{"$error":"#N/A"}},null,0,0,0,0,0,{"$f":"IF(OR(C21='Koszty nieponiesione'!$A$283,C21='Koszty nieponiesione'!$A$291,C21='Koszty nieponiesione'!$A$295,C21='Koszty nieponiesione'!$A$303,C21='Koszty nieponiesione'!$A$307,C21='Koszty nieponiesione'!$A$311,C21='Koszty nieponiesione'!$A$315,C21='Koszty nieponiesione'!$A$319), 'Prod. roślinna'!D21,0)","v":0},null,0]
["A",54,null,null,{"$f":"IFERROR(VLOOKUP(region&'Prod. roślinna str 2'!$C22,Dane_srednie_baza,6,0),0)","v":0},{"$f":"IFERROR(VLOOKUP(region&'Prod. roślinna str 2'!C22,Dane_srednie_baza,7,0),0)","v":0},0,0,null,{"$f":"AND(VLOOKUP(C22,rosliny_baza,2,0),('Prod. zwierzęca towar.'!$B$6>0))","v":{"$error":"#N/A"}},null,0,0,0,0,0,{"$f":"IF(OR(C22='Koszty nieponiesione'!$A$283,C22='Koszty nieponiesione'!$A$291,C22='Koszty nieponiesione'!$A$295,C22='Koszty nieponiesione'!$A$303,C22='Koszty nieponiesione'!$A$307,C22='Koszty nieponiesione'!$A$311,C22='Koszty nieponiesione'!$A$315,C22='Koszty nieponiesione'!$A$319), 'Prod. roślinna'!D22,0)","v":0},null,0]
["A",55,null,null,{"$f":"IFERROR(VLOOKUP(region&'Prod. roślinna str 2'!$C23,Dane_srednie_baza,6,0),0)","v":0},{"$f":"IFERROR(VLOOKUP(region&'Prod. roślinna str 2'!C23,Dane_srednie_baza,7,0),0)","v":0},0,0,null,{"$f":"AND(VLOOKUP(C23,rosliny_baza,2,0),('Prod. zwierzęca towar.'!$B$6>0))","v":{"$error":"#N/A"}},null,0,0,0,0,0,{"$f":"IF(OR(C23='Koszty nieponiesione'!$A$283,C23='Koszty nieponiesione'!$A$291,C23='Koszty nieponiesione'!$A$295,C23='Koszty nieponiesione'!$A$303,C23='Koszty nieponiesione'!$A$307,C23='Koszty nieponiesione'!$A$311,C23='Koszty nieponiesione'!$A$315,C23='Koszty nieponiesione'!$A$319), 'Prod. roślinna'!D23,0)","v":0},null,0]
["A",56,null,null,{"$f":"IFERROR(VLOOKUP(region&'Prod. roślinna str 2'!$C24,Dane_srednie_baza,6,0),0)","v":0},{"$f":"IFERROR(VLOOKUP(region&'Prod. roślinna str 2'!C24,Dane_srednie_baza,7,0),0)","v":0},0,0,null,{"$f":"AND(VLOOKUP(C24,rosliny_baza,2,0),('Prod. zwierzęca towar.'!$B$6>0))","v":{"$error":"#N/A"}},null,0,0,0,0,0,{"$f":"IF(OR(C24='Koszty nieponiesione'!$A$283,C24='Koszty nieponiesione'!$A$291,C24='Koszty nieponiesione'!$A$295,C24='Koszty nieponiesione'!$A$303,C24='Koszty nieponiesione'!$A$307,C24='Koszty nieponiesione'!$A$311,C24='Koszty nieponiesione'!$A$315,C24='Koszty nieponiesione'!$A$319), 'Prod. roślinna'!D24,0)","v":0},null,0]
["A",57,null,null,{"$f":"IFERROR(VLOOKUP(region&'Prod. roślinna str 2'!$C25,Dane_srednie_baza,6,0),0)","v":0},{"$f":"IFERROR(VLOOKUP(region&'Prod. roślinna str 2'!C25,Dane_srednie_baza,7,0),0)","v":0},0,0,null,{"$f":"AND(VLOOKUP(C25,rosliny_baza,2,0),('Prod. zwierzęca towar.'!$B$6>0))","v":{"$error":"#N/A"}},null,0,0,0,0,0,{"$f":"IF(OR(C25='Koszty nieponiesione'!$A$283,C25='Koszty nieponiesione'!$A$291,C25='Koszty nieponiesione'!$A$295,C25='Koszty nieponiesione'!$A$303,C25='Koszty nieponiesione'!$A$307,C25='Koszty nieponiesione'!$A$311,C25='Koszty nieponiesione'!$A$315,C25='Koszty nieponiesione'!$A$319), 'Prod. roślinna'!D25,0)","v":0},null,0]
["A",58,null,null,{"$f":"IFERROR(VLOOKUP(region&'Prod. roślinna str 2'!$C26,Dane_srednie_baza,6,0),0)","v":0},{"$f":"IFERROR(VLOOKUP(region&'Prod. roślinna str 2'!C26,Dane_srednie_baza,7,0),0)","v":0},0,0,null,{"$f":"AND(VLOOKUP(C26,rosliny_baza,2,0),('Prod. zwierzęca towar.'!$B$6>0))","v":{"$error":"#N/A"}},null,0,0,0,0,0,{"$f":"IF(OR(C26='Koszty nieponiesione'!$A$283,C26='Koszty nieponiesione'!$A$291,C26='Koszty nieponiesione'!$A$295,C26='Koszty nieponiesione'!$A$303,C26='Koszty nieponiesione'!$A$307,C26='Koszty nieponiesione'!$A$311,C26='Koszty nieponiesione'!$A$315,C26='Koszty nieponiesione'!$A$319), 'Prod. roślinna'!D26,0)","v":0},null,0]
["A",59,null,null,{"$f":"IFERROR(VLOOKUP(region&'Prod. roślinna str 2'!$C27,Dane_srednie_baza,6,0),0)","v":0},{"$f":"IFERROR(VLOOKUP(region&'Prod. roślinna str 2'!C27,Dane_srednie_baza,7,0),0)","v":0},0,0,null,{"$f":"AND(VLOOKUP(C27,rosliny_baza,2,0),('Prod. zwierzęca towar.'!$B$6>0))","v":{"$error":"#N/A"}},null,0,0,0,0,0,{"$f":"IF(OR(C27='Koszty nieponiesione'!$A$283,C27='Koszty nieponiesione'!$A$291,C27='Koszty nieponiesione'!$A$295,C27='Koszty nieponiesione'!$A$303,C27='Koszty nieponiesione'!$A$307,C27='Koszty nieponiesione'!$A$311,C27='Koszty nieponiesione'!$A$315,C27='Koszty nieponiesione'!$A$319), 'Prod. roślinna'!D27,0)","v":0},null,0]
["A",60,null,null,{"$f":"IFERROR(VLOOKUP(region&'Prod. roślinna str 2'!$C28,Dane_srednie_baza,6,0),0)","v":0},{"$f":"IFERROR(VLOOKUP(region&'Prod. roślinna str 2'!C28,Dane_srednie_baza,7,0),0)","v":0},0,0,null,{"$f":"AND(VLOOKUP(C28,rosliny_baza,2,0),('Prod. zwierzęca towar.'!$B$6>0))","v":{"$error":"#N/A"}},null,0,0,0,0,0,{"$f":"IF(OR(C28='Koszty nieponiesione'!$A$283,C28='Koszty nieponiesione'!$A$291,C28='Koszty nieponiesione'!$A$295,C28='Koszty nieponiesione'!$A$303,C28='Koszty nieponiesione'!$A$307,C28='Koszty nieponiesione'!$A$311,C28='Koszty nieponiesione'!$A$315,C28='Koszty nieponiesione'!$A$319), 'Prod. roślinna'!D28,0)","v":0},null,0]
["A",61,null,null,{"$f":"IFERROR(VLOOKUP(region&'Prod. roślinna str 2'!$C29,Dane_srednie_baza,6,0),0)","v":0},{"$f":"IFERROR(VLOOKUP(region&'Prod. roślinna str 2'!C29,Dane_srednie_baza,7,0),0)","v":0},0,0,null,{"$f":"AND(VLOOKUP(C29,rosliny_baza,2,0),('Prod. zwierzęca towar.'!$B$6>0))","v":{"$error":"#N/A"}},null,0,0,0,0,0,{"$f":"IF(OR(C29='Koszty nieponiesione'!$A$283,C29='Koszty nieponiesione'!$A$291,C29='Koszty nieponiesione'!$A$295,C29='Koszty nieponiesione'!$A$303,C29='Koszty nieponiesione'!$A$307,C29='Koszty nieponiesione'!$A$311,C29='Koszty nieponiesione'!$A$315,C29='Koszty nieponiesione'!$A$319), 'Prod. roślinna'!D29,0)","v":0},null,0]
["A",62,null,null,{"$f":"IFERROR(VLOOKUP(region&'Prod. roślinna str 2'!$C30,Dane_srednie_baza,6,0),0)","v":0},{"$f":"IFERROR(VLOOKUP(region&'Prod. roślinna str 2'!C30,Dane_srednie_baza,7,0),0)","v":0},0,0,null,{"$f":"AND(VLOOKUP(C30,rosliny_baza,2,0),('Prod. zwierzęca towar.'!$B$6>0))","v":{"$error":"#N/A"}},null,0,0,0,0,0,{"$f":"IF(OR(C30='Koszty nieponiesione'!$A$283,C30='Koszty nieponiesione'!$A$291,C30='Koszty nieponiesione'!$A$295,C30='Koszty nieponiesione'!$A$303,C30='Koszty nieponiesione'!$A$307,C30='Koszty nieponiesione'!$A$311,C30='Koszty nieponiesione'!$A$315,C30='Koszty nieponiesione'!$A$319), 'Prod. roślinna'!D30,0)","v":0},null,0]
["A",63,null,null,{"$f":"IFERROR(VLOOKUP(region&'Prod. roślinna str 2'!$C31,Dane_srednie_baza,6,0),0)","v":0},{"$f":"IFERROR(VLOOKUP(region&'Prod. roślinna str 2'!C31,Dane_srednie_baza,7,0),0)","v":0},0,0,null,{"$f":"AND(VLOOKUP(C31,rosliny_baza,2,0),('Prod. zwierzęca towar.'!$B$6>0))","v":{"$error":"#N/A"}},null,0,0,0,0,0,{"$f":"IF(OR(C31='Koszty nieponiesione'!$A$283,C31='Koszty nieponiesione'!$A$291,C31='Koszty nieponiesione'!$A$295,C31='Koszty nieponiesione'!$A$303,C31='Koszty nieponiesione'!$A$307,C31='Koszty nieponiesione'!$A$311,C31='Koszty nieponiesione'!$A$315,C31='Koszty nieponiesione'!$A$319), 'Prod. roślinna'!D31,0)","v":0},null,0]
["A",64,null,null,{"$f":"IFERROR(VLOOKUP(region&'Prod. roślinna str 2'!$C32,Dane_srednie_baza,6,0),0)","v":0},{"$f":"IFERROR(VLOOKUP(region&'Prod. roślinna str 2'!C32,Dane_srednie_baza,7,0),0)","v":0},0,0,null,{"$f":"AND(VLOOKUP(C32,rosliny_baza,2,0),('Prod. zwierzęca towar.'!$B$6>0))","v":{"$error":"#N/A"}},null,0,0,0,0,0,{"$f":"IF(OR(C32='Koszty nieponiesione'!$A$283,C32='Koszty nieponiesione'!$A$291,C32='Koszty nieponiesione'!$A$295,C32='Koszty nieponiesione'!$A$303,C32='Koszty nieponiesione'!$A$307,C32='Koszty nieponiesione'!$A$311,C32='Koszty nieponiesione'!$A$315,C32='Koszty nieponiesione'!$A$319), 'Prod. roślinna'!D32,0)","v":0},null,0]
["A",65,null,null,{"$f":"IFERROR(VLOOKUP(region&'Prod. roślinna str 2'!$C33,Dane_srednie_baza,6,0),0)","v":0},{"$f":"IFERROR(VLOOKUP(region&'Prod. roślinna str 2'!C33,Dane_srednie_baza,7,0),0)","v":0},0,0,null,{"$f":"AND(VLOOKUP(C33,rosliny_baza,2,0),('Prod. zwierzęca towar.'!$B$6>0))","v":{"$error":"#N/A"}},null,0,0,0,0,0,{"$f":"IF(OR(C33='Koszty nieponiesione'!$A$283,C33='Koszty nieponiesione'!$A$291,C33='Koszty nieponiesione'!$A$295,C33='Koszty nieponiesione'!$A$303,C33='Koszty nieponiesione'!$A$307,C33='Koszty nieponiesione'!$A$311,C33='Koszty nieponiesione'!$A$315,C33='Koszty nieponiesione'!$A$319), 'Prod. roślinna'!D33,0)","v":0},null,0]
["A",66,null,null,{"$f":"IFERROR(VLOOKUP(region&'Prod. roślinna str 2'!$C34,Dane_srednie_baza,6,0),0)","v":0},{"$f":"IFERROR(VLOOKUP(region&'Prod. roślinna str 2'!C34,Dane_srednie_baza,7,0),0)","v":0},0,0,null,{"$f":"AND(VLOOKUP(C34,rosliny_baza,2,0),('Prod. zwierzęca towar.'!$B$6>0))","v":{"$error":"#N/A"}},null,0,0,0,0,0,{"$f":"IF(OR(C34='Koszty nieponiesione'!$A$283,C34='Koszty nieponiesione'!$A$291,C34='Koszty nieponiesione'!$A$295,C34='Koszty nieponiesione'!$A$303,C34='Koszty nieponiesione'!$A$307,C34='Koszty nieponiesione'!$A$311,C34='Koszty nieponiesione'!$A$315,C34='Koszty nieponiesione'!$A$319), 'Prod. roślinna'!D34,0)","v":0},null,0]
["A",67,null,null,{"$f":"IFERROR(VLOOKUP(region&'Prod. roślinna str 2'!$C35,Dane_srednie_baza,6,0),0)","v":0},{"$f":"IFERROR(VLOOKUP(region&'Prod. roślinna str 2'!C35,Dane_srednie_baza,7,0),0)","v":0},0,0,null,{"$f":"AND(VLOOKUP(C35,rosliny_baza,2,0),('Prod. zwierzęca towar.'!$B$6>0))","v":{"$error":"#N/A"}},null,0,{"$f":"H35-L35","v":0},0,0,0,{"$f":"IF(OR(C35='Koszty nieponiesione'!$A$283,C35='Koszty nieponiesione'!$A$291,C35='Koszty nieponiesione'!$A$295,C35='Koszty nieponiesione'!$A$303,C35='Koszty nieponiesione'!$A$307,C35='Koszty nieponiesione'!$A$311,C35='Koszty nieponiesione'!$A$315,C35='Koszty nieponiesione'!$A$319), 'Prod. roślinna'!D35,0)","v":0},null,0]
["A",68,null,null,{"$f":"IFERROR(VLOOKUP(region&'Prod. roślinna str 2'!$C36,Dane_srednie_baza,6,0),0)","v":0},{"$f":"IFERROR(VLOOKUP(region&'Prod. roślinna str 2'!C36,Dane_srednie_baza,7,0),0)","v":0},0,0,null,{"$f":"AND(VLOOKUP(C36,rosliny_baza,2,0),('Prod. zwierzęca towar.'!$B$6>0))","v":{"$error":"#N/A"}},null,0,0,0,0,0,{"$f":"IF(OR(C36='Koszty nieponiesione'!$A$283,C36='Koszty nieponiesione'!$A$291,C36='Koszty nieponiesione'!$A$295,C36='Koszty nieponiesione'!$A$303,C36='Koszty nieponiesione'!$A$307,C36='Koszty nieponiesione'!$A$311,C36='Koszty nieponiesione'!$A$315,C36='Koszty nieponiesione'!$A$319), 'Prod. roślinna'!D36,0)","v":0},null,0]
["A",69,null,null,{"$f":"IFERROR(VLOOKUP(region&'Prod. roślinna str 2'!$C37,Dane_srednie_baza,6,0),0)","v":0},{"$f":"IFERROR(VLOOKUP(region&'Prod. roślinna str 2'!C37,Dane_srednie_baza,7,0),0)","v":0},0,0,null,{"$f":"AND(VLOOKUP(C37,rosliny_baza,2,0),('Prod. zwierzęca towar.'!$B$6>0))","v":{"$error":"#N/A"}},null,0,0,0,0,0,{"$f":"IF(OR(C37='Koszty nieponiesione'!$A$283,C37='Koszty nieponiesione'!$A$291,C37='Koszty nieponiesione'!$A$295,C37='Koszty nieponiesione'!$A$303,C37='Koszty nieponiesione'!$A$307,C37='Koszty nieponiesione'!$A$311,C37='Koszty nieponiesione'!$A$315,C37='Koszty nieponiesione'!$A$319), 'Prod. roślinna'!D37,0)","v":0},null,0]
["A",70,null,null,{"$f":"IFERROR(VLOOKUP(region&'Prod. roślinna str 2'!$C38,Dane_srednie_baza,6,0),0)","v":0},{"$f":"IFERROR(VLOOKUP(region&'Prod. roślinna str 2'!C38,Dane_srednie_baza,7,0),0)","v":0},0,0,null,{"$f":"AND(VLOOKUP(C38,rosliny_baza,2,0),('Prod. zwierzęca towar.'!$B$6>0))","v":{"$error":"#N/A"}},null,0,0,0,0,0,{"$f":"IF(OR(C38='Koszty nieponiesione'!$A$283,C38='Koszty nieponiesione'!$A$291,C38='Koszty nieponiesione'!$A$295,C38='Koszty nieponiesione'!$A$303,C38='Koszty nieponiesione'!$A$307,C38='Koszty nieponiesione'!$A$311,C38='Koszty nieponiesione'!$A$315,C38='Koszty nieponiesione'!$A$319), 'Prod. roślinna'!D38,0)","v":0},null,0]
["A",71,null,null,{"$f":"IFERROR(VLOOKUP(region&'Prod. roślinna str 2'!$C39,Dane_srednie_baza,6,0),0)","v":0},{"$f":"IFERROR(VLOOKUP(region&'Prod. roślinna str 2'!C39,Dane_srednie_baza,7,0),0)","v":0},0,0,null,{"$f":"AND(VLOOKUP(C39,rosliny_baza,2,0),('Prod. zwierzęca towar.'!$B$6>0))","v":{"$error":"#N/A"}},null,0,0,0,0,0,{"$f":"IF(OR(C39='Koszty nieponiesione'!$A$283,C39='Koszty nieponiesione'!$A$291,C39='Koszty nieponiesione'!$A$295,C39='Koszty nieponiesione'!$A$303,C39='Koszty nieponiesione'!$A$307,C39='Koszty nieponiesione'!$A$311,C39='Koszty nieponiesione'!$A$315,C39='Koszty nieponiesione'!$A$319), 'Prod. roślinna'!D39,0)","v":0},null,0]
["A",72,null,null,{"$f":"IFERROR(VLOOKUP(region&'Prod. roślinna str 2'!$C40,Dane_srednie_baza,6,0),0)","v":0},{"$f":"IFERROR(VLOOKUP(region&'Prod. roślinna str 2'!C40,Dane_srednie_baza,7,0),0)","v":0},0,0,null,{"$f":"AND(VLOOKUP(C40,rosliny_baza,2,0),('Prod. zwierzęca towar.'!$B$6>0))","v":{"$error":"#N/A"}},null,0,0,0,{"$f":"IF(I40>=70%,VLOOKUP(A40,Koszty_nieponiesione_baza,2,0)*D40,0)","v":0},0,{"$f":"IF(OR(C40='Koszty nieponiesione'!$A$283,C40='Koszty nieponiesione'!$A$291,C40='Koszty nieponiesione'!$A$295,C40='Koszty nieponiesione'!$A$303,C40='Koszty nieponiesione'!$A$307,C40='Koszty nieponiesione'!$A$311,C40='Koszty nieponiesione'!$A$315,C40='Koszty nieponiesione'!$A$319), 'Prod. roślinna'!D40,0)","v":0},null,0]
["A",73,null,null,{"$f":"IFERROR(VLOOKUP(region&'Prod. roślinna str 2'!$C41,Dane_srednie_baza,6,0),0)","v":0},{"$f":"IFERROR(VLOOKUP(region&'Prod. roślinna str 2'!C41,Dane_srednie_baza,7,0),0)","v":0},0,0,null,{"$f":"AND(VLOOKUP(C41,rosliny_baza,2,0),('Prod. zwierzęca towar.'!$B$6>0))","v":{"$error":"#N/A"}},null,0,0,0,0,0,{"$f":"IF(OR(C41='Koszty nieponiesione'!$A$283,C41='Koszty nieponiesione'!$A$291,C41='Koszty nieponiesione'!$A$295,C41='Koszty nieponiesione'!$A$303,C41='Koszty nieponiesione'!$A$307,C41='Koszty nieponiesione'!$A$311,C41='Koszty nieponiesione'!$A$315,C41='Koszty nieponiesione'!$A$319), 'Prod. roślinna'!D41,0)","v":0},null,0]
["A",74,null,null,{"$f":"IFERROR(VLOOKUP(region&'Prod. roślinna str 2'!$C42,Dane_srednie_baza,6,0),0)","v":0},{"$f":"IFERROR(VLOOKUP(region&'Prod. roślinna str 2'!C42,Dane_srednie_baza,7,0),0)","v":0},0,0,null,{"$f":"AND(VLOOKUP(C42,rosliny_baza,2,0),('Prod. zwierzęca towar.'!$B$6>0))","v":{"$error":"#N/A"}},null,0,0,0,0,0,{"$f":"IF(OR(C42='Koszty nieponiesione'!$A$283,C42='Koszty nieponiesione'!$A$291,C42='Koszty nieponiesione'!$A$295,C42='Koszty nieponiesione'!$A$303,C42='Koszty nieponiesione'!$A$307,C42='Koszty nieponiesione'!$A$311,C42='Koszty nieponiesione'!$A$315,C42='Koszty nieponiesione'!$A$319), 'Prod. roślinna'!D42,0)","v":0},null,0]
["A",75,null,null,{"$f":"IFERROR(VLOOKUP(region&'Prod. roślinna str 2'!$C43,Dane_srednie_baza,6,0),0)","v":0},{"$f":"IFERROR(VLOOKUP(region&'Prod. roślinna str 2'!C43,Dane_srednie_baza,7,0),0)","v":0},0,0,null,{"$f":"AND(VLOOKUP(C43,rosliny_baza,2,0),('Prod. zwierzęca towar.'!$B$6>0))","v":{"$error":"#N/A"}},null,0,0,0,0,0,{"$f":"IF(OR(C43='Koszty nieponiesione'!$A$283,C43='Koszty nieponiesione'!$A$291,C43='Koszty nieponiesione'!$A$295,C43='Koszty nieponiesione'!$A$303,C43='Koszty nieponiesione'!$A$307,C43='Koszty nieponiesione'!$A$311,C43='Koszty nieponiesione'!$A$315,C43='Koszty nieponiesione'!$A$319), 'Prod. roślinna'!D43,0)","v":0},null,0]
["A",76,null,null,{"$f":"IFERROR(VLOOKUP(region&'Prod. roślinna str 2'!$C44,Dane_srednie_baza,6,0),0)","v":0},{"$f":"IFERROR(VLOOKUP(region&'Prod. roślinna str 2'!C44,Dane_srednie_baza,7,0),0)","v":0},0,0,null,{"$f":"AND(VLOOKUP(C44,rosliny_baza,2,0),('Prod. zwierzęca towar.'!$B$6>0))","v":{"$error":"#N/A"}},null,0,0,0,0,0,{"$f":"IF(OR(C44='Koszty nieponiesione'!$A$283,C44='Koszty nieponiesione'!$A$291,C44='Koszty nieponiesione'!$A$295,C44='Koszty nieponiesione'!$A$303,C44='Koszty nieponiesione'!$A$307,C44='Koszty nieponiesione'!$A$311,C44='Koszty nieponiesione'!$A$315,C44='Koszty nieponiesione'!$A$319), 'Prod. roślinna'!D44,0)","v":0},null,0]
["A",77,null,null,{"$f":"IFERROR(VLOOKUP(region&'Prod. roślinna str 2'!$C45,Dane_srednie_baza,6,0),0)","v":0},{"$f":"IFERROR(VLOOKUP(region&'Prod. roślinna str 2'!C45,Dane_srednie_baza,7,0),0)","v":0},{"$f":"E45*F45","v":0},{"$f":"D45*G45","v":0},null,{"$f":"AND(VLOOKUP(C45,rosliny_baza,2,0),('Prod. zwierzęca towar.'!$B$6>0))","v":{"$error":"#N/A"}},null,{"$f":"H45*(100%-I45)","v":0},{"$f":"H45-L45","v":0},0,0,0,{"$f":"IF(OR(C45='Koszty nieponiesione'!$A$283,C45='Koszty nieponiesione'!$A$291,C45='Koszty nieponiesione'!$A$295,C45='Koszty nieponiesione'!$A$303,C45='Koszty nieponiesione'!$A$307,C45='Koszty nieponiesione'!$A$311,C45='Koszty nieponiesione'!$A$315,C45='Koszty nieponiesione'!$A$319), 'Prod. roślinna'!D45,0)","v":0},null,{"$f":"IF(I45>0,D45,0)","v":0}]
["A",78,null,null,{"$f":"IFERROR(VLOOKUP(region&'Prod. roślinna str 2'!$C46,Dane_srednie_baza,6,0),0)","v":0},{"$f":"IFERROR(VLOOKUP(region&'Prod. roślinna str 2'!C46,Dane_srednie_baza,7,0),0)","v":0},0,0,null,{"$f":"AND(VLOOKUP(C46,rosliny_baza,2,0),('Prod. zwierzęca towar.'!$B$6>0))","v":{"$error":"#N/A"}},null,0,0,0,0,0,{"$f":"IF(OR(C46='Koszty nieponiesione'!$A$283,C46='Koszty nieponiesione'!$A$291,C46='Koszty nieponiesione'!$A$295,C46='Koszty nieponiesione'!$A$303,C46='Koszty nieponiesione'!$A$307,C46='Koszty nieponiesione'!$A$311,C46='Koszty nieponiesione'!$A$315,C46='Koszty nieponiesione'!$A$319), 'Prod. roślinna'!D46,0)","v":0},null,0]
["A",79,null,null,{"$f":"IFERROR(VLOOKUP(region&'Prod. roślinna str 2'!$C47,Dane_srednie_baza,6,0),0)","v":0},{"$f":"IFERROR(VLOOKUP(region&'Prod. roślinna str 2'!C47,Dane_srednie_baza,7,0),0)","v":0},0,0,null,{"$f":"AND(VLOOKUP(C47,rosliny_baza,2,0),('Prod. zwierzęca towar.'!$B$6>0))","v":{"$error":"#N/A"}},null,0,0,0,0,0,{"$f":"IF(OR(C47='Koszty nieponiesione'!$A$283,C47='Koszty nieponiesione'!$A$291,C47='Koszty nieponiesione'!$A$295,C47='Koszty nieponiesione'!$A$303,C47='Koszty nieponiesione'!$A$307,C47='Koszty nieponiesione'!$A$311,C47='Koszty nieponiesione'!$A$315,C47='Koszty nieponiesione'!$A$319), 'Prod. roślinna'!D47,0)","v":0},null,0]
["A",80,null,null,{"$f":"IFERROR(VLOOKUP(region&'Prod. roślinna str 2'!$C48,Dane_srednie_baza,6,0),0)","v":0},{"$f":"IFERROR(VLOOKUP(region&'Prod. roślinna str 2'!C48,Dane_srednie_baza,7,0),0)","v":0},0,0,null,{"$f":"AND(VLOOKUP(C48,rosliny_baza,2,0),('Prod. zwierzęca towar.'!$B$6>0))","v":{"$error":"#N/A"}},null,0,0,0,0,0,{"$f":"IF(OR(C48='Koszty nieponiesione'!$A$283,C48='Koszty nieponiesione'!$A$291,C48='Koszty nieponiesione'!$A$295,C48='Koszty nieponiesione'!$A$303,C48='Koszty nieponiesione'!$A$307,C48='Koszty nieponiesione'!$A$311,C48='Koszty nieponiesione'!$A$315,C48='Koszty nieponiesione'!$A$319), 'Prod. roślinna'!D48,0)","v":0},null,0]
["A",81,null,null,{"$f":"IFERROR(VLOOKUP(region&'Prod. roślinna str 2'!$C49,Dane_srednie_baza,6,0),0)","v":0},{"$f":"IFERROR(VLOOKUP(region&'Prod. roślinna str 2'!C49,Dane_srednie_baza,7,0),0)","v":0},0,0,null,{"$f":"AND(VLOOKUP(C49,rosliny_baza,2,0),('Prod. zwierzęca towar.'!$B$6>0))","v":{"$error":"#N/A"}},null,0,0,0,0,0,{"$f":"IF(OR(C49='Koszty nieponiesione'!$A$283,C49='Koszty nieponiesione'!$A$291,C49='Koszty nieponiesione'!$A$295,C49='Koszty nieponiesione'!$A$303,C49='Koszty nieponiesione'!$A$307,C49='Koszty nieponiesione'!$A$311,C49='Koszty nieponiesione'!$A$315,C49='Koszty nieponiesione'!$A$319), 'Prod. roślinna'!D49,0)","v":0},null,0]
["A",82,null,null,{"$f":"IFERROR(VLOOKUP(region&'Prod. roślinna str 2'!$C50,Dane_srednie_baza,6,0),0)","v":0},{"$f":"IFERROR(VLOOKUP(region&'Prod. roślinna str 2'!C50,Dane_srednie_baza,7,0),0)","v":0},0,0,null,{"$f":"AND(VLOOKUP(C50,rosliny_baza,2,0),('Prod. zwierzęca towar.'!$B$6>0))","v":{"$error":"#N/A"}},null,0,0,0,0,0,{"$f":"IF(OR(C50='Koszty nieponiesione'!$A$283,C50='Koszty nieponiesione'!$A$291,C50='Koszty nieponiesione'!$A$295,C50='Koszty nieponiesione'!$A$303,C50='Koszty nieponiesione'!$A$307,C50='Koszty nieponiesione'!$A$311,C50='Koszty nieponiesione'!$A$315,C50='Koszty nieponiesione'!$A$319), 'Prod. roślinna'!D50,0)","v":0},null,0]
["A",83,null,null,{"$f":"IFERROR(VLOOKUP(region&'Prod. roślinna str 2'!$C51,Dane_srednie_baza,6,0),0)","v":0},{"$f":"IFERROR(VLOOKUP(region&'Prod. roślinna str 2'!C51,Dane_srednie_baza,7,0),0)","v":0},0,0,null,{"$f":"AND(VLOOKUP(C51,rosliny_baza,2,0),('Prod. zwierzęca towar.'!$B$6>0))","v":{"$error":"#N/A"}},null,0,0,0,0,0,{"$f":"IF(OR(C51='Koszty nieponiesione'!$A$283,C51='Koszty nieponiesione'!$A$291,C51='Koszty nieponiesione'!$A$295,C51='Koszty nieponiesione'!$A$303,C51='Koszty nieponiesione'!$A$307,C51='Koszty nieponiesione'!$A$311,C51='Koszty nieponiesione'!$A$315,C51='Koszty nieponiesione'!$A$319), 'Prod. roślinna'!D51,0)","v":0},null,0]
["A",84,null,null,{"$f":"IFERROR(VLOOKUP(region&'Prod. roślinna str 2'!$C52,Dane_srednie_baza,6,0),0)","v":0},{"$f":"IFERROR(VLOOKUP(region&'Prod. roślinna str 2'!C52,Dane_srednie_baza,7,0),0)","v":0},0,0,null,{"$f":"AND(VLOOKUP(C52,rosliny_baza,2,0),('Prod. zwierzęca towar.'!$B$6>0))","v":{"$error":"#N/A"}},null,0,0,0,0,0,{"$f":"IF(OR(C52='Koszty nieponiesione'!$A$283,C52='Koszty nieponiesione'!$A$291,C52='Koszty nieponiesione'!$A$295,C52='Koszty nieponiesione'!$A$303,C52='Koszty nieponiesione'!$A$307,C52='Koszty nieponiesione'!$A$311,C52='Koszty nieponiesione'!$A$315,C52='Koszty nieponiesione'!$A$319), 'Prod. roślinna'!D52,0)","v":0},null,0]
["A",85,null,null,{"$f":"IFERROR(VLOOKUP(region&'Prod. roślinna str 2'!$C53,Dane_srednie_baza,6,0),0)","v":0},{"$f":"IFERROR(VLOOKUP(region&'Prod. roślinna str 2'!C53,Dane_srednie_baza,7,0),0)","v":0},0,0,null,{"$f":"AND(VLOOKUP(C53,rosliny_baza,2,0),('Prod. zwierzęca towar.'!$B$6>0))","v":{"$error":"#N/A"}},null,0,0,0,0,0,{"$f":"IF(OR(C53='Koszty nieponiesione'!$A$283,C53='Koszty nieponiesione'!$A$291,C53='Koszty nieponiesione'!$A$295,C53='Koszty nieponiesione'!$A$303,C53='Koszty nieponiesione'!$A$307,C53='Koszty nieponiesione'!$A$311,C53='Koszty nieponiesione'!$A$315,C53='Koszty nieponiesione'!$A$319), 'Prod. roślinna'!D53,0)","v":0},null,0]
["A",86,null,null,{"$f":"IFERROR(VLOOKUP(region&'Prod. roślinna str 2'!$C54,Dane_srednie_baza,6,0),0)","v":0},{"$f":"IFERROR(VLOOKUP(region&'Prod. roślinna str 2'!C54,Dane_srednie_baza,7,0),0)","v":0},0,0,null,{"$f":"AND(VLOOKUP(C54,rosliny_baza,2,0),('Prod. zwierzęca towar.'!$B$6>0))","v":{"$error":"#N/A"}},null,0,0,0,0,0,{"$f":"IF(OR(C54='Koszty nieponiesione'!$A$283,C54='Koszty nieponiesione'!$A$291,C54='Koszty nieponiesione'!$A$295,C54='Koszty nieponiesione'!$A$303,C54='Koszty nieponiesione'!$A$307,C54='Koszty nieponiesione'!$A$311,C54='Koszty nieponiesione'!$A$315,C54='Koszty nieponiesione'!$A$319), 'Prod. roślinna'!D54,0)","v":0},null,0]
["A",87,null,null,{"$f":"IFERROR(VLOOKUP(region&'Prod. roślinna str 2'!$C55,Dane_srednie_baza,6,0),0)","v":0},{"$f":"IFERROR(VLOOKUP(region&'Prod. roślinna str 2'!C55,Dane_srednie_baza,7,0),0)","v":0},0,0,null,{"$f":"AND(VLOOKUP(C55,rosliny_baza,2,0),('Prod. zwierzęca towar.'!$B$6>0))","v":{"$error":"#N/A"}},null,0,0,0,0,0,{"$f":"IF(OR(C55='Koszty nieponiesione'!$A$283,C55='Koszty nieponiesione'!$A$291,C55='Koszty nieponiesione'!$A$295,C55='Koszty nieponiesione'!$A$303,C55='Koszty nieponiesione'!$A$307,C55='Koszty nieponiesione'!$A$311,C55='Koszty nieponiesione'!$A$315,C55='Koszty nieponiesione'!$A$319), 'Prod. roślinna'!D55,0)","v":0},null,0]
["A",88,null,null,{"$f":"IFERROR(VLOOKUP(region&'Prod. roślinna str 2'!$C56,Dane_srednie_baza,6,0),0)","v":0},{"$f":"IFERROR(VLOOKUP(region&'Prod. roślinna str 2'!C56,Dane_srednie_baza,7,0),0)","v":0},{"$f":"E56*F56","v":0},0,null,{"$f":"AND(VLOOKUP(C56,rosliny_baza,2,0),('Prod. zwierzęca towar.'!$B$6>0))","v":{"$error":"#N/A"}},null,0,0,0,0,0,{"$f":"IF(OR(C56='Koszty nieponiesione'!$A$283,C56='Koszty nieponiesione'!$A$291,C56='Koszty nieponiesione'!$A$295,C56='Koszty nieponiesione'!$A$303,C56='Koszty nieponiesione'!$A$307,C56='Koszty nieponiesione'!$A$311,C56='Koszty nieponiesione'!$A$315,C56='Koszty nieponiesione'!$A$319), 'Prod. roślinna'!D56,0)","v":0},null,0]
[null,"Razem (poz. 40 - 88)",null,{"$f":"SUM(D8:D56)","v":0},"x","x","x",{"$f":"SUM(H8:H56)","v":0},"x",null,{"$f":"IF(SUM(K8:K56)<'Prod. zwierzęca towar.'!H57,SUM(K8:K56),'Prod. zwierzęca towar.'!H57)","v":0},{"$f":"SUM(L8:L56)","v":0},{"$f":"SUM(M8:M56)","v":0},{"$f":"SUM(N8:N56)","v":0},null,{"$f":"SUM(P8:P56)","v":0},{"$f":"SUM(Q8:Q56)","v":0},{"$f":"SUM(R8:R56)","v":0},{"$f":"SUM(S8:S56)","v":0}]
[null,"*Dane w kolumnie 9 \"Wysokości szkód w uprawach uwzględnianych w produkcji zwierzęcej” oblicza się w zakresie upraw : rośliny pastewne objętościowe na gruntach ornych, okopowe pastewne na pasze, buraki pastewne na pasze, brukiew pastewna na pasze, marchew pastewna na pasze, dynia pastewna na pasze, pozostałe okopowe pastewne na pasze, kukurydza pastewna na zielonkę, zboża na zielonkę i mieszanki zbóż z innymi roślinami na zielonkę, trawy w uprawie polowej na zielonkę, strączkowe na zielonkę, motylkowe drobnonasienne na zielonkę, mieszanki motylkowych z trawami, pozostałe polowe uprawy pastewne na zielonkę, rośliny pastewne objętościowe z użytków zielonych (uprawa lub zielonka), rośliny pastewne objętościowe z łąk – zielonka, rośliny pastewne objętościowe z pastwisk, rośliny pastewne objętościowe z pastwisk pielęgnowanych, rośliny pastewne objętościowe z pastwisk niepielęgnowanych, kukurydza (sucha i wilgotna) na ziarno, proso na ziarno, strączkowe pastewne na nasiona suche, groch pastewny (peluszka) na nasiona suche, pozostałe strączkowe pastewne na nasiona suche, mieszanki strączkowych z innymi roślinami jare na nasiona suche, mieszanki strączkowych z innymi roślinami ozime na nasiona suche. w przypadku prowadzenia produkcji zwierzęcej w zakresie: byki do opasu, wolce 2-letnie i starsze, jałówki do opasu 2-letnie i starsze, byczki od 1 do 2 lat, jałówki od 1 do 2 lat, owce 1 roczne i starsze, mleko krowie, mleko owcze, mleko kozie, kozy 1 roczne i starsze, konie, tuczniki o wadze 50 kg i więcej, warchlaki do tuczu o wadze od 20 do 50 kg."]
[]
[]
[null,null," Czytelne podpisy członków komisji powołanych przez Wojewodę"]
[null,"1.","……………………………………………………………………………………………….………",null,null,"6.","……………………………………………………………………………………………….………"]
[null,"2.","……………………………………………………………………………………………….………",null,null,"7.","……………………………………………………………………………………………….………"]
[null,"3.","……………………………………………………………………………………………….………",null,null,"8.","……………………………………………………………………………………………….………"]
[null,"4.","……………………………………………………………………………………………….………",null,null,"9.","……………………………………………………………………………………………….………",null,null,null,null,null,null,"…………………………………..……………..……….…."]
[null,"5.","……………………………………………………………………………………………….………",null,null,"10.","……………………………………………………………………………………………….………",null,null,null,null,null,null,"(data i czytelny podpis rolnika)"]

{"sheet":"Prod. roślinna str 3","index":3,"n_rows":66,"n_cols":19,"rows_kept":66,"cut":false,"hidden":false,"merged":[[57,1,57,20],[0,1,0,7],[0,12,0,13],[1,1,1,4],[1,5,1,8],[56,1,56,2],[65,2,65,3],[65,6,65,10],[65,13,65,17],[58,1,58,18],[60,2,60,6],[61,2,61,3],[61,6,61,10],[62,2,62,3],[62,6,62,10],[63,2,63,3],[63,6,63,10],[64,2,64,3],[64,6,64,10],[64,13,64,18]]}
[null,"Załącznik 1  Szkody w produkcji roślinnej ",null,null,null,null,null,null,null,null,null,null,"DLA REGIONU FADN",null,null,null,null,{"$f":"Protokół!V1","v":"A"}]
[null,"Imię i nazwisko producenta rolnego",null,"Imię i nazwisko producenta rolnego",null,{"$f":"Protokół!G8","v":"………………………………………\n\n………………………...……………"}]
[]
[null,"L.p","Nazwa wszystkich upraw w gospodarstwie  rolnym ","Powierzchnia uprawy w roku wystąpienia niekorzystnego zjawiska atmosferycznego","Średni plon z 1 ha danej uprawy ","Średnia cena","Średni dochód z 1 ha","Średnia roczna wartość produkcji ","Straty plonu w % w roku wystąpienia szkody",null,"Wysokość szkód w uprawach uwzględnianych w produkcji zwierzęcej *   ","Wartość produkcji w roku wystąpienia szkód po wystąpieniu niekorzystnego zjawiska atmosferycznego","Kwota obniżenia dochodu  w wyniku szkód ","Koszty nieponiesione w związku z wystąpieniem szkód łącznie",null,"pow 70%","pow UZ","Koszty poniesione z powodu niezebrania plonów w wyniku szkód łącznie","Powierzchnia upraw rolnych dotknięta zjawiskiem wynosi"]
[null,null,null,"ha","dt/ha ","w zł/dt","w zł/ha","w zł ","%",null,"zł","zł","zł","zł",null,null,null,"zł"]
[null,null,"NAZWA"]
[null,1,2,3,4,5,"6=4x5","7=3x6",8,null,"9=7x8","10= 7x(100%-8)","11=7-10",12,null,null,null,13,14]
[{"$f":"C8&region","v":"A"},89,null,null,{"$f":"IFERROR(VLOOKUP(region&'Prod. roślinna str 3'!$C8,Dane_srednie_baza,6,0),0)","v":0},{"$f":"IFERROR(VLOOKUP(region&'Prod. roślinna str 3'!C8,Dane_srednie_baza,7,0),0)","v":0},{"$f":"E8*F8","v":0},{"$f":"D8*G8","v":0},null,{"$f":"AND(VLOOKUP(C8,rosliny_baza,2,0),('Prod. zwierzęca towar.'!$B$6>0))","v":{"$error":"#N/A"}},null,{"$f":"H8*(100%-I8)","v":0},{"$f":"H8-L8","v":0},{"$f":"I8*O8","v":0},{"$f":"IF(I8>=70%,VLOOKUP(A8,Koszty_nieponiesione_baza,2,0)*D8,0)","v":0},{"$f":"IF(I8>=70%,D8,0)","v":0},{"$f":"IF(OR(C8='Koszty nieponiesione'!$A$283,C8='Koszty nieponiesione'!$A$291,C8='Koszty nieponiesione'!$A$295,C8='Koszty nieponiesione'!$A$303,C8='Koszty nieponiesione'!$A$307,C8='Koszty nieponiesione'!$A$311,C8='Koszty nieponiesione'!$A$315,C8='Koszty nieponiesione'!$A$319), 'Prod. roślinna'!D8,0)","v":0},null,{"$f":"IF(I8>0,D8,0)","v":0}]
["A",90,null,null,{"$f":"IFERROR(VLOOKUP(region&'Prod. roślinna str 3'!$C9,Dane_srednie_baza,6,0),0)","v":0},{"$f":"IFERROR(VLOOKUP(region&'Prod. roślinna str 3'!C9,Dane_srednie_baza,7,0),0)","v":0},{"$f":"E9*F9","v":0},{"$f":"D9*G9","v":0},null,{"$f":"AND(VLOOKUP(C9,rosliny_baza,2,0),('Prod. zwierzęca towar.'!$B$6>0))","v":{"$error":"#N/A"}},null,{"$f":"H9*(100%-I9)","v":0},{"$f":"H9-L9","v":0},{"$f":"I9*O9","v":0},0,0,{"$f":"IF(OR(C9='Koszty nieponiesione'!$A$283,C9='Koszty nieponiesione'!$A$291,C9='Koszty nieponiesione'!$A$295,C9='Koszty nieponiesione'!$A$303,C9='Koszty nieponiesione'!$A$307,C9='Koszty nieponiesione'!$A$311,C9='Koszty nieponiesione'!$A$315,C9='Koszty nieponiesione'!$A$319), 'Prod. roślinna'!D9,0)","v":0},null,0]
["A",91,null,null,{"$f":"IFERROR(VLOOKUP(region&'Prod. roślinna str 3'!$C10,Dane_srednie_baza,6,0),0)","v":0},{"$f":"IFERROR(VLOOKUP(region&'Prod. roślinna str 3'!C10,Dane_srednie_baza,7,0),0)","v":0},0,0,null,{"$f":"AND(VLOOKUP(C10,rosliny_baza,2,0),('Prod. zwierzęca towar.'!$B$6>0))","v":{"$error":"#N/A"}},null,0,0,0,0,0,{"$f":"IF(OR(C10='Koszty nieponiesione'!$A$283,C10='Koszty nieponiesione'!$A$291,C10='Koszty nieponiesione'!$A$295,C10='Koszty nieponiesione'!$A$303,C10='Koszty nieponiesione'!$A$307,C10='Koszty nieponiesione'!$A$311,C10='Koszty nieponiesione'!$A$315,C10='Koszty nieponiesione'!$A$319), 'Prod. roślinna'!D10,0)","v":0},null,0]
["A",92,null,null,{"$f":"IFERROR(VLOOKUP(region&'Prod. roślinna str 3'!$C11,Dane_srednie_baza,6,0),0)","v":0},{"$f":"IFERROR(VLOOKUP(region&'Prod. roślinna str 3'!C11,Dane_srednie_baza,7,0),0)","v":0},0,0,null,{"$f":"AND(VLOOKUP(C11,rosliny_baza,2,0),('Prod. zwierzęca towar.'!$B$6>0))","v":{"$error":"#N/A"}},null,0,0,0,0,0,{"$f":"IF(OR(C11='Koszty nieponiesione'!$A$283,C11='Koszty nieponiesione'!$A$291,C11='Koszty nieponiesione'!$A$295,C11='Koszty nieponiesione'!$A$303,C11='Koszty nieponiesione'!$A$307,C11='Koszty nieponiesione'!$A$311,C11='Koszty nieponiesione'!$A$315,C11='Koszty nieponiesione'!$A$319), 'Prod. roślinna'!D11,0)","v":0},null,0]
["A",93,null,null,{"$f":"IFERROR(VLOOKUP(region&'Prod. roślinna str 3'!$C12,Dane_srednie_baza,6,0),0)","v":0},{"$f":"IFERROR(VLOOKUP(region&'Prod. roślinna str 3'!C12,Dane_srednie_baza,7,0),0)","v":0},0,0,null,{"$f":"AND(VLOOKUP(C12,rosliny_baza,2,0),('Prod. zwierzęca towar.'!$B$6>0))","v":{"$error":"#N/A"}},null,0,0,0,0,0,{"$f":"IF(OR(C12='Koszty nieponiesione'!$A$283,C12='Koszty nieponiesione'!$A$291,C12='Koszty nieponiesione'!$A$295,C12='Koszty nieponiesione'!$A$303,C12='Koszty nieponiesione'!$A$307,C12='Koszty nieponiesione'!$A$311,C12='Koszty nieponiesione'!$A$315,C12='Koszty nieponiesione'!$A$319), 'Prod. roślinna'!D12,0)","v":0},null,0]
["A",94,null,null,{"$f":"IFERROR(VLOOKUP(region&'Prod. roślinna str 3'!$C13,Dane_srednie_baza,6,0),0)","v":0},{"$f":"IFERROR(VLOOKUP(region&'Prod. roślinna str 3'!C13,Dane_srednie_baza,7,0),0)","v":0},0,0,null,{"$f":"AND(VLOOKUP(C13,rosliny_baza,2,0),('Prod. zwierzęca towar.'!$B$6>0))","v":{"$error":"#N/A"}},null,0,0,0,0,0,{"$f":"IF(OR(C13='Koszty nieponiesione'!$A$283,C13='Koszty nieponiesione'!$A$291,C13='Koszty nieponiesione'!$A$295,C13='Koszty nieponiesione'!$A$303,C13='Koszty nieponiesione'!$A$307,C13='Koszty nieponiesione'!$A$311,C13='Koszty nieponiesione'!$A$315,C13='Koszty nieponiesione'!$A$319), 'Prod. roślinna'!D13,0)","v":0},null,0]
["A",95,null,null,{"$f":"IFERROR(VLOOKUP(region&'Prod. roślinna str 3'!$C14,Dane_srednie_baza,6,0),0)","v":0},{"$f":"IFERROR(VLOOKUP(region&'Prod. roślinna str 3'!C14,Dane_srednie_baza,7,0),0)","v":0},0,0,null,{"$f":"AND(VLOOKUP(C14,rosliny_baza,2,0),('Prod. zwierzęca towar.'!$B$6>0))","v":{"$error":"#N/A"}},null,0,0,0,0,0,{"$f":"IF(OR(C14='Koszty nieponiesione'!$A$283,C14='Koszty nieponiesione'!$A$291,C14='Koszty nieponiesione'!$A$295,C14='Koszty nieponiesione'!$A$303,C14='Koszty nieponiesione'!$A$307,C14='Koszty nieponiesione'!$A$311,C14='Koszty nieponiesione'!$A$315,C14='Koszty nieponiesione'!$A$319), 'Prod. roślinna'!D14,0)","v":0},null,0]
["A",96,null,null,{"$f":"IFERROR(VLOOKUP(region&'Prod. roślinna str 3'!$C15,Dane_srednie_baza,6,0),0)","v":0},{"$f":"IFERROR(VLOOKUP(region&'Prod. roślinna str 3'!C15,Dane_srednie_baza,7,0),0)","v":0},0,0,null,{"$f":"AND(VLOOKUP(C15,rosliny_baza,2,0),('Prod. zwierzęca towar.'!$B$6>0))","v":{"$error":"#N/A"}},null,0,0,0,0,0,{"$f":"IF(OR(C15='Koszty nieponiesione'!$A$283,C15='Koszty nieponiesione'!$A$291,C15='Koszty nieponiesione'!$A$295,C15='Koszty nieponiesione'!$A$303,C15='Koszty nieponiesione'!$A$307,C15='Koszty nieponiesione'!$A$311,C15='Koszty nieponiesione'!$A$315,C15='Koszty nieponiesione'!$A$319), 'Prod. roślinna'!D15,0)","v":0},null,0]
["A",97,null,null,{"$f":"IFERROR(VLOOKUP(region&'Prod. roślinna str 3'!$C16,Dane_srednie_baza,6,0),0)","v":0},{"$f":"IFERROR(VLOOKUP(region&'Prod. roślinna str 3'!C16,Dane_srednie_baza,7,0),0)","v":0},0,0,null,{"$f":"AND(VLOOKUP(C16,rosliny_baza,2,0),('Prod. zwierzęca towar.'!$B$6>0))","v":{"$error":"#N/A"}},null,0,0,0,0,0,{"$f":"IF(OR(C16='Koszty nieponiesione'!$A$283,C16='Koszty nieponiesione'!$A$291,C16='Koszty nieponiesione'!$A$295,C16='Koszty nieponiesione'!$A$303,C16='Koszty nieponiesione'!$A$307,C16='Koszty nieponiesione'!$A$311,C16='Koszty nieponiesione'!$A$315,C16='Koszty nieponiesione'!$A$319), 'Prod. roślinna'!D16,0)","v":0},null,0]
["A",98,null,null,{"$f":"IFERROR(VLOOKUP(region&'Prod. roślinna str 3'!$C17,Dane_srednie_baza,6,0),0)","v":0},{"$f":"IFERROR(VLOOKUP(region&'Prod. roślinna str 3'!C17,Dane_srednie_baza,7,0),0)","v":0},0,0,null,{"$f":"AND(VLOOKUP(C17,rosliny_baza,2,0),('Prod. zwierzęca towar.'!$B$6>0))","v":{"$error":"#N/A"}},null,0,0,0,0,0,{"$f":"IF(OR(C17='Koszty nieponiesione'!$A$283,C17='Koszty nieponiesione'!$A$291,C17='Koszty nieponiesione'!$A$295,C17='Koszty nieponiesione'!$A$303,C17='Koszty nieponiesione'!$A$307,C17='Koszty nieponiesione'!$A$311,C17='Koszty nieponiesione'!$A$315,C17='Koszty nieponiesione'!$A$319), 'Prod. roślinna'!D17,0)","v":0},null,0]
["A",99,null,null,{"$f":"IFERROR(VLOOKUP(region&'Prod. roślinna str 3'!$C18,Dane_srednie_baza,6,0),0)","v":0},{"$f":"IFERROR(VLOOKUP(region&'Prod. roślinna str 3'!C18,Dane_srednie_baza,7,0),0)","v":0},0,0,null,{"$f":"AND(VLOOKUP(C18,rosliny_baza,2,0),('Prod. zwierzęca towar.'!$B$6>0))","v":{"$error":"#N/A"}},null,0,0,0,0,0,{"$f":"IF(OR(C18='Koszty nieponiesione'!$A$283,C18='Koszty nieponiesione'!$A$291,C18='Koszty nieponiesione'!$A$295,C18='Koszty nieponiesione'!$A$303,C18='Koszty nieponiesione'!$A$307,C18='Koszty nieponiesione'!$A$311,C18='Koszty nieponiesione'!$A$315,C18='Koszty nieponiesione'!$A$319), 'Prod. roślinna'!D18,0)","v":0},null,0]
["A",100,null,null,{"$f":"IFERROR(VLOOKUP(region&'Prod. roślinna str 3'!$C19,Dane_srednie_baza,6,0),0)","v":0},{"$f":"IFERROR(VLOOKUP(region&'Prod. roślinna str 3'!C19,Dane_srednie_baza,7,0),0)","v":0},0,0,null,{"$f":"AND(VLOOKUP(C19,rosliny_baza,2,0),('Prod. zwierzęca towar.'!$B$6>0))","v":{"$error":"#N/A"}},null,0,0,0,0,0,{"$f":"IF(OR(C19='Koszty nieponiesione'!$A$283,C19='Koszty nieponiesione'!$A$291,C19='Koszty nieponiesione'!$A$295,C19='Koszty nieponiesione'!$A$303,C19='Koszty nieponiesione'!$A$307,C19='Koszty nieponiesione'!$A$311,C19='Koszty nieponiesione'!$A$315,C19='Koszty nieponiesione'!$A$319), 'Prod. roślinna'!D19,0)","v":0},null,0]
["A",101,null,null,{"$f":"IFERROR(VLOOKUP(region&'Prod. roślinna str 3'!$C20,Dane_srednie_baza,6,0),0)","v":0},{"$f":"IFERROR(VLOOKUP(region&'Prod. roślinna str 3'!C20,Dane_srednie_baza,7,0),0)","v":0},0,0,null,{"$f":"AND(VLOOKUP(C20,rosliny_baza,2,0),('Prod. zwierzęca towar.'!$B$6>0))","v":{"$error":"#N/A"}},null,0,0,0,0,0,{"$f":"IF(OR(C20='Koszty nieponiesione'!$A$283,C20='Koszty nieponiesione'!$A$291,C20='Koszty nieponiesione'!$A$295,C20='Koszty nieponiesione'!$A$303,C20='Koszty nieponiesione'!$A$307,C20='Koszty nieponiesione'!$A$311,C20='Koszty nieponiesione'!$A$315,C20='Koszty nieponiesione'!$A$319), 'Prod. roślinna'!D20,0)","v":0},null,0]
["A",102,null,null,{"$f":"IFERROR(VLOOKUP(region&'Prod. roślinna str 3'!$C21,Dane_srednie_baza,6,0),0)","v":0},{"$f":"IFERROR(VLOOKUP(region&'Prod. roślinna str 3'!C21,Dane_srednie_baza,7,0),0)","v":0},0,0,null,{"$f":"AND(VLOOKUP(C21,rosliny_baza,2,0),('Prod. zwierzęca towar.'!$B$6>0))","v":{"$error":"#N/A"}},null,0,0,0,0,0,{"$f":"IF(OR(C21='Koszty nieponiesione'!$A$283,C21='Koszty nieponiesione'!$A$291,C21='Koszty nieponiesione'!$A$295,C21='Koszty nieponiesione'!$A$303,C21='Koszty nieponiesione'!$A$307,C21='Koszty nieponiesione'!$A$311,C21='Koszty nieponiesione'!$A$315,C21='Koszty nieponiesione'!$A$319), 'Prod. roślinna'!D21,0)","v":0},null,0]
["A",103,null,null,{"$f":"IFERROR(VLOOKUP(region&'Prod. roślinna str 3'!$C22,Dane_srednie_baza,6,0),0)","v":0},{"$f":"IFERROR(VLOOKUP(region&'Prod. roślinna str 3'!C22,Dane_srednie_baza,7,0),0)","v":0},0,0,null,{"$f":"AND(VLOOKUP(C22,rosliny_baza,2,0),('Prod. zwierzęca towar.'!$B$6>0))","v":{"$error":"#N/A"}},null,0,0,0,0,0,{"$f":"IF(OR(C22='Koszty nieponiesione'!$A$283,C22='Koszty nieponiesione'!$A$291,C22='Koszty nieponiesione'!$A$295,C22='Koszty nieponiesione'!$A$303,C22='Koszty nieponiesione'!$A$307,C22='Koszty nieponiesione'!$A$311,C22='Koszty nieponiesione'!$A$315,C22='Koszty nieponiesione'!$A$319), 'Prod. roślinna'!D22,0)","v":0},null,0]
["A",104,null,null,{"$f":"IFERROR(VLOOKUP(region&'Prod. roślinna str 3'!$C23,Dane_srednie_baza,6,0),0)","v":0},{"$f":"IFERROR(VLOOKUP(region&'Prod. roślinna str 3'!C23,Dane_srednie_baza,7,0),0)","v":0},0,0,null,{"$f":"AND(VLOOKUP(C23,rosliny_baza,2,0),('Prod. zwierzęca towar.'!$B$6>0))","v":{"$error":"#N/A"}},null,0,0,0,0,0,{"$f":"IF(OR(C23='Koszty nieponiesione'!$A$283,C23='Koszty nieponiesione'!$A$291,C23='Koszty nieponiesione'!$A$295,C23='Koszty nieponiesione'!$A$303,C23='Koszty nieponiesione'!$A$307,C23='Koszty nieponiesione'!$A$311,C23='Koszty nieponiesione'!$A$315,C23='Koszty nieponiesione'!$A$319), 'Prod. roślinna'!D23,0)","v":0},null,0]
["A",105,null,null,{"$f":"IFERROR(VLOOKUP(region&'Prod. roślinna str 3'!$C24,Dane_srednie_baza,6,0),0)","v":0},{"$f":"IFERROR(VLOOKUP(region&'Prod. roślinna str 3'!C24,Dane_srednie_baza,7,0),0)","v":0},0,0,null,{"$f":"AND(VLOOKUP(C24,rosliny_baza,2,0),('Prod. zwierzęca towar.'!$B$6>0))","v":{"$error":"#N/A"}},null,0,0,0,0,0,{"$f":"IF(OR(C24='Koszty nieponiesione'!$A$283,C24='Koszty nieponiesione'!$A$291,C24='Koszty nieponiesione'!$A$295,C24='Koszty nieponiesione'!$A$303,C24='Koszty nieponiesione'!$A$307,C24='Koszty nieponiesione'!$A$311,C24='Koszty nieponiesione'!$A$315,C24='Koszty nieponiesione'!$A$319), 'Prod. roślinna'!D24,0)","v":0},null,0]
["A",106,null,null,{"$f":"IFERROR(VLOOKUP(region&'Prod. roślinna str 3'!$C25,Dane_srednie_baza,6,0),0)","v":0},{"$f":"IFERROR(VLOOKUP(region&'Prod. roślinna str 3'!C25,Dane_srednie_baza,7,0),0)","v":0},0,0,null,{"$f":"AND(VLOOKUP(C25,rosliny_baza,2,0),('Prod. zwierzęca towar.'!$B$6>0))","v":{"$error":"#N/A"}},null,0,0,0,0,0,{"$f":"IF(OR(C25='Koszty nieponiesione'!$A$283,C25='Koszty nieponiesione'!$A$291,C25='Koszty nieponiesione'!$A$295,C25='Koszty nieponiesione'!$A$303,C25='Koszty nieponiesione'!$A$307,C25='Koszty nieponiesione'!$A$311,C25='Koszty nieponiesione'!$A$315,C25='Koszty nieponiesione'!$A$319), 'Prod. roślinna'!D25,0)","v":0},null,0]
["A",107,null,null,{"$f":"IFERROR(VLOOKUP(region&'Prod. roślinna str 3'!$C26,Dane_srednie_baza,6,0),0)","v":0},{"$f":"IFERROR(VLOOKUP(region&'Prod. roślinna str 3'!C26,Dane_srednie_baza,7,0),0)","v":0},0,0,null,{"$f":"AND(VLOOKUP(C26,rosliny_baza,2,0),('Prod. zwierzęca towar.'!$B$6>0))","v":{"$error":"#N/A"}},null,0,0,0,0,0,{"$f":"IF(OR(C26='Koszty nieponiesione'!$A$283,C26='Koszty nieponiesione'!$A$291,C26='Koszty nieponiesione'!$A$295,C26='Koszty nieponiesione'!$A$303,C26='Koszty nieponiesione'!$A$307,C26='Koszty nieponiesione'!$A$311,C26='Koszty nieponiesione'!$A$315,C26='Koszty nieponiesione'!$A$319), 'Prod. roślinna'!D26,0)","v":0},null,0]
["A",108,null,null,{"$f":"IFERROR(VLOOKUP(region&'Prod. roślinna str 3'!$C27,Dane_srednie_baza,6,0),0)","v":0},{"$f":"IFERROR(VLOOKUP(region&'Prod. roślinna str 3'!C27,Dane_srednie_baza,7,0),0)","v":0},0,0,null,{"$f":"AND(VLOOKUP(C27,rosliny_baza,2,0),('Prod. zwierzęca towar.'!$B$6>0))","v":{"$error":"#N/A"}},null,0,0,0,0,0,{"$f":"IF(OR(C27='Koszty nieponiesione'!$A$283,C27='Koszty nieponiesione'!$A$291,C27='Koszty nieponiesione'!$A$295,C27='Koszty nieponiesione'!$A$303,C27='Koszty nieponiesione'!$A$307,C27='Koszty nieponiesione'!$A$311,C27='Koszty nieponiesione'!$A$315,C27='Koszty nieponiesione'!$A$319), 'Prod. roślinna'!D27,0)","v":0},null,0]
["A",109,null,null,{"$f":"IFERROR(VLOOKUP(region&'Prod. roślinna str 3'!$C28,Dane_srednie_baza,6,0),0)","v":0},{"$f":"IFERROR(VLOOKUP(region&'Prod. roślinna str 3'!C28,Dane_srednie_baza,7,0),0)","v":0},0,0,null,{"$f":"AND(VLOOKUP(C28,rosliny_baza,2,0),('Prod. zwierzęca towar.'!$B$6>0))","v":{"$error":"#N/A"}},null,0,0,0,0,0,{"$f":"IF(OR(C28='Koszty nieponiesione'!$A$283,C28='Koszty nieponiesione'!$A$291,C28='Koszty nieponiesione'!$A$295,C28='Koszty nieponiesione'!$A$303,C28='Koszty nieponiesione'!$A$307,C28='Koszty nieponiesione'!$A$311,C28='Koszty nieponiesione'!$A$315,C28='Koszty nieponiesione'!$A$319), 'Prod. roślinna'!D28,0)","v":0},null,0]
["A",110,null,null,{"$f":"IFERROR(VLOOKUP(region&'Prod. roślinna str 3'!$C29,Dane_srednie_baza,6,0),0)","v":0},{"$f":"IFERROR(VLOOKUP(region&'Prod. roślinna str 3'!C29,Dane_srednie_baza,7,0),0)","v":0},0,0,null,{"$f":"AND(VLOOKUP(C29,rosliny_baza,2,0),('Prod. zwierzęca towar.'!$B$6>0))","v":{"$error":"#N/A"}},null,0,0,0,0,0,{"$f":"IF(OR(C29='Koszty nieponiesione'!$A$283,C29='Koszty nieponiesione'!$A$291,C29='Koszty nieponiesione'!$A$295,C29='Koszty nieponiesione'!$A$303,C29='Koszty nieponiesione'!$A$307,C29='Koszty nieponiesione'!$A$311,C29='Koszty nieponiesione'!$A$315,C29='Koszty nieponiesione'!$A$319), 'Prod. roślinna'!D29,0)","v":0},null,0]
["A",111,null,null,{"$f":"IFERROR(VLOOKUP(region&'Prod. roślinna str 3'!$C30,Dane_srednie_baza,6,0),0)","v":0},{"$f":"IFERROR(VLOOKUP(region&'Prod. roślinna str 3'!C30,Dane_srednie_baza,7,0),0)","v":0},0,0,null,{"$f":"AND(VLOOKUP(C30,rosliny_baza,2,0),('Prod. zwierzęca towar.'!$B$6>0))","v":{"$error":"#N/A"}},null,0,0,0,0,0,{"$f":"IF(OR(C30='Koszty nieponiesione'!$A$283,C30='Koszty nieponiesione'!$A$291,C30='Koszty nieponiesione'!$A$295,C30='Koszty nieponiesione'!$A$303,C30='Koszty nieponiesione'!$A$307,C30='Koszty nieponiesione'!$A$311,C30='Koszty nieponiesione'!$A$315,C30='Koszty nieponiesione'!$A$319), 'Prod. roślinna'!D30,0)","v":0},null,0]
["A",112,null,null,{"$f":"IFERROR(VLOOKUP(region&'Prod. roślinna str 3'!$C31,Dane_srednie_baza,6,0),0)","v":0},{"$f":"IFERROR(VLOOKUP(region&'Prod. roślinna str 3'!C31,Dane_srednie_baza,7,0),0)","v":0},0,0,null,{"$f":"AND(VLOOKUP(C31,rosliny_baza,2,0),('Prod. zwierzęca towar.'!$B$6>0))","v":{"$error":"#N/A"}},null,0,0,0,0,0,{"$f":"IF(OR(C31='Koszty nieponiesione'!$A$283,C31='Koszty nieponiesione'!$A$291,C31='Koszty nieponiesione'!$A$295,C31='Koszty nieponiesione'!$A$303,C31='Koszty nieponiesione'!$A$307,C31='Koszty nieponiesione'!$A$311,C31='Koszty nieponiesione'!$A$315,C31='Koszty nieponiesione'!$A$319), 'Prod. roślinna'!D31,0)","v":0},null,0]
["A",113,null,null,{"$f":"IFERROR(VLOOKUP(region&'Prod. roślinna str 3'!$C32,Dane_srednie_baza,6,0),0)","v":0},{"$f":"IFERROR(VLOOKUP(region&'Prod. roślinna str 3'!C32,Dane_srednie_baza,7,0),0)","v":0},0,0,null,{"$f":"AND(VLOOKUP(C32,rosliny_baza,2,0),('Prod. zwierzęca towar.'!$B$6>0))","v":{"$error":"#N/A"}},null,0,0,0,0,0,{"$f":"IF(OR(C32='Koszty nieponiesione'!$A$283,C32='Koszty nieponiesione'!$A$291,C32='Koszty nieponiesione'!$A$295,C32='Koszty nieponiesione'!$A$303,C32='Koszty nieponiesione'!$A$307,C32='Koszty nieponiesione'!$A$311,C32='Koszty nieponiesione'!$A$315,C32='Koszty nieponiesione'!$A$319), 'Prod. roślinna'!D32,0)","v":0},null,0]
["A",114,null,null,{"$f":"IFERROR(VLOOKUP(region&'Prod. roślinna str 3'!$C33,Dane_srednie_baza,6,0),0)","v":0},{"$f":"IFERROR(VLOOKUP(region&'Prod. roślinna str 3'!C33,Dane_srednie_baza,7,0),0)","v":0},0,0,null,{"$f":"AND(VLOOKUP(C33,rosliny_baza,2,0),('Prod. zwierzęca towar.'!$B$6>0))","v":{"$error":"#N/A"}},null,0,0,0,0,0,{"$f":"IF(OR(C33='Koszty nieponiesione'!$A$283,C33='Koszty nieponiesione'!$A$291,C33='Koszty nieponiesione'!$A$295,C33='Koszty nieponiesione'!$A$303,C33='Koszty nieponiesione'!$A$307,C33='Koszty nieponiesione'!$A$311,C33='Koszty nieponiesione'!$A$315,C33='Koszty nieponiesione'!$A$319), 'Prod. roślinna'!D33,0)","v":0},null,0]
["A",115,null,null,{"$f":"IFERROR(VLOOKUP(region&'Prod. roślinna str 3'!$C34,Dane_srednie_baza,6,0),0)","v":0},{"$f":"IFERROR(VLOOKUP(region&'Prod. roślinna str 3'!C34,Dane_srednie_baza,7,0),0)","v":0},0,0,null,{"$f":"AND(VLOOKUP(C34,rosliny_baza,2,0),('Prod. zwierzęca towar.'!$B$6>0))","v":{"$error":"#N/A"}},null,0,0,0,0,0,{"$f":"IF(OR(C34='Koszty nieponiesione'!$A$283,C34='Koszty nieponiesione'!$A$291,C34='Koszty nieponiesione'!$A$295,C34='Koszty nieponiesione'!$A$303,C34='Koszty nieponiesione'!$A$307,C34='Koszty nieponiesione'!$A$311,C34='Koszty nieponiesione'!$A$315,C34='Koszty nieponiesione'!$A$319), 'Prod. roślinna'!D34,0)","v":0},null,0]
["A",116,null,null,{"$f":"IFERROR(VLOOKUP(region&'Prod. roślinna str 3'!$C35,Dane_srednie_baza,6,0),0)","v":0},{"$f":"IFERROR(VLOOKUP(region&'Prod. roślinna str 3'!C35,Dane_srednie_baza,7,0),0)","v":0},0,0,null,{"$f":"AND(VLOOKUP(C35,rosliny_baza,2,0),('Prod. zwierzęca towar.'!$B$6>0))","v":{"$error":"#N/A"}},null,0,{"$f":"H35-L35","v":0},0,0,0,{"$f":"IF(OR(C35='Koszty nieponiesione'!$A$283,C35='Koszty nieponiesione'!$A$291,C35='Koszty nieponiesione'!$A$295,C35='Koszty nieponiesione'!$A$303,C35='Koszty nieponiesione'!$A$307,C35='Koszty nieponiesione'!$A$311,C35='Koszty nieponiesione'!$A$315,C35='Koszty nieponiesione'!$A$319), 'Prod. roślinna'!D35,0)","v":0},null,0]
["A",117,null,null,{"$f":"IFERROR(VLOOKUP(region&'Prod. roślinna str 3'!$C36,Dane_srednie_baza,6,0),0)","v":0},{"$f":"IFERROR(VLOOKUP(region&'Prod. roślinna str 3'!C36,Dane_srednie_baza,7,0),0)","v":0},0,0,null,{"$f":"AND(VLOOKUP(C36,rosliny_baza,2,0),('Prod. zwierzęca towar.'!$B$6>0))","v":{"$error":"#N/A"}},null,0,0,0,0,0,{"$f":"IF(OR(C36='Koszty nieponiesione'!$A$283,C36='Koszty nieponiesione'!$A$291,C36='Koszty nieponiesione'!$A$295,C36='Koszty nieponiesione'!$A$303,C36='Koszty nieponiesione'!$A$307,C36='Koszty nieponiesione'!$A$311,C36='Koszty nieponiesione'!$A$315,C36='Koszty nieponiesione'!$A$319), 'Prod. roślinna'!D36,0)","v":0},null,0]
["A",118,null,null,{"$f":"IFERROR(VLOOKUP(region&'Prod. roślinna str 3'!$C37,Dane_srednie_baza,6,0),0)","v":0},{"$f":"IFERROR(VLOOKUP(region&'Prod. roślinna str 3'!C37,Dane_srednie_baza,7,0),0)","v":0},0,0,null,{"$f":"AND(VLOOKUP(C37,rosliny_baza,2,0),('Prod. zwierzęca towar.'!$B$6>0))","v":{"$error":"#N/A"}},null,0,0,0,0,0,{"$f":"IF(OR(C37='Koszty nieponiesione'!$A$283,C37='Koszty nieponiesione'!$A$291,C37='Koszty nieponiesione'!$A$295,C37='Koszty nieponiesione'!$A$303,C37='Koszty nieponiesione'!$A$307,C37='Koszty nieponiesione'!$A$311,C37='Koszty nieponiesione'!$A$315,C37='Koszty nieponiesione'!$A$319), 'Prod. roślinna'!D37,0)","v":0},null,0]
["A",119,null,null,{"$f":"IFERROR(VLOOKUP(region&'Prod. roślinna str 3'!$C38,Dane_srednie_baza,6,0),0)","v":0},{"$f":"IFERROR(VLOOKUP(region&'Prod. roślinna str 3'!C38,Dane_srednie_baza,7,0),0)","v":0},0,0,null,{"$f":"AND(VLOOKUP(C38,rosliny_baza,2,0),('Prod. zwierzęca towar.'!$B$6>0))","v":{"$error":"#N/A"}},null,0,0,0,0,0,{"$f":"IF(OR(C38='Koszty nieponiesione'!$A$283,C38='Koszty nieponiesione'!$A$291,C38='Koszty nieponiesione'!$A$295,C38='Koszty nieponiesione'!$A$303,C38='Koszty nieponiesione'!$A$307,C38='Koszty nieponiesione'!$A$311,C38='Koszty nieponiesione'!$A$315,C38='Koszty nieponiesione'!$A$319), 'Prod. roślinna'!D38,0)","v":0},null,0]
["A",120,null,null,{"$f":"IFERROR(VLOOKUP(region&'Prod. roślinna str 3'!$C39,Dane_srednie_baza,6,0),0)","v":0},{"$f":"IFERROR(VLOOKUP(region&'Prod. roślinna str 3'!C39,Dane_srednie_baza,7,0),0)","v":0},0,0,null,{"$f":"AND(VLOOKUP(C39,rosliny_baza,2,0),('Prod. zwierzęca towar.'!$B$6>0))","v":{"$error":"#N/A"}},null,0,0,0,0,0,{"$f":"IF(OR(C39='Koszty nieponiesione'!$A$283,C39='Koszty nieponiesione'!$A$291,C39='Koszty nieponiesione'!$A$295,C39='Koszty nieponiesione'!$A$303,C39='Koszty nieponiesione'!$A$307,C39='Koszty nieponiesione'!$A$311,C39='Koszty nieponiesione'!$A$315,C39='Koszty nieponiesione'!$A$319), 'Prod. roślinna'!D39,0)","v":0},null,0]
["A",121,null,null,{"$f":"IFERROR(VLOOKUP(region&'Prod. roślinna str 3'!$C40,Dane_srednie_baza,6,0),0)","v":0},{"$f":"IFERROR(VLOOKUP(region&'Prod. roślinna str 3'!C40,Dane_srednie_baza,7,0),0)","v":0},0,0,null,{"$f":"AND(VLOOKUP(C40,rosliny_baza,2,0),('Prod. zwierzęca towar.'!$B$6>0))","v":{"$error":"#N/A"}},null,0,0,0,0,0,{"$f":"IF(OR(C40='Koszty nieponiesione'!$A$283,C40='Koszty nieponiesione'!$A$291,C40='Koszty nieponiesione'!$A$295,C40='Koszty nieponiesione'!$A$303,C40='Koszty nieponiesione'!$A$307,C40='Koszty nieponiesione'!$A$311,C40='Koszty nieponiesione'!$A$315,C40='Koszty nieponiesione'!$A$319), 'Prod. roślinna'!D40,0)","v":0},null,0]
["A",122,null,null,{"$f":"IFERROR(VLOOKUP(region&'Prod. roślinna str 3'!$C41,Dane_srednie_baza,6,0),0)","v":0},{"$f":"IFERROR(VLOOKUP(region&'Prod. roślinna str 3'!C41,Dane_srednie_baza,7,0),0)","v":0},0,0,null,{"$f":"AND(VLOOKUP(C41,rosliny_baza,2,0),('Prod. zwierzęca towar.'!$B$6>0))","v":{"$error":"#N/A"}},null,0,0,0,0,0,{"$f":"IF(OR(C41='Koszty nieponiesione'!$A$283,C41='Koszty nieponiesione'!$A$291,C41='Koszty nieponiesione'!$A$295,C41='Koszty nieponiesione'!$A$303,C41='Koszty nieponiesione'!$A$307,C41='Koszty nieponiesione'!$A$311,C41='Koszty nieponiesione'!$A$315,C41='Koszty nieponiesione'!$A$319), 'Prod. roślinna'!D41,0)","v":0},null,0]
["A",123,null,null,{"$f":"IFERROR(VLOOKUP(region&'Prod. roślinna str 3'!$C42,Dane_srednie_baza,6,0),0)","v":0},{"$f":"IFERROR(VLOOKUP(region&'Prod. roślinna str 3'!C42,Dane_srednie_baza,7,0),0)","v":0},0,0,null,{"$f":"AND(VLOOKUP(C42,rosliny_baza,2,0),('Prod. zwierzęca towar.'!$B$6>0))","v":{"$error":"#N/A"}},null,0,0,0,0,0,{"$f":"IF(OR(C42='Koszty nieponiesione'!$A$283,C42='Koszty nieponiesione'!$A$291,C42='Koszty nieponiesione'!$A$295,C42='Koszty nieponiesione'!$A$303,C42='Koszty nieponiesione'!$A$307,C42='Koszty nieponiesione'!$A$311,C42='Koszty nieponiesione'!$A$315,C42='Koszty nieponiesione'!$A$319), 'Prod. roślinna'!D42,0)","v":0},null,0]
["A",124,null,null,{"$f":"IFERROR(VLOOKUP(region&'Prod. roślinna str 3'!$C43,Dane_srednie_baza,6,0),0)","v":0},{"$f":"IFERROR(VLOOKUP(region&'Prod. roślinna str 3'!C43,Dane_srednie_baza,7,0),0)","v":0},0,0,null,{"$f":"AND(VLOOKUP(C43,rosliny_baza,2,0),('Prod. zwierzęca towar.'!$B$6>0))","v":{"$error":"#N/A"}},null,0,0,0,0,0,{"$f":"IF(OR(C43='Koszty nieponiesione'!$A$283,C43='Koszty nieponiesione'!$A$291,C43='Koszty nieponiesione'!$A$295,C43='Koszty nieponiesione'!$A$303,C43='Koszty nieponiesione'!$A$307,C43='Koszty nieponiesione'!$A$311,C43='Koszty nieponiesione'!$A$315,C43='Koszty nieponiesione'!$A$319), 'Prod. roślinna'!D43,0)","v":0},null,0]
["A",125,null,null,{"$f":"IFERROR(VLOOKUP(region&'Prod. roślinna str 3'!$C44,Dane_srednie_baza,6,0),0)","v":0},{"$f":"IFERROR(VLOOKUP(region&'Prod. roślinna str 3'!C44,Dane_srednie_baza,7,0),0)","v":0},0,0,null,{"$f":"AND(VLOOKUP(C44,rosliny_baza,2,0),('Prod. zwierzęca towar.'!$B$6>0))","v":{"$error":"#N/A"}},null,0,0,0,0,0,{"$f":"IF(OR(C44='Koszty nieponiesione'!$A$283,C44='Koszty nieponiesione'!$A$291,C44='Koszty nieponiesione'!$A$295,C44='Koszty nieponiesione'!$A$303,C44='Koszty nieponiesione'!$A$307,C44='Koszty nieponiesione'!$A$311,C44='Koszty nieponiesione'!$A$315,C44='Koszty nieponiesione'!$A$319), 'Prod. roślinna'!D44,0)","v":0},null,0]
["A",126,null,null,{"$f":"IFERROR(VLOOKUP(region&'Prod. roślinna str 3'!$C45,Dane_srednie_baza,6,0),0)","v":0},{"$f":"IFERROR(VLOOKUP(region&'Prod. roślinna str 3'!C45,Dane_srednie_baza,7,0),0)","v":0},0,0,null,{"$f":"AND(VLOOKUP(C45,rosliny_baza,2,0),('Prod. zwierzęca towar.'!$B$6>0))","v":{"$error":"#N/A"}},null,0,0,0,0,0,{"$f":"IF(OR(C45='Koszty nieponiesione'!$A$283,C45='Koszty nieponiesione'!$A$291,C45='Koszty nieponiesione'!$A$295,C45='Koszty nieponiesione'!$A$303,C45='Koszty nieponiesione'!$A$307,C45='Koszty nieponiesione'!$A$311,C45='Koszty nieponiesione'!$A$315,C45='Koszty nieponiesione'!$A$319), 'Prod. roślinna'!D45,0)","v":0},null,0]
["A",127,null,null,{"$f":"IFERROR(VLOOKUP(region&'Prod. roślinna str 3'!$C46,Dane_srednie_baza,6,0),0)","v":0},{"$f":"IFERROR(VLOOKUP(region&'Prod. roślinna str 3'!C46,Dane_srednie_baza,7,0),0)","v":0},0,0,null,{"$f":"AND(VLOOKUP(C46,rosliny_baza,2,0),('Prod. zwierzęca towar.'!$B$6>0))","v":{"$error":"#N/A"}},null,0,0,0,0,0,{"$f":"IF(OR(C46='Koszty nieponiesione'!$A$283,C46='Koszty nieponiesione'!$A$291,C46='Koszty nieponiesione'!$A$295,C46='Koszty nieponiesione'!$A$303,C46='Koszty nieponiesione'!$A$307,C46='Koszty nieponiesione'!$A$311,C46='Koszty nieponiesione'!$A$315,C46='Koszty nieponiesione'!$A$319), 'Prod. roślinna'!D46,0)","v":0},null,0]
["A",128,null,null,{"$f":"IFERROR(VLOOKUP(region&'Prod. roślinna str 3'!$C47,Dane_srednie_baza,6,0),0)","v":0},{"$f":"IFERROR(VLOOKUP(region&'Prod. roślinna str 3'!C47,Dane_srednie_baza,7,0),0)","v":0},0,0,null,{"$f":"AND(VLOOKUP(C47,rosliny_baza,2,0),('Prod. zwierzęca towar.'!$B$6>0))","v":{"$error":"#N/A"}},null,0,0,0,0,0,{"$f":"IF(OR(C47='Koszty nieponiesione'!$A$283,C47='Koszty nieponiesione'!$A$291,C47='Koszty nieponiesione'!$A$295,C47='Koszty nieponiesione'!$A$303,C47='Koszty nieponiesione'!$A$307,C47='Koszty nieponiesione'!$A$311,C47='Koszty nieponiesione'!$A$315,C47='Koszty nieponiesione'!$A$319), 'Prod. roślinna'!D47,0)","v":0},null,0]
["A",129,null,null,{"$f":"IFERROR(VLOOKUP(region&'Prod. roślinna str 3'!$C48,Dane_srednie_baza,6,0),0)","v":0},{"$f":"IFERROR(VLOOKUP(region&'Prod. roślinna str 3'!C48,Dane_srednie_baza,7,0),0)","v":0},0,0,null,{"$f":"AND(VLOOKUP(C48,rosliny_baza,2,0),('Prod. zwierzęca towar.'!$B$6>0))","v":{"$error":"#N/A"}},null,0,0,0,0,0,{"$f":"IF(OR(C48='Koszty nieponiesione'!$A$283,C48='Koszty nieponiesione'!$A$291,C48='Koszty nieponiesione'!$A$295,C48='Koszty nieponiesione'!$A$303,C48='Koszty nieponiesione'!$A$307,C48='Koszty nieponiesione'!$A$311,C48='Koszty nieponiesione'!$A$315,C48='Koszty nieponiesione'!$A$319), 'Prod. roślinna'!D48,0)","v":0},null,0]
["A",130,null,null,{"$f":"IFERROR(VLOOKUP(region&'Prod. roślinna str 3'!$C49,Dane_srednie_baza,6,0),0)","v":0},{"$f":"IFERROR(VLOOKUP(region&'Prod. roślinna str 3'!C49,Dane_srednie_baza,7,0),0)","v":0},0,0,null,{"$f":"AND(VLOOKUP(C49,rosliny_baza,2,0),('Prod. zwierzęca towar.'!$B$6>0))","v":{"$error":"#N/A"}},null,0,0,0,0,0,{"$f":"IF(OR(C49='Koszty nieponiesione'!$A$283,C49='Koszty nieponiesione'!$A$291,C49='Koszty nieponiesione'!$A$295,C49='Koszty nieponiesione'!$A$303,C49='Koszty nieponiesione'!$A$307,C49='Koszty nieponiesione'!$A$311,C49='Koszty nieponiesione'!$A$315,C49='Koszty nieponiesione'!$A$319), 'Prod. roślinna'!D49,0)","v":0},null,0]
["A",131,null,null,{"$f":"IFERROR(VLOOKUP(region&'Prod. roślinna str 3'!$C50,Dane_srednie_baza,6,0),0)","v":0},{"$f":"IFERROR(VLOOKUP(region&'Prod. roślinna str 3'!C50,Dane_srednie_baza,7,0),0)","v":0},0,0,null,{"$f":"AND(VLOOKUP(C50,rosliny_baza,2,0),('Prod. zwierzęca towar.'!$B$6>0))","v":{"$error":"#N/A"}},null,0,0,0,0,0,{"$f":"IF(OR(C50='Koszty nieponiesione'!$A$283,C50='Koszty nieponiesione'!$A$291,C50='Koszty nieponiesione'!$A$295,C50='Koszty nieponiesione'!$A$303,C50='Koszty nieponiesione'!$A$307,C50='Koszty nieponiesione'!$A$311,C50='Koszty nieponiesione'!$A$315,C50='Koszty nieponiesione'!$A$319), 'Prod. roślinna'!D50,0)","v":0},null,0]
["A",132,null,null,{"$f":"IFERROR(VLOOKUP(region&'Prod. roślinna str 3'!$C51,Dane_srednie_baza,6,0),0)","v":0},{"$f":"IFERROR(VLOOKUP(region&'Prod. roślinna str 3'!C51,Dane_srednie_baza,7,0),0)","v":0},0,0,null,{"$f":"AND(VLOOKUP(C51,rosliny_baza,2,0),('Prod. zwierzęca towar.'!$B$6>0))","v":{"$error":"#N/A"}},null,0,0,0,0,0,{"$f":"IF(OR(C51='Koszty nieponiesione'!$A$283,C51='Koszty nieponiesione'!$A$291,C51='Koszty nieponiesione'!$A$295,C51='Koszty nieponiesione'!$A$303,C51='Koszty nieponiesione'!$A$307,C51='Koszty nieponiesione'!$A$311,C51='Koszty nieponiesione'!$A$315,C51='Koszty nieponiesione'!$A$319), 'Prod. roślinna'!D51,0)","v":0},null,0]
["A",133,null,null,{"$f":"IFERROR(VLOOKUP(region&'Prod. roślinna str 3'!$C52,Dane_srednie_baza,6,0),0)","v":0},{"$f":"IFERROR(VLOOKUP(region&'Prod. roślinna str 3'!C52,Dane_srednie_baza,7,0),0)","v":0},0,0,null,{"$f":"AND(VLOOKUP(C52,rosliny_baza,2,0),('Prod. zwierzęca towar.'!$B$6>0))","v":{"$error":"#N/A"}},null,0,0,0,0,0,{"$f":"IF(OR(C52='Koszty nieponiesione'!$A$283,C52='Koszty nieponiesione'!$A$291,C52='Koszty nieponiesione'!$A$295,C52='Koszty nieponiesione'!$A$303,C52='Koszty nieponiesione'!$A$307,C52='Koszty nieponiesione'!$A$311,C52='Koszty nieponiesione'!$A$315,C52='Koszty nieponiesione'!$A$319), 'Prod. roślinna'!D52,0)","v":0},null,0]
["A",134,null,null,{"$f":"IFERROR(VLOOKUP(region&'Prod. roślinna str 3'!$C53,Dane_srednie_baza,6,0),0)","v":0},{"$f":"IFERROR(VLOOKUP(region&'Prod. roślinna str 3'!C53,Dane_srednie_baza,7,0),0)","v":0},0,0,null,{"$f":"AND(VLOOKUP(C53,rosliny_baza,2,0),('Prod. zwierzęca towar.'!$B$6>0))","v":{"$error":"#N/A"}},null,0,0,0,0,0,{"$f":"IF(OR(C53='Koszty nieponiesione'!$A$283,C53='Koszty nieponiesione'!$A$291,C53='Koszty nieponiesione'!$A$295,C53='Koszty nieponiesione'!$A$303,C53='Koszty nieponiesione'!$A$307,C53='Koszty nieponiesione'!$A$311,C53='Koszty nieponiesione'!$A$315,C53='Koszty nieponiesione'!$A$319), 'Prod. roślinna'!D53,0)","v":0},null,0]
["A",135,null,null,{"$f":"IFERROR(VLOOKUP(region&'Prod. roślinna str 3'!$C54,Dane_srednie_baza,6,0),0)","v":0},{"$f":"IFERROR(VLOOKUP(region&'Prod. roślinna str 3'!C54,Dane_srednie_baza,7,0),0)","v":0},0,0,null,{"$f":"AND(VLOOKUP(C54,rosliny_baza,2,0),('Prod. zwierzęca towar.'!$B$6>0))","v":{"$error":"#N/A"}},null,0,0,0,0,0,{"$f":"IF(OR(C54='Koszty nieponiesione'!$A$283,C54='Koszty nieponiesione'!$A$291,C54='Koszty nieponiesione'!$A$295,C54='Koszty nieponiesione'!$A$303,C54='Koszty nieponiesione'!$A$307,C54='Koszty nieponiesione'!$A$311,C54='Koszty nieponiesione'!$A$315,C54='Koszty nieponiesione'!$A$319), 'Prod. roślinna'!D54,0)","v":0},null,0]
["A",136,null,null,{"$f":"IFERROR(VLOOKUP(region&'Prod. roślinna str 3'!$C55,Dane_srednie_baza,6,0),0)","v":0},{"$f":"IFERROR(VLOOKUP(region&'Prod. roślinna str 3'!C55,Dane_srednie_baza,7,0),0)","v":0},0,0,null,{"$f":"AND(VLOOKUP(C55,rosliny_baza,2,0),('Prod. zwierzęca towar.'!$B$6>0))","v":{"$error":"#N/A"}},null,0,0,0,0,0,{"$f":"IF(OR(C55='Koszty nieponiesione'!$A$283,C55='Koszty nieponiesione'!$A$291,C55='Koszty nieponiesione'!$A$295,C55='Koszty nieponiesione'!$A$303,C55='Koszty nieponiesione'!$A$307,C55='Koszty nieponiesione'!$A$311,C55='Koszty nieponiesione'!$A$315,C55='Koszty nieponiesione'!$A$319), 'Prod. roślinna'!D55,0)","v":0},null,0]
["A",137,null,null,{"$f":"IFERROR(VLOOKUP(region&'Prod. roślinna str 3'!$C56,Dane_srednie_baza,6,0),0)","v":0},{"$f":"IFERROR(VLOOKUP(region&'Prod. roślinna str 3'!C56,Dane_srednie_baza,7,0),0)","v":0},{"$f":"E56*F56","v":0},0,null,{"$f":"AND(VLOOKUP(C56,rosliny_baza,2,0),('Prod. zwierzęca towar.'!$B$6>0))","v":{"$error":"#N/A"}},null,0,0,0,0,0,{"$f":"IF(OR(C56='Koszty nieponiesione'!$A$283,C56='Koszty nieponiesione'!$A$291,C56='Koszty nieponiesione'!$A$295,C56='Koszty nieponiesione'!$A$303,C56='Koszty nieponiesione'!$A$307,C56='Koszty nieponiesione'!$A$311,C56='Koszty nieponiesione'!$A$315,C56='Koszty nieponiesione'!$A$319), 'Prod. roślinna'!D56,0)","v":0},null,0]
[null,"Razem (poz. 89 - 137)",null,{"$f":"SUM(D8:D56)","v":0},"x","x","x",{"$f":"SUM(H8:H56)","v":0},"x",null,{"$f":"IF(SUM(K8:K56)<'Prod. zwierzęca towar.'!H57,SUM(K8:K56),'Prod. zwierzęca towar.'!H57)","v":0},{"$f":"SUM(L8:L56)","v":0},{"$f":"SUM(M8:M56)","v":0},{"$f":"SUM(N8:N56)","v":0},null,{"$f":"SUM(P8:P56)","v":0},{"$f":"SUM(Q8:Q56)","v":0},{"$f":"SUM(R8:R56)","v":0},{"$f":"SUM(S8:S56)","v":0}]
[null,"*Dane w kolumnie 9 \"Wysokości szkód w uprawach uwzględnianych w produkcji zwierzęcej” oblicza się w zakresie upraw : rośliny pastewne objętościowe na gruntach ornych, okopowe pastewne na pasze, buraki pastewne na pasze, brukiew pastewna na pasze, marchew pastewna na pasze, dynia pastewna na pasze, pozostałe okopowe pastewne na pasze, kukurydza pastewna na zielonkę, zboża na zielonkę i mieszanki zbóż z innymi roślinami na zielonkę, trawy w uprawie polowej na zielonkę, strączkowe na zielonkę, motylkowe drobnonasienne na zielonkę, mieszanki motylkowych z trawami, pozostałe polowe uprawy pastewne na zielonkę, rośliny pastewne objętościowe z użytków zielonych (uprawa lub zielonka), rośliny pastewne objętościowe z łąk – zielonka, rośliny pastewne objętościowe z pastwisk, rośliny pastewne objętościowe z pastwisk pielęgnowanych, rośliny pastewne objętościowe z pastwisk niepielęgnowanych, kukurydza (sucha i wilgotna) na ziarno, proso na ziarno, strączkowe pastewne na nasiona suche, groch pastewny (peluszka) na nasiona suche, pozostałe strączkowe pastewne na nasiona suche, mieszanki strączkowych z innymi roślinami jare na nasiona suche, mieszanki strączkowych z innymi roślinami ozime na nasiona suche. w przypadku prowadzenia produkcji zwierzęcej w zakresie: byki do opasu, wolce 2-letnie i starsze, jałówki do opasu 2-letnie i starsze, byczki od 1 do 2 lat, jałówki od 1 do 2 lat, owce 1 roczne i starsze, mleko krowie, mleko owcze, mleko kozie, kozy 1 roczne i starsze, konie, tuczniki o wadze 50 kg i więcej, warchlaki do tuczu o wadze od 20 do 50 kg."]
[]
[]
[null,null," Czytelne podpisy członków komisji powołanych przez Wojewodę"]
[null,"1.","……………………………………………………………………………………………….………",null,null,"6.","……………………………………………………………………………………………….………"]
[null,"2.","……………………………………………………………………………………………….………",null,null,"7.","……………………………………………………………………………………………….………"]
[null,"3.","……………………………………………………………………………………………….………",null,null,"8.","……………………………………………………………………………………………….………"]
[null,"4.","……………………………………………………………………………………………….………",null,null,"9.","……………………………………………………………………………………………….………",null,null,null,null,null,null,"…………………………………..……………..……….…."]
[null,"5.","……………………………………………………………………………………………….………",null,null,"10.","……………………………………………………………………………………………….………",null,null,null,null,null,null,"(data i czytelny podpis rolnika)"]

{"sheet":"Prod. roślinna str 4","index":4,"n_rows":66,"n_cols":19,"rows_kept":66,"cut":false,"hidden":false,"merged":[[57,1,57,20],[0,1,0,7],[0,12,0,13],[1,1,1,4],[1,5,1,8],[56,1,56,2],[65,2,65,3],[65,6,65,10],[65,13,65,17],[58,1,58,18],[60,2,60,6],[61,2,61,3],[61,6,61,10],[62,2,62,3],[62,6,62,10],[63,2,63,3],[63,6,63,10],[64,2,64,3],[64,6,64,10],[64,13,64,18]]}
[null,"Załącznik 1  Szkody w produkcji roślinnej ",null,null,null,null,null,null,null,null,null,null,"DLA REGIONU FADN",null,null,null,null,{"$f":"Protokół!V1","v":"A"}]
[null,"Imię i nazwisko producenta rolnego",null,"Imię i nazwisko producenta rolnego",null,{"$f":"Protokół!G8","v":"………………………………………\n\n………………………...……………"}]
[]
[null,"L.p","Nazwa wszystkich upraw w gospodarstwie  rolnym ","Powierzchnia uprawy w roku wystąpienia niekorzystnego zjawiska atmosferycznego","Średni plon z 1 ha danej uprawy ","Średnia cena","Średni dochód z 1 ha","Średnia roczna wartość produkcji ","Straty plonu w % w roku wystąpienia szkody",null,"Wysokość szkód w uprawach uwzględnianych w produkcji zwierzęcej *   ","Wartość produkcji w roku wystąpienia szkód po wystąpieniu niekorzystnego zjawiska atmosferycznego","Kwota obniżenia dochodu  w wyniku szkód ","Koszty nieponiesione w związku z wystąpieniem szkód łącznie",null,"pow 70%","pow UZ","Koszty poniesione z powodu niezebrania plonów w wyniku szkód łącznie","Powierzchnia upraw rolnych dotknięta zjawiskiem wynosi"]
[null,null,null,"ha","dt/ha ","w zł/dt","w zł/ha","w zł ","%",null,"zł","zł","zł","zł",null,null,null,"zł"]
[null,null,"NAZWA"]
[null,1,2,3,4,5,"6=4x5","7=3x6",8,null,"9=7x8","10= 7x(100%-8)","11=7-10",12,null,null,null,13,14]
[{"$f":"C8&region","v":"A"},138,null,null,{"$f":"IFERROR(VLOOKUP(region&'Prod. roślinna str 4'!$C8,Dane_srednie_baza,6,0),0)","v":0},{"$f":"IFERROR(VLOOKUP(region&'Prod. roślinna str 4'!C8,Dane_srednie_baza,7,0),0)","v":0},{"$f":"E8*F8","v":0},{"$f":"D8*G8","v":0},null,{"$f":"AND(VLOOKUP(C8,rosliny_baza,2,0),('Prod. zwierzęca towar.'!$B$6>0))","v":{"$error":"#N/A"}},null,{"$f":"H8*(100%-I8)","v":0},{"$f":"H8-L8","v":0},{"$f":"I8*O8","v":0},{"$f":"IF(I8>=70%,VLOOKUP(A8,Koszty_nieponiesione_baza,2,0)*D8,0)","v":0},{"$f":"IF(I8>=70%,D8,0)","v":0},{"$f":"IF(OR(C8='Koszty nieponiesione'!$A$283,C8='Koszty nieponiesione'!$A$291,C8='Koszty nieponiesione'!$A$295,C8='Koszty nieponiesione'!$A$303,C8='Koszty nieponiesione'!$A$307,C8='Koszty nieponiesione'!$A$311,C8='Koszty nieponiesione'!$A$315,C8='Koszty nieponiesione'!$A$319), 'Prod. roślinna'!D8,0)","v":0},null,{"$f":"IF(I8>0,D8,0)","v":0}]
["A",139,null,null,{"$f":"IFERROR(VLOOKUP(region&'Prod. roślinna str 4'!$C9,Dane_srednie_baza,6,0),0)","v":0},{"$f":"IFERROR(VLOOKUP(region&'Prod. roślinna str 4'!C9,Dane_srednie_baza,7,0),0)","v":0},{"$f":"E9*F9","v":0},{"$f":"D9*G9","v":0},null,{"$f":"AND(VLOOKUP(C9,rosliny_baza,2,0),('Prod. zwierzęca towar.'!$B$6>0))","v":{"$error":"#N/A"}},null,{"$f":"H9*(100%-I9)","v":0},{"$f":"H9-L9","v":0},{"$f":"I9*O9","v":0},0,0,{"$f":"IF(OR(C9='Koszty nieponiesione'!$A$283,C9='Koszty nieponiesione'!$A$291,C9='Koszty nieponiesione'!$A$295,C9='Koszty nieponiesione'!$A$303,C9='Koszty nieponiesione'!$A$307,C9='Koszty nieponiesione'!$A$311,C9='Koszty nieponiesione'!$A$315,C9='Koszty nieponiesione'!$A$319), 'Prod. roślinna'!D9,0)","v":0},null,0]
["A",140,null,null,{"$f":"IFERROR(VLOOKUP(region&'Prod. roślinna str 4'!$C10,Dane_srednie_baza,6,0),0)","v":0},{"$f":"IFERROR(VLOOKUP(region&'Prod. roślinna str 4'!C10,Dane_srednie_baza,7,0),0)","v":0},0,0,null,{"$f":"AND(VLOOKUP(C10,rosliny_baza,2,0),('Prod. zwierzęca towar.'!$B$6>0))","v":{"$error":"#N/A"}},null,0,0,0,0,0,{"$f":"IF(OR(C10='Koszty nieponiesione'!$A$283,C10='Koszty nieponiesione'!$A$291,C10='Koszty nieponiesione'!$A$295,C10='Koszty nieponiesione'!$A$303,C10='Koszty nieponiesione'!$A$307,C10='Koszty nieponiesione'!$A$311,C10='Koszty nieponiesione'!$A$315,C10='Koszty nieponiesione'!$A$319), 'Prod. roślinna'!D10,0)","v":0},null,0]
["A",141,null,null,{"$f":"IFERROR(VLOOKUP(region&'Prod. roślinna str 4'!$C11,Dane_srednie_baza,6,0),0)","v":0},{"$f":"IFERROR(VLOOKUP(region&'Prod. roślinna str 4'!C11,Dane_srednie_baza,7,0),0)","v":0},0,0,null,{"$f":"AND(VLOOKUP(C11,rosliny_baza,2,0),('Prod. zwierzęca towar.'!$B$6>0))","v":{"$error":"#N/A"}},null,0,0,0,0,0,{"$f":"IF(OR(C11='Koszty nieponiesione'!$A$283,C11='Koszty nieponiesione'!$A$291,C11='Koszty nieponiesione'!$A$295,C11='Koszty nieponiesione'!$A$303,C11='Koszty nieponiesione'!$A$307,C11='Koszty nieponiesione'!$A$311,C11='Koszty nieponiesione'!$A$315,C11='Koszty nieponiesione'!$A$319), 'Prod. roślinna'!D11,0)","v":0},null,0]
["A",142,null,null,{"$f":"IFERROR(VLOOKUP(region&'Prod. roślinna str 4'!$C12,Dane_srednie_baza,6,0),0)","v":0},{"$f":"IFERROR(VLOOKUP(region&'Prod. roślinna str 4'!C12,Dane_srednie_baza,7,0),0)","v":0},0,0,null,{"$f":"AND(VLOOKUP(C12,rosliny_baza,2,0),('Prod. zwierzęca towar.'!$B$6>0))","v":{"$error":"#N/A"}},null,0,0,0,0,0,{"$f":"IF(OR(C12='Koszty nieponiesione'!$A$283,C12='Koszty nieponiesione'!$A$291,C12='Koszty nieponiesione'!$A$295,C12='Koszty nieponiesione'!$A$303,C12='Koszty nieponiesione'!$A$307,C12='Koszty nieponiesione'!$A$311,C12='Koszty nieponiesione'!$A$315,C12='Koszty nieponiesione'!$A$319), 'Prod. roślinna'!D12,0)","v":0},null,0]
["A",143,null,null,{"$f":"IFERROR(VLOOKUP(region&'Prod. roślinna str 4'!$C13,Dane_srednie_baza,6,0),0)","v":0},{"$f":"IFERROR(VLOOKUP(region&'Prod. roślinna str 4'!C13,Dane_srednie_baza,7,0),0)","v":0},0,0,null,{"$f":"AND(VLOOKUP(C13,rosliny_baza,2,0),('Prod. zwierzęca towar.'!$B$6>0))","v":{"$error":"#N/A"}},null,0,0,0,0,0,{"$f":"IF(OR(C13='Koszty nieponiesione'!$A$283,C13='Koszty nieponiesione'!$A$291,C13='Koszty nieponiesione'!$A$295,C13='Koszty nieponiesione'!$A$303,C13='Koszty nieponiesione'!$A$307,C13='Koszty nieponiesione'!$A$311,C13='Koszty nieponiesione'!$A$315,C13='Koszty nieponiesione'!$A$319), 'Prod. roślinna'!D13,0)","v":0},null,0]
["A",144,null,null,{"$f":"IFERROR(VLOOKUP(region&'Prod. roślinna str 4'!$C14,Dane_srednie_baza,6,0),0)","v":0},{"$f":"IFERROR(VLOOKUP(region&'Prod. roślinna str 4'!C14,Dane_srednie_baza,7,0),0)","v":0},0,0,null,{"$f":"AND(VLOOKUP(C14,rosliny_baza,2,0),('Prod. zwierzęca towar.'!$B$6>0))","v":{"$error":"#N/A"}},null,0,0,0,0,0,{"$f":"IF(OR(C14='Koszty nieponiesione'!$A$283,C14='Koszty nieponiesione'!$A$291,C14='Koszty nieponiesione'!$A$295,C14='Koszty nieponiesione'!$A$303,C14='Koszty nieponiesione'!$A$307,C14='Koszty nieponiesione'!$A$311,C14='Koszty nieponiesione'!$A$315,C14='Koszty nieponiesione'!$A$319), 'Prod. roślinna'!D14,0)","v":0},null,0]
["A",145,null,null,{"$f":"IFERROR(VLOOKUP(region&'Prod. roślinna str 4'!$C15,Dane_srednie_baza,6,0),0)","v":0},{"$f":"IFERROR(VLOOKUP(region&'Prod. roślinna str 4'!C15,Dane_srednie_baza,7,0),0)","v":0},0,0,null,{"$f":"AND(VLOOKUP(C15,rosliny_baza,2,0),('Prod. zwierzęca towar.'!$B$6>0))","v":{"$error":"#N/A"}},null,0,0,0,0,0,{"$f":"IF(OR(C15='Koszty nieponiesione'!$A$283,C15='Koszty nieponiesione'!$A$291,C15='Koszty nieponiesione'!$A$295,C15='Koszty nieponiesione'!$A$303,C15='Koszty nieponiesione'!$A$307,C15='Koszty nieponiesione'!$A$311,C15='Koszty nieponiesione'!$A$315,C15='Koszty nieponiesione'!$A$319), 'Prod. roślinna'!D15,0)","v":0},null,0]
["A",146,null,null,{"$f":"IFERROR(VLOOKUP(region&'Prod. roślinna str 4'!$C16,Dane_srednie_baza,6,0),0)","v":0},{"$f":"IFERROR(VLOOKUP(region&'Prod. roślinna str 4'!C16,Dane_srednie_baza,7,0),0)","v":0},0,0,null,{"$f":"AND(VLOOKUP(C16,rosliny_baza,2,0),('Prod. zwierzęca towar.'!$B$6>0))","v":{"$error":"#N/A"}},null,0,0,0,0,0,{"$f":"IF(OR(C16='Koszty nieponiesione'!$A$283,C16='Koszty nieponiesione'!$A$291,C16='Koszty nieponiesione'!$A$295,C16='Koszty nieponiesione'!$A$303,C16='Koszty nieponiesione'!$A$307,C16='Koszty nieponiesione'!$A$311,C16='Koszty nieponiesione'!$A$315,C16='Koszty nieponiesione'!$A$319), 'Prod. roślinna'!D16,0)","v":0},null,0]
["A",147,null,null,{"$f":"IFERROR(VLOOKUP(region&'Prod. roślinna str 4'!$C17,Dane_srednie_baza,6,0),0)","v":0},{"$f":"IFERROR(VLOOKUP(region&'Prod. roślinna str 4'!C17,Dane_srednie_baza,7,0),0)","v":0},0,0,null,{"$f":"AND(VLOOKUP(C17,rosliny_baza,2,0),('Prod. zwierzęca towar.'!$B$6>0))","v":{"$error":"#N/A"}},null,0,0,0,0,0,{"$f":"IF(OR(C17='Koszty nieponiesione'!$A$283,C17='Koszty nieponiesione'!$A$291,C17='Koszty nieponiesione'!$A$295,C17='Koszty nieponiesione'!$A$303,C17='Koszty nieponiesione'!$A$307,C17='Koszty nieponiesione'!$A$311,C17='Koszty nieponiesione'!$A$315,C17='Koszty nieponiesione'!$A$319), 'Prod. roślinna'!D17,0)","v":0},null,0]
["A",148,null,null,{"$f":"IFERROR(VLOOKUP(region&'Prod. roślinna str 4'!$C18,Dane_srednie_baza,6,0),0)","v":0},{"$f":"IFERROR(VLOOKUP(region&'Prod. roślinna str 4'!C18,Dane_srednie_baza,7,0),0)","v":0},0,0,null,{"$f":"AND(VLOOKUP(C18,rosliny_baza,2,0),('Prod. zwierzęca towar.'!$B$6>0))","v":{"$error":"#N/A"}},null,0,0,0,0,0,{"$f":"IF(OR(C18='Koszty nieponiesione'!$A$283,C18='Koszty nieponiesione'!$A$291,C18='Koszty nieponiesione'!$A$295,C18='Koszty nieponiesione'!$A$303,C18='Koszty nieponiesione'!$A$307,C18='Koszty nieponiesione'!$A$311,C18='Koszty nieponiesione'!$A$315,C18='Koszty nieponiesione'!$A$319), 'Prod. roślinna'!D18,0)","v":0},null,0]
["A",149,null,null,{"$f":"IFERROR(VLOOKUP(region&'Prod. roślinna str 4'!$C19,Dane_srednie_baza,6,0),0)","v":0},{"$f":"IFERROR(VLOOKUP(region&'Prod. roślinna str 4'!C19,Dane_srednie_baza,7,0),0)","v":0},0,0,null,{"$f":"AND(VLOOKUP(C19,rosliny_baza,2,0),('Prod. zwierzęca towar.'!$B$6>0))","v":{"$error":"#N/A"}},null,0,0,0,0,0,{"$f":"IF(OR(C19='Koszty nieponiesione'!$A$283,C19='Koszty nieponiesione'!$A$291,C19='Koszty nieponiesione'!$A$295,C19='Koszty nieponiesione'!$A$303,C19='Koszty nieponiesione'!$A$307,C19='Koszty nieponiesione'!$A$311,C19='Koszty nieponiesione'!$A$315,C19='Koszty nieponiesione'!$A$319), 'Prod. roślinna'!D19,0)","v":0},null,0]
["A",150,null,null,{"$f":"IFERROR(VLOOKUP(region&'Prod. roślinna str 4'!$C20,Dane_srednie_baza,6,0),0)","v":0},{"$f":"IFERROR(VLOOKUP(region&'Prod. roślinna str 4'!C20,Dane_srednie_baza,7,0),0)","v":0},0,0,null,{"$f":"AND(VLOOKUP(C20,rosliny_baza,2,0),('Prod. zwierzęca towar.'!$B$6>0))","v":{"$error":"#N/A"}},null,0,0,0,0,0,{"$f":"IF(OR(C20='Koszty nieponiesione'!$A$283,C20='Koszty nieponiesione'!$A$291,C20='Koszty nieponiesione'!$A$295,C20='Koszty nieponiesione'!$A$303,C20='Koszty nieponiesione'!$A$307,C20='Koszty nieponiesione'!$A$311,C20='Koszty nieponiesione'!$A$315,C20='Koszty nieponiesione'!$A$319), 'Prod. roślinna'!D20,0)","v":0},null,0]
["A",151,null,null,{"$f":"IFERROR(VLOOKUP(region&'Prod. roślinna str 4'!$C21,Dane_srednie_baza,6,0),0)","v":0},{"$f":"IFERROR(VLOOKUP(region&'Prod. roślinna str 4'!C21,Dane_srednie_baza,7,0),0)","v":0},0,0,null,{"$f":"AND(VLOOKUP(C21,rosliny_baza,2,0),('Prod. zwierzęca towar.'!$B$6>0))","v":{"$error":"#N/A"}},null,0,0,0,0,0,{"$f":"IF(OR(C21='Koszty nieponiesione'!$A$283,C21='Koszty nieponiesione'!$A$291,C21='Koszty nieponiesione'!$A$295,C21='Koszty nieponiesione'!$A$303,C21='Koszty nieponiesione'!$A$307,C21='Koszty nieponiesione'!$A$311,C21='Koszty nieponiesione'!$A$315,C21='Koszty nieponiesione'!$A$319), 'Prod. roślinna'!D21,0)","v":0},null,0]
["A",152,null,null,{"$f":"IFERROR(VLOOKUP(region&'Prod. roślinna str 4'!$C22,Dane_srednie_baza,6,0),0)","v":0},{"$f":"IFERROR(VLOOKUP(region&'Prod. roślinna str 4'!C22,Dane_srednie_baza,7,0),0)","v":0},0,0,null,{"$f":"AND(VLOOKUP(C22,rosliny_baza,2,0),('Prod. zwierzęca towar.'!$B$6>0))","v":{"$error":"#N/A"}},null,0,0,0,0,0,{"$f":"IF(OR(C22='Koszty nieponiesione'!$A$283,C22='Koszty nieponiesione'!$A$291,C22='Koszty nieponiesione'!$A$295,C22='Koszty nieponiesione'!$A$303,C22='Koszty nieponiesione'!$A$307,C22='Koszty nieponiesione'!$A$311,C22='Koszty nieponiesione'!$A$315,C22='Koszty nieponiesione'!$A$319), 'Prod. roślinna'!D22,0)","v":0},null,0]
["A",153,null,null,{"$f":"IFERROR(VLOOKUP(region&'Prod. roślinna str 4'!$C23,Dane_srednie_baza,6,0),0)","v":0},{"$f":"IFERROR(VLOOKUP(region&'Prod. roślinna str 4'!C23,Dane_srednie_baza,7,0),0)","v":0},0,0,null,{"$f":"AND(VLOOKUP(C23,rosliny_baza,2,0),('Prod. zwierzęca towar.'!$B$6>0))","v":{"$error":"#N/A"}},null,0,0,0,0,0,{"$f":"IF(OR(C23='Koszty nieponiesione'!$A$283,C23='Koszty nieponiesione'!$A$291,C23='Koszty nieponiesione'!$A$295,C23='Koszty nieponiesione'!$A$303,C23='Koszty nieponiesione'!$A$307,C23='Koszty nieponiesione'!$A$311,C23='Koszty nieponiesione'!$A$315,C23='Koszty nieponiesione'!$A$319), 'Prod. roślinna'!D23,0)","v":0},null,0]
["A",154,null,null,{"$f":"IFERROR(VLOOKUP(region&'Prod. roślinna str 4'!$C24,Dane_srednie_baza,6,0),0)","v":0},{"$f":"IFERROR(VLOOKUP(region&'Prod. roślinna str 4'!C24,Dane_srednie_baza,7,0),0)","v":0},0,0,null,{"$f":"AND(VLOOKUP(C24,rosliny_baza,2,0),('Prod. zwierzęca towar.'!$B$6>0))","v":{"$error":"#N/A"}},null,0,0,0,0,0,{"$f":"IF(OR(C24='Koszty nieponiesione'!$A$283,C24='Koszty nieponiesione'!$A$291,C24='Koszty nieponiesione'!$A$295,C24='Koszty nieponiesione'!$A$303,C24='Koszty nieponiesione'!$A$307,C24='Koszty nieponiesione'!$A$311,C24='Koszty nieponiesione'!$A$315,C24='Koszty nieponiesione'!$A$319), 'Prod. roślinna'!D24,0)","v":0},null,0]
["A",155,null,null,{"$f":"IFERROR(VLOOKUP(region&'Prod. roślinna str 4'!$C25,Dane_srednie_baza,6,0),0)","v":0},{"$f":"IFERROR(VLOOKUP(region&'Prod. roślinna str 4'!C25,Dane_srednie_baza,7,0),0)","v":0},0,0,null,{"$f":"AND(VLOOKUP(C25,rosliny_baza,2,0),('Prod. zwierzęca towar.'!$B$6>0))","v":{"$error":"#N/A"}},null,0,0,0,0,0,{"$f":"IF(OR(C25='Koszty nieponiesione'!$A$283,C25='Koszty nieponiesione'!$A$291,C25='Koszty nieponiesione'!$A$295,C25='Koszty nieponiesione'!$A$303,C25='Koszty nieponiesione'!$A$307,C25='Koszty nieponiesione'!$A$311,C25='Koszty nieponiesione'!$A$315,C25='Koszty nieponiesione'!$A$319), 'Prod. roślinna'!D25,0)","v":0},null,0]
["A",156,null,null,{"$f":"IFERROR(VLOOKUP(region&'Prod. roślinna str 4'!$C26,Dane_srednie_baza,6,0),0)","v":0},{"$f":"IFERROR(VLOOKUP(region&'Prod. roślinna str 4'!C26,Dane_srednie_baza,7,0),0)","v":0},0,0,null,{"$f":"AND(VLOOKUP(C26,rosliny_baza,2,0),('Prod. zwierzęca towar.'!$B$6>0))","v":{"$error":"#N/A"}},null,0,0,0,0,0,{"$f":"IF(OR(C26='Koszty nieponiesione'!$A$283,C26='Koszty nieponiesione'!$A$291,C26='Koszty nieponiesione'!$A$295,C26='Koszty nieponiesione'!$A$303,C26='Koszty nieponiesione'!$A$307,C26='Koszty nieponiesione'!$A$311,C26='Koszty nieponiesione'!$A$315,C26='Koszty nieponiesione'!$A$319), 'Prod. roślinna'!D26,0)","v":0},null,0]
["A",157,null,null,{"$f":"IFERROR(VLOOKUP(region&'Prod. roślinna str 4'!$C27,Dane_srednie_baza,6,0),0)","v":0},{"$f":"IFERROR(VLOOKUP(region&'Prod. roślinna str 4'!C27,Dane_srednie_baza,7,0),0)","v":0},0,0,null,{"$f":"AND(VLOOKUP(C27,rosliny_baza,2,0),('Prod. zwierzęca towar.'!$B$6>0))","v":{"$error":"#N/A"}},null,0,0,0,0,0,{"$f":"IF(OR(C27='Koszty nieponiesione'!$A$283,C27='Koszty nieponiesione'!$A$291,C27='Koszty nieponiesione'!$A$295,C27='Koszty nieponiesione'!$A$303,C27='Koszty nieponiesione'!$A$307,C27='Koszty nieponiesione'!$A$311,C27='Koszty nieponiesione'!$A$315,C27='Koszty nieponiesione'!$A$319), 'Prod. roślinna'!D27,0)","v":0},null,0]
["A",158,null,null,{"$f":"IFERROR(VLOOKUP(region&'Prod. roślinna str 4'!$C28,Dane_srednie_baza,6,0),0)","v":0},{"$f":"IFERROR(VLOOKUP(region&'Prod. roślinna str 4'!C28,Dane_srednie_baza,7,0),0)","v":0},0,0,null,{"$f":"AND(VLOOKUP(C28,rosliny_baza,2,0),('Prod. zwierzęca towar.'!$B$6>0))","v":{"$error":"#N/A"}},null,0,0,0,0,0,{"$f":"IF(OR(C28='Koszty nieponiesione'!$A$283,C28='Koszty nieponiesione'!$A$291,C28='Koszty nieponiesione'!$A$295,C28='Koszty nieponiesione'!$A$303,C28='Koszty nieponiesione'!$A$307,C28='Koszty nieponiesione'!$A$311,C28='Koszty nieponiesione'!$A$315,C28='Koszty nieponiesione'!$A$319), 'Prod. roślinna'!D28,0)","v":0},null,0]
["A",159,null,null,{"$f":"IFERROR(VLOOKUP(region&'Prod. roślinna str 4'!$C29,Dane_srednie_baza,6,0),0)","v":0},{"$f":"IFERROR(VLOOKUP(region&'Prod. roślinna str 4'!C29,Dane_srednie_baza,7,0),0)","v":0},0,0,null,{"$f":"AND(VLOOKUP(C29,rosliny_baza,2,0),('Prod. zwierzęca towar.'!$B$6>0))","v":{"$error":"#N/A"}},null,0,0,0,0,0,{"$f":"IF(OR(C29='Koszty nieponiesione'!$A$283,C29='Koszty nieponiesione'!$A$291,C29='Koszty nieponiesione'!$A$295,C29='Koszty nieponiesione'!$A$303,C29='Koszty nieponiesione'!$A$307,C29='Koszty nieponiesione'!$A$311,C29='Koszty nieponiesione'!$A$315,C29='Koszty nieponiesione'!$A$319), 'Prod. roślinna'!D29,0)","v":0},null,0]
["A",160,null,null,{"$f":"IFERROR(VLOOKUP(region&'Prod. roślinna str 4'!$C30,Dane_srednie_baza,6,0),0)","v":0},{"$f":"IFERROR(VLOOKUP(region&'Prod. roślinna str 4'!C30,Dane_srednie_baza,7,0),0)","v":0},0,0,null,{"$f":"AND(VLOOKUP(C30,rosliny_baza,2,0),('Prod. zwierzęca towar.'!$B$6>0))","v":{"$error":"#N/A"}},null,0,0,0,0,0,{"$f":"IF(OR(C30='Koszty nieponiesione'!$A$283,C30='Koszty nieponiesione'!$A$291,C30='Koszty nieponiesione'!$A$295,C30='Koszty nieponiesione'!$A$303,C30='Koszty nieponiesione'!$A$307,C30='Koszty nieponiesione'!$A$311,C30='Koszty nieponiesione'!$A$315,C30='Koszty nieponiesione'!$A$319), 'Prod. roślinna'!D30,0)","v":0},null,0]
["A",161,null,null,{"$f":"IFERROR(VLOOKUP(region&'Prod. roślinna str 4'!$C31,Dane_srednie_baza,6,0),0)","v":0},{"$f":"IFERROR(VLOOKUP(region&'Prod. roślinna str 4'!C31,Dane_srednie_baza,7,0),0)","v":0},0,0,null,{"$f":"AND(VLOOKUP(C31,rosliny_baza,2,0),('Prod. zwierzęca towar.'!$B$6>0))","v":{"$error":"#N/A"}},null,0,0,0,0,0,{"$f":"IF(OR(C31='Koszty nieponiesione'!$A$283,C31='Koszty nieponiesione'!$A$291,C31='Koszty nieponiesione'!$A$295,C31='Koszty nieponiesione'!$A$303,C31='Koszty nieponiesione'!$A$307,C31='Koszty nieponiesione'!$A$311,C31='Koszty nieponiesione'!$A$315,C31='Koszty nieponiesione'!$A$319), 'Prod. roślinna'!D31,0)","v":0},null,0]
["A",162,null,null,{"$f":"IFERROR(VLOOKUP(region&'Prod. roślinna str 4'!$C32,Dane_srednie_baza,6,0),0)","v":0},{"$f":"IFERROR(VLOOKUP(region&'Prod. roślinna str 4'!C32,Dane_srednie_baza,7,0),0)","v":0},0,0,null,{"$f":"AND(VLOOKUP(C32,rosliny_baza,2,0),('Prod. zwierzęca towar.'!$B$6>0))","v":{"$error":"#N/A"}},null,0,0,0,0,0,{"$f":"IF(OR(C32='Koszty nieponiesione'!$A$283,C32='Koszty nieponiesione'!$A$291,C32='Koszty nieponiesione'!$A$295,C32='Koszty nieponiesione'!$A$303,C32='Koszty nieponiesione'!$A$307,C32='Koszty nieponiesione'!$A$311,C32='Koszty nieponiesione'!$A$315,C32='Koszty nieponiesione'!$A$319), 'Prod. roślinna'!D32,0)","v":0},null,0]
["A",163,null,null,{"$f":"IFERROR(VLOOKUP(region&'Prod. roślinna str 4'!$C33,Dane_srednie_baza,6,0),0)","v":0},{"$f":"IFERROR(VLOOKUP(region&'Prod. roślinna str 4'!C33,Dane_srednie_baza,7,0),0)","v":0},0,0,null,{"$f":"AND(VLOOKUP(C33,rosliny_baza,2,0),('Prod. zwierzęca towar.'!$B$6>0))","v":{"$error":"#N/A"}},null,0,0,0,0,0,{"$f":"IF(OR(C33='Koszty nieponiesione'!$A$283,C33='Koszty nieponiesione'!$A$291,C33='Koszty nieponiesione'!$A$295,C33='Koszty nieponiesione'!$A$303,C33='Koszty nieponiesione'!$A$307,C33='Koszty nieponiesione'!$A$311,C33='Koszty nieponiesione'!$A$315,C33='Koszty nieponiesione'!$A$319), 'Prod. roślinna'!D33,0)","v":0},null,0]
["A",164,null,null,{"$f":"IFERROR(VLOOKUP(region&'Prod. roślinna str 4'!$C34,Dane_srednie_baza,6,0),0)","v":0},{"$f":"IFERROR(VLOOKUP(region&'Prod. roślinna str 4'!C34,Dane_srednie_baza,7,0),0)","v":0},0,0,null,{"$f":"AND(VLOOKUP(C34,rosliny_baza,2,0),('Prod. zwierzęca towar.'!$B$6>0))","v":{"$error":"#N/A"}},null,0,0,0,0,0,{"$f":"IF(OR(C34='Koszty nieponiesione'!$A$283,C34='Koszty nieponiesione'!$A$291,C34='Koszty nieponiesione'!$A$295,C34='Koszty nieponiesione'!$A$303,C34='Koszty nieponiesione'!$A$307,C34='Koszty nieponiesione'!$A$311,C34='Koszty nieponiesione'!$A$315,C34='Koszty nieponiesione'!$A$319), 'Prod. roślinna'!D34,0)","v":0},null,0]
["A",165,null,null,{"$f":"IFERROR(VLOOKUP(region&'Prod. roślinna str 4'!$C35,Dane_srednie_baza,6,0),0)","v":0},{"$f":"IFERROR(VLOOKUP(region&'Prod. roślinna str 4'!C35,Dane_srednie_baza,7,0),0)","v":0},0,0,null,{"$f":"AND(VLOOKUP(C35,rosliny_baza,2,0),('Prod. zwierzęca towar.'!$B$6>0))","v":{"$error":"#N/A"}},null,0,{"$f":"H35-L35","v":0},0,0,0,{"$f":"IF(OR(C35='Koszty nieponiesione'!$A$283,C35='Koszty nieponiesione'!$A$291,C35='Koszty nieponiesione'!$A$295,C35='Koszty nieponiesione'!$A$303,C35='Koszty nieponiesione'!$A$307,C35='Koszty nieponiesione'!$A$311,C35='Koszty nieponiesione'!$A$315,C35='Koszty nieponiesione'!$A$319), 'Prod. roślinna'!D35,0)","v":0},null,0]
["A",166,null,null,{"$f":"IFERROR(VLOOKUP(region&'Prod. roślinna str 4'!$C36,Dane_srednie_baza,6,0),0)","v":0},{"$f":"IFERROR(VLOOKUP(region&'Prod. roślinna str 4'!C36,Dane_srednie_baza,7,0),0)","v":0},0,0,null,{"$f":"AND(VLOOKUP(C36,rosliny_baza,2,0),('Prod. zwierzęca towar.'!$B$6>0))","v":{"$error":"#N/A"}},null,0,0,0,0,0,{"$f":"IF(OR(C36='Koszty nieponiesione'!$A$283,C36='Koszty nieponiesione'!$A$291,C36='Koszty nieponiesione'!$A$295,C36='Koszty nieponiesione'!$A$303,C36='Koszty nieponiesione'!$A$307,C36='Koszty nieponiesione'!$A$311,C36='Koszty nieponiesione'!$A$315,C36='Koszty nieponiesione'!$A$319), 'Prod. roślinna'!D36,0)","v":0},null,0]
["A",167,null,null,{"$f":"IFERROR(VLOOKUP(region&'Prod. roślinna str 4'!$C37,Dane_srednie_baza,6,0),0)","v":0},{"$f":"IFERROR(VLOOKUP(region&'Prod. roślinna str 4'!C37,Dane_srednie_baza,7,0),0)","v":0},0,0,null,{"$f":"AND(VLOOKUP(C37,rosliny_baza,2,0),('Prod. zwierzęca towar.'!$B$6>0))","v":{"$error":"#N/A"}},null,0,0,0,0,0,{"$f":"IF(OR(C37='Koszty nieponiesione'!$A$283,C37='Koszty nieponiesione'!$A$291,C37='Koszty nieponiesione'!$A$295,C37='Koszty nieponiesione'!$A$303,C37='Koszty nieponiesione'!$A$307,C37='Koszty nieponiesione'!$A$311,C37='Koszty nieponiesione'!$A$315,C37='Koszty nieponiesione'!$A$319), 'Prod. roślinna'!D37,0)","v":0},null,0]
["A",168,null,null,{"$f":"IFERROR(VLOOKUP(region&'Prod. roślinna str 4'!$C38,Dane_srednie_baza,6,0),0)","v":0},{"$f":"IFERROR(VLOOKUP(region&'Prod. roślinna str 4'!C38,Dane_srednie_baza,7,0),0)","v":0},0,0,null,{"$f":"AND(VLOOKUP(C38,rosliny_baza,2,0),('Prod. zwierzęca towar.'!$B$6>0))","v":{"$error":"#N/A"}},null,0,0,0,0,0,{"$f":"IF(OR(C38='Koszty nieponiesione'!$A$283,C38='Koszty nieponiesione'!$A$291,C38='Koszty nieponiesione'!$A$295,C38='Koszty nieponiesione'!$A$303,C38='Koszty nieponiesione'!$A$307,C38='Koszty nieponiesione'!$A$311,C38='Koszty nieponiesione'!$A$315,C38='Koszty nieponiesione'!$A$319), 'Prod. roślinna'!D38,0)","v":0},null,0]
["A",169,null,null,{"$f":"IFERROR(VLOOKUP(region&'Prod. roślinna str 4'!$C39,Dane_srednie_baza,6,0),0)","v":0},{"$f":"IFERROR(VLOOKUP(region&'Prod. roślinna str 4'!C39,Dane_srednie_baza,7,0),0)","v":0},0,0,null,{"$f":"AND(VLOOKUP(C39,rosliny_baza,2,0),('Prod. zwierzęca towar.'!$B$6>0))","v":{"$error":"#N/A"}},null,0,0,0,0,0,{"$f":"IF(OR(C39='Koszty nieponiesione'!$A$283,C39='Koszty nieponiesione'!$A$291,C39='Koszty nieponiesione'!$A$295,C39='Koszty nieponiesione'!$A$303,C39='Koszty nieponiesione'!$A$307,C39='Koszty nieponiesione'!$A$311,C39='Koszty nieponiesione'!$A$315,C39='Koszty nieponiesione'!$A$319), 'Prod. roślinna'!D39,0)","v":0},null,0]
["A",170,null,null,{"$f":"IFERROR(VLOOKUP(region&'Prod. roślinna str 4'!$C40,Dane_srednie_baza,6,0),0)","v":0},{"$f":"IFERROR(VLOOKUP(region&'Prod. roślinna str 4'!C40,Dane_srednie_baza,7,0),0)","v":0},0,0,null,{"$f":"AND(VLOOKUP(C40,rosliny_baza,2,0),('Prod. zwierzęca towar.'!$B$6>0))","v":{"$error":"#N/A"}},null,0,0,0,0,0,{"$f":"IF(OR(C40='Koszty nieponiesione'!$A$283,C40='Koszty nieponiesione'!$A$291,C40='Koszty nieponiesione'!$A$295,C40='Koszty nieponiesione'!$A$303,C40='Koszty nieponiesione'!$A$307,C40='Koszty nieponiesione'!$A$311,C40='Koszty nieponiesione'!$A$315,C40='Koszty nieponiesione'!$A$319), 'Prod. roślinna'!D40,0)","v":0},null,0]
["A",171,null,null,{"$f":"IFERROR(VLOOKUP(region&'Prod. roślinna str 4'!$C41,Dane_srednie_baza,6,0),0)","v":0},{"$f":"IFERROR(VLOOKUP(region&'Prod. roślinna str 4'!C41,Dane_srednie_baza,7,0),0)","v":0},0,0,null,{"$f":"AND(VLOOKUP(C41,rosliny_baza,2,0),('Prod. zwierzęca towar.'!$B$6>0))","v":{"$error":"#N/A"}},null,0,0,0,0,0,{"$f":"IF(OR(C41='Koszty nieponiesione'!$A$283,C41='Koszty nieponiesione'!$A$291,C41='Koszty nieponiesione'!$A$295,C41='Koszty nieponiesione'!$A$303,C41='Koszty nieponiesione'!$A$307,C41='Koszty nieponiesione'!$A$311,C41='Koszty nieponiesione'!$A$315,C41='Koszty nieponiesione'!$A$319), 'Prod. roślinna'!D41,0)","v":0},null,0]
["A",172,null,null,{"$f":"IFERROR(VLOOKUP(region&'Prod. roślinna str 4'!$C42,Dane_srednie_baza,6,0),0)","v":0},{"$f":"IFERROR(VLOOKUP(region&'Prod. roślinna str 4'!C42,Dane_srednie_baza,7,0),0)","v":0},0,0,null,{"$f":"AND(VLOOKUP(C42,rosliny_baza,2,0),('Prod. zwierzęca towar.'!$B$6>0))","v":{"$error":"#N/A"}},null,0,0,0,0,0,{"$f":"IF(OR(C42='Koszty nieponiesione'!$A$283,C42='Koszty nieponiesione'!$A$291,C42='Koszty nieponiesione'!$A$295,C42='Koszty nieponiesione'!$A$303,C42='Koszty nieponiesione'!$A$307,C42='Koszty nieponiesione'!$A$311,C42='Koszty nieponiesione'!$A$315,C42='Koszty nieponiesione'!$A$319), 'Prod. roślinna'!D42,0)","v":0},null,0]
["A",173,null,null,{"$f":"IFERROR(VLOOKUP(region&'Prod. roślinna str 4'!$C43,Dane_srednie_baza,6,0),0)","v":0},{"$f":"IFERROR(VLOOKUP(region&'Prod. roślinna str 4'!C43,Dane_srednie_baza,7,0),0)","v":0},0,0,null,{"$f":"AND(VLOOKUP(C43,rosliny_baza,2,0),('Prod. zwierzęca towar.'!$B$6>0))","v":{"$error":"#N/A"}},null,0,0,0,0,0,{"$f":"IF(OR(C43='Koszty nieponiesione'!$A$283,C43='Koszty nieponiesione'!$A$291,C43='Koszty nieponiesione'!$A$295,C43='Koszty nieponiesione'!$A$303,C43='Koszty nieponiesione'!$A$307,C43='Koszty nieponiesione'!$A$311,C43='Koszty nieponiesione'!$A$315,C43='Koszty nieponiesione'!$A$319), 'Prod. roślinna'!D43,0)","v":0},null,0]
["A",174,null,null,{"$f":"IFERROR(VLOOKUP(region&'Prod. roślinna str 4'!$C44,Dane_srednie_baza,6,0),0)","v":0},{"$f":"IFERROR(VLOOKUP(region&'Prod. roślinna str 4'!C44,Dane_srednie_baza,7,0),0)","v":0},0,0,null,{"$f":"AND(VLOOKUP(C44,rosliny_baza,2,0),('Prod. zwierzęca towar.'!$B$6>0))","v":{"$error":"#N/A"}},null,0,0,0,0,0,{"$f":"IF(OR(C44='Koszty nieponiesione'!$A$283,C44='Koszty nieponiesione'!$A$291,C44='Koszty nieponiesione'!$A$295,C44='Koszty nieponiesione'!$A$303,C44='Koszty nieponiesione'!$A$307,C44='Koszty nieponiesione'!$A$311,C44='Koszty nieponiesione'!$A$315,C44='Koszty nieponiesione'!$A$319), 'Prod. roślinna'!D44,0)","v":0},null,0]
["A",175,null,null,{"$f":"IFERROR(VLOOKUP(region&'Prod. roślinna str 4'!$C45,Dane_srednie_baza,6,0),0)","v":0},{"$f":"IFERROR(VLOOKUP(region&'Prod. roślinna str 4'!C45,Dane_srednie_baza,7,0),0)","v":0},0,0,null,{"$f":"AND(VLOOKUP(C45,rosliny_baza,2,0),('Prod. zwierzęca towar.'!$B$6>0))","v":{"$error":"#N/A"}},null,0,0,0,0,0,{"$f":"IF(OR(C45='Koszty nieponiesione'!$A$283,C45='Koszty nieponiesione'!$A$291,C45='Koszty nieponiesione'!$A$295,C45='Koszty nieponiesione'!$A$303,C45='Koszty nieponiesione'!$A$307,C45='Koszty nieponiesione'!$A$311,C45='Koszty nieponiesione'!$A$315,C45='Koszty nieponiesione'!$A$319), 'Prod. roślinna'!D45,0)","v":0},null,0]
["A",176,null,null,{"$f":"IFERROR(VLOOKUP(region&'Prod. roślinna str 4'!$C46,Dane_srednie_baza,6,0),0)","v":0},{"$f":"IFERROR(VLOOKUP(region&'Prod. roślinna str 4'!C46,Dane_srednie_baza,7,0),0)","v":0},0,0,null,{"$f":"AND(VLOOKUP(C46,rosliny_baza,2,0),('Prod. zwierzęca towar.'!$B$6>0))","v":{"$error":"#N/A"}},null,0,0,0,0,0,{"$f":"IF(OR(C46='Koszty nieponiesione'!$A$283,C46='Koszty nieponiesione'!$A$291,C46='Koszty nieponiesione'!$A$295,C46='Koszty nieponiesione'!$A$303,C46='Koszty nieponiesione'!$A$307,C46='Koszty nieponiesione'!$A$311,C46='Koszty nieponiesione'!$A$315,C46='Koszty nieponiesione'!$A$319), 'Prod. roślinna'!D46,0)","v":0},null,0]
["A",177,null,null,null,null,0,0,null,{"$f":"AND(VLOOKUP(C47,rosliny_baza,2,0),('Prod. zwierzęca towar.'!$B$6>0))","v":{"$error":"#N/A"}},null,0,0,null,0,0,{"$f":"IF(OR(C47='Koszty nieponiesione'!$A$283,C47='Koszty nieponiesione'!$A$291,C47='Koszty nieponiesione'!$A$295,C47='Koszty nieponiesione'!$A$303,C47='Koszty nieponiesione'!$A$307,C47='Koszty nieponiesione'!$A$311,C47='Koszty nieponiesione'!$A$315,C47='Koszty nieponiesione'!$A$319), 'Prod. roślinna'!D47,0)","v":0},null,0]
["A",178,null,null,null,null,0,0,null,{"$f":"AND(VLOOKUP(C48,rosliny_baza,2,0),('Prod. zwierzęca towar.'!$B$6>0))","v":{"$error":"#N/A"}},null,0,0,null,0,0,{"$f":"IF(OR(C48='Koszty nieponiesione'!$A$283,C48='Koszty nieponiesione'!$A$291,C48='Koszty nieponiesione'!$A$295,C48='Koszty nieponiesione'!$A$303,C48='Koszty nieponiesione'!$A$307,C48='Koszty nieponiesione'!$A$311,C48='Koszty nieponiesione'!$A$315,C48='Koszty nieponiesione'!$A$319), 'Prod. roślinna'!D48,0)","v":0},null,0]
["A",179,null,null,null,null,0,0,null,{"$f":"AND(VLOOKUP(C49,rosliny_baza,2,0),('Prod. zwierzęca towar.'!$B$6>0))","v":{"$error":"#N/A"}},null,0,0,null,0,0,{"$f":"IF(OR(C49='Koszty nieponiesione'!$A$283,C49='Koszty nieponiesione'!$A$291,C49='Koszty nieponiesione'!$A$295,C49='Koszty nieponiesione'!$A$303,C49='Koszty nieponiesione'!$A$307,C49='Koszty nieponiesione'!$A$311,C49='Koszty nieponiesione'!$A$315,C49='Koszty nieponiesione'!$A$319), 'Prod. roślinna'!D49,0)","v":0},null,0]
["A",180,null,null,null,null,0,0,null,{"$f":"AND(VLOOKUP(C50,rosliny_baza,2,0),('Prod. zwierzęca towar.'!$B$6>0))","v":{"$error":"#N/A"}},null,0,0,null,0,0,{"$f":"IF(OR(C50='Koszty nieponiesione'!$A$283,C50='Koszty nieponiesione'!$A$291,C50='Koszty nieponiesione'!$A$295,C50='Koszty nieponiesione'!$A$303,C50='Koszty nieponiesione'!$A$307,C50='Koszty nieponiesione'!$A$311,C50='Koszty nieponiesione'!$A$315,C50='Koszty nieponiesione'!$A$319), 'Prod. roślinna'!D50,0)","v":0},null,0]
["A",181,null,null,null,null,0,0,null,{"$f":"AND(VLOOKUP(C51,rosliny_baza,2,0),('Prod. zwierzęca towar.'!$B$6>0))","v":{"$error":"#N/A"}},null,0,0,null,0,0,{"$f":"IF(OR(C51='Koszty nieponiesione'!$A$283,C51='Koszty nieponiesione'!$A$291,C51='Koszty nieponiesione'!$A$295,C51='Koszty nieponiesione'!$A$303,C51='Koszty nieponiesione'!$A$307,C51='Koszty nieponiesione'!$A$311,C51='Koszty nieponiesione'!$A$315,C51='Koszty nieponiesione'!$A$319), 'Prod. roślinna'!D51,0)","v":0},null,0]
["A",182,null,null,null,null,0,0,null,{"$f":"AND(VLOOKUP(C52,rosliny_baza,2,0),('Prod. zwierzęca towar.'!$B$6>0))","v":{"$error":"#N/A"}},null,0,0,null,0,0,{"$f":"IF(OR(C52='Koszty nieponiesione'!$A$283,C52='Koszty nieponiesione'!$A$291,C52='Koszty nieponiesione'!$A$295,C52='Koszty nieponiesione'!$A$303,C52='Koszty nieponiesione'!$A$307,C52='Koszty nieponiesione'!$A$311,C52='Koszty nieponiesione'!$A$315,C52='Koszty nieponiesione'!$A$319), 'Prod. roślinna'!D52,0)","v":0},null,0]
["A",183,null,null,null,null,0,0,null,{"$f":"AND(VLOOKUP(C53,rosliny_baza,2,0),('Prod. zwierzęca towar.'!$B$6>0))","v":{"$error":"#N/A"}},null,0,0,null,0,0,{"$f":"IF(OR(C53='Koszty nieponiesione'!$A$283,C53='Koszty nieponiesione'!$A$291,C53='Koszty nieponiesione'!$A$295,C53='Koszty nieponiesione'!$A$303,C53='Koszty nieponiesione'!$A$307,C53='Koszty nieponiesione'!$A$311,C53='Koszty nieponiesione'!$A$315,C53='Koszty nieponiesione'!$A$319), 'Prod. roślinna'!D53,0)","v":0},null,0]
["A",184,null,null,null,null,0,0,null,{"$f":"AND(VLOOKUP(C54,rosliny_baza,2,0),('Prod. zwierzęca towar.'!$B$6>0))","v":{"$error":"#N/A"}},null,0,0,null,0,0,{"$f":"IF(OR(C54='Koszty nieponiesione'!$A$283,C54='Koszty nieponiesione'!$A$291,C54='Koszty nieponiesione'!$A$295,C54='Koszty nieponiesione'!$A$303,C54='Koszty nieponiesione'!$A$307,C54='Koszty nieponiesione'!$A$311,C54='Koszty nieponiesione'!$A$315,C54='Koszty nieponiesione'!$A$319), 'Prod. roślinna'!D54,0)","v":0},null,0]
["A",185,null,null,null,null,0,0,null,{"$f":"AND(VLOOKUP(C55,rosliny_baza,2,0),('Prod. zwierzęca towar.'!$B$6>0))","v":{"$error":"#N/A"}},null,0,0,null,0,0,{"$f":"IF(OR(C55='Koszty nieponiesione'!$A$283,C55='Koszty nieponiesione'!$A$291,C55='Koszty nieponiesione'!$A$295,C55='Koszty nieponiesione'!$A$303,C55='Koszty nieponiesione'!$A$307,C55='Koszty nieponiesione'!$A$311,C55='Koszty nieponiesione'!$A$315,C55='Koszty nieponiesione'!$A$319), 'Prod. roślinna'!D55,0)","v":0},null,0]
["A",186,null,null,null,null,{"$f":"E56*F56","v":0},0,null,{"$f":"AND(VLOOKUP(C56,rosliny_baza,2,0),('Prod. zwierzęca towar.'!$B$6>0))","v":{"$error":"#N/A"}},null,0,0,null,0,0,{"$f":"IF(OR(C56='Koszty nieponiesione'!$A$283,C56='Koszty nieponiesione'!$A$291,C56='Koszty nieponiesione'!$A$295,C56='Koszty nieponiesione'!$A$303,C56='Koszty nieponiesione'!$A$307,C56='Koszty nieponiesione'!$A$311,C56='Koszty nieponiesione'!$A$315,C56='Koszty nieponiesione'!$A$319), 'Prod. roślinna'!D56,0)","v":0},null,0]
[null,"Razem (poz. 138 - 186)",null,{"$f":"SUM(D8:D56)","v":0},"x","x","x",{"$f":"SUM(H8:H56)","v":0},"x",null,{"$f":"IF(SUM(K8:K56)<'Prod. zwierzęca towar.'!H57,SUM(K8:K56),'Prod. zwierzęca towar.'!H57)","v":0},{"$f":"SUM(L8:L56)","v":0},{"$f":"SUM(M8:M56)","v":0},{"$f":"SUM(N8:N56)","v":0},null,{"$f":"SUM(P8:P56)","v":0},{"$f":"SUM(Q8:Q56)","v":0},{"$f":"SUM(R8:R56)","v":0},{"$f":"SUM(S8:S56)","v":0}]
[null,"*Dane w kolumnie 9 \"Wysokości szkód w uprawach uwzględnianych w produkcji zwierzęcej” oblicza się w zakresie upraw : rośliny pastewne objętościowe na gruntach ornych, okopowe pastewne na pasze, buraki pastewne na pasze, brukiew pastewna na pasze, marchew pastewna na pasze, dynia pastewna na pasze, pozostałe okopowe pastewne na pasze, kukurydza pastewna na zielonkę, zboża na zielonkę i mieszanki zbóż z innymi roślinami na zielonkę, trawy w uprawie polowej na zielonkę, strączkowe na zielonkę, motylkowe drobnonasienne na zielonkę, mieszanki motylkowych z trawami, pozostałe polowe uprawy pastewne na zielonkę, rośliny pastewne objętościowe z użytków zielonych (uprawa lub zielonka), rośliny pastewne objętościowe z łąk – zielonka, rośliny pastewne objętościowe z pastwisk, rośliny pastewne objętościowe z pastwisk pielęgnowanych, rośliny pastewne objętościowe z pastwisk niepielęgnowanych, kukurydza (sucha i wilgotna) na ziarno, proso na ziarno, strączkowe pastewne na nasiona suche, groch pastewny (peluszka) na nasiona suche, pozostałe strączkowe pastewne na nasiona suche, mieszanki strączkowych z innymi roślinami jare na nasiona suche, mieszanki strączkowych z innymi roślinami ozime na nasiona suche. w przypadku prowadzenia produkcji zwierzęcej w zakresie: byki do opasu, wolce 2-letnie i starsze, jałówki do opasu 2-letnie i starsze, byczki od 1 do 2 lat, jałówki od 1 do 2 lat, owce 1 roczne i starsze, mleko krowie, mleko owcze, mleko kozie, kozy 1 roczne i starsze, konie, tuczniki o wadze 50 kg i więcej, warchlaki do tuczu o wadze od 20 do 50 kg."]
[]
[]
[null,null," Czytelne podpisy członków komisji powołanych przez Wojewodę"]
[null,"1.","……………………………………………………………………………………………….………",null,null,"6.","……………………………………………………………………………………………….………"]
[null,"2.","……………………………………………………………………………………………….………",null,null,"7.","……………………………………………………………………………………………….………"]
[null,"3.","……………………………………………………………………………………………….………",null,null,"8.","……………………………………………………………………………………………….………"]
[null,"4.","……………………………………………………………………………………………….………",null,null,"9.","……………………………………………………………………………………………….………",null,null,null,null,null,null,"…………………………………..……………..……….…."]
[null,"5.","……………………………………………………………………………………………….………",null,null,"10.","……………………………………………………………………………………………….………",null,null,null,null,null,null,"(data i czytelny podpis rolnika)"]

{"sheet":"Prod. roślinna-rozpisanie szkód","index":5,"n_rows":54,"n_cols":15,"rows_kept":54,"cut":false,"hidden":false,"merged":[[52,11,52,14],[53,1,53,2],[53,12,53,13],[48,1,48,5],[49,1,49,2],[50,1,50,2],[51,1,51,2],[52,1,52,2],[49,5,49,8],[50,5,50,8],[51,5,51,8],[52,5,52,8],[53,5,53,8],[3,13,3,14],[0,10,0,11],[1,0,1,3],[1,4,1,7],[46,0,46,1],[0,0,0,9],[3,1,4,1],[3,0,4,0],[3,2,4,2]]}
["Załącznik 1c Wyszczególnienie poziomu i wartości szkód w uprawie dla danego zjawiska atmosferycznego w przypadku łączenia szkód niższych niż 30%",null,null,null,null,null,null,null,null,null,"DLA REGIONU FADN",null,{"$f":"Protokół!V1","v":"A"}]
["Imię i nazwisko producenta rolnego",null,"Imię i nazwisko producenta rolnego",null,{"$f":"Protokół!G8","v":"………………………………………\n\n………………………...……………"}]
[]
["L.p","Nazwa wszystkich upraw w gospodarstwie  rolnym ","Powierzchnia uprawy w roku wystąpienia niekorzystnego zjawiska atmosferycznego","W wyniku wystąpienia",null,"W wyniku wystąpienia",null,"W wyniku wystąpienia",null,"W wyniku wystąpienia",null,"W wyniku wystąpienia",null,"Łącznie"]
[null,null,null,"Straty plonu w roku wystąpienia szkody wyniosły","Wartość szkód (kwota obniżenia dochodu  w wyniku szkód)","Straty plonu w roku wystąpienia szkody wyniosły","Wartość szkód (kwota obniżenia dochodu  w wyniku szkód)","Straty plonu w roku wystąpienia szkody wyniosły","Wartość szkód (kwota obniżenia dochodu  w wyniku szkód)","Straty plonu w roku wystąpienia szkody wyniosły","Wartość szkód (kwota obniżenia dochodu  w wyniku szkód)","Straty plonu w roku wystąpienia szkody wyniosły","Wartość szkód (kwota obniżenia dochodu  w wyniku szkód)","Straty plonu w roku wystąpienia szkody wyniosły","Wartość szkód (kwota obniżenia dochodu  w wyniku szkód)"]
[null,"NAZWA","ha","% "," zł","% "," zł","% "," zł","% "," zł","% "," zł","% "," zł"]
[1,2,3,4,5,6,7,8,9,10,11,12,13,14,15]
[1,null,null,null,null,null,null,null,null,null,null,null,null,{"$f":"D8+F8+H8+J8+L8","v":0},{"$f":"E8+G8+I8+K8+M8","v":0}]
[2,null,null,null,null,null,null,null,null,null,null,null,null,{"$f":"D9+F9+H9+J9+L9","v":0},{"$f":"E9+G9+I9+K9+M9","v":0}]
[3,null,null,null,null,null,null,null,null,null,null,null,null,0,0]
[4,null,null,null,null,null,null,null,null,null,null,null,null,0,0]
[5,null,null,null,null,null,null,null,null,null,null,null,null,0,0]
[6,null,null,null,null,null,null,null,null,null,null,null,null,0,0]
[7,null,null,null,null,null,null,null,null,null,null,null,null,0,0]
[8,null,null,null,null,null,null,null,null,null,null,null,null,0,0]
[9,null,null,null,null,null,null,null,null,null,null,null,null,0,0]
[10,null,null,null,null,null,null,null,null,null,null,null,null,0,0]
[11,null,null,null,null,null,null,null,null,null,null,null,null,{"$f":"D18+F18+H18+J18+L18","v":0},0]
[12,null,null,null,null,null,null,null,null,null,null,null,null,0,0]
[13,null,null,null,null,null,null,null,null,null,null,null,null,0,0]
[14,null,null,null,null,null,null,null,null,null,null,null,null,0,{"$f":"E21+G21+I21+K21+M21","v":0}]
[15,null,null,null,null,null,null,null,null,null,null,null,null,0,0]
[16,null,null,null,null,null,null,null,null,null,null,null,null,0,0]
[17,null,null,null,null,null,null,null,null,null,null,null,null,0,0]
[18,null,null,null,null,null,null,null,null,null,null,null,null,0,0]
[19,null,null,null,null,null,null,null,null,null,null,null,null,{"$f":"D26+F26+H26+J26+L26","v":0},0]
[20,null,null,null,null,null,null,null,null,null,null,null,null,0,0]
[21,null,null,null,null,null,null,null,null,null,null,null,null,0,0]
[22,null,null,null,null,null,null,null,null,null,null,null,null,0,0]
[23,null,null,null,null,null,null,null,null,null,null,null,null,0,0]
[24,null,null,null,null,null,null,null,null,null,null,null,null,0,0]
[25,null,null,null,null,null,null,null,null,null,null,null,null,0,0]
[26,null,null,null,null,null,null,null,null,null,null,null,null,0,0]
[27,null,null,null,null,null,null,null,null,null,null,null,null,0,0]
[28,null,null,null,null,null,null,null,null,null,null,null,null,0,0]
[29,null,null,null,null,null,null,null,null,null,null,null,null,0,0]
[30,null,null,null,null,null,null,null,null,null,null,null,null,0,0]
[31,null,null,null,null,null,null,null,null,null,null,null,null,0,0]
[32,null,null,null,null,null,null,null,null,null,null,null,null,0,0]
[33,null,null,null,null,null,null,null,null,null,null,null,null,0,0]
[34,null,null,null,null,null,null,null,null,null,null,null,null,0,0]
[35,null,null,null,null,null,null,null,null,null,null,null,null,0,0]
[36,null,null,null,null,null,null,null,null,null,null,null,null,0,0]
[37,null,null,null,null,null,null,null,null,null,null,null,null,0,0]
[38,null,null,null,null,null,null,null,null,null,null,null,null,0,0]
[39,null,null,null,null,null,null,null,null,null,null,null,null,0,0]
["Razem",null,{"$f":"SUM(C8:C46)","v":0},"x",{"$f":"SUM(E8:E46)","v":0},"x",{"$f":"SUM(G8:G46)","v":0},"x",{"$f":"SUM(I8:I46)","v":0},"x",{"$f":"SUM(K8:K46)","v":0},"x",{"$f":"SUM(M8:M46)","v":0},"x",{"$f":"SUM(O8:O46)","v":0}]
[]
[null," Czytelne podpisy członków komisji powołanych przez Wojewodę"]
["1.","……………………………………………………………………………………………….………",null,null,"6.","……………………………………………………………………………………………….………"]
["2.","……………………………………………………………………………………………….………",null,null,"7.","……………………………………………………………………………………………….………"]
["3.","……………………………………………………………………………………………….………",null,null,"8.","……………………………………………………………………………………………….………"]
["4.","……………………………………………………………………………………………….………",null,null,"9.","……………………………………………………………………………………………….………",null,null,null,null,null,"…………………………………..……………..……….…."]
["5.","……………………………………………………………………………………………….………",null,null,"10.","……………………………………………………………………………………………….………",null,null,null,null,null,null,"(data i czytelny podpis rolnika)"]

{"sheet":"Prod. zwierzęca towar.","index":6,"n_rows":66,"n_cols":13,"rows_kept":66,"cut":false,"hidden":false,"merged":[[0,0,0,7],[3,11,4,11],[3,4,3,7],[3,12,4,12],[1,0,1,2],[1,4,1,9],[3,2,4,3],[0,9,0,11],[3,8,3,9],[3,10,4,10],[65,11,65,12],[59,2,59,4],[61,2,61,4],[62,2,62,4],[63,2,63,4],[60,2,60,4],[59,6,59,9],[60,6,60,9],[61,6,61,9],[62,6,62,9],[63,6,63,9],[57,0,57,12],[58,2,58,4],[64,10,64,12],[56,0,56,2],[3,0,4,0]]}
["Załącznik  2 Szkody w produkcji zwierzęcej towarowej (bez ryb)",null,null,null,null,null,null,null,null,"DLA REGIONU FADN",null,null,{"$f":"Protokół!V1","v":"A"}]
["Imię i nazwisko producenta rolnego",null,null,null,{"$f":"Protokół!G8","v":"………………………………………\n\n………………………...……………"}]
[]
["L.p",null,"Rodzaj produkcji zwierzęcej ",null,"Średnia roczna produkcja zwierzęca ",null,null,null,"Produkcja zwierzęca w  roku wystąpienia szkod  (z uwzględnieniem spadku produkcji spowodowanej padnięciem zwierząt w wyniku wystąpienia niekorzystnego zjawiska atmosferycznego)",null,"Kwota obniżenia dochodu  w wyniku szkód w zł","Koszty nieponiesione w związku z wystąpieniem szkód w zł","Koszty poniesione w związku z wystąpieniem szkód                          w zł"]
[null,null,null,null,"Liczba zwierząt * szt","Produkcja od 1 szt zwierzęcia w dt/kg/szt.","Cena w zł dt/kg/szt.","Wartość w zł","Liczba zwierząt szt","Wartość produkcji w zł"]
[1,{"$f":"SUM(B7:B56)","v":0},2,null,3,4,5,"6=3x4x5",7,"8=7x4x5","9=6-8",10,11]
[1,{"$f":"IFERROR(VLOOKUP(C7,zwierzeta_baza,2,0),0)","v":0},null,{"$f":"IFERROR(VLOOKUP(region&$C7,Dane_srednie_baza,4,0),\"\")","v":""},null,{"$f":"IFERROR(VLOOKUP(region&$C7,Dane_srednie_baza,6,0),0)","v":0},{"$f":"IFERROR(VLOOKUP(region&$C7,Dane_srednie_baza,7,0),0)","v":0},{"$f":"E7*F7*G7","v":0},null,{"$f":"I7*F7*G7","v":0},{"$f":"H7-J7","v":0}]
[2,0,null,"",null,0,0,{"$f":"E8*F8*G8","v":0},null,0,{"$f":"H8-J8","v":0}]
[3,0,null,"",null,0,0,0,null,0,0]
[4,0,null,"",null,0,0,0,null,0,0]
[5,0,null,"",null,0,0,0,null,0,0]
[6,0,null,"",null,0,0,0,null,0,0]
[7,0,null,"",null,0,0,0,null,0,0]
[8,0,null,"",null,0,0,0,null,0,0]
[9,0,null,"",null,0,0,0,null,0,0]
[10,0,null,"",null,0,0,0,null,0,0]
[11,0,null,"",null,0,0,0,null,0,0]
[12,0,null,"",null,0,0,0,null,0,0]
[13,0,null,"",null,0,0,0,null,0,0]
[14,0,null,"",null,0,0,0,null,0,0]
[15,0,null,"",null,0,0,0,null,0,0]
[16,0,null,"",null,0,0,0,null,0,0]
[17,0,null,"",null,0,0,0,null,0,0]
[18,0,null,"",null,0,0,0,null,0,0]
[19,0,null,"",null,0,0,0,null,0,0]
[20,0,null,"",null,0,0,0,null,0,0]
[21,0,null,"",null,0,0,{"$f":"E27*F27*G27","v":0},null,{"$f":"I27*F27*G27","v":0},{"$f":"H27-J27","v":0}]
[22,0,null,"",null,0,0,0,null,0,0]
[23,0,null,"",null,0,0,0,null,0,0]
[24,0,null,"",null,0,0,0,null,0,0]
[25,0,null,"",null,0,0,0,null,0,0]
[26,0,null,"",null,0,0,0,null,0,0]
[27,0,null,"",null,0,0,0,null,0,0]
[28,0,null,"",null,0,0,0,null,0,0]
[29,0,null,"",null,0,0,{"$f":"E35*F35*G35","v":0},null,{"$f":"I35*F35*G35","v":0},{"$f":"H35-J35","v":0}]
[30,0,null,"",null,0,0,0,null,0,0]
[31,0,null,"",null,0,0,0,null,0,0]
[32,0,null,"",null,0,0,0,null,0,0]
[33,0,null,"",null,0,0,0,null,0,0]
[34,0,null,"",null,0,0,0,null,0,0]
[35,0,null,"",null,0,0,0,null,0,0]
[36,0,null,"",null,0,0,0,null,0,0]
[37,0,null,"",null,0,0,0,null,0,0]
[38,0,null,"",null,0,0,0,null,0,0]
[39,0,null,"",null,0,0,0,null,0,0]
[40,0,null,"",null,0,0,0,null,0,0]
[41,0,null,"",null,null,null,0,null,0,0]
[42,0,null,"",null,null,null,0,null,0,0]
[43,0,null,"",null,null,null,0,null,0,0]
[44,0,null,"",null,null,null,{"$f":"E50*F50*G50","v":0},null,{"$f":"I50*F50*G50","v":0},{"$f":"H50-J50","v":0}]
[45,0,null,"",null,null,null,0,null,0,0]
[46,0,null,"",null,null,null,0,null,0,0]
[47,0,null,"",null,null,null,0,null,0,0]
[48,0,null,"",null,null,null,0,null,0,0]
[49,0,null,"",null,null,null,{"$f":"E55*F55*G55","v":0},null,{"$f":"I55*F55*G55","v":0},{"$f":"H55-J55","v":0}]
[50,0,null,"",null,null,null,0,null,0,0]
["Razem",null,null,null,"x","x","x",{"$f":"SUM(H7:H56)","v":0},"x",{"$f":"SUM(J7:J56)","v":0},{"$f":"SUM(K7:K56)","v":0},{"$f":"SUM(L7:L56)","v":0},{"$f":"SUM(M7:M56)","v":0}]
[" * Np. w przypadku \"Prosiąt od 1 maciory\" należy wpisać liczbę macior, natomiast dla pozycji \"Miód pszczeli\" należy wpisać liczbę rodziń pszczelich."]
[null,null,"Czytelne podpisy członków komisji powołanych przez Wojewodę"]
["1.",null,"……………………………………………….……………………………………",null,null,"6.","……………………………………………….……………………………………"]
["2.",null,"……………………………………………….……………………………………",null,null,"7.","……………………………………………….……………………………………"]
["3.",null,"……………………………………………….……………………………………",null,null,"8.","……………………………………………….……………………………………"]
["4.",null,"……………………………………………….……………………………………",null,null,"9.","……………………………………………….……………………………………"]
["5.",null,"……………………………………………….……………………………………",null,null,"10.","……………………………………………….……………………………………"]
[null,null,null,null,null,null,null,null,null,null,"…………………………………..……………..……….…."]
[null,null,null,null,null,null,null,null,null,null,null,"(data i czytelny podpis rolnika)"]

{"sheet":"Prod. ryb","index":7,"n_rows":29,"n_cols":14,"rows_kept":29,"cut":false,"hidden":false,"merged":[[28,10,28,13],[23,1,23,4],[24,1,24,4],[25,1,25,4],[26,1,26,4],[23,6,23,9],[24,6,24,9],[25,6,25,9],[22,1,22,4],[1,3,1,8],[0,10,0,11],[0,0,0,6],[1,0,1,2],[21,1,21,6],[3,10,4,10],[3,11,4,11],[19,0,19,1],[3,8,3,9],[3,1,4,1],[3,0,4,0],[3,2,4,2],[3,3,4,3],[3,4,4,4],[3,5,4,5],[3,13,4,13],[27,10,27,13],[3,6,4,6],[3,7,4,7],[26,6,26,9],[22,6,22,9],[3,12,4,12]]}
["Załącznik nr 3 Szkody w hodowli ryb",null,null,null,null,null,null,null,null,null,"DLA REGIONU FADN",null,{"$f":"Protokół!V1","v":"A"}]
["Imię i nazwisko producenta rolnego",null,null,{"$f":"Protokół!G8","v":"………………………………………\n\n………………………...……………"}]
[]
["L.p","Nazwa zbiornika lub nr zgodny z operatem wodno-prawnym","Nr działki ewidencyjnej","Powierzchnia stawów","Hodowlane gatunki ryb","Średnia roczna produkcja ryb ze stawu                             /kg/","Średnia cena ryb                    /zł/kg/","Średnia roczna wartość produkcji ryb                                      /zł/","Produkcja ryb w roku wystąpienia szkód   (z uwzględnieniem spadku produkcji spowodowanej padnięciem ryb w wyniku wystąpienia niekorzystnego zjawiska atmosferycznego) ",null,"Kwota obniżenia dochodu  w wyniku szkód w /zł/","% średniej rocznej produkcji            ","Koszty nieponiesione w związku z wystąpieniem szkód","Koszty poniesione w związku z wystąpieniem szkód"]
[null,null,null,null,null,null,null,null," Wielkość produkcji               /kg/","Wartość produkcji                                     /zł/"]
[1,2,3,4,5,6,7,"8=6x7",9,"10=7x9","11=8-10","12=(11/8)*100",13,14]
[1,null,null,null,null,null,null,{"$f":"F7*G7","v":0},null,{"$f":"G7*I7","v":0},{"$f":"H7-J7","v":0},{"$f":"IFERROR((K7/H7)*100,0)","v":0}]
[2,null,null,null,null,null,null,{"$f":"F8*G8","v":0},null,{"$f":"G8*I8","v":0},{"$f":"H8-J8","v":0},{"$f":"IFERROR((K8/H8)*100,0)","v":0}]
[3,null,null,null,null,null,null,{"$f":"F9*G9","v":0},null,{"$f":"G9*I9","v":0},{"$f":"H9-J9","v":0},0]
[4,null,null,null,null,null,null,{"$f":"F10*G10","v":0},null,{"$f":"G10*I10","v":0},{"$f":"H10-J10","v":0},0]
[5,null,null,null,null,null,null,{"$f":"F11*G11","v":0},null,{"$f":"G11*I11","v":0},{"$f":"H11-J11","v":0},0]
[6,null,null,null,null,null,null,{"$f":"F12*G12","v":0},null,{"$f":"G12*I12","v":0},{"$f":"H12-J12","v":0},0]
[7,null,null,null,null,null,null,0,null,0,0,0]
[8,null,null,null,null,null,null,0,null,0,0,0]
[9,null,null,null,null,null,null,0,null,0,0,0]
[10,null,null,null,null,null,null,0,null,0,0,0]
[11,null,null,null,null,null,null,0,null,0,0,0]
[12,null,null,null,null,null,null,0,null,0,0,0]
[13,null,null,null,null,null,null,{"$f":"F19*G19","v":0},null,{"$f":"G19*I19","v":0},0,0]
["Razem",null,"x",{"$f":"SUM(D7:D19)","v":0},"x","x","x",{"$f":"SUM(H7:H19)","v":0},"x","x",{"$f":"SUM(K7:K19)","v":0},0,{"$f":"SUM(M7:M19)","v":0},{"$f":"SUM(N7:N19)","v":0}]
[]
[null,"Czytelne podpisy członków komisji powołanych przez Wojewodę"]
["1.","…………………………………………………………………….",null,null,null,"6.","…………………….……….……………………………………."]
["2.","…………………………………………………………………….",null,null,null,"7.","……………………………………………………………………."]
["3.","…………………………………………………………………….",null,null,null,"8.","……………………………………………………………………."]
["4.","…………………………………………………………………….",null,null,null,"9.","……………………………………………………………………."]
["5.","…………………………………………………………………….",null,null,null,"10.","……………………………………………………………………."]
[null,null,null,null,null,null,null,null,null,null,"…………………………………..……………..……….…."]
[null,null,null,null,null,null,null,null,null,null,"(data i czytelny podpis rolnika)"]

{"sheet":"Środki trwałe","index":8,"n_rows":43,"n_cols":6,"rows_kept":43,"cut":false,"hidden":false,"merged":[[23,1,23,3],[42,3,42,4],[35,0,35,3],[41,3,41,5],[30,1,30,3],[31,1,31,3],[32,1,32,3],[38,3,38,4],[39,3,39,4],[40,3,40,4],[33,0,33,3],[0,0,0,3],[1,2,1,5],[36,3,36,4],[37,3,37,4],[15,0,15,1],[24,0,24,3],[26,1,26,3],[27,1,27,3],[28,1,28,3],[29,1,29,3],[17,1,17,3],[18,1,18,3],[19,1,19,3],[20,1,20,3],[21,1,21,3],[22,1,22,3]]}
["Załącznik 4a Szkody w środkach trwałych innych niż uprawy trwałe",null,null,null,"DLA REGIONU FADN",{"$f":"Protokół!V1","v":"A"}]
[null,"Imię i nazwisko producenta rolnego",{"$f":"Protokół!G8","v":"………………………………………\n\n………………………...……………"}]
[]
["L.p.","Rodzaj zwierząt gospodarskich stada podstawowego - opis szkody","Liczba zwierząt         w szt","Numer identyfikacyjny zwierzęcia lub numer stada (dotyczy zwierząt objętych systemem IRZ)","Wysokość szkód        w  zł","Uwagi"]
[1,2,3,4,5,6]
[1]
[2]
[3]
[4]
[5]
[6]
[7]
[8]
[9]
[10]
["Razem ",null,"x","x",{"$f":"ROUND(SUM(E6:E15),2)","v":0},"x"]
[]
["L.p.","Rodzaj maszyn i narzędzi służących do produkcji rolnej - opis szkody",null,null,"Wysokość szkód  w zł","Uwagi"]
[1,2,null,null,3,4]
[1]
[2]
[3]
[4]
[5]
["Razem ",null,null,null,{"$f":"ROUND(SUM(E20:E24),2)","v":0},"x"]
[]
["L.p.","Rodzaj budynków i budowli służących do produkcji rolnej - opis szkody",null,null,"Wysokość szkód  w zł","Uwagi"]
[1,2,null,null,3,4]
[1]
[2]
[3]
[4]
[5]
["Razem ",null,null,null,{"$f":"ROUND(SUM(E29:E33),2)","v":0},"x"]
[]
["Czytelne podpisy członków komisji powołanych przez Wojewodę"]
["1.","………………………………...………","6.","………………………..…………………"]
["2.","………………………………...………","7.","………………………..…………………"]
["3.","………………………………...………","8.","………………………..…………………"]
["4.","………………………………...………","9.","………………………..…………………"]
["5.","………………………………...………","10.","………………………..…………………"]
[null,null,null,"……………………….……………………...……………."]
[null,null,null,"(data i czytelny podpis rolnika)"]

{"sheet":"Uprawy trwałe","index":9,"n_rows":32,"n_cols":11,"rows_kept":32,"cut":false,"hidden":false,"merged":[[3,2,4,3],[3,4,4,5],[3,6,4,6],[3,7,3,8],[3,1,4,1],[0,0,0,6],[1,0,1,2],[1,3,1,7],[30,8,30,10],[26,1,26,2],[27,1,27,2],[28,1,28,2],[29,1,29,2],[25,1,25,2],[25,4,25,7],[26,4,26,7],[27,4,27,7],[0,8,0,9],[3,9,4,9],[5,2,5,3],[3,0,4,0],[28,4,28,7],[29,4,29,7],[31,9,31,10],[24,1,24,4],[22,0,22,2]]}
["Załącznik nr 4b Szkody w uprawach trwałych",null,null,null,null,null,null,null,"DLA REGIONU FADN",null,{"$f":"Protokół!V1","v":"A"}]
["Imię i nazwisko producenta rolnego",null,null,{"$f":"Protokół!G8","v":"………………………………………\n\n………………………...……………"}]
[]
["L.p.","Nr działki ewidencyjnej1)","Rodzaj środka trwałego - drzewa i krzewy sadownicze.                                                                   Metoda wyceny – katalogi, cenniki, data ich wydania. Określanie wartości plantacji kultur wieloletnich. Krzysztof Zmarlicki. Polska Federacja Stowarzyszeń Rzeczoznawców Majątkowych. Warszawa 2011",null,"Mierniki rzeczowe – jednostka miary, wartość jednostkowa        ",null,"Wartość bieżąca roślin (Wb)                    ","Punktacja cech określających wartość bieżącą roślin",null,"Wskaźnik oceny bonitacyjnej wartości bieżącej roślin                                     (Wbwb)                                                                                                                               Wbwb=(stanowisko+stan zdrowotny)/2","Wartość roślin sadowniczych                     (Wrs)                                                "]
[null,null,null,null,null,null,null,"Stanowisko, warunki siedliskowe i glebowe","Wskaźnik oceny stanu zdrowotnego",null,"Wrs = Wb * Wbwb"]
[null,1,2,null,3,4,"5=3*4",6,7,"8=(6+7)/2","9=5*8"]
[null,null,"gatunek, odmiana, wiek, podkładka, rozstawa","powierzchnia uszkodzona (ha)"," szt.,           m2 ","jednostkowa wartość bieżąca                (zł/szt), (zł/m2)","zł","-","-","-","zł"]
[1,null,null,null,null,null,{"$f":"E8*F8","v":0},null,null,{"$f":"(H8+I8)/2","v":0},{"$f":"G8*J8","v":0}]
[2,null,null,null,null,null,{"$f":"E9*F9","v":0},null,null,{"$f":"(H9+I9)/2","v":0},0]
[3,null,null,null,null,null,0,null,null,0,0]
[4,null,null,null,null,null,0,null,null,0,0]
[5,null,null,null,null,null,0,null,null,0,0]
[6,null,null,null,null,null,0,null,null,0,0]
[7,null,null,null,null,null,0,null,null,0,0]
[8,null,null,null,null,null,0,null,null,0,0]
[9,null,null,null,null,null,0,null,null,0,0]
[10,null,null,null,null,null,0,null,null,0,0]
[11,null,null,null,null,null,0,null,null,0,0]
[12,null,null,null,null,null,0,null,null,0,0]
[13,null,null,null,null,null,0,null,null,0,0]
[14,null,null,null,null,null,0,null,null,0,0]
[15,null,null,null,null,null,0,null,null,0,0]
["Razem",null,null,{"$f":"SUM(D8:D22)","v":0},"x","x",{"$f":"SUM(G8:G22)","v":0},"x","x","x",{"$f":"SUM(K8:K22)","v":0}]
[]
[null,"Czytelne podpisy członków komisji powołanych przez Wojewodę"]
["1.","………………………………………………………………………….",null,"6.","…………..…………………………………………………………."]
["2.","………………………………………………………………………….",null,"7.","…………..…………………………………………………………."]
["3.","………………………………………………………………………….",null,"8.","…………..…………………………………………………………."]
["4.","………………………………………………………………………….",null,"9.","…………..…………………………………………………………."]
["5.","………………………………………………………………………….",null,"10.","…………..…………………………………………………………."]
[null,null,null,null,null,null,null,null,"…………………………………..……………..……….…."]
[null,null,null,null,null,null,null,null,null,"(data i czytelny podpis rolnika)"]

{"sheet":"Regiony FADN","index":10,"n_rows":8,"n_cols":4,"rows_kept":8,"cut":false,"hidden":false,"merged":[[1,0,1,3],[2,0,2,3]]}
[]
["Województwa wg. regionów FADN"]
["Region FADN "]
["A","B","C","D"]
["lubuskie","dolnośląskie","lubelskie","małopolskie"]
["pomorskie","kujawsko-pomorskie","łódzkie","podkarpackie"]
["warmińsko-mazurskie","opolskie","mazowieckie","śląskie"]
["zachodniopomorskie","wielkopolskie","podlaskie","świętokrzyskie"]

{"sheet":"Dane średnie","index":11,"n_rows":718,"n_cols":11,"rows_kept":718,"cut":false,"hidden":true,"merged":[]}
[]
["INFO","SYM","NAZWA","JM","FADN_REG","LM_P","LM_S",null,"SYM2","NAZWA2","ZIELONE"]
[{"$f":"E3&C3","v":"AZboża na ziarno"},"61-1","Zboża na ziarno","dt","A",55.488300000000002,92.057199999999995,null,"61-1","Zboża na ziarno",0]
[{"$f":"E4&C4","v":"BZboża na ziarno"},"61-1","Zboża na ziarno","dt","B",60.793399999999998,88.270099999999999,null,"61-12","Pszenica zwyczajna ogółem na ziarno",0]
["CZboża na ziarno","61-1","Zboża na ziarno","dt","C",51.567399999999999,87.896699999999996,null,"61-12-10","Pszenica zwyczajna jara na ziarno",0]
["DZboża na ziarno","61-1","Zboża na ziarno","dt","D",59.829599999999999,88.469399999999993,null,"61-12-20","Pszenica zwyczajna ozima na ziarno",0]
["APszenica zwyczajna ogółem na ziarno","61-12","Pszenica zwyczajna ogółem na ziarno","dt","A",61.053100000000001,102.67489999999999,null,"61-13","Żyto ogółem na ziarno",0]
["BPszenica zwyczajna ogółem na ziarno","61-12","Pszenica zwyczajna ogółem na ziarno","dt","B",62.9895,101.1388,null,"61-13-10","Żyto jare na ziarno",0]
["CPszenica zwyczajna ogółem na ziarno","61-12","Pszenica zwyczajna ogółem na ziarno","dt","C",57.731000000000002,100.041,null,"61-13-20","Żyto ozime na ziarno",0]
["DPszenica zwyczajna ogółem na ziarno","61-12","Pszenica zwyczajna ogółem na ziarno","dt","D",59.268999999999998,100.77249999999999,null,"61-14","Jęczmień ogółem na ziarno",0]
["APszenica zwyczajna jara na ziarno","61-12-10","Pszenica zwyczajna jara na ziarno","dt","A",50.415799999999997,99.660200000000003,null,"61-14-10","Jęczmień jary na ziarno",0]
["BPszenica zwyczajna jara na ziarno","61-12-10","Pszenica zwyczajna jara na ziarno","dt","B",52.863500000000002,99.689599999999999,null,"61-14-20","Jęczmień ozimy na ziarno",0]
["CPszenica zwyczajna jara na ziarno","61-12-10","Pszenica zwyczajna jara na ziarno","dt","C",49.996499999999997,98.18,null,"61-15-00","Owies na ziarno",0]
["DPszenica zwyczajna jara na ziarno","61-12-10","Pszenica zwyczajna jara na ziarno","dt","D",50.030900000000003,99.063000000000002,null,"61-16","Pszenżyto ogółem na ziarno",0]
["APszenica zwyczajna ozima na ziarno","61-12-20","Pszenica zwyczajna ozima na ziarno","dt","A",62.7849,103.1371,null,"61-16-10","Pszenżyto jare na ziarno",0]
["BPszenica zwyczajna ozima na ziarno","61-12-20","Pszenica zwyczajna ozima na ziarno","dt","B",63.887,101.4753,null,"61-16-20","Pszenżyto ozime na ziarno",0]
["CPszenica zwyczajna ozima na ziarno","61-12-20","Pszenica zwyczajna ozima na ziarno","dt","C",59.277799999999999,100.5294,null,"61-17","Mieszanki zbożowe na ziarno",0]
["DPszenica zwyczajna ozima na ziarno","61-12-20","Pszenica zwyczajna ozima na ziarno","dt","D",60.378500000000003,100.959,null,"61-17-10","Mieszanki zbożowe jare na ziarno",0]
["AŻyto ogółem na ziarno","61-13","Żyto ogółem na ziarno","dt","A",41.6233,77.222399999999993,null,"61-17-20","Mieszanki zbożowe ozime na ziarno",0]
["BŻyto ogółem na ziarno","61-13","Żyto ogółem na ziarno","dt","B",41.512700000000002,76.625100000000003,null,"61-18-00","Kukurydza (sucha i wilgotna) na ziarno",1]
["CŻyto ogółem na ziarno","61-13","Żyto ogółem na ziarno","dt","C",36.415199999999999,76.528899999999993,null,"61-19","Pozostałe zboża na ziarno",0]
["DŻyto ogółem na ziarno","61-13","Żyto ogółem na ziarno","dt","D",38.0627,77.558700000000002,null,"61-19-10","Gryka na ziarno",0]
["AŻyto jare na ziarno","61-13-10","Żyto jare na ziarno","dt","A",41.678800000000003,68.257099999999994,null,"61-19-20","Proso na ziarno",1]
["BŻyto jare na ziarno","61-13-10","Żyto jare na ziarno","dt","B",39.960500000000003,74.691900000000004,null,"61-2","Strączkowe na nasiona suche",0]
["CŻyto jare na ziarno","61-13-10","Żyto jare na ziarno","dt","C",35.777799999999999,78.128100000000003,null,"61-21","Strączkowe jadalne na nasiona suche",0]
["DŻyto jare na ziarno","61-13-10","Żyto jare na ziarno","dt","D",39.290300000000002,78.3566,null,"61-21-10","Groch konsumpcyjny na nasiona suche",0]
["AŻyto ozime na ziarno","61-13-20","Żyto ozime na ziarno","dt","A",41.529200000000003,78.162400000000005,null,"61-21-20","Fasola na nasiona suche",0]
["BŻyto ozime na ziarno","61-13-20","Żyto ozime na ziarno","dt","B",41.604100000000003,76.8566,null,"61-21-30","Bób na nasiona suche",0]
["CŻyto ozime na ziarno","61-13-20","Żyto ozime na ziarno","dt","C",36.319600000000001,76.350399999999993,null,"61-21-40","Soczewica na nasiona suche",0]
["DŻyto ozime na ziarno","61-13-20","Żyto ozime na ziarno","dt","D",37.9527,77.677499999999995,null,"61-21-50","Soja na nasiona suche",0]
["AJęczmień ogółem na ziarno","61-14","Jęczmień ogółem na ziarno","dt","A",50.262500000000003,87.333200000000005,null,"61-22","Strączkowe pastewne na nasiona suche",1]
["BJęczmień ogółem na ziarno","61-14","Jęczmień ogółem na ziarno","dt","B",53.527500000000003,86.555700000000002,null,"61-22-10","Groch pastewny (peluszka) na nasiona suche",1]
["CJęczmień ogółem na ziarno","61-14","Jęczmień ogółem na ziarno","dt","C",47.423999999999999,88.775400000000005,null,"61-22-20","Bobik na nasiona suche",0]
["DJęczmień ogółem na ziarno","61-14","Jęczmień ogółem na ziarno","dt","D",49.503100000000003,87.853899999999996,null,"61-22-30","Łubin słodki na nasiona suche",0]
["AJęczmień jary na ziarno","61-14-10","Jęczmień jary na ziarno","dt","A",43.959699999999998,85.491399999999999,null,"61-22-4","Wyka ogółem na nasiona suche",0]
["BJęczmień jary na ziarno","61-14-10","Jęczmień jary na ziarno","dt","B",47.742800000000003,89.189300000000003,null,"61-22-41","Wyka jara na nasiona suche",0]
["CJęczmień jary na ziarno","61-14-10","Jęczmień jary na ziarno","dt","C",44.521500000000003,90.194000000000003,null,"61-22-50","Seradela na nasiona suche",0]
["DJęczmień jary na ziarno","61-14-10","Jęczmień jary na ziarno","dt","D",46.613199999999999,93.220299999999995,null,"61-22-90","Pozostałe strączkowe pastewne na nasiona suche",1]
["AJęczmień ozimy na ziarno","61-14-20","Jęczmień ozimy na ziarno","dt","A",58.295699999999997,88.010400000000004,null,"61-23","Mieszanki strączkowych z innymi roślinami ogółem na nasiona suche",1]
["BJęczmień ozimy na ziarno","61-14-20","Jęczmień ozimy na ziarno","dt","B",58.606999999999999,84.221800000000002,null,"61-23-10","Mieszanki strączkowych z innymi roślinami jare na nasiona suche",1]
["CJęczmień ozimy na ziarno","61-14-20","Jęczmień ozimy na ziarno","dt","C",52.632399999999997,86.143299999999996,null,"61-23-20","Mieszanki strączkowych z innymi roślinami ozime na nasiona suche",0]
["DJęczmień ozimy na ziarno","61-14-20","Jęczmień ozimy na ziarno","dt","D",53.139099999999999,81.166399999999996,null,"61-3","Rośliny przemysłowe",0]
["AOwies na ziarno","61-15-00","Owies na ziarno","dt","A",34.180199999999999,81.819800000000001,null,"61-31-00","Buraki cukrowe na korzeń",0]
["BOwies na ziarno","61-15-00","Owies na ziarno","dt","B",36.193300000000001,80.168700000000001,null,"61-32-00","Cykoria przemysłowa na korzeń",0]
["COwies na ziarno","61-15-00","Owies na ziarno","dt","C",34.681600000000003,80.0565,null,"61-33","Rośliny oleiste",0]
["DOwies na ziarno","61-15-00","Owies na ziarno","dt","D",37.219900000000003,78.874499999999998,null,"61-33-1","Rzepak i rzepik ogółem oleisty",0]
["APszenżyto ogółem na ziarno","61-16","Pszenżyto ogółem na ziarno","dt","A",49.4298,86.082800000000006,null,"61-33-11","Rzepak i rzepik jary oleisty",0]
["BPszenżyto ogółem na ziarno","61-16","Pszenżyto ogółem na ziarno","dt","B",52.580300000000001,86.423699999999997,null,"61-33-12","Rzepak i rzepik ozimy oleisty",0]
["CPszenżyto ogółem na ziarno","61-16","Pszenżyto ogółem na ziarno","dt","C",45.906500000000001,86.432299999999998,null,"61-33-20","Słonecznik oleisty",0]
["DPszenżyto ogółem na ziarno","61-16","Pszenżyto ogółem na ziarno","dt","D",47.9176,84.906400000000005,null,"61-33-30","Len i lnianka oleiste",0]
["APszenżyto jare na ziarno","61-16-10","Pszenżyto jare na ziarno","dt","A",43.643900000000002,80.204400000000007,null,"61-33-90","Pozostałe rośliny oleiste",0]
["BPszenżyto jare na ziarno","61-16-10","Pszenżyto jare na ziarno","dt","B",47.787700000000001,87.875399999999999,null,"61-34","Rośliny włókniste (uprawa lub słoma)",0]
["CPszenżyto jare na ziarno","61-16-10","Pszenżyto jare na ziarno","dt","C",44.1922,84.863399999999999,null,"61-35","Rośliny przemysłowe specjalne",0]
["DPszenżyto jare na ziarno","61-16-10","Pszenżyto jare na ziarno","dt","D",44.086100000000002,85.770499999999998,null,"61-35-10","Tytoń na liście",0]
["APszenżyto ozime na ziarno","61-16-20","Pszenżyto ozime na ziarno","dt","A",50.55,86.7072,null,"61-35-20","Chmiel na szyszki",0]
["BPszenżyto ozime na ziarno","61-16-20","Pszenżyto ozime na ziarno","dt","B",52.9559,86.450400000000002,null,"61-35-30","Rośliny zielarskie (lecznicze, przyprawowe, aromatyczne)",0]
["CPszenżyto ozime na ziarno","61-16-20","Pszenżyto ozime na ziarno","dt","C",46.126199999999997,86.699600000000004,null,"61-35-40","Wiklina",0]
["DPszenżyto ozime na ziarno","61-16-20","Pszenżyto ozime na ziarno","dt","D",48.280099999999997,84.764099999999999,null,"61-4","Ziemniaki",0]
["AMieszanki zbożowe na ziarno","61-17","Mieszanki zbożowe na ziarno","dt","A",38.042700000000004,75.899799999999999,null,"61-42-00","Ziemniaki jadalne",0]
["BMieszanki zbożowe na ziarno","61-17","Mieszanki zbożowe na ziarno","dt","B",40.783000000000001,79.575500000000005,null,"61-43-00","Ziemniaki skrobiowe",0]
["CMieszanki zbożowe na ziarno","61-17","Mieszanki zbożowe na ziarno","dt","C",38.671799999999998,82.261300000000006,null,"61-49-00","Ziemniaki ogólnoużytkowe",0]
["DMieszanki zbożowe na ziarno","61-17","Mieszanki zbożowe na ziarno","dt","D",41.585799999999999,84.697800000000001,null,"61-5","Rośliny pastewne objętościowe na gruntach ornych",1]
["AMieszanki zbożowe jare na ziarno","61-17-10","Mieszanki zbożowe jare na ziarno","dt","A",37.975200000000001,75.515000000000001,null,"61-51","Okopowe pastewne na pasze",1]
["BMieszanki zbożowe jare na ziarno","61-17-10","Mieszanki zbożowe jare na ziarno","dt","B",40.177399999999999,78.975399999999993,null,"61-51-10","Buraki pastewne na pasze",1]
["CMieszanki zbożowe jare na ziarno","61-17-10","Mieszanki zbożowe jare na ziarno","dt","C",38.637700000000002,82.290499999999994,null,"61-51-30","Marchew pastewna na pasze",1]
["DMieszanki zbożowe jare na ziarno","61-17-10","Mieszanki zbożowe jare na ziarno","dt","D",41.316299999999998,84.651200000000003,null,"61-51-60","Dynia pastewna na pasze",1]
["AMieszanki zbożowe ozime na ziarno","61-17-20","Mieszanki zbożowe ozime na ziarno","dt","A",49.569400000000002,84.5852,null,"61-52-00","Kukurydza pastewna na zielonkę",1]
[{"$f":"E68&C68","v":"BMieszanki zbożowe ozime na ziarno"},"61-17-20","Mieszanki zbożowe ozime na ziarno","dt","B",52.679299999999998,83.966399999999993,null,"61-53-00","Zboża i mieszanki zbóż z innymi roślinami na zielonkę",1]
["CMieszanki zbożowe ozime na ziarno","61-17-20","Mieszanki zbożowe ozime na ziarno","dt","C",37.289000000000001,78.746099999999998,null,"61-54-00","Trawy w uprawie polowej na zielonkę (UZ)",1]
["DMieszanki zbożowe ozime na ziarno","61-17-20","Mieszanki zbożowe ozime na ziarno","dt","D",42.041600000000003,90.136499999999998,null,"61-55-00","Strączkowe na zielonkę",1]
["AKukurydza (sucha i wilgotna) na ziarno","61-18-00","Kukurydza (sucha i wilgotna) na ziarno","dt","A",88.082899999999995,65.928200000000004,null,"61-56-00","Motylkowe drobnonasienne na zielonkę (UZ)",1]
["BKukurydza (sucha i wilgotna) na ziarno","61-18-00","Kukurydza (sucha i wilgotna) na ziarno","dt","B",89.668599999999998,66.977999999999994,null,"61-57-00","Mieszanki motylkowych z trawami (UZ)",1]
["CKukurydza (sucha i wilgotna) na ziarno","61-18-00","Kukurydza (sucha i wilgotna) na ziarno","dt","C",91.233400000000003,71.238,null,"61-59-00","Pozostałe polowe uprawy pastewne na zielonkę",1]
["DKukurydza (sucha i wilgotna) na ziarno","61-18-00","Kukurydza (sucha i wilgotna) na ziarno","dt","D",101.0673,73.259100000000004,null,"61-6","Rośliny pastewne objętościowe z użytków zielonych (uprawa lub zielonka) (UZ)",1]
["APozostałe zboża na ziarno","61-19","Pozostałe zboża na ziarno","dt","A",12.5265,176.44980000000001,null,"61-61-00","Rośliny pastewne objętościowe z łąk - zielonka (UZ)",1]
["BPozostałe zboża na ziarno","61-19","Pozostałe zboża na ziarno","dt","B",13.526899999999999,199.17750000000001,null,"61-62","Rośliny pastewne objętościowe z pastwisk (UZ)",1]
["CPozostałe zboża na ziarno","61-19","Pozostałe zboża na ziarno","dt","C",13.673999999999999,180.23099999999999,null,"61-62-10","Rośliny pastewne objętościowe z pastwisk pielęgnowanych (UZ)",1]
["DPozostałe zboża na ziarno","61-19","Pozostałe zboża na ziarno","dt","D",20.2392,133.08330000000001,null,"61-62-20","Rośliny pastewne objętościowe z pastwisk niepielęgnowanych (UZ)",1]
["AGryka na ziarno","61-19-10","Gryka na ziarno","dt","A",12.5412,193.9915,null,"61-7","Warzywa",0]
["BGryka na ziarno","61-19-10","Gryka na ziarno","dt","B",12.8408,213.28229999999999,null,"61-71","Warzywa w uprawie polowej",0]
["CGryka na ziarno","61-19-10","Gryka na ziarno","dt","C",12.678699999999999,194.905,null,"61-71-1","Warzywa uprawiane dla owoców i kwiatów w uprawie polowej",0]
["DGryka na ziarno","61-19-10","Gryka na ziarno","dt","D",12.2812,192.78700000000001,null,"61-71-10","Pomidory w uprawie polowej",0]
["AProso na ziarno","61-19-20","Proso na ziarno","dt","A",8.7353000000000005,100.0437,null,"61-71-2","Warzywa liściaste i łodygowe w uprawie polowej",0]
["BProso na ziarno","61-19-20","Proso na ziarno","dt","B",25.691600000000001,119.3198,null,"61-71-20","Ogórki w uprawie polowej",0]
["CProso na ziarno","61-19-20","Proso na ziarno","dt","C",22.122,120.66759999999999,null,"61-71-3","Warzywa korzeniowe i bulwiaste w uprawie polowej",0]
["DProso na ziarno","61-19-20","Proso na ziarno","dt","D",29.996200000000002,119.9898,null,"61-71-30","Kalafiory i brokuły w uprawie polowej",0]
["AStrączkowe na nasiona suche","61-2","Strączkowe na nasiona suche","dt","A",20.774699999999999,126.4843,null,"61-71-4","Warzywa strączkowe do zbioru na zielono w uprawie polowej",0]
["BStrączkowe na nasiona suche","61-2","Strączkowe na nasiona suche","dt","B",22.105899999999998,140.20089999999999,null,"61-71-40","Inne warzywa uprawiane dla owoców i kwiatów w uprawie polowej",0]
["CStrączkowe na nasiona suche","61-2","Strączkowe na nasiona suche","dt","C",20.062999999999999,178.44059999999999,null,"61-71-50","Kapusta w uprawie polowej",0]
["DStrączkowe na nasiona suche","61-2","Strączkowe na nasiona suche","dt","D",24.999700000000001,167.5154,null,"61-71-60","Inne warzywa liściaste i łodygowe (bez kapusty) w uprawie polowej",0]
["AStrączkowe jadalne na nasiona suche","61-21","Strączkowe jadalne na nasiona suche","dt","A",24.211400000000001,127.99079999999999,null,"61-71-70","Cebula w uprawie polowej",0]
["BStrączkowe jadalne na nasiona suche","61-21","Strączkowe jadalne na nasiona suche","dt","B",24.068200000000001,167.59280000000001,null,"61-71-80","Inne warzywa korzeniowe i bulwiaste (bez cebuli) w uprawie polowej",0]
["CStrączkowe jadalne na nasiona suche","61-21","Strączkowe jadalne na nasiona suche","dt","C",20.495799999999999,285.47800000000001,null,"61-71-90","Warzywa strączkowe do zbioru na zielono w uprawie polowej",0]
["DStrączkowe jadalne na nasiona suche","61-21","Strączkowe jadalne na nasiona suche","dt","D",27.9694,180.4743,null,"61-72","Warzywa pod osłonami wysokimi",0]
["AGroch konsumpcyjny na nasiona suche","61-21-10","Groch konsumpcyjny na nasiona suche","dt","A",25.7531,113.0599,null,"61-72-1","Warzywa uprawiane dla owoców i kwiatów w uprawie pod osłonami wysokimi",0]
["BGroch konsumpcyjny na nasiona suche","61-21-10","Groch konsumpcyjny na nasiona suche","dt","B",23.978400000000001,127.2291,null,"61-72-10","Pomidory w uprawie pod osłonami wysokimi",0]
["CGroch konsumpcyjny na nasiona suche","61-21-10","Groch konsumpcyjny na nasiona suche","dt","C",23.994499999999999,121.84990000000001,null,"61-72-2","Warzywa liściaste i łodygowe w uprawie pod osłonami wysokimi",0]
["DGroch konsumpcyjny na nasiona suche","61-21-10","Groch konsumpcyjny na nasiona suche","dt","D",27.311299999999999,126.80410000000001,null,"61-72-20","Ogórki w uprawie pod osłonami wysokimi",0]
["AFasola na nasiona suche","61-21-20","Fasola na nasiona suche","dt","A",17.7898,530.28189999999995,null,"61-72-3","Warzywa korzeniowe i bulwiaste w uprawie pod osłonami wysokimi",0]
["BFasola na nasiona suche","61-21-20","Fasola na nasiona suche","dt","B",17.7898,530.28189999999995,null,"61-72-4","Warzywa strączkowe do zbioru na zielono w uprawie pod osłonami wysokimi",0]
["CFasola na nasiona suche","61-21-20","Fasola na nasiona suche","dt","C",17.844000000000001,516.62300000000005,null,"61-72-40","Inne warzywa uprawiane dla owoców i kwiatów w uprawie pod osłonami wysokimi",0]
["DFasola na nasiona suche","61-21-20","Fasola na nasiona suche","dt","D",16.232299999999999,727.29269999999997,null,"61-72-50","Kapusta w uprawie pod osłonami wysokimi",0]
["ABób na nasiona suche","61-21-30","Bób na nasiona suche","dt","A",24.693999999999999,604.59580000000005,null,"61-72-60","Inne warzywa liściaste i łodygowe (bez kapusty) w uprawie pod osłonami wysokimi",0]
["BBób na nasiona suche","61-21-30","Bób na nasiona suche","dt","B",18.411300000000001,342.60120000000001,null,"61-72-80","Inne warzywa korzeniowe i bulwiaste (bez cebuli) w uprawie pod osłonami wysokimi",0]
["CBób na nasiona suche","61-21-30","Bób na nasiona suche","dt","C",29.476500000000001,896.8297,null,"61-72-90","Warzywa strączkowe do zbioru na zielono w uprawie pod osłonami wysokimi",0]
["DBób na nasiona suche","61-21-30","Bób na nasiona suche","dt","D",26.041499999999999,800.84609999999998,null,"61-73","Warzywa w ogrodach towarowych (w płodozmianie z warzywami)",0]
["ASoczewica na nasiona suche","61-21-40","Soczewica na nasiona suche","dt","A",7.9165999999999999,279.96440000000001,null,"61-8","Kwiaty i inne rośliny ozdobne",0]
["BSoczewica na nasiona suche","61-21-40","Soczewica na nasiona suche","dt","B",8.8683999999999994,268.97179999999997,null,"61-81","Kwiaty i inne rośliny ozdobne w uprawie polowej",0]
["CSoczewica na nasiona suche","61-21-40","Soczewica na nasiona suche","dt","C",7.6051000000000002,353.39879999999999,null,"61-81-10","Kwiaty cięte w uprawie polowej",0]
["DSoczewica na nasiona suche","61-21-40","Soczewica na nasiona suche","dt","D",8.8683999999999994,268.97179999999997,null,"61-81-20","Kwiaty i inne rośliny ozdobne - całe rośliny w uprawie polowej",0]
["ASoja na nasiona suche","61-21-50","Soja na nasiona suche","dt","A",24.140999999999998,197.16139999999999,null,"61-82","Kwiaty i inne rośliny ozdobne pod osłonami wysokimi",0]
["BSoja na nasiona suche","61-21-50","Soja na nasiona suche","dt","B",25.400500000000001,187.7028,null,"61-82-10","Kwiaty cięte w uprawie pod osłonami wysokimi",0]
["CSoja na nasiona suche","61-21-50","Soja na nasiona suche","dt","C",21.8218,190.3098,null,"61-82-20","Kwiaty i inne rośliny ozdobne - całe rośliny w uprawie pod osłonami wysokimi",0]
["DSoja na nasiona suche","61-21-50","Soja na nasiona suche","dt","D",28.349499999999999,181.25919999999999,null,"61-9","Owoce",0]
["AStrączkowe pastewne na nasiona suche","61-22","Strączkowe pastewne na nasiona suche","dt","A",18.556100000000001,127.57089999999999,null,"61-91","Owoce w uprawie polowej",0]
["BStrączkowe pastewne na nasiona suche","61-22","Strączkowe pastewne na nasiona suche","dt","B",18.002300000000002,134.31200000000001,null,"61-91-10","Truskawki w uprawie polowej",0]
["CStrączkowe pastewne na nasiona suche","61-22","Strączkowe pastewne na nasiona suche","dt","C",17.796600000000002,138.05449999999999,null,"61-92","Owoce w uprawie pod osłonami wysokimi",0]
["DStrączkowe pastewne na nasiona suche","61-22","Strączkowe pastewne na nasiona suche","dt","D",19.965499999999999,130.88900000000001,null,"61-92-10","Truskawki w uprawie pod osłonami wysokimi",0]
["AGroch pastewny (peluszka) na nasiona suche","61-22-10","Groch pastewny (peluszka) na nasiona suche","dt","A",22.491499999999998,129.53460000000001,null,"61-93","Owoce z sadów",0]
["BGroch pastewny (peluszka) na nasiona suche","61-22-10","Groch pastewny (peluszka) na nasiona suche","dt","B",23.4346,126.49420000000001,null,"61-93-1","Owoce miękiszowe - ziarnkowe",0]
["CGroch pastewny (peluszka) na nasiona suche","61-22-10","Groch pastewny (peluszka) na nasiona suche","dt","C",23.3323,123.5831,null,"61-93-11","Jabłka",0]
["DGroch pastewny (peluszka) na nasiona suche","61-22-10","Groch pastewny (peluszka) na nasiona suche","dt","D",24.7,120.2662,null,"61-93-12","Gruszki",0]
["ABobik na nasiona suche","61-22-20","Bobik na nasiona suche","dt","A",33.397399999999998,122.39,null,"61-93-2","Owoce pestkowe",0]
["BBobik na nasiona suche","61-22-20","Bobik na nasiona suche","dt","B",28.814800000000002,147.9939,null,"61-93-21","Śliwki",0]
["CBobik na nasiona suche","61-22-20","Bobik na nasiona suche","dt","C",23.592700000000001,117.9264,null,"61-93-22","Wiśnie",0]
["DBobik na nasiona suche","61-22-20","Bobik na nasiona suche","dt","D",28.297000000000001,118.5616,null,"61-93-23","Czereśnie",0]
["AŁubin słodki na nasiona suche","61-22-30","Łubin słodki na nasiona suche","dt","A",15.028499999999999,125.702,null,"61-93-24","Brzoskwinie",0]
["BŁubin słodki na nasiona suche","61-22-30","Łubin słodki na nasiona suche","dt","B",14.864599999999999,135.59100000000001,null,"61-93-25","Morele",0]
["CŁubin słodki na nasiona suche","61-22-30","Łubin słodki na nasiona suche","dt","C",15.846299999999999,140.05969999999999,null,"61-93-3","Orzechy",0]
["DŁubin słodki na nasiona suche","61-22-30","Łubin słodki na nasiona suche","dt","D",16.6435,138.26349999999999,null,"61-93-31","Orzechy włoskie",0]
["AWyka ogółem na nasiona suche","61-22-4","Wyka ogółem na nasiona suche","dt","A",13.527200000000001,253.59950000000001,null,"61-93-32","Orzechy laskowe",0]
[{"$f":"E132&C132","v":"BWyka ogółem na nasiona suche"},"61-22-4","Wyka ogółem na nasiona suche","dt","B",14.9733,223.67,null,"61-93-4","Owoce jagodowe",0]
["CWyka ogółem na nasiona suche","61-22-4","Wyka ogółem na nasiona suche","dt","C",15.3086,167.26140000000001,null,"61-93-41","Agrest",0]
["DWyka ogółem na nasiona suche","61-22-4","Wyka ogółem na nasiona suche","dt","D",16.6099,192.97280000000001,null,"61-93-42","Aronia",0]
["AWyka jara na nasiona suche","61-22-41","Wyka jara na nasiona suche","dt","A",13.6225,255.1962,null,"61-93-43","Porzeczki czarne",0]
["BWyka jara na nasiona suche","61-22-41","Wyka jara na nasiona suche","dt","B",15.0481,224.41370000000001,null,"61-93-45","Porzeczki czerwone",0]
["CWyka jara na nasiona suche","61-22-41","Wyka jara na nasiona suche","dt","C",15.3361,167.26140000000001,null,"61-93-46","Maliny ogrodowe",0]
["DWyka jara na nasiona suche","61-22-41","Wyka jara na nasiona suche","dt","D",16.590299999999999,192.97280000000001,null,"61-93-47","Jeżyny",0]
["ASeradela na nasiona suche","61-22-50","Seradela na nasiona suche","dt","A",7.6504000000000003,473.42469999999997,null,"61-93-48","Borówki",0]
["BSeradela na nasiona suche","61-22-50","Seradela na nasiona suche","dt","B",7.6608000000000001,438.68040000000002,null,"61-93-49","Pozostałe owoce jagodowe",0]
["CSeradela na nasiona suche","61-22-50","Seradela na nasiona suche","dt","C",7.1215000000000002,511.26900000000001,null,"61-93-50","Winogrona",0]
["DSeradela na nasiona suche","61-22-50","Seradela na nasiona suche","dt","D",7.6504000000000003,473.42469999999997,null,"62-10-00","Plantacje nasienne traw",0]
["APozostałe strączkowe pastewne na nasiona suche","61-22-90","Pozostałe strączkowe pastewne na nasiona suche","dt","A",16.750499999999999,106.2466,null,"62-20-00","Plantacje nasienne motylkowych drobnonasiennych",0]
["BPozostałe strączkowe pastewne na nasiona suche","61-22-90","Pozostałe strączkowe pastewne na nasiona suche","dt","B",16.270700000000001,110.05249999999999,null,"62-4","Uprawy nasienne i rozsadniki warzyw i kwiatów",0]
["CPozostałe strączkowe pastewne na nasiona suche","61-22-90","Pozostałe strączkowe pastewne na nasiona suche","dt","C",14.7491,150.42429999999999,null,"62-41","Uprawy nasienne i rozsadniki warzyw i kwiatów w uprawie polowej",0]
["DPozostałe strączkowe pastewne na nasiona suche","61-22-90","Pozostałe strączkowe pastewne na nasiona suche","dt","D",14.9869,133.03319999999999,null,"62-41-10","Uprawy nasienne i rozsadniki warzyw w uprawie polowej",0]
["AMieszanki strączkowych z innymi roślinami ogółem na nasiona suche","61-23","Mieszanki strączkowych z innymi roślinami ogółem na nasiona suche","dt","A",33.842199999999998,93.258399999999995,null,"62-42","Uprawy nasienne i rozsadniki warzyw i kwiatów pod osłonami wysokimi",0]
["BMieszanki strączkowych z innymi roślinami ogółem na nasiona suche","61-23","Mieszanki strączkowych z innymi roślinami ogółem na nasiona suche","dt","B",40.689599999999999,83.522099999999995,null,"62-42-10","Nasienniki i rozsadniki warzyw w uprawie pod osłonami wysokimi",0]
["CMieszanki strączkowych z innymi roślinami ogółem na nasiona suche","61-23","Mieszanki strączkowych z innymi roślinami ogółem na nasiona suche","dt","C",35.606999999999999,90.356300000000005,null,"62-42-20","Nasienniki i rozsadniki kwiatów w uprawie pod osłonami wysokimi",0]
["DMieszanki strączkowych z innymi roślinami ogółem na nasiona suche","61-23","Mieszanki strączkowych z innymi roślinami ogółem na nasiona suche","dt","D",37.837200000000003,95.219700000000003,null,"62-5","Inne uprawy nasienne",0]
["AMieszanki strączkowych z innymi roślinami jare na nasiona suche","61-23-10","Mieszanki strączkowych z innymi roślinami jare na nasiona suche","dt","A",33.787999999999997,93.258399999999995,null,"62-51-00","Inne uprawy nasienne i rozsadniki w uprawie polowej",0]
["BMieszanki strączkowych z innymi roślinami jare na nasiona suche","61-23-10","Mieszanki strączkowych z innymi roślinami jare na nasiona suche","dt","B",40.557099999999998,83.439099999999996,null,"62-90-00","Pozostałe plantacje nasienne",0]
["CMieszanki strączkowych z innymi roślinami jare na nasiona suche","61-23-10","Mieszanki strączkowych z innymi roślinami jare na nasiona suche","dt","C",35.501100000000001,89.630600000000001,null,"04210","Szkółki drzew i krzewów owocowych",0]
["DMieszanki strączkowych z innymi roślinami jare na nasiona suche","61-23-10","Mieszanki strączkowych z innymi roślinami jare na nasiona suche","dt","D",37.837200000000003,95.219700000000003,null,"Byki","Byki do opasu, wolce 2-letnie i starsze",1]
["AMieszanki strączkowych z innymi roślinami ozime na nasiona suche","61-23-20","Mieszanki strączkowych z innymi roślinami ozime na nasiona suche","dt","A",47.808100000000003,89.721699999999998,null,"Jalowki","Jałówki do opasu 2-letnie i starsze",1]
["BMieszanki strączkowych z innymi roślinami ozime na nasiona suche","61-23-20","Mieszanki strączkowych z innymi roślinami ozime na nasiona suche","dt","B",47.808100000000003,89.721699999999998,null,"Byczki","Byczki od 1 do 2 lat",1]
["CMieszanki strączkowych z innymi roślinami ozime na nasiona suche","61-23-20","Mieszanki strączkowych z innymi roślinami ozime na nasiona suche","dt","C",47.808100000000003,89.721699999999998,null,"Jalowki12","Jałówki od 1 do 2 lat",1]
["DMieszanki strączkowych z innymi roślinami ozime na nasiona suche","61-23-20","Mieszanki strączkowych z innymi roślinami ozime na nasiona suche","dt","D",47.808100000000003,89.721699999999998,null,"Cieleta612","Cielęta od 6 mies. do 1 roku",0]
["ARośliny przemysłowe","61-3","Rośliny przemysłowe","dt","A",101.7831,75.787099999999995,null,"Cieleta","Cielęta do opasu poniżej 6 mies.",0]
["BRośliny przemysłowe","61-3","Rośliny przemysłowe","dt","B",182.44210000000001,45.210799999999999,null,"Owce","Owce 1 roczne i starsze",1]
["CRośliny przemysłowe","61-3","Rośliny przemysłowe","dt","C",126.7775,62.856200000000001,null,"Jagnieta","Jagnięta",0]
["DRośliny przemysłowe","61-3","Rośliny przemysłowe","dt","D",100.0775,77.810500000000005,null,"Kozy","Kozy 1 roczne i starsze",1]
["ABuraki cukrowe na korzeń","61-31-00","Buraki cukrowe na korzeń","dt","A",629.15200000000004,20.433299999999999,null,"Kozleta","Koźlęta",0]
["BBuraki cukrowe na korzeń","61-31-00","Buraki cukrowe na korzeń","dt","B",627.59680000000003,19.508400000000002,null,"Tuczniki","Tuczniki o wadze 50 kg i więcej",1]
["CBuraki cukrowe na korzeń","61-31-00","Buraki cukrowe na korzeń","dt","C",638.67639999999994,20.259599999999999,null,"Warchlaki","Warchlaki do opasu o wadze od 20 do 50 kg",1]
["DBuraki cukrowe na korzeń","61-31-00","Buraki cukrowe na korzeń","dt","D",642.99099999999999,16.203399999999998,null,"Prosieta","Prosięta od 1 maciory",0]
["ACykoria przemysłowa na korzeń","61-32-00","Cykoria przemysłowa na korzeń","dt","A",324.3535,43.291899999999998,null,"Brojlery","Brojlery kurze 2 tyg. i starsze",0]
["BCykoria przemysłowa na korzeń","61-32-00","Cykoria przemysłowa na korzeń","dt","B",324.3535,43.291899999999998,null,"Gesi","Gęsi młode",0]
["CCykoria przemysłowa na korzeń","61-32-00","Cykoria przemysłowa na korzeń","dt","C",324.3535,43.291899999999998,null,"Kaczki","Kaczki młode",0]
["DCykoria przemysłowa na korzeń","61-32-00","Cykoria przemysłowa na korzeń","dt","D",324.3535,43.291899999999998,null,"Indyki","Indyki młode",0]
["ARośliny oleiste","61-33","Rośliny oleiste","dt","A",33.479999999999997,211.19210000000001,null,"MlekoKr","Mleko krowie",1]
["BRośliny oleiste","61-33","Rośliny oleiste","dt","B",33.138800000000003,219.47470000000001,null,"MlekoKo","Mleko kozie",1]
["CRośliny oleiste","61-33","Rośliny oleiste","dt","C",33.073700000000002,211.9693,null,"JajaWKu","Jaja wylęgowe kurze",0]
["DRośliny oleiste","61-33","Rośliny oleiste","dt","D",32.634599999999999,214.43020000000001,null,"JajaWPo","Jaja wylęgowe pozostałe",0]
["ARzepak i rzepik ogółem oleisty","61-33-1","Rzepak i rzepik ogółem oleisty","dt","A",34.463099999999997,210.47300000000001,null,"JajaKKu","Jaja konsumpcyjne kurze",0]
["BRzepak i rzepik ogółem oleisty","61-33-1","Rzepak i rzepik ogółem oleisty","dt","B",33.877000000000002,217.7106,null,"JajaKPo","Jaja konsumpcyjne pozostałe",0]
["CRzepak i rzepik ogółem oleisty","61-33-1","Rzepak i rzepik ogółem oleisty","dt","C",34.532899999999998,210.00460000000001,null,"Welna","Wełna surowa i przetworzona owcza",0]
["DRzepak i rzepik ogółem oleisty","61-33-1","Rzepak i rzepik ogółem oleisty","dt","D",34.138599999999997,214.5489,null,"Miod","Miód pszczeli",0]
["ARzepak i rzepik jary oleisty","61-33-11","Rzepak i rzepik jary oleisty","dt","A",29.744,206.02459999999999,null,"PrPszcz","Pozostałe produkty pszczelarskie",0]
["BRzepak i rzepik jary oleisty","61-33-11","Rzepak i rzepik jary oleisty","dt","B",29.413699999999999,216.56569999999999,null,null,"Konie",0]
["CRzepak i rzepik jary oleisty","61-33-11","Rzepak i rzepik jary oleisty","dt","C",33.143099999999997,201.01519999999999]
["DRzepak i rzepik jary oleisty","61-33-11","Rzepak i rzepik jary oleisty","dt","D",32.978900000000003,204.57570000000001]
["ARzepak i rzepik ozimy oleisty","61-33-12","Rzepak i rzepik ozimy oleisty","dt","A",34.808599999999998,210.87530000000001]
["BRzepak i rzepik ozimy oleisty","61-33-12","Rzepak i rzepik ozimy oleisty","dt","B",34.0319,217.71250000000001]
["CRzepak i rzepik ozimy oleisty","61-33-12","Rzepak i rzepik ozimy oleisty","dt","C",34.696899999999999,210.42840000000001]
["DRzepak i rzepik ozimy oleisty","61-33-12","Rzepak i rzepik ozimy oleisty","dt","D",34.130699999999997,215.56569999999999]
["ASłonecznik oleisty","61-33-20","Słonecznik oleisty","dt","A",19.561499999999999,145.44239999999999]
["BSłonecznik oleisty","61-33-20","Słonecznik oleisty","dt","B",24.928000000000001,162.87139999999999]
["CSłonecznik oleisty","61-33-20","Słonecznik oleisty","dt","C",24.0015,176.57749999999999]
["DSłonecznik oleisty","61-33-20","Słonecznik oleisty","dt","D",22.132899999999999,175.50280000000001]
["ALen i lnianka oleiste","61-33-30","Len i lnianka oleiste","dt","A",10.6693,222.12360000000001]
["BLen i lnianka oleiste","61-33-30","Len i lnianka oleiste","dt","B",10.5763,320.19549999999998]
["CLen i lnianka oleiste","61-33-30","Len i lnianka oleiste","dt","C",11.5158,241.0059]
["DLen i lnianka oleiste","61-33-30","Len i lnianka oleiste","dt","D",21.4238,191.9838]
["APozostałe rośliny oleiste","61-33-90","Pozostałe rośliny oleiste","dt","A",17.590299999999999,188.5308]
[{"$f":"E196&C196","v":"BPozostałe rośliny oleiste"},"61-33-90","Pozostałe rośliny oleiste","dt","B",12.539899999999999,297.13819999999998]
["CPozostałe rośliny oleiste","61-33-90","Pozostałe rośliny oleiste","dt","C",15.588800000000001,466.02499999999998]
["DPozostałe rośliny oleiste","61-33-90","Pozostałe rośliny oleiste","dt","D",8.0868000000000002,600.22239999999999]
["ARośliny włókniste (uprawa lub słoma)","61-34","Rośliny włókniste (uprawa lub słoma)","dt","A",48.74,50.39]
["BRośliny włókniste (uprawa lub słoma)","61-34","Rośliny włókniste (uprawa lub słoma)","dt","B",48.74,50.39]
["CRośliny włókniste (uprawa lub słoma)","61-34","Rośliny włókniste (uprawa lub słoma)","dt","C",48.74,50.39,null,null,"gradu"]
["DRośliny włókniste (uprawa lub słoma)","61-34","Rośliny włókniste (uprawa lub słoma)","dt","D",48.74,50.39,null,null,"deszczu nawalnego"]
["ARośliny przemysłowe specjalne","61-35","Rośliny przemysłowe specjalne","dt","A",10.3,573.65930000000003,null,null,"ujemnych skutków przezimowania"]
["BRośliny przemysłowe specjalne","61-35","Rośliny przemysłowe specjalne","dt","B",24.079599999999999,855.23789999999997,null,null,"przymrozków wiosennych"]
["CRośliny przemysłowe specjalne","61-35","Rośliny przemysłowe specjalne","dt","C",21.090599999999998,1635.5097000000001,null,null,"powodzi"]
["DRośliny przemysłowe specjalne","61-35","Rośliny przemysłowe specjalne","dt","D",19.625900000000001,1457.8117999999999,null,null,"huraganu"]
["ATytoń na liście","61-35-10","Tytoń na liście","dt","A",24.218399999999999,1837.4652000000001,null,null,"piorunu"]
["BTytoń na liście","61-35-10","Tytoń na liście","dt","B",24.218399999999999,1837.4652000000001,null,null,"obsunięcia się ziemi "]
["CTytoń na liście","61-35-10","Tytoń na liście","dt","C",24.405999999999999,1855.3215,null,null,"lawiny"]
["DTytoń na liście","61-35-10","Tytoń na liście","dt","D",21.1998,1625.1840999999999]
["AChmiel na szyszki","61-35-20","Chmiel na szyszki","dt","A",17.701599999999999,1972.9441999999999]
["BChmiel na szyszki","61-35-20","Chmiel na szyszki","dt","B",17.701599999999999,1972.9441999999999]
["CChmiel na szyszki","61-35-20","Chmiel na szyszki","dt","C",18.436599999999999,2002.2270000000001]
["DChmiel na szyszki","61-35-20","Chmiel na szyszki","dt","D",17.701599999999999,1972.9441999999999]
["ARośliny zielarskie (lecznicze, przyprawowe, aromatyczne)","61-35-30","Rośliny zielarskie (lecznicze, przyprawowe, aromatyczne)","dt","A",7.2176999999999998,573.65930000000003]
["BRośliny zielarskie (lecznicze, przyprawowe, aromatyczne)","61-35-30","Rośliny zielarskie (lecznicze, przyprawowe, aromatyczne)","dt","B",24.7074,801.48969999999997]
["CRośliny zielarskie (lecznicze, przyprawowe, aromatyczne)","61-35-30","Rośliny zielarskie (lecznicze, przyprawowe, aromatyczne)","dt","C",16.337800000000001,1098.1957]
["DRośliny zielarskie (lecznicze, przyprawowe, aromatyczne)","61-35-30","Rośliny zielarskie (lecznicze, przyprawowe, aromatyczne)","dt","D",16.285299999999999,988.01760000000002]
["AWiklina","61-35-40","Wiklina","dt","A",129.91069999999999,72.206800000000001]
["BWiklina","61-35-40","Wiklina","dt","B",129.91069999999999,72.206800000000001]
["CWiklina","61-35-40","Wiklina","dt","C",129.91069999999999,72.206800000000001]
["DWiklina","61-35-40","Wiklina","dt","D",129.91069999999999,72.206800000000001]
["AZiemniaki","61-4","Ziemniaki","dt","A",257.92509999999999,70.174899999999994]
["BZiemniaki","61-4","Ziemniaki","dt","B",262.50330000000002,71.763599999999997]
["CZiemniaki","61-4","Ziemniaki","dt","C",227.54689999999999,88.804900000000004]
["DZiemniaki","61-4","Ziemniaki","dt","D",226.49039999999999,112.41240000000001]
["AZiemniaki jadalne","61-42-00","Ziemniaki jadalne","dt","A",233.9639,94.085899999999995]
["BZiemniaki jadalne","61-42-00","Ziemniaki jadalne","dt","B",255.80340000000001,94.81]
["CZiemniaki jadalne","61-42-00","Ziemniaki jadalne","dt","C",227.73599999999999,97.845699999999994]
["DZiemniaki jadalne","61-42-00","Ziemniaki jadalne","dt","D",231.75559999999999,111.6126]
["AZiemniaki skrobiowe","61-43-00","Ziemniaki skrobiowe","dt","A",334.55160000000001,38.976100000000002]
["BZiemniaki skrobiowe","61-43-00","Ziemniaki skrobiowe","dt","B",286.49520000000001,45.199100000000001]
["CZiemniaki skrobiowe","61-43-00","Ziemniaki skrobiowe","dt","C",266.00099999999998,39.142200000000003]
["DZiemniaki skrobiowe","61-43-00","Ziemniaki skrobiowe","dt","D",293.13389999999998,43.030999999999999]
["AZiemniaki ogólnoużytkowe","61-49-00","Ziemniaki ogólnoużytkowe","dt","A",224.79920000000001,91.455699999999993]
["BZiemniaki ogólnoużytkowe","61-49-00","Ziemniaki ogólnoużytkowe","dt","B",253.0033,97.328599999999994]
["CZiemniaki ogólnoużytkowe","61-49-00","Ziemniaki ogólnoużytkowe","dt","C",216.51339999999999,100.2923]
["DZiemniaki ogólnoużytkowe","61-49-00","Ziemniaki ogólnoużytkowe","dt","D",206.97819999999999,118.3813]
["ARośliny pastewne objętościowe na gruntach ornych","61-5","Rośliny pastewne objętościowe na gruntach ornych","dt","A",319.99169999999998,17.8809]
["BRośliny pastewne objętościowe na gruntach ornych","61-5","Rośliny pastewne objętościowe na gruntach ornych","dt","B",400.77789999999999,18.579599999999999]
["CRośliny pastewne objętościowe na gruntach ornych","61-5","Rośliny pastewne objętościowe na gruntach ornych","dt","C",416.72699999999998,18.8001]
["DRośliny pastewne objętościowe na gruntach ornych","61-5","Rośliny pastewne objętościowe na gruntach ornych","dt","D",375.57659999999998,18.930599999999998]
["AOkopowe pastewne na pasze","61-51","Okopowe pastewne na pasze","dt","A",359.45319999999998,12.548400000000001]
["BOkopowe pastewne na pasze","61-51","Okopowe pastewne na pasze","dt","B",416.05880000000002,13.374599999999999]
["COkopowe pastewne na pasze","61-51","Okopowe pastewne na pasze","dt","C",349.55509999999998,13.6799]
["DOkopowe pastewne na pasze","61-51","Okopowe pastewne na pasze","dt","D",410.58280000000002,13.244]
["ABuraki pastewne na pasze","61-51-10","Buraki pastewne na pasze","dt","A",397.09320000000002,13.721399999999999]
["BBuraki pastewne na pasze","61-51-10","Buraki pastewne na pasze","dt","B",468.0129,13.3772]
["CBuraki pastewne na pasze","61-51-10","Buraki pastewne na pasze","dt","C",512.03390000000002,13.1525]
["DBuraki pastewne na pasze","61-51-10","Buraki pastewne na pasze","dt","D",490.8836,13.203900000000001]
["AMarchew pastewna na pasze","61-51-30","Marchew pastewna na pasze","dt","A",335.37150000000003,20.360299999999999]
["BMarchew pastewna na pasze","61-51-30","Marchew pastewna na pasze","dt","B",335.37150000000003,20.360299999999999]
["CMarchew pastewna na pasze","61-51-30","Marchew pastewna na pasze","dt","C",397.79410000000001,20.083600000000001]
["DMarchew pastewna na pasze","61-51-30","Marchew pastewna na pasze","dt","D",335.37150000000003,20.360299999999999]
["ADynia pastewna na pasze","61-51-60","Dynia pastewna na pasze","dt","A",302.983,11.7332]
["BDynia pastewna na pasze","61-51-60","Dynia pastewna na pasze","dt","B",311.66430000000003,13.0777]
["CDynia pastewna na pasze","61-51-60","Dynia pastewna na pasze","dt","C",301.66449999999998,12.949199999999999]
["DDynia pastewna na pasze","61-51-60","Dynia pastewna na pasze","dt","D",410.90429999999998,13.013299999999999]
["AKukurydza pastewna na zielonkę","61-52-00","Kukurydza pastewna na zielonkę","dt","A",474.10969999999998,17.9849]
[{"$f":"E260&C260","v":"BKukurydza pastewna na zielonkę"},"61-52-00","Kukurydza pastewna na zielonkę","dt","B",465.46519999999998,18.531400000000001]
["CKukurydza pastewna na zielonkę","61-52-00","Kukurydza pastewna na zielonkę","dt","C",505.21890000000002,18.795500000000001]
["DKukurydza pastewna na zielonkę","61-52-00","Kukurydza pastewna na zielonkę","dt","D",528.61239999999998,19.0395]
["AZboża i mieszanki zbóż z innymi roślinami na zielonkę","61-53-00","Zboża i mieszanki zbóż z innymi roślinami na zielonkę","dt","A",195.85810000000001,19.223099999999999]
["BZboża i mieszanki zbóż z innymi roślinami na zielonkę","61-53-00","Zboża i mieszanki zbóż z innymi roślinami na zielonkę","dt","B",246.76849999999999,18.804600000000001]
["CZboża i mieszanki zbóż z innymi roślinami na zielonkę","61-53-00","Zboża i mieszanki zbóż z innymi roślinami na zielonkę","dt","C",150.1841,18.347999999999999]
["DZboża i mieszanki zbóż z innymi roślinami na zielonkę","61-53-00","Zboża i mieszanki zbóż z innymi roślinami na zielonkę","dt","D",208.33070000000001,19.317699999999999]
["ATrawy w uprawie polowej na zielonkę (UZ)","61-54-00","Trawy w uprawie polowej na zielonkę (UZ)","dt","A",240.0241,18.131]
["BTrawy w uprawie polowej na zielonkę (UZ)","61-54-00","Trawy w uprawie polowej na zielonkę (UZ)","dt","B",250.32429999999999,18.616099999999999]
["CTrawy w uprawie polowej na zielonkę (UZ)","61-54-00","Trawy w uprawie polowej na zielonkę (UZ)","dt","C",285.5061,19.031300000000002]
["DTrawy w uprawie polowej na zielonkę (UZ)","61-54-00","Trawy w uprawie polowej na zielonkę (UZ)","dt","D",273.82900000000001,18.901900000000001]
["AStrączkowe na zielonkę","61-55-00","Strączkowe na zielonkę","dt","A",208.61609999999999,19.9712]
["BStrączkowe na zielonkę","61-55-00","Strączkowe na zielonkę","dt","B",224.94059999999999,17.778300000000002]
["CStrączkowe na zielonkę","61-55-00","Strączkowe na zielonkę","dt","C",209.58070000000001,18.230899999999998]
["DStrączkowe na zielonkę","61-55-00","Strączkowe na zielonkę","dt","D",156.62389999999999,18.918500000000002]
["AMotylkowe drobnonasienne na zielonkę (UZ)","61-56-00","Motylkowe drobnonasienne na zielonkę (UZ)","dt","A",260.73129999999998,17.396799999999999]
["BMotylkowe drobnonasienne na zielonkę (UZ)","61-56-00","Motylkowe drobnonasienne na zielonkę (UZ)","dt","B",286.54989999999998,18.449000000000002]
["CMotylkowe drobnonasienne na zielonkę (UZ)","61-56-00","Motylkowe drobnonasienne na zielonkę (UZ)","dt","C",305.20920000000001,18.661899999999999]
["DMotylkowe drobnonasienne na zielonkę (UZ)","61-56-00","Motylkowe drobnonasienne na zielonkę (UZ)","dt","D",316.91320000000002,18.784500000000001]
["AMieszanki motylkowych z trawami (UZ)","61-57-00","Mieszanki motylkowych z trawami (UZ)","dt","A",257.84739999999999,18.0259]
["BMieszanki motylkowych z trawami (UZ)","61-57-00","Mieszanki motylkowych z trawami (UZ)","dt","B",275.78269999999998,18.457799999999999]
["CMieszanki motylkowych z trawami (UZ)","61-57-00","Mieszanki motylkowych z trawami (UZ)","dt","C",310.86180000000002,18.555800000000001]
["DMieszanki motylkowych z trawami (UZ)","61-57-00","Mieszanki motylkowych z trawami (UZ)","dt","D",291.48430000000002,18.3399]
["APozostałe polowe uprawy pastewne na zielonkę","61-59-00","Pozostałe polowe uprawy pastewne na zielonkę","dt","A",149.905,16.811900000000001]
["BPozostałe polowe uprawy pastewne na zielonkę","61-59-00","Pozostałe polowe uprawy pastewne na zielonkę","dt","B",170.227,16.861999999999998]
["CPozostałe polowe uprawy pastewne na zielonkę","61-59-00","Pozostałe polowe uprawy pastewne na zielonkę","dt","C",129.53739999999999,17.836300000000001]
["DPozostałe polowe uprawy pastewne na zielonkę","61-59-00","Pozostałe polowe uprawy pastewne na zielonkę","dt","D",165.91139999999999,19.640999999999998]
["ARośliny pastewne objętościowe z użytków zielonych (uprawa lub zielonka) (UZ)","61-6","Rośliny pastewne objętościowe z użytków zielonych (uprawa lub zielonka) (UZ)","dt","A",222.7099,18.225100000000001]
["BRośliny pastewne objętościowe z użytków zielonych (uprawa lub zielonka) (UZ)","61-6","Rośliny pastewne objętościowe z użytków zielonych (uprawa lub zielonka) (UZ)","dt","B",255.44980000000001,18.4315]
["CRośliny pastewne objętościowe z użytków zielonych (uprawa lub zielonka) (UZ)","61-6","Rośliny pastewne objętościowe z użytków zielonych (uprawa lub zielonka) (UZ)","dt","C",271.6669,18.844000000000001]
["DRośliny pastewne objętościowe z użytków zielonych (uprawa lub zielonka) (UZ)","61-6","Rośliny pastewne objętościowe z użytków zielonych (uprawa lub zielonka) (UZ)","dt","D",276.06549999999999,18.783799999999999]
["ARośliny pastewne objętościowe z łąk - zielonka (UZ)","61-61-00","Rośliny pastewne objętościowe z łąk - zielonka (UZ)","dt","A",219.99250000000001,18.411300000000001]
["BRośliny pastewne objętościowe z łąk - zielonka (UZ)","61-61-00","Rośliny pastewne objętościowe z łąk - zielonka (UZ)","dt","B",255.1335,18.444199999999999]
["CRośliny pastewne objętościowe z łąk - zielonka (UZ)","61-61-00","Rośliny pastewne objętościowe z łąk - zielonka (UZ)","dt","C",271.60610000000003,18.825099999999999]
["DRośliny pastewne objętościowe z łąk - zielonka (UZ)","61-61-00","Rośliny pastewne objętościowe z łąk - zielonka (UZ)","dt","D",277.79270000000002,18.804099999999998]
["ARośliny pastewne objętościowe z pastwisk (UZ)","61-62","Rośliny pastewne objętościowe z pastwisk (UZ)","dt","A",223.304,18.080500000000001]
["BRośliny pastewne objętościowe z pastwisk (UZ)","61-62","Rośliny pastewne objętościowe z pastwisk (UZ)","dt","B",227.21250000000001,18.717500000000001]
["CRośliny pastewne objętościowe z pastwisk (UZ)","61-62","Rośliny pastewne objętościowe z pastwisk (UZ)","dt","C",271.54539999999997,19.060300000000002]
["DRośliny pastewne objętościowe z pastwisk (UZ)","61-62","Rośliny pastewne objętościowe z pastwisk (UZ)","dt","D",255.55070000000001,18.520499999999998]
["ARośliny pastewne objętościowe z pastwisk pielęgnowanych (UZ)","61-62-10","Rośliny pastewne objętościowe z pastwisk pielęgnowanych (UZ)","dt","A",225.71539999999999,18.1264]
["BRośliny pastewne objętościowe z pastwisk pielęgnowanych (UZ)","61-62-10","Rośliny pastewne objętościowe z pastwisk pielęgnowanych (UZ)","dt","B",233.2106,18.728000000000002]
["CRośliny pastewne objętościowe z pastwisk pielęgnowanych (UZ)","61-62-10","Rośliny pastewne objętościowe z pastwisk pielęgnowanych (UZ)","dt","C",274.50290000000001,19.090699999999998]
["DRośliny pastewne objętościowe z pastwisk pielęgnowanych (UZ)","61-62-10","Rośliny pastewne objętościowe z pastwisk pielęgnowanych (UZ)","dt","D",258.78789999999998,18.4876]
["ARośliny pastewne objętościowe z pastwisk niepielęgnowanych (UZ)","61-62-20","Rośliny pastewne objętościowe z pastwisk niepielęgnowanych (UZ)","dt","A",185.25880000000001,17.378499999999999]
["BRośliny pastewne objętościowe z pastwisk niepielęgnowanych (UZ)","61-62-20","Rośliny pastewne objętościowe z pastwisk niepielęgnowanych (UZ)","dt","B",202.60120000000001,17.794699999999999]
["CRośliny pastewne objętościowe z pastwisk niepielęgnowanych (UZ)","61-62-20","Rośliny pastewne objętościowe z pastwisk niepielęgnowanych (UZ)","dt","C",195.82320000000001,17.720500000000001]
["DRośliny pastewne objętościowe z pastwisk niepielęgnowanych (UZ)","61-62-20","Rośliny pastewne objętościowe z pastwisk niepielęgnowanych (UZ)","dt","D",149.8519,21.284300000000002]
["AWarzywa","61-7","Warzywa","dt","A",171.53970000000001,112.47790000000001]
["BWarzywa","61-7","Warzywa","dt","B",285.99459999999999,145.40979999999999]
["CWarzywa","61-7","Warzywa","dt","C",253.71430000000001,160.1232]
["DWarzywa","61-7","Warzywa","dt","D",273.73110000000003,170.04689999999999]
["AWarzywa w uprawie polowej","61-71","Warzywa w uprawie polowej","dt","A",171.8246,106.0067]
["BWarzywa w uprawie polowej","61-71","Warzywa w uprawie polowej","dt","B",263.45249999999999,99.439899999999994]
["CWarzywa w uprawie polowej","61-71","Warzywa w uprawie polowej","dt","C",235.21350000000001,120.4935]
["DWarzywa w uprawie polowej","61-71","Warzywa w uprawie polowej","dt","D",252.55600000000001,120.79649999999999]
["AWarzywa uprawiane dla owoców i kwiatów w uprawie polowej","61-71-1","Warzywa uprawiane dla owoców i kwiatów w uprawie polowej","dt","A",193.44290000000001,83.665700000000001]
["BWarzywa uprawiane dla owoców i kwiatów w uprawie polowej","61-71-1","Warzywa uprawiane dla owoców i kwiatów w uprawie polowej","dt","B",237.4462,113.6704]
["CWarzywa uprawiane dla owoców i kwiatów w uprawie polowej","61-71-1","Warzywa uprawiane dla owoców i kwiatów w uprawie polowej","dt","C",212.089,141.84639999999999]
["DWarzywa uprawiane dla owoców i kwiatów w uprawie polowej","61-71-1","Warzywa uprawiane dla owoców i kwiatów w uprawie polowej","dt","D",189.66,215.50749999999999]
["APomidory w uprawie polowej","61-71-10","Pomidory w uprawie polowej","dt","A",456.14819999999997,68.271699999999996]
["BPomidory w uprawie polowej","61-71-10","Pomidory w uprawie polowej","dt","B",464.24959999999999,67.710899999999995]
["CPomidory w uprawie polowej","61-71-10","Pomidory w uprawie polowej","dt","C",439.86849999999998,64.864199999999997]
["DPomidory w uprawie polowej","61-71-10","Pomidory w uprawie polowej","dt","D",342.00400000000002,176.71]
["AWarzywa liściaste i łodygowe w uprawie polowej","61-71-2","Warzywa liściaste i łodygowe w uprawie polowej","dt","A",234.3792,137.82400000000001]
[{"$f":"E324&C324","v":"BWarzywa liściaste i łodygowe w uprawie polowej"},"61-71-2","Warzywa liściaste i łodygowe w uprawie polowej","dt","B",242.5941,93.395300000000006]
["CWarzywa liściaste i łodygowe w uprawie polowej","61-71-2","Warzywa liściaste i łodygowe w uprawie polowej","dt","C",300.93610000000001,138.27930000000001]
["DWarzywa liściaste i łodygowe w uprawie polowej","61-71-2","Warzywa liściaste i łodygowe w uprawie polowej","dt","D",292.08609999999999,108.083]
["AOgórki w uprawie polowej","61-71-20","Ogórki w uprawie polowej","dt","A",197.9837,220.93260000000001]
["BOgórki w uprawie polowej","61-71-20","Ogórki w uprawie polowej","dt","B",280.95569999999998,151.3621]
["COgórki w uprawie polowej","61-71-20","Ogórki w uprawie polowej","dt","C",202.79509999999999,217.19820000000001]
["DOgórki w uprawie polowej","61-71-20","Ogórki w uprawie polowej","dt","D",186.39230000000001,256.70670000000001]
["AWarzywa korzeniowe i bulwiaste w uprawie polowej","61-71-3","Warzywa korzeniowe i bulwiaste w uprawie polowej","dt","A",277.16989999999998,112.5378]
["BWarzywa korzeniowe i bulwiaste w uprawie polowej","61-71-3","Warzywa korzeniowe i bulwiaste w uprawie polowej","dt","B",310.65030000000002,93.327500000000001]
["CWarzywa korzeniowe i bulwiaste w uprawie polowej","61-71-3","Warzywa korzeniowe i bulwiaste w uprawie polowej","dt","C",298.6046,108.00839999999999]
["DWarzywa korzeniowe i bulwiaste w uprawie polowej","61-71-3","Warzywa korzeniowe i bulwiaste w uprawie polowej","dt","D",291.51119999999997,106.0504]
["AKalafiory i brokuły w uprawie polowej","61-71-30","Kalafiory i brokuły w uprawie polowej","dt","A",143.91059999999999,233.00739999999999]
["BKalafiory i brokuły w uprawie polowej","61-71-30","Kalafiory i brokuły w uprawie polowej","dt","B",141.0078,247.7525]
["CKalafiory i brokuły w uprawie polowej","61-71-30","Kalafiory i brokuły w uprawie polowej","dt","C",148.36089999999999,215.54329999999999]
["DKalafiory i brokuły w uprawie polowej","61-71-30","Kalafiory i brokuły w uprawie polowej","dt","D",144.91640000000001,177.83799999999999]
["AWarzywa strączkowe do zbioru na zielono w uprawie polowej","61-71-4","Warzywa strączkowe do zbioru na zielono w uprawie polowej","dt","A",68.552700000000002,154.22450000000001]
["BWarzywa strączkowe do zbioru na zielono w uprawie polowej","61-71-4","Warzywa strączkowe do zbioru na zielono w uprawie polowej","dt","B",89.194699999999997,154.71090000000001]
["CWarzywa strączkowe do zbioru na zielono w uprawie polowej","61-71-4","Warzywa strączkowe do zbioru na zielono w uprawie polowej","dt","C",90.842200000000005,157.05199999999999]
["DWarzywa strączkowe do zbioru na zielono w uprawie polowej","61-71-4","Warzywa strączkowe do zbioru na zielono w uprawie polowej","dt","D",81.288600000000002,264.27339999999998]
["AInne warzywa uprawiane dla owoców i kwiatów w uprawie polowej","61-71-40","Inne warzywa uprawiane dla owoców i kwiatów w uprawie polowej","dt","A",203.75909999999999,63.351500000000001]
["BInne warzywa uprawiane dla owoców i kwiatów w uprawie polowej","61-71-40","Inne warzywa uprawiane dla owoców i kwiatów w uprawie polowej","dt","B",180.44149999999999,87.954400000000007]
["CInne warzywa uprawiane dla owoców i kwiatów w uprawie polowej","61-71-40","Inne warzywa uprawiane dla owoców i kwiatów w uprawie polowej","dt","C",176.25819999999999,138.16999999999999]
["DInne warzywa uprawiane dla owoców i kwiatów w uprawie polowej","61-71-40","Inne warzywa uprawiane dla owoców i kwiatów w uprawie polowej","dt","D",187.19110000000001,220.053]
["AKapusta w uprawie polowej","61-71-50","Kapusta w uprawie polowej","dt","A",327.29930000000002,116.8815]
["BKapusta w uprawie polowej","61-71-50","Kapusta w uprawie polowej","dt","B",379.88819999999998,95.4589]
["CKapusta w uprawie polowej","61-71-50","Kapusta w uprawie polowej","dt","C",405.66320000000002,121.7915]
["DKapusta w uprawie polowej","61-71-50","Kapusta w uprawie polowej","dt","D",317.41579999999999,111.41549999999999]
["AInne warzywa liściaste i łodygowe (bez kapusty) w uprawie polowej","61-71-60","Inne warzywa liściaste i łodygowe (bez kapusty) w uprawie polowej","dt","A",60.747300000000003,502.44760000000002]
["BInne warzywa liściaste i łodygowe (bez kapusty) w uprawie polowej","61-71-60","Inne warzywa liściaste i łodygowe (bez kapusty) w uprawie polowej","dt","B",178.2355,127.32850000000001]
["CInne warzywa liściaste i łodygowe (bez kapusty) w uprawie polowej","61-71-60","Inne warzywa liściaste i łodygowe (bez kapusty) w uprawie polowej","dt","C",185.75579999999999,164.7824]
["DInne warzywa liściaste i łodygowe (bez kapusty) w uprawie polowej","61-71-60","Inne warzywa liściaste i łodygowe (bez kapusty) w uprawie polowej","dt","D",210.31,107.31359999999999]
["ACebula w uprawie polowej","61-71-70","Cebula w uprawie polowej","dt","A",276.81979999999999,90.975800000000007]
["BCebula w uprawie polowej","61-71-70","Cebula w uprawie polowej","dt","B",267.02530000000002,105.7727]
["CCebula w uprawie polowej","61-71-70","Cebula w uprawie polowej","dt","C",172.3356,129.46190000000001]
["DCebula w uprawie polowej","61-71-70","Cebula w uprawie polowej","dt","D",270.67270000000002,131.35339999999999]
["AInne warzywa korzeniowe i bulwiaste (bez cebuli) w uprawie polowej","61-71-80","Inne warzywa korzeniowe i bulwiaste (bez cebuli) w uprawie polowej","dt","A",240.2604,136.23169999999999]
["BInne warzywa korzeniowe i bulwiaste (bez cebuli) w uprawie polowej","61-71-80","Inne warzywa korzeniowe i bulwiaste (bez cebuli) w uprawie polowej","dt","B",379.85039999999998,77.927899999999994]
["CInne warzywa korzeniowe i bulwiaste (bez cebuli) w uprawie polowej","61-71-80","Inne warzywa korzeniowe i bulwiaste (bez cebuli) w uprawie polowej","dt","C",333.35829999999999,105.0069]
["DInne warzywa korzeniowe i bulwiaste (bez cebuli) w uprawie polowej","61-71-80","Inne warzywa korzeniowe i bulwiaste (bez cebuli) w uprawie polowej","dt","D",293.39049999999997,108.98260000000001]
["AWarzywa strączkowe do zbioru na zielono w uprawie polowej","61-71-90","Warzywa strączkowe do zbioru na zielono w uprawie polowej","dt","A",68.552700000000002,154.22450000000001]
["BWarzywa strączkowe do zbioru na zielono w uprawie polowej","61-71-90","Warzywa strączkowe do zbioru na zielono w uprawie polowej","dt","B",89.194699999999997,154.71090000000001]
["CWarzywa strączkowe do zbioru na zielono w uprawie polowej","61-71-90","Warzywa strączkowe do zbioru na zielono w uprawie polowej","dt","C",90.842200000000005,157.05199999999999]
["DWarzywa strączkowe do zbioru na zielono w uprawie polowej","61-71-90","Warzywa strączkowe do zbioru na zielono w uprawie polowej","dt","D",81.288600000000002,264.27339999999998]
["AWarzywa pod osłonami wysokimi","61-72","Warzywa pod osłonami wysokimi","dt","A",456.66669999999999,437.15730000000002]
["BWarzywa pod osłonami wysokimi","61-72","Warzywa pod osłonami wysokimi","dt","B",1859.6569,459.7448]
["CWarzywa pod osłonami wysokimi","61-72","Warzywa pod osłonami wysokimi","dt","C",406.66649999999998,350.45940000000002]
["DWarzywa pod osłonami wysokimi","61-72","Warzywa pod osłonami wysokimi","dt","D",1287.8659,431.20280000000002]
["AWarzywa uprawiane dla owoców i kwiatów w uprawie pod osłonami wysokimi","61-72-1","Warzywa uprawiane dla owoców i kwiatów w uprawie pod osłonami wysokimi","dt","A",522.27719999999999,389.33640000000003]
["BWarzywa uprawiane dla owoców i kwiatów w uprawie pod osłonami wysokimi","61-72-1","Warzywa uprawiane dla owoców i kwiatów w uprawie pod osłonami wysokimi","dt","B",2007.4474,455.27100000000002]
["CWarzywa uprawiane dla owoców i kwiatów w uprawie pod osłonami wysokimi","61-72-1","Warzywa uprawiane dla owoców i kwiatów w uprawie pod osłonami wysokimi","dt","C",447.36040000000003,328.5231]
["DWarzywa uprawiane dla owoców i kwiatów w uprawie pod osłonami wysokimi","61-72-1","Warzywa uprawiane dla owoców i kwiatów w uprawie pod osłonami wysokimi","dt","D",1404.4128000000001,424.4778]
["APomidory w uprawie pod osłonami wysokimi","61-72-10","Pomidory w uprawie pod osłonami wysokimi","dt","A",534.375,425.39890000000003]
["BPomidory w uprawie pod osłonami wysokimi","61-72-10","Pomidory w uprawie pod osłonami wysokimi","dt","B",2540.3343,470.54090000000002]
["CPomidory w uprawie pod osłonami wysokimi","61-72-10","Pomidory w uprawie pod osłonami wysokimi","dt","C",1135.6578,377.49799999999999]
["DPomidory w uprawie pod osłonami wysokimi","61-72-10","Pomidory w uprawie pod osłonami wysokimi","dt","D",1074.9138,430.31979999999999]
["AWarzywa liściaste i łodygowe w uprawie pod osłonami wysokimi","61-72-2","Warzywa liściaste i łodygowe w uprawie pod osłonami wysokimi","dt","A",375.33409999999998,270.09199999999998]
["BWarzywa liściaste i łodygowe w uprawie pod osłonami wysokimi","61-72-2","Warzywa liściaste i łodygowe w uprawie pod osłonami wysokimi","dt","B",375.33409999999998,270.09199999999998]
["CWarzywa liściaste i łodygowe w uprawie pod osłonami wysokimi","61-72-2","Warzywa liściaste i łodygowe w uprawie pod osłonami wysokimi","dt","C",386.09190000000001,265.60879999999997]
["DWarzywa liściaste i łodygowe w uprawie pod osłonami wysokimi","61-72-2","Warzywa liściaste i łodygowe w uprawie pod osłonami wysokimi","dt","D",375.33409999999998,270.09199999999998]
["AOgórki w uprawie pod osłonami wysokimi","61-72-20","Ogórki w uprawie pod osłonami wysokimi","dt","A",516.66669999999999,373.56169999999997]
["BOgórki w uprawie pod osłonami wysokimi","61-72-20","Ogórki w uprawie pod osłonami wysokimi","dt","B",1819.8764000000001,382.2842]
["COgórki w uprawie pod osłonami wysokimi","61-72-20","Ogórki w uprawie pod osłonami wysokimi","dt","C",868.92280000000005,306.05560000000003]
["DOgórki w uprawie pod osłonami wysokimi","61-72-20","Ogórki w uprawie pod osłonami wysokimi","dt","D",1612.6036999999999,411.16050000000001]
["AWarzywa korzeniowe i bulwiaste w uprawie pod osłonami wysokimi","61-72-3","Warzywa korzeniowe i bulwiaste w uprawie pod osłonami wysokimi","dt","A",241.26089999999999,325.68200000000002]
[{"$f":"E388&C388","v":"BWarzywa korzeniowe i bulwiaste w uprawie pod osłonami wysokimi"},"61-72-3","Warzywa korzeniowe i bulwiaste w uprawie pod osłonami wysokimi","dt","B",241.26089999999999,325.68200000000002]
["CWarzywa korzeniowe i bulwiaste w uprawie pod osłonami wysokimi","61-72-3","Warzywa korzeniowe i bulwiaste w uprawie pod osłonami wysokimi","dt","C",195.62620000000001,346.3272]
["DWarzywa korzeniowe i bulwiaste w uprawie pod osłonami wysokimi","61-72-3","Warzywa korzeniowe i bulwiaste w uprawie pod osłonami wysokimi","dt","D",241.26089999999999,325.68200000000002]
["AWarzywa strączkowe do zbioru na zielono w uprawie pod osłonami wysokimi","61-72-4","Warzywa strączkowe do zbioru na zielono w uprawie pod osłonami wysokimi","dt","A",202.78739999999999,801.07100000000003]
["BWarzywa strączkowe do zbioru na zielono w uprawie pod osłonami wysokimi","61-72-4","Warzywa strączkowe do zbioru na zielono w uprawie pod osłonami wysokimi","dt","B",202.78739999999999,801.07100000000003]
["CWarzywa strączkowe do zbioru na zielono w uprawie pod osłonami wysokimi","61-72-4","Warzywa strączkowe do zbioru na zielono w uprawie pod osłonami wysokimi","dt","C",203.1421,771.11170000000004]
["DWarzywa strączkowe do zbioru na zielono w uprawie pod osłonami wysokimi","61-72-4","Warzywa strączkowe do zbioru na zielono w uprawie pod osłonami wysokimi","dt","D",133.53489999999999,1145.4870000000001]
["AInne warzywa uprawiane dla owoców i kwiatów w uprawie pod osłonami wysokimi","61-72-40","Inne warzywa uprawiane dla owoców i kwiatów w uprawie pod osłonami wysokimi","dt","A",437.79399999999998,327.02]
["BInne warzywa uprawiane dla owoców i kwiatów w uprawie pod osłonami wysokimi","61-72-40","Inne warzywa uprawiane dla owoców i kwiatów w uprawie pod osłonami wysokimi","dt","B",437.79399999999998,327.02]
["CInne warzywa uprawiane dla owoców i kwiatów w uprawie pod osłonami wysokimi","61-72-40","Inne warzywa uprawiane dla owoców i kwiatów w uprawie pod osłonami wysokimi","dt","C",436.8587,326.99599999999998]
["DInne warzywa uprawiane dla owoców i kwiatów w uprawie pod osłonami wysokimi","61-72-40","Inne warzywa uprawiane dla owoców i kwiatów w uprawie pod osłonami wysokimi","dt","D",437.79399999999998,327.02]
["AKapusta w uprawie pod osłonami wysokimi","61-72-50","Kapusta w uprawie pod osłonami wysokimi","dt","A",424.84960000000001,238.3905]
["BKapusta w uprawie pod osłonami wysokimi","61-72-50","Kapusta w uprawie pod osłonami wysokimi","dt","B",424.84960000000001,238.3905]
["CKapusta w uprawie pod osłonami wysokimi","61-72-50","Kapusta w uprawie pod osłonami wysokimi","dt","C",428.86380000000003,235.39330000000001]
["DKapusta w uprawie pod osłonami wysokimi","61-72-50","Kapusta w uprawie pod osłonami wysokimi","dt","D",424.84960000000001,238.3905]
["AInne warzywa liściaste i łodygowe (bez kapusty) w uprawie pod osłonami wysokimi","61-72-60","Inne warzywa liściaste i łodygowe (bez kapusty) w uprawie pod osłonami wysokimi","dt","A",296.05669999999998,355.81709999999998]
["BInne warzywa liściaste i łodygowe (bez kapusty) w uprawie pod osłonami wysokimi","61-72-60","Inne warzywa liściaste i łodygowe (bez kapusty) w uprawie pod osłonami wysokimi","dt","B",296.05669999999998,355.81709999999998]
["CInne warzywa liściaste i łodygowe (bez kapusty) w uprawie pod osłonami wysokimi","61-72-60","Inne warzywa liściaste i łodygowe (bez kapusty) w uprawie pod osłonami wysokimi","dt","C",317.50619999999998,346.4871]
["DInne warzywa liściaste i łodygowe (bez kapusty) w uprawie pod osłonami wysokimi","61-72-60","Inne warzywa liściaste i łodygowe (bez kapusty) w uprawie pod osłonami wysokimi","dt","D",296.05669999999998,355.81709999999998]
["AInne warzywa korzeniowe i bulwiaste (bez cebuli) w uprawie pod osłonami wysokimi","61-72-80","Inne warzywa korzeniowe i bulwiaste (bez cebuli) w uprawie pod osłonami wysokimi","dt","A",241.26089999999999,325.68200000000002]
["BInne warzywa korzeniowe i bulwiaste (bez cebuli) w uprawie pod osłonami wysokimi","61-72-80","Inne warzywa korzeniowe i bulwiaste (bez cebuli) w uprawie pod osłonami wysokimi","dt","B",241.26089999999999,325.68200000000002]
["CInne warzywa korzeniowe i bulwiaste (bez cebuli) w uprawie pod osłonami wysokimi","61-72-80","Inne warzywa korzeniowe i bulwiaste (bez cebuli) w uprawie pod osłonami wysokimi","dt","C",195.62620000000001,346.3272]
["DInne warzywa korzeniowe i bulwiaste (bez cebuli) w uprawie pod osłonami wysokimi","61-72-80","Inne warzywa korzeniowe i bulwiaste (bez cebuli) w uprawie pod osłonami wysokimi","dt","D",241.26089999999999,325.68200000000002]
["AWarzywa strączkowe do zbioru na zielono w uprawie pod osłonami wysokimi","61-72-90","Warzywa strączkowe do zbioru na zielono w uprawie pod osłonami wysokimi","dt","A",202.78739999999999,801.07100000000003]
["BWarzywa strączkowe do zbioru na zielono w uprawie pod osłonami wysokimi","61-72-90","Warzywa strączkowe do zbioru na zielono w uprawie pod osłonami wysokimi","dt","B",202.78739999999999,801.07100000000003]
["CWarzywa strączkowe do zbioru na zielono w uprawie pod osłonami wysokimi","61-72-90","Warzywa strączkowe do zbioru na zielono w uprawie pod osłonami wysokimi","dt","C",203.1421,771.11170000000004]
["DWarzywa strączkowe do zbioru na zielono w uprawie pod osłonami wysokimi","61-72-90","Warzywa strączkowe do zbioru na zielono w uprawie pod osłonami wysokimi","dt","D",133.53489999999999,1145.4870000000001]
["AWarzywa w ogrodach towarowych (w płodozmianie z warzywami)","61-73","Warzywa w ogrodach towarowych (w płodozmianie z warzywami)","dt","A",171.95830000000001,312.96390000000002]
["BWarzywa w ogrodach towarowych (w płodozmianie z warzywami)","61-73","Warzywa w ogrodach towarowych (w płodozmianie z warzywami)","dt","B",171.95830000000001,312.96390000000002]
["CWarzywa w ogrodach towarowych (w płodozmianie z warzywami)","61-73","Warzywa w ogrodach towarowych (w płodozmianie z warzywami)","dt","C",171.95830000000001,312.96390000000002]
["DWarzywa w ogrodach towarowych (w płodozmianie z warzywami)","61-73","Warzywa w ogrodach towarowych (w płodozmianie z warzywami)","dt","D",275.46230000000003,123.2646]
["AKwiaty i inne rośliny ozdobne","61-8","Kwiaty i inne rośliny ozdobne","szt","A",13107.9393,3.7088999999999999]
["BKwiaty i inne rośliny ozdobne","61-8","Kwiaty i inne rośliny ozdobne","szt","B",75882.320900000006,1.8932]
["CKwiaty i inne rośliny ozdobne","61-8","Kwiaty i inne rośliny ozdobne","szt","C",23576.312000000002,1.6354]
["DKwiaty i inne rośliny ozdobne","61-8","Kwiaty i inne rośliny ozdobne","szt","D",51688.671699999999,3.903]
["AKwiaty i inne rośliny ozdobne w uprawie polowej","61-81","Kwiaty i inne rośliny ozdobne w uprawie polowej","szt","A",11752.7237,1.4415]
["BKwiaty i inne rośliny ozdobne w uprawie polowej","61-81","Kwiaty i inne rośliny ozdobne w uprawie polowej","szt","B",10808.434999999999,2.0324]
["CKwiaty i inne rośliny ozdobne w uprawie polowej","61-81","Kwiaty i inne rośliny ozdobne w uprawie polowej","szt","C",12129.086300000001,1.3051999999999999]
["DKwiaty i inne rośliny ozdobne w uprawie polowej","61-81","Kwiaty i inne rośliny ozdobne w uprawie polowej","szt","D",13156.8012,2.766]
["AKwiaty cięte w uprawie polowej","61-81-10","Kwiaty cięte w uprawie polowej","szt","A",10109.8876,1.4184000000000001]
["BKwiaty cięte w uprawie polowej","61-81-10","Kwiaty cięte w uprawie polowej","szt","B",7523.7821999999996,1.9518]
["CKwiaty cięte w uprawie polowej","61-81-10","Kwiaty cięte w uprawie polowej","szt","C",11567.0496,1.2166999999999999]
["DKwiaty cięte w uprawie polowej","61-81-10","Kwiaty cięte w uprawie polowej","szt","D",13974.316199999999,1.4153]
["AKwiaty i inne rośliny ozdobne - całe rośliny w uprawie polowej","61-81-20","Kwiaty i inne rośliny ozdobne - całe rośliny w uprawie polowej","szt","A",12935.1713,3.5461]
["BKwiaty i inne rośliny ozdobne - całe rośliny w uprawie polowej","61-81-20","Kwiaty i inne rośliny ozdobne - całe rośliny w uprawie polowej","szt","B",12935.1713,3.5461]
["CKwiaty i inne rośliny ozdobne - całe rośliny w uprawie polowej","61-81-20","Kwiaty i inne rośliny ozdobne - całe rośliny w uprawie polowej","szt","C",13163.6518,2.0213000000000001]
["DKwiaty i inne rośliny ozdobne - całe rośliny w uprawie polowej","61-81-20","Kwiaty i inne rośliny ozdobne - całe rośliny w uprawie polowej","szt","D",12998.5599,4.2054999999999998]
["AKwiaty i inne rośliny ozdobne pod osłonami wysokimi","61-82","Kwiaty i inne rośliny ozdobne pod osłonami wysokimi","szt","A",356309.39199999999,3.9409999999999998]
["BKwiaty i inne rośliny ozdobne pod osłonami wysokimi","61-82","Kwiaty i inne rośliny ozdobne pod osłonami wysokimi","szt","B",284586.55739999999,3.5558999999999998]
["CKwiaty i inne rośliny ozdobne pod osłonami wysokimi","61-82","Kwiaty i inne rośliny ozdobne pod osłonami wysokimi","szt","C",466814.22759999998,2.6608999999999998]
["DKwiaty i inne rośliny ozdobne pod osłonami wysokimi","61-82","Kwiaty i inne rośliny ozdobne pod osłonami wysokimi","szt","D",383837.12709999998,4.1307999999999998]
["AKwiaty cięte w uprawie pod osłonami wysokimi","61-82-10","Kwiaty cięte w uprawie pod osłonami wysokimi","szt","A",427349.0196,1.7256]
["BKwiaty cięte w uprawie pod osłonami wysokimi","61-82-10","Kwiaty cięte w uprawie pod osłonami wysokimi","szt","B",427349.0196,1.7256]
["CKwiaty cięte w uprawie pod osłonami wysokimi","61-82-10","Kwiaty cięte w uprawie pod osłonami wysokimi","szt","C",427349.0196,1.7256]
["DKwiaty cięte w uprawie pod osłonami wysokimi","61-82-10","Kwiaty cięte w uprawie pod osłonami wysokimi","szt","D",427349.0196,1.7256]
["AKwiaty i inne rośliny ozdobne - całe rośliny w uprawie pod osłonami wysokimi","61-82-20","Kwiaty i inne rośliny ozdobne - całe rośliny w uprawie pod osłonami wysokimi","szt","A",330366.63549999997,4.7717999999999998]
["BKwiaty i inne rośliny ozdobne - całe rośliny w uprawie pod osłonami wysokimi","61-82-20","Kwiaty i inne rośliny ozdobne - całe rośliny w uprawie pod osłonami wysokimi","szt","B",173591.86600000001,4.9786000000000001]
["CKwiaty i inne rośliny ozdobne - całe rośliny w uprawie pod osłonami wysokimi","61-82-20","Kwiaty i inne rośliny ozdobne - całe rośliny w uprawie pod osłonami wysokimi","szt","C",231307.61900000001,3.57]
["DKwiaty i inne rośliny ozdobne - całe rośliny w uprawie pod osłonami wysokimi","61-82-20","Kwiaty i inne rośliny ozdobne - całe rośliny w uprawie pod osłonami wysokimi","szt","D",374265.95409999997,4.7881999999999998]
["AOwoce","61-9","Owoce","dt","A",75.167100000000005,327.7724]
["BOwoce","61-9","Owoce","dt","B",126.88939999999999,180.33699999999999]
["COwoce","61-9","Owoce","dt","C",106.83540000000001,181.21420000000001]
["DOwoce","61-9","Owoce","dt","D",120.14319999999999,151.41579999999999]
["AOwoce w uprawie polowej","61-91","Owoce w uprawie polowej","dt","A",82.174800000000005,689.74220000000003]
[{"$f":"E452&C452","v":"BOwoce w uprawie polowej"},"61-91","Owoce w uprawie polowej","dt","B",60.397100000000002,636.65250000000003]
["COwoce w uprawie polowej","61-91","Owoce w uprawie polowej","dt","C",76.962699999999998,443.1721]
["DOwoce w uprawie polowej","61-91","Owoce w uprawie polowej","dt","D",63.7104,562.93740000000003]
["ATruskawki w uprawie polowej","61-91-10","Truskawki w uprawie polowej","dt","A",82.174800000000005,689.74220000000003]
["BTruskawki w uprawie polowej","61-91-10","Truskawki w uprawie polowej","dt","B",60.397100000000002,631.52110000000005]
["CTruskawki w uprawie polowej","61-91-10","Truskawki w uprawie polowej","dt","C",76.962699999999998,443.3528]
["DTruskawki w uprawie polowej","61-91-10","Truskawki w uprawie polowej","dt","D",63.299199999999999,565.87369999999999]
["AOwoce w uprawie pod osłonami wysokimi","61-92","Owoce w uprawie pod osłonami wysokimi","dt","A",252.90989999999999,1443.9555]
["BOwoce w uprawie pod osłonami wysokimi","61-92","Owoce w uprawie pod osłonami wysokimi","dt","B",252.90989999999999,1443.9555]
["COwoce w uprawie pod osłonami wysokimi","61-92","Owoce w uprawie pod osłonami wysokimi","dt","C",164.62880000000001,983.13940000000002]
["DOwoce w uprawie pod osłonami wysokimi","61-92","Owoce w uprawie pod osłonami wysokimi","dt","D",307.96480000000003,1487.9483]
["ATruskawki w uprawie pod osłonami wysokimi","61-92-10","Truskawki w uprawie pod osłonami wysokimi","dt","A",252.90989999999999,1443.9555]
["BTruskawki w uprawie pod osłonami wysokimi","61-92-10","Truskawki w uprawie pod osłonami wysokimi","dt","B",252.90989999999999,1443.9555]
["CTruskawki w uprawie pod osłonami wysokimi","61-92-10","Truskawki w uprawie pod osłonami wysokimi","dt","C",164.62880000000001,983.13940000000002]
["DTruskawki w uprawie pod osłonami wysokimi","61-92-10","Truskawki w uprawie pod osłonami wysokimi","dt","D",307.96480000000003,1487.9483]
["AOwoce z sadów","61-93","Owoce z sadów","dt","A",73.039100000000005,251.06139999999999]
["BOwoce z sadów","61-93","Owoce z sadów","dt","B",132.16849999999999,162.6157]
["COwoce z sadów","61-93","Owoce z sadów","dt","C",114.0295,160.73589999999999]
["DOwoce z sadów","61-93","Owoce z sadów","dt","D",126.02070000000001,138.536]
["AOwoce miękiszowe - ziarnkowe","61-93-1","Owoce miękiszowe - ziarnkowe","dt","A",83.744,111.3201]
["BOwoce miękiszowe - ziarnkowe","61-93-1","Owoce miękiszowe - ziarnkowe","dt","B",219.13059999999999,99.859499999999997]
["COwoce miękiszowe - ziarnkowe","61-93-1","Owoce miękiszowe - ziarnkowe","dt","C",234.5762,88.932500000000005]
["DOwoce miękiszowe - ziarnkowe","61-93-1","Owoce miękiszowe - ziarnkowe","dt","D",228.79089999999999,84.349400000000003]
["AJabłka","61-93-11","Jabłka","dt","A",78.932199999999995,117.24339999999999]
["BJabłka","61-93-11","Jabłka","dt","B",227.7388,96.221199999999996]
["CJabłka","61-93-11","Jabłka","dt","C",240.77019999999999,86.764899999999997]
["DJabłka","61-93-11","Jabłka","dt","D",232.6454,82.925899999999999]
["AGruszki","61-93-12","Gruszki","dt","A",100.3189,273.2199]
["BGruszki","61-93-12","Gruszki","dt","B",102.3026,260.31799999999998]
["CGruszki","61-93-12","Gruszki","dt","C",97.458399999999997,249.33670000000001]
["DGruszki","61-93-12","Gruszki","dt","D",103.1349,349.512]
["AOwoce pestkowe","61-93-2","Owoce pestkowe","dt","A",116.72880000000001,232.53579999999999]
["BOwoce pestkowe","61-93-2","Owoce pestkowe","dt","B",75.915499999999994,332.07249999999999]
["COwoce pestkowe","61-93-2","Owoce pestkowe","dt","C",80.523700000000005,258.68009999999998]
["DOwoce pestkowe","61-93-2","Owoce pestkowe","dt","D",84.693299999999994,238.21100000000001]
["AŚliwki","61-93-21","Śliwki","dt","A",156.99860000000001,196.4665]
["BŚliwki","61-93-21","Śliwki","dt","B",132.00049999999999,180.88229999999999]
["CŚliwki","61-93-21","Śliwki","dt","C",81.134399999999999,189.7963]
["DŚliwki","61-93-21","Śliwki","dt","D",93.313000000000002,166.09350000000001]
["AWiśnie","61-93-22","Wiśnie","dt","A",108.89149999999999,244.5112]
["BWiśnie","61-93-22","Wiśnie","dt","B",92.867599999999996,282.97559999999999]
["CWiśnie","61-93-22","Wiśnie","dt","C",88.878500000000003,240.6138]
["DWiśnie","61-93-22","Wiśnie","dt","D",88.707099999999997,198.07929999999999]
["ACzereśnie","61-93-23","Czereśnie","dt","A",47.623600000000003,963.67129999999997]
["BCzereśnie","61-93-23","Czereśnie","dt","B",58.216200000000001,610.02089999999998]
["CCzereśnie","61-93-23","Czereśnie","dt","C",50.196100000000001,653.29549999999995]
["DCzereśnie","61-93-23","Czereśnie","dt","D",69.382599999999996,556.98720000000003]
["ABrzoskwinie","61-93-24","Brzoskwinie","dt","A",86.105699999999999,266.53149999999999]
["BBrzoskwinie","61-93-24","Brzoskwinie","dt","B",86.105699999999999,266.53149999999999]
["CBrzoskwinie","61-93-24","Brzoskwinie","dt","C",86.105699999999999,266.53149999999999]
["DBrzoskwinie","61-93-24","Brzoskwinie","dt","D",110.1853,232.54939999999999]
["AMorele","61-93-25","Morele","dt","A",78.720100000000002,287.45440000000002]
["BMorele","61-93-25","Morele","dt","B",78.720100000000002,287.45440000000002]
["CMorele","61-93-25","Morele","dt","C",78.720100000000002,287.45440000000002]
["DMorele","61-93-25","Morele","dt","D",85.733500000000006,282.06389999999999]
["AOrzechy","61-93-3","Orzechy","dt","A",19.237500000000001,676.81129999999996]
["BOrzechy","61-93-3","Orzechy","dt","B",7.4012000000000002,846.94659999999999]
["COrzechy","61-93-3","Orzechy","dt","C",26.819400000000002,413.30799999999999]
["DOrzechy","61-93-3","Orzechy","dt","D",17.380099999999999,709.50229999999999]
["AOrzechy włoskie","61-93-31","Orzechy włoskie","dt","A",20.011700000000001,589.00580000000002]
["BOrzechy włoskie","61-93-31","Orzechy włoskie","dt","B",20.011700000000001,589.00580000000002]
["COrzechy włoskie","61-93-31","Orzechy włoskie","dt","C",28.485900000000001,1039.1922999999999]
["DOrzechy włoskie","61-93-31","Orzechy włoskie","dt","D",18.635300000000001,481.98360000000002]
["AOrzechy laskowe","61-93-32","Orzechy laskowe","dt","A",18.666399999999999,703.66729999999995]
[{"$f":"E516&C516","v":"BOrzechy laskowe"},"61-93-32","Orzechy laskowe","dt","B",18.666399999999999,703.66729999999995]
["COrzechy laskowe","61-93-32","Orzechy laskowe","dt","C",23.770900000000001,503.99290000000002]
["DOrzechy laskowe","61-93-32","Orzechy laskowe","dt","D",17.309200000000001,716.54010000000005]
["AOwoce jagodowe","61-93-4","Owoce jagodowe","dt","A",36.747599999999998,676.54579999999999]
["BOwoce jagodowe","61-93-4","Owoce jagodowe","dt","B",32.559199999999997,542.3021]
["COwoce jagodowe","61-93-4","Owoce jagodowe","dt","C",41.253300000000003,469.41120000000001]
["DOwoce jagodowe","61-93-4","Owoce jagodowe","dt","D",35.716200000000001,534.13009999999997]
["AAgrest","61-93-41","Agrest","dt","A",55.366300000000003,107.23560000000001]
["BAgrest","61-93-41","Agrest","dt","B",55.366300000000003,107.23560000000001]
["CAgrest","61-93-41","Agrest","dt","C",54.4161,99.984800000000007]
["DAgrest","61-93-41","Agrest","dt","D",55.366300000000003,107.23560000000001]
["AAronia","61-93-42","Aronia","dt","A",51.730800000000002,96.507800000000003]
["BAronia","61-93-42","Aronia","dt","B",51.730800000000002,96.507800000000003]
["CAronia","61-93-42","Aronia","dt","C",51.8322,95.271600000000007]
["DAronia","61-93-42","Aronia","dt","D",52.497,113.95229999999999]
["APorzeczki czarne","61-93-43","Porzeczki czarne","dt","A",53.081200000000003,262.11880000000002]
["BPorzeczki czarne","61-93-43","Porzeczki czarne","dt","B",36.943399999999997,252.43530000000001]
["CPorzeczki czarne","61-93-43","Porzeczki czarne","dt","C",38.150700000000001,501.40010000000001]
["DPorzeczki czarne","61-93-43","Porzeczki czarne","dt","D",34.226399999999998,461.72120000000001]
["APorzeczki czerwone","61-93-45","Porzeczki czerwone","dt","A",55.405099999999997,117.8934]
["BPorzeczki czerwone","61-93-45","Porzeczki czerwone","dt","B",55.405099999999997,117.8934]
["CPorzeczki czerwone","61-93-45","Porzeczki czerwone","dt","C",56.565100000000001,108.5407]
["DPorzeczki czerwone","61-93-45","Porzeczki czerwone","dt","D",60.240299999999998,121.78360000000001]
["AMaliny ogrodowe","61-93-46","Maliny ogrodowe","dt","A",26.9923,985.08280000000002]
["BMaliny ogrodowe","61-93-46","Maliny ogrodowe","dt","B",24.749300000000002,1313.4106999999999]
["CMaliny ogrodowe","61-93-46","Maliny ogrodowe","dt","C",41.4878,803.61310000000003]
["DMaliny ogrodowe","61-93-46","Maliny ogrodowe","dt","D",25.985399999999998,1093.8512000000001]
["AJeżyny","61-93-47","Jeżyny","dt","A",61.917400000000001,1191.9636]
["BJeżyny","61-93-47","Jeżyny","dt","B",61.917400000000001,1191.9636]
["CJeżyny","61-93-47","Jeżyny","dt","C",61.917400000000001,1191.9636]
["DJeżyny","61-93-47","Jeżyny","dt","D",61.917400000000001,1191.9636]
["ABorówki","61-93-48","Borówki","dt","A",44.614800000000002,1285.9703999999999]
["BBorówki","61-93-48","Borówki","dt","B",29.592400000000001,1138.0061000000001]
["CBorówki","61-93-48","Borówki","dt","C",52.417200000000001,1241.8625999999999]
["DBorówki","61-93-48","Borówki","dt","D",35.5411,1536.7348999999999]
["APozostałe owoce jagodowe","61-93-49","Pozostałe owoce jagodowe","dt","A",25.033999999999999,396.46069999999997]
["BPozostałe owoce jagodowe","61-93-49","Pozostałe owoce jagodowe","dt","B",25.033999999999999,396.46069999999997]
["CPozostałe owoce jagodowe","61-93-49","Pozostałe owoce jagodowe","dt","C",20.7456,396.17110000000002]
["DPozostałe owoce jagodowe","61-93-49","Pozostałe owoce jagodowe","dt","D",75.131799999999998,353.23320000000001]
["AWinogrona","61-93-50","Winogrona","dt","A",49.3279,566.4375]
["BWinogrona","61-93-50","Winogrona","dt","B",49.3279,566.4375]
["CWinogrona","61-93-50","Winogrona","dt","C",49.3279,566.4375]
["DWinogrona","61-93-50","Winogrona","dt","D",49.3279,566.4375]
["APlantacje nasienne traw","62-10-00","Plantacje nasienne traw",null,"A",1,5202.4996000000001]
["BPlantacje nasienne traw","62-10-00","Plantacje nasienne traw",null,"B",1,3577.9022]
["CPlantacje nasienne traw","62-10-00","Plantacje nasienne traw",null,"C",1,5132.1913000000004]
["DPlantacje nasienne traw","62-10-00","Plantacje nasienne traw",null,"D",1,4976.9483]
["APlantacje nasienne motylkowych drobnonasiennych","62-20-00","Plantacje nasienne motylkowych drobnonasiennych",null,"A",1,2953.6995000000002]
["BPlantacje nasienne motylkowych drobnonasiennych","62-20-00","Plantacje nasienne motylkowych drobnonasiennych",null,"B",1,2145.7979999999998]
["CPlantacje nasienne motylkowych drobnonasiennych","62-20-00","Plantacje nasienne motylkowych drobnonasiennych",null,"C",1,6549.0109000000002]
["DPlantacje nasienne motylkowych drobnonasiennych","62-20-00","Plantacje nasienne motylkowych drobnonasiennych",null,"D",1,2953.6995000000002]
["AUprawy nasienne i rozsadniki warzyw i kwiatów","62-4","Uprawy nasienne i rozsadniki warzyw i kwiatów",null,"A",1,17342.0759]
["BUprawy nasienne i rozsadniki warzyw i kwiatów","62-4","Uprawy nasienne i rozsadniki warzyw i kwiatów",null,"B",1,12508.164000000001]
["CUprawy nasienne i rozsadniki warzyw i kwiatów","62-4","Uprawy nasienne i rozsadniki warzyw i kwiatów",null,"C",1,16521.930700000001]
["DUprawy nasienne i rozsadniki warzyw i kwiatów","62-4","Uprawy nasienne i rozsadniki warzyw i kwiatów",null,"D",1,85510.290699999998]
["AUprawy nasienne i rozsadniki warzyw i kwiatów w uprawie polowej","62-41","Uprawy nasienne i rozsadniki warzyw i kwiatów w uprawie polowej",null,"A",1,13452.8977]
["BUprawy nasienne i rozsadniki warzyw i kwiatów w uprawie polowej","62-41","Uprawy nasienne i rozsadniki warzyw i kwiatów w uprawie polowej",null,"B",1,12307.3874]
["CUprawy nasienne i rozsadniki warzyw i kwiatów w uprawie polowej","62-41","Uprawy nasienne i rozsadniki warzyw i kwiatów w uprawie polowej",null,"C",1,16096.9282]
["DUprawy nasienne i rozsadniki warzyw i kwiatów w uprawie polowej","62-41","Uprawy nasienne i rozsadniki warzyw i kwiatów w uprawie polowej",null,"D",1,13452.8977]
["AUprawy nasienne i rozsadniki warzyw w uprawie polowej","62-41-10","Uprawy nasienne i rozsadniki warzyw w uprawie polowej",null,"A",1,13513.4216]
["BUprawy nasienne i rozsadniki warzyw w uprawie polowej","62-41-10","Uprawy nasienne i rozsadniki warzyw w uprawie polowej",null,"B",1,11986.246499999999]
["CUprawy nasienne i rozsadniki warzyw w uprawie polowej","62-41-10","Uprawy nasienne i rozsadniki warzyw w uprawie polowej",null,"C",1,16810.392500000002]
["DUprawy nasienne i rozsadniki warzyw w uprawie polowej","62-41-10","Uprawy nasienne i rozsadniki warzyw w uprawie polowej",null,"D",1,13513.4216]
["AUprawy nasienne i rozsadniki warzyw i kwiatów pod osłonami wysokimi","62-42","Uprawy nasienne i rozsadniki warzyw i kwiatów pod osłonami wysokimi",null,"A",1,564289.52760000003]
[{"$f":"E580&C580","v":"BUprawy nasienne i rozsadniki warzyw i kwiatów pod osłonami wysokimi"},"62-42","Uprawy nasienne i rozsadniki warzyw i kwiatów pod osłonami wysokimi",null,"B",1,564289.52760000003]
["CUprawy nasienne i rozsadniki warzyw i kwiatów pod osłonami wysokimi","62-42","Uprawy nasienne i rozsadniki warzyw i kwiatów pod osłonami wysokimi",null,"C",1,564289.52760000003]
["DUprawy nasienne i rozsadniki warzyw i kwiatów pod osłonami wysokimi","62-42","Uprawy nasienne i rozsadniki warzyw i kwiatów pod osłonami wysokimi",null,"D",1,842697.5196]
["ANasienniki i rozsadniki warzyw w uprawie pod osłonami wysokimi","62-42-10","Nasienniki i rozsadniki warzyw w uprawie pod osłonami wysokimi",null,"A",1,700234.31519999995]
["BNasienniki i rozsadniki warzyw w uprawie pod osłonami wysokimi","62-42-10","Nasienniki i rozsadniki warzyw w uprawie pod osłonami wysokimi",null,"B",1,700234.31519999995]
["CNasienniki i rozsadniki warzyw w uprawie pod osłonami wysokimi","62-42-10","Nasienniki i rozsadniki warzyw w uprawie pod osłonami wysokimi",null,"C",1,700234.31519999995]
["DNasienniki i rozsadniki warzyw w uprawie pod osłonami wysokimi","62-42-10","Nasienniki i rozsadniki warzyw w uprawie pod osłonami wysokimi",null,"D",1,1103267.4526]
["ANasienniki i rozsadniki kwiatów w uprawie pod osłonami wysokimi","62-42-20","Nasienniki i rozsadniki kwiatów w uprawie pod osłonami wysokimi",null,"A",1,476921.14689999999]
["BNasienniki i rozsadniki kwiatów w uprawie pod osłonami wysokimi","62-42-20","Nasienniki i rozsadniki kwiatów w uprawie pod osłonami wysokimi",null,"B",1,476921.14689999999]
["CNasienniki i rozsadniki kwiatów w uprawie pod osłonami wysokimi","62-42-20","Nasienniki i rozsadniki kwiatów w uprawie pod osłonami wysokimi",null,"C",1,476921.14689999999]
["DNasienniki i rozsadniki kwiatów w uprawie pod osłonami wysokimi","62-42-20","Nasienniki i rozsadniki kwiatów w uprawie pod osłonami wysokimi",null,"D",1,476921.14689999999]
["AInne uprawy nasienne","62-5","Inne uprawy nasienne",null,"A",1,11970.649100000001]
["BInne uprawy nasienne","62-5","Inne uprawy nasienne",null,"B",1,11970.649100000001]
["CInne uprawy nasienne","62-5","Inne uprawy nasienne",null,"C",1,11970.649100000001]
["DInne uprawy nasienne","62-5","Inne uprawy nasienne",null,"D",1,11970.649100000001]
["AInne uprawy nasienne i rozsadniki w uprawie polowej","62-51-00","Inne uprawy nasienne i rozsadniki w uprawie polowej",null,"A",1,11970.649100000001]
["BInne uprawy nasienne i rozsadniki w uprawie polowej","62-51-00","Inne uprawy nasienne i rozsadniki w uprawie polowej",null,"B",1,11970.649100000001]
["CInne uprawy nasienne i rozsadniki w uprawie polowej","62-51-00","Inne uprawy nasienne i rozsadniki w uprawie polowej",null,"C",1,11970.649100000001]
["DInne uprawy nasienne i rozsadniki w uprawie polowej","62-51-00","Inne uprawy nasienne i rozsadniki w uprawie polowej",null,"D",1,11970.649100000001]
["APozostałe plantacje nasienne","62-90-00","Pozostałe plantacje nasienne",null,"A",1,2295.9636]
["BPozostałe plantacje nasienne","62-90-00","Pozostałe plantacje nasienne",null,"B",1,4004.4587000000001]
["CPozostałe plantacje nasienne","62-90-00","Pozostałe plantacje nasienne",null,"C",1,3832.9214999999999]
["DPozostałe plantacje nasienne","62-90-00","Pozostałe plantacje nasienne",null,"D",1,4629.6686]
["ASzkółki  (włączając choinki ozdobne) w uprawie polowej","04210","Szkółki  (włączając choinki ozdobne) w uprawie polowej","szt","A",4447.6562999999996,25.029499999999999]
["BSzkółki  (włączając choinki ozdobne) w uprawie polowej","04210","Szkółki  (włączając choinki ozdobne) w uprawie polowej","szt","B",99059.723700000002,15.301500000000001]
["CSzkółki  (włączając choinki ozdobne) w uprawie polowej","04210","Szkółki  (włączając choinki ozdobne) w uprawie polowej","szt","C",17895.964100000001,6.8692000000000002]
["DSzkółki  (włączając choinki ozdobne) w uprawie polowej","04210","Szkółki  (włączając choinki ozdobne) w uprawie polowej","szt","D",47700.250200000002,17.939599999999999]
["AByki do opasu, wolce 2-letnie i starsze","Byki","Byki do opasu, wolce 2-letnie i starsze","kg","A",681.25649999999996,10.6699]
["BByki do opasu, wolce 2-letnie i starsze","Byki","Byki do opasu, wolce 2-letnie i starsze","kg","B",700.26059999999995,10.7485]
["CByki do opasu, wolce 2-letnie i starsze","Byki","Byki do opasu, wolce 2-letnie i starsze","kg","C",683.53840000000002,10.5252]
["DByki do opasu, wolce 2-letnie i starsze","Byki","Byki do opasu, wolce 2-letnie i starsze","kg","D",660.28740000000005,11.165900000000001]
["AJałówki do opasu 2-letnie i starsze","Jalowki","Jałówki do opasu 2-letnie i starsze","kg","A",570.40409999999997,10.380100000000001]
["BJałówki do opasu 2-letnie i starsze","Jalowki","Jałówki do opasu 2-letnie i starsze","kg","B",608.03399999999999,10.2342]
["CJałówki do opasu 2-letnie i starsze","Jalowki","Jałówki do opasu 2-letnie i starsze","kg","C",616.53269999999998,10.4155]
["DJałówki do opasu 2-letnie i starsze","Jalowki","Jałówki do opasu 2-letnie i starsze","kg","D",583.57680000000005,10.614100000000001]
["AByczki od 1 do 2 lat","Byczki","Byczki od 1 do 2 lat","kg","A",572.3537,10.572900000000001]
["BByczki od 1 do 2 lat","Byczki","Byczki od 1 do 2 lat","kg","B",635.65909999999997,10.8268]
["CByczki od 1 do 2 lat","Byczki","Byczki od 1 do 2 lat","kg","C",610.66420000000005,10.7788]
["DByczki od 1 do 2 lat","Byczki","Byczki od 1 do 2 lat","kg","D",590.05930000000001,11.1469]
["AJałówki od 1 do 2 lat","Jalowki12","Jałówki od 1 do 2 lat","kg","A",467.11959999999999,10.3118]
["BJałówki od 1 do 2 lat","Jalowki12","Jałówki od 1 do 2 lat","kg","B",517.79369999999994,10.4678]
["CJałówki od 1 do 2 lat","Jalowki12","Jałówki od 1 do 2 lat","kg","C",502.03269999999998,10.315200000000001]
["DJałówki od 1 do 2 lat","Jalowki12","Jałówki od 1 do 2 lat","kg","D",461.79450000000003,10.369899999999999]
["ACielęta od 6 mies. do 1 roku","Cieleta612","Cielęta od 6 mies. do 1 roku","kg","A",218.94900000000001,11.450100000000001]
["BCielęta od 6 mies. do 1 roku","Cieleta612","Cielęta od 6 mies. do 1 roku","kg","B",219.86500000000001,11.5733]
["CCielęta od 6 mies. do 1 roku","Cieleta612","Cielęta od 6 mies. do 1 roku","kg","C",197.20840000000001,9.9656000000000002]
["DCielęta od 6 mies. do 1 roku","Cieleta612","Cielęta od 6 mies. do 1 roku","kg","D",210.01050000000001,11.729100000000001]
["ACielęta do opasu poniżej 6 mies.","Cieleta","Cielęta do opasu poniżej 6 mies.","kg","A",99.9208,11.480600000000001]
["BCielęta do opasu poniżej 6 mies.","Cieleta","Cielęta do opasu poniżej 6 mies.","kg","B",97.521600000000007,11.7836]
["CCielęta do opasu poniżej 6 mies.","Cieleta","Cielęta do opasu poniżej 6 mies.","kg","C",83.268699999999995,10.869300000000001]
["DCielęta do opasu poniżej 6 mies.","Cieleta","Cielęta do opasu poniżej 6 mies.","kg","D",105.851,13.295400000000001]
["AOwce 1 roczne i starsze","Owce","Owce 1 roczne i starsze","kg","A",59.754399999999997,4.2808000000000002]
["BOwce 1 roczne i starsze","Owce","Owce 1 roczne i starsze","kg","B",64.898200000000003,4.5471000000000004]
["COwce 1 roczne i starsze","Owce","Owce 1 roczne i starsze","kg","C",45.625900000000001,5.1428000000000003]
["DOwce 1 roczne i starsze","Owce","Owce 1 roczne i starsze","kg","D",59.754399999999997,4.2808000000000002]
["AJagnięta","Jagnieta","Jagnięta","kg","A",22.793700000000001,12.002000000000001]
["BJagnięta","Jagnieta","Jagnięta","kg","B",28.664100000000001,11.7834]
["CJagnięta","Jagnieta","Jagnięta","kg","C",24.818300000000001,9.8798999999999992]
["DJagnięta","Jagnieta","Jagnięta","kg","D",27.491499999999998,10.078900000000001]
["AKozy 1 roczne i starsze","Kozy","Kozy 1 roczne i starsze","kg","A",39.006300000000003,5.3246000000000002]
["BKozy 1 roczne i starsze","Kozy","Kozy 1 roczne i starsze","kg","B",39.006300000000003,5.3246000000000002]
["CKozy 1 roczne i starsze","Kozy","Kozy 1 roczne i starsze","kg","C",39.006300000000003,5.3246000000000002]
["DKozy 1 roczne i starsze","Kozy","Kozy 1 roczne i starsze","kg","D",39.006300000000003,5.3246000000000002]
["AKoźlęta","Kozleta","Koźlęta","kg","A",15.637700000000001,11.7506]
[{"$f":"E644&C644","v":"BKoźlęta"},"Kozleta","Koźlęta","kg","B",15.851900000000001,14.3048]
["CKoźlęta","Kozleta","Koźlęta","kg","C",14.7257,8.1913]
["DKoźlęta","Kozleta","Koźlęta","kg","D",15.637700000000001,11.7506]
["ATuczniki o wadze 50 kg i więcej","Tuczniki","Tuczniki o wadze 50 kg i więcej","kg","A",114.3597,7.0212000000000003]
["BTuczniki o wadze 50 kg i więcej","Tuczniki","Tuczniki o wadze 50 kg i więcej","kg","B",117.10290000000001,6.96]
["CTuczniki o wadze 50 kg i więcej","Tuczniki","Tuczniki o wadze 50 kg i więcej","kg","C",117.8771,7.1597999999999997]
["DTuczniki o wadze 50 kg i więcej","Tuczniki","Tuczniki o wadze 50 kg i więcej","kg","D",115.4033,6.9843999999999999]
["AWarchlaki do opasu o wadze od 20 do 50 kg","Warchlaki","Warchlaki do opasu o wadze od 20 do 50 kg","kg","A",29.9056,11.5967]
["BWarchlaki do opasu o wadze od 20 do 50 kg","Warchlaki","Warchlaki do opasu o wadze od 20 do 50 kg","kg","B",31.932300000000001,10.1755]
["CWarchlaki do opasu o wadze od 20 do 50 kg","Warchlaki","Warchlaki do opasu o wadze od 20 do 50 kg","kg","C",30.3203,10.608499999999999]
["DWarchlaki do opasu o wadze od 20 do 50 kg","Warchlaki","Warchlaki do opasu o wadze od 20 do 50 kg","kg","D",43.587299999999999,7.5812999999999997]
["AProsięta od 1 maciory","Prosieta","Prosięta od 1 maciory","szt","A",16.073,210.34389999999999]
["BProsięta od 1 maciory","Prosieta","Prosięta od 1 maciory","szt","B",17.839200000000002,200.95230000000001]
["CProsięta od 1 maciory","Prosieta","Prosięta od 1 maciory","szt","C",16.411300000000001,237.333]
["DProsięta od 1 maciory","Prosieta","Prosięta od 1 maciory","szt","D",16.769100000000002,282.46440000000001]
["ABrojlery kurze 2 tyg. i starsze","Brojlery","Brojlery kurze 2 tyg. i starsze","kg","A",2.7155,5.4447000000000001]
["BBrojlery kurze 2 tyg. i starsze","Brojlery","Brojlery kurze 2 tyg. i starsze","kg","B",2.4514999999999998,4.7496999999999998]
["CBrojlery kurze 2 tyg. i starsze","Brojlery","Brojlery kurze 2 tyg. i starsze","kg","C",2.6040000000000001,5.1379999999999999]
["DBrojlery kurze 2 tyg. i starsze","Brojlery","Brojlery kurze 2 tyg. i starsze","kg","D",2.5337999999999998,5.6555]
["AGęsi młode","Gesi","Gęsi młode","kg","A",6.0031999999999996,12.4962]
["BGęsi młode","Gesi","Gęsi młode","kg","B",6.1454000000000004,12.493499999999999]
["CGęsi młode","Gesi","Gęsi młode","kg","C",6.0031999999999996,12.4962]
["DGęsi młode","Gesi","Gęsi młode","kg","D",5.6214000000000004,20.156300000000002]
["AKaczki młode","Kaczki","Kaczki młode","kg","A",3.391,6.9593999999999996]
["BKaczki młode","Kaczki","Kaczki młode","kg","B",3.391,6.9593999999999996]
["CKaczki młode","Kaczki","Kaczki młode","kg","C",3.2740999999999998,7.1635999999999997]
["DKaczki młode","Kaczki","Kaczki młode","kg","D",3.5413000000000001,11.8156]
["AIndyki młode","Indyki","Indyki młode","kg","A",13.317399999999999,7.5834000000000001]
["BIndyki młode","Indyki","Indyki młode","kg","B",13.317399999999999,7.5834000000000001]
["CIndyki młode","Indyki","Indyki młode","kg","C",13.317399999999999,7.5834000000000001]
["DIndyki młode","Indyki","Indyki młode","kg","D",13.317399999999999,7.5834000000000001]
["AMleko krowie","MlekoKr","Mleko krowie","100 kg","A",56.299300000000002,198.45939999999999]
["BMleko krowie","MlekoKr","Mleko krowie","100 kg","B",68.698800000000006,201.12549999999999]
["CMleko krowie","MlekoKr","Mleko krowie","100 kg","C",65.284700000000001,207.5386]
["DMleko krowie","MlekoKr","Mleko krowie","100 kg","D",55.480699999999999,201.8595]
["AMleko kozie","MlekoKo","Mleko kozie","100 kg","A",4.0178000000000003,360.90300000000002]
["BMleko kozie","MlekoKo","Mleko kozie","100 kg","B",4.5224000000000002,349.7604]
["CMleko kozie","MlekoKo","Mleko kozie","100 kg","C",2.6473,416.75330000000002]
["DMleko kozie","MlekoKo","Mleko kozie","100 kg","D",2.746,646.10950000000003]
["AJaja wylęgowe kurze","JajaWKu","Jaja wylęgowe kurze","1000 szt","A",0.1333,924.60109999999997]
["BJaja wylęgowe kurze","JajaWKu","Jaja wylęgowe kurze","1000 szt","B",0.1333,924.60109999999997]
["CJaja wylęgowe kurze","JajaWKu","Jaja wylęgowe kurze","1000 szt","C",7.0000000000000001E-3,993.67809999999997]
["DJaja wylęgowe kurze","JajaWKu","Jaja wylęgowe kurze","1000 szt","D",0.1333,924.60109999999997]
["AJaja wylęgowe pozostałe","JajaWPo","Jaja wylęgowe pozostałe","1000 szt","A",1.61E-2,4799.5120999999999]
["BJaja wylęgowe pozostałe","JajaWPo","Jaja wylęgowe pozostałe","1000 szt","B",1.61E-2,4799.5120999999999]
["CJaja wylęgowe pozostałe","JajaWPo","Jaja wylęgowe pozostałe","1000 szt","C",1.61E-2,4799.5120999999999]
["DJaja wylęgowe pozostałe","JajaWPo","Jaja wylęgowe pozostałe","1000 szt","D",1.61E-2,4799.5120999999999]
["AJaja konsumpcyjne kurze","JajaKKu","Jaja konsumpcyjne kurze","1000 szt","A",0.123,970.23030000000006]
["BJaja konsumpcyjne kurze","JajaKKu","Jaja konsumpcyjne kurze","1000 szt","B",0.15809999999999999,959.95420000000001]
["CJaja konsumpcyjne kurze","JajaKKu","Jaja konsumpcyjne kurze","1000 szt","C",0.14680000000000001,900.55730000000005]
["DJaja konsumpcyjne kurze","JajaKKu","Jaja konsumpcyjne kurze","1000 szt","D",0.1411,943.8931]
["AJaja konsumpcyjne pozostałe","JajaKPo","Jaja konsumpcyjne pozostałe","1000 szt","A",2.63E-2,738.20659999999998]
["BJaja konsumpcyjne pozostałe","JajaKPo","Jaja konsumpcyjne pozostałe","1000 szt","B",2.63E-2,738.20659999999998]
["CJaja konsumpcyjne pozostałe","JajaKPo","Jaja konsumpcyjne pozostałe","1000 szt","C",2.63E-2,738.20659999999998]
["DJaja konsumpcyjne pozostałe","JajaKPo","Jaja konsumpcyjne pozostałe","1000 szt","D",2.63E-2,738.20659999999998]
["AWełna surowa i przetworzona owcza","Welna","Wełna surowa i przetworzona owcza","dt","A",5.1400000000000001E-2,212.39359999999999]
["BWełna surowa i przetworzona owcza","Welna","Wełna surowa i przetworzona owcza","dt","B",4.2500000000000003E-2,183.16300000000001]
["CWełna surowa i przetworzona owcza","Welna","Wełna surowa i przetworzona owcza","dt","C",4.36E-2,228.72389999999999]
["DWełna surowa i przetworzona owcza","Welna","Wełna surowa i przetworzona owcza","dt","D",4.6899999999999997E-2,186.05500000000001]
["AMiód pszczeli","Miod","Miód pszczeli","kg","A",11.847799999999999,36.023299999999999]
["BMiód pszczeli","Miod","Miód pszczeli","kg","B",16.790500000000002,28.389199999999999]
["CMiód pszczeli","Miod","Miód pszczeli","kg","C",16.752500000000001,29.524999999999999]
["DMiód pszczeli","Miod","Miód pszczeli","kg","D",14.508599999999999,31.9513]
[{"$f":"E707&C707","v":"APozostałe produkty pszczelarskie"},"PrPszcz","Pozostałe produkty pszczelarskie","kg","A",1.1189,40.058700000000002]
["BPozostałe produkty pszczelarskie","PrPszcz","Pozostałe produkty pszczelarskie","kg","B",0.38040000000000002,45.389699999999998]
["CPozostałe produkty pszczelarskie","PrPszcz","Pozostałe produkty pszczelarskie","kg","C",0.64329999999999998,46.759500000000003]
["DPozostałe produkty pszczelarskie","PrPszcz","Pozostałe produkty pszczelarskie","kg","D",0.9042,74.855500000000006]
[""]
[""]
[""]
[""]
[""]
[""]
[""]
[""]

{"sheet":"Koszty nieponiesione","index":12,"n_rows":626,"n_cols":5,"rows_kept":626,"cut":false,"hidden":true,"merged":[]}
[]
["Nazwa uprawy","FADN_REG","Koszty nieponiesione na 1 ha uprawy (wartość z 2022 podwyższona o 10%)",null,"Koszty nieponiesione na 1 ha uprawy (wartość z 2023 podwyższona o 10%)"]
["Zboża na ziarno","A",534.38945374547359,{"$f":"A3&B3","v":"Zboża na ziarnoA"},{"$f":"C3*1.1","v":587.828399120021}]
["Zboża na ziarno","B",555.29818502277215,{"$f":"A4&B4","v":"Zboża na ziarnoB"},{"$f":"C4*1.1","v":610.82800352504944}]
["Zboża na ziarno","C",539.55021891813851,"Zboża na ziarnoC",593.5052408099524]
["Zboża na ziarno","D",566.48624317289455,"Zboża na ziarnoD",623.13486749018409]
["Pszenica zwyczajna ogółem na ziarno","A",551.60962330350401,"Pszenica zwyczajna ogółem na ziarnoA",606.77058563385447]
["Pszenica zwyczajna ogółem na ziarno","B",569.0533587297133,"Pszenica zwyczajna ogółem na ziarnoB",625.95869460268466]
["Pszenica zwyczajna ogółem na ziarno","C",550.7245911422217,"Pszenica zwyczajna ogółem na ziarnoC",605.79705025644387]
["Pszenica zwyczajna ogółem na ziarno","D",586.61928450635264,"Pszenica zwyczajna ogółem na ziarnoD",645.28121295698793]
["Pszenica zwyczajna jara na ziarno","A",520.77827751612199,"Pszenica zwyczajna jara na ziarnoA",572.85610526773428]
["Pszenica zwyczajna jara na ziarno","B",521.72189422267707,"Pszenica zwyczajna jara na ziarnoB",573.89408364494477]
["Pszenica zwyczajna jara na ziarno","C",523.26605931692279,"Pszenica zwyczajna jara na ziarnoC",575.59266524861516]
["Pszenica zwyczajna jara na ziarno","D",533.84840873390885,"Pszenica zwyczajna jara na ziarnoD",587.23324960729974]
["Pszenica zwyczajna ozima na ziarno","A",562.59619199762983,"Pszenica zwyczajna ozima na ziarnoA",618.85581119739288]
["Pszenica zwyczajna ozima na ziarno","B",580.32224890838279,"Pszenica zwyczajna ozima na ziarnoB",638.35447379922107]
["Pszenica zwyczajna ozima na ziarno","C",562.48098160075142,"Pszenica zwyczajna ozima na ziarnoC",618.72907976082661]
["Pszenica zwyczajna ozima na ziarno","D",596.68063514362927,"Pszenica zwyczajna ozima na ziarnoD",656.34869865799226]
["Żyto ogółem na ziarno","A",497.61823075117394,"Żyto ogółem na ziarnoA",547.38005382629137]
["Żyto ogółem na ziarno","B",509.31067345030266,"Żyto ogółem na ziarnoB",560.24174079533293]
["Żyto ogółem na ziarno","C",513.38117188952992,"Żyto ogółem na ziarnoC",564.71928907848292]
["Żyto ogółem na ziarno","D",511.61194638864248,"Żyto ogółem na ziarnoD",562.77314102750677]
["Żyto jare na ziarno","A",484.40819012859833,"Żyto jare na ziarnoA",532.84900914145817]
["Żyto jare na ziarno","B",504.54200191532703,"Żyto jare na ziarnoB",554.99620210685976]
["Żyto jare na ziarno","C",507.6849690518564,"Żyto jare na ziarnoC",558.45346595704211]
["Żyto jare na ziarno","D",552.27986301281169,"Żyto jare na ziarnoD",607.50784931409294]
["Żyto ozime na ziarno","A",498.58686682355057,"Żyto ozime na ziarnoA",548.44555350590565]
["Żyto ozime na ziarno","B",509.64231046204321,"Żyto ozime na ziarnoB",560.60654150824757]
["Żyto ozime na ziarno","C",513.03054730295344,"Żyto ozime na ziarnoC",564.33360203324878]
["Żyto ozime na ziarno","D",511.00789087713002,"Żyto ozime na ziarnoD",562.10867996484308]
["Jęczmień ogółem na ziarno","A",515.75264936148938,"Jęczmień ogółem na ziarnoA",567.32791429763836]
["Jęczmień ogółem na ziarno","B",517.87612253067925,"Jęczmień ogółem na ziarnoB",569.66373478374726]
["Jęczmień ogółem na ziarno","C",522.44958330243969,"Jęczmień ogółem na ziarnoC",574.69454163268369]
["Jęczmień ogółem na ziarno","D",524.94746163661148,"Jęczmień ogółem na ziarnoD",577.44220780027263]
["Jęczmień jary na ziarno","A",498.29804283459157,"Jęczmień jary na ziarnoA",548.12784711805079]
["Jęczmień jary na ziarno","B",501.34320589197881,"Jęczmień jary na ziarnoB",551.47752648117671]
["Jęczmień jary na ziarno","C",516.17588953876952,"Jęczmień jary na ziarnoC",567.7934784926465]
["Jęczmień jary na ziarno","D",517.68279695557203,"Jęczmień jary na ziarnoD",569.45107665112926]
["Jęczmień ozimy na ziarno","A",539.55926878271168,"Jęczmień ozimy na ziarnoA",593.51519566098295]
["Jęczmień ozimy na ziarno","B",532.2373609174399,"Jęczmień ozimy na ziarnoB",585.46109700918396]
["Jęczmień ozimy na ziarno","C",529.01854728709816,"Jęczmień ozimy na ziarnoC",581.92040201580801]
["Jęczmień ozimy na ziarno","D",534.1876684168069,"Jęczmień ozimy na ziarnoD",587.60643525848764]
["Owies na ziarno","A",478.63094998076394,"Owies na ziarnoA",526.49404497884041]
["Owies na ziarno","B",496.36118752115942,"Owies na ziarnoB",545.9973062732754]
["Owies na ziarno","C",499.30903077573743,"Owies na ziarnoC",549.23993385331119]
["Owies na ziarno","D",503.44186753754292,"Owies na ziarnoD",553.78605429129721]
["Pszenżyto ogółem na ziarno","A",524.50035424153907,"Pszenżyto ogółem na ziarnoA",576.95038966569302]
["Pszenżyto ogółem na ziarno","B",528.69015045862398,"Pszenżyto ogółem na ziarnoB",581.55916550448637]
["Pszenżyto ogółem na ziarno","C",522.16853715114007,"Pszenżyto ogółem na ziarnoC",574.38539086625417]
["Pszenżyto ogółem na ziarno","D",526.35215927875845,"Pszenżyto ogółem na ziarnoD",578.9873752066344]
["Pszenżyto jare na ziarno","A",515.37107711871545,"Pszenżyto jare na ziarnoA",566.90818483058706]
["Pszenżyto jare na ziarno","B",533.11748063680352,"Pszenżyto jare na ziarnoB",586.42922870048392]
["Pszenżyto jare na ziarno","C",510.17497659566732,"Pszenżyto jare na ziarnoC",561.19247425523406]
["Pszenżyto jare na ziarno","D",516.67644957883306,"Pszenżyto jare na ziarnoD",568.3440945367164]
["Pszenżyto ozime na ziarno","A",529.23936676115079,"Pszenżyto ozime na ziarnoA",582.16330343726588]
["Pszenżyto ozime na ziarno","B",528.68925026372551,"Pszenżyto ozime na ziarnoB",581.55817529009812]
["Pszenżyto ozime na ziarno","C",523.51045724593655,"Pszenżyto ozime na ziarnoC",575.8615029705303]
["Pszenżyto ozime na ziarno","D",528.12922703136826,"Pszenżyto ozime na ziarnoD",580.94214973450516]
["Mieszanki zbożowe na ziarno","A",494.58754904908028,"Mieszanki zbożowe na ziarnoA",544.0463039539884]
["Mieszanki zbożowe na ziarno","B",501.51772385402239,"Mieszanki zbożowe na ziarnoB",551.66949623942469]
["Mieszanki zbożowe na ziarno","C",505.98308835455941,"Mieszanki zbożowe na ziarnoC",556.58139719001542]
["Mieszanki zbożowe na ziarno","D",508.74536634601191,"Mieszanki zbożowe na ziarnoD",559.61990298061312]
["Mieszanki zbożowe jare na ziarno","A",493.75495015600637,"Mieszanki zbożowe jare na ziarnoA",543.13044517160711]
["Mieszanki zbożowe jare na ziarno","B",500.48100101707632,"Mieszanki zbożowe jare na ziarnoB",550.52910111878396]
["Mieszanki zbożowe jare na ziarno","C",505.88289917778627,"Mieszanki zbożowe jare na ziarnoC",556.47118909556491]
["Mieszanki zbożowe jare na ziarno","D",509.39705181096133,"Mieszanki zbożowe jare na ziarnoD",560.33675699205753]
["Mieszanki zbożowe ozime na ziarno","A",520.2510155530116,"Mieszanki zbożowe ozime na ziarnoA",572.27611710831286]
["Mieszanki zbożowe ozime na ziarno","B",520.57001996716963,{"$f":"A68&B68","v":"Mieszanki zbożowe ozime na ziarnoB"},{"$f":"C68*1.1","v":572.62702196388659}]
["Mieszanki zbożowe ozime na ziarno","C",488.66976027605176,"Mieszanki zbożowe ozime na ziarnoC",537.53673630365699]
["Mieszanki zbożowe ozime na ziarno","D",479.78220419593072,"Mieszanki zbożowe ozime na ziarnoD",527.76042461552379]
["Kukurydza (sucha i wilgotna) na ziarno","A",656.57562085892857,"Kukurydza (sucha i wilgotna) na ziarnoA",722.23318294482146]
["Kukurydza (sucha i wilgotna) na ziarno","B",671.06421410858445,"Kukurydza (sucha i wilgotna) na ziarnoB",738.17063551944295]
["Kukurydza (sucha i wilgotna) na ziarno","C",676.50026476613425,"Kukurydza (sucha i wilgotna) na ziarnoC",744.1502912427477]
["Kukurydza (sucha i wilgotna) na ziarno","D",690.33954103683243,"Kukurydza (sucha i wilgotna) na ziarnoD",759.37349514051573]
["Pozostałe zboża na ziarno","A",350.68729945622789,"Pozostałe zboża na ziarnoA",385.7560294018507]
["Pozostałe zboża na ziarno","B",344.05386616869276,"Pozostałe zboża na ziarnoB",378.45925278556206]
["Pozostałe zboża na ziarno","C",343.56960559081995,"Pozostałe zboża na ziarnoC",377.92656614990199]
["Pozostałe zboża na ziarno","D",405.89881448601074,"Pozostałe zboża na ziarnoD",446.48869593461183]
["Gryka na ziarno","A",344.43399004294366,"Gryka na ziarnoA",378.87738904723807]
["Gryka na ziarno","B",353.11457590793492,"Gryka na ziarnoB",388.42603349872843]
["Gryka na ziarno","C",323.27259964795559,"Gryka na ziarnoC",355.59985961275117]
["Gryka na ziarno","D",349.4269508308297,"Gryka na ziarnoD",384.36964591391268]
["Proso na ziarno","A",370.05135038756259,"Proso na ziarnoA",407.05648542631889]
["Proso na ziarno","B",423.29909674812274,"Proso na ziarnoB",465.62900642293505]
["Proso na ziarno","C",415.01683969010202,"Proso na ziarnoC",456.51852365911225]
["Proso na ziarno","D",418.24474834333625,"Proso na ziarnoD",460.06922317766993]
["Pozostałe zboża na ziarno","A",442.55253602822791,"Pozostałe zboża na ziarnoA",486.80778963105075]
["Pozostałe zboża na ziarno","B",410.74050596797082,"Pozostałe zboża na ziarnoB",451.81455656476794]
["Pozostałe zboża na ziarno","C",442.55253602822791,"Pozostałe zboża na ziarnoC",486.80778963105075]
["Pozostałe zboża na ziarno","D",442.55253602822791,"Pozostałe zboża na ziarnoD",486.80778963105075]
["Strączkowe na nasiona suche","A",830.28342635707361,"Strączkowe na nasiona sucheA",913.31176899278103]
["Strączkowe na nasiona suche","B",805.11394953392062,"Strączkowe na nasiona sucheB",885.62534448731276]
["Strączkowe na nasiona suche","C",797.79562674051806,"Strączkowe na nasiona sucheC",877.57518941456999]
["Strączkowe na nasiona suche","D",920.77339406391354,"Strączkowe na nasiona sucheD",1012.8507334703049]
["Strączkowe jadalne na nasiona suche","A",809.71543426138317,"Strączkowe jadalne na nasiona sucheA",890.68697768752156]
["Strączkowe jadalne na nasiona suche","B",807.64224199990065,"Strączkowe jadalne na nasiona sucheB",888.40646619989082]
["Strączkowe jadalne na nasiona suche","C",942.78455449053865,"Strączkowe jadalne na nasiona sucheC",1037.0630099395926]
["Strączkowe jadalne na nasiona suche","D",922.660586483354,"Strączkowe jadalne na nasiona sucheD",1014.9266451316895]
["Groch konsumpcyjny na nasiona suche","A",848.51901570681787,"Groch konsumpcyjny na nasiona sucheA",933.37091727749976]
["Groch konsumpcyjny na nasiona suche","B",815.4156699652749,"Groch konsumpcyjny na nasiona sucheB",896.95723696180244]
["Groch konsumpcyjny na nasiona suche","C",752.43667469151535,"Groch konsumpcyjny na nasiona sucheC",827.6803421606669]
["Groch konsumpcyjny na nasiona suche","D",799.98039254550588,"Groch konsumpcyjny na nasiona sucheD",879.97843180005657]
["Fasola na nasiona suche","A",824.76699627432799,"Fasola na nasiona sucheA",907.24369590176082]
["Fasola na nasiona suche","B",824.76699627432799,"Fasola na nasiona sucheB",907.24369590176082]
["Fasola na nasiona suche","C",853.78974526156696,"Fasola na nasiona sucheC",939.16871978772372]
["Fasola na nasiona suche","D",782.50357688578106,"Fasola na nasiona sucheD",860.75393457435928]
["Bób na nasiona suche","A",787.35513886684021,"Bób na nasiona sucheA",866.0906527535243]
["Bób na nasiona suche","B",664.47424934870662,"Bób na nasiona sucheB",730.92167428357732]
["Bób na nasiona suche","C",944.52000617744204,"Bób na nasiona sucheC",1038.9720067951864]
["Bób na nasiona suche","D",843.18214040373948,"Bób na nasiona sucheD",927.50035444411355]
["Soczewica na nasiona suche","A",864.11569512052097,"Soczewica na nasiona sucheA",950.52726463257318]
["Soczewica na nasiona suche","B",931.74508981999395,"Soczewica na nasiona sucheB",1024.9195988019935]
["Soczewica na nasiona suche","C",905.9608680817613,"Soczewica na nasiona sucheC",996.55695488993751]
["Soczewica na nasiona suche","D",931.74508981999395,"Soczewica na nasiona sucheD",1024.9195988019935]
["Soja na nasiona suche","A",876.60428917807963,"Soja na nasiona sucheA",964.2647180958877]
["Soja na nasiona suche","B",825.16347143678274,"Soja na nasiona sucheB",907.67981858046107]
["Soja na nasiona suche","C",998.35211560115272,"Soja na nasiona sucheC",1098.1873271612681]
["Soja na nasiona suche","D",900.00921590641099,"Soja na nasiona sucheD",990.01013749705214]
["Strączkowe pastewne na nasiona suche","A",815.55831522861547,"Strączkowe pastewne na nasiona sucheA",897.11414675147705]
["Strączkowe pastewne na nasiona suche","B",718.5930965382795,"Strączkowe pastewne na nasiona sucheB",790.45240619210756]
["Strączkowe pastewne na nasiona suche","C",768.05690428367802,"Strączkowe pastewne na nasiona sucheC",844.86259471204585]
["Strączkowe pastewne na nasiona suche","D",834.10791689266432,"Strączkowe pastewne na nasiona sucheD",917.51870858193081]
["Groch pastewny (peluszka) na nasiona suche","A",800.49096515133181,"Groch pastewny (peluszka) na nasiona sucheA",880.54006166646502]
["Groch pastewny (peluszka) na nasiona suche","B",820.47416833654245,"Groch pastewny (peluszka) na nasiona sucheB",902.52158517019677]
["Groch pastewny (peluszka) na nasiona suche","C",806.74456825209745,"Groch pastewny (peluszka) na nasiona sucheC",887.41902507730731]
["Groch pastewny (peluszka) na nasiona suche","D",793.67885895487029,"Groch pastewny (peluszka) na nasiona sucheD",873.04674485035741]
["Bobik na nasiona suche","A",976.329948783585,"Bobik na nasiona sucheA",1073.9629436619437]
["Bobik na nasiona suche","B",707.84338943831608,{"$f":"A128&B128","v":"Bobik na nasiona sucheB"},778.62772838214778]
["Bobik na nasiona suche","C",887.15145587920858,"Bobik na nasiona sucheC",975.8666014671295]
["Bobik na nasiona suche","D",1043.5623312446589,"Bobik na nasiona sucheD",1147.9185643691249]
["Łubin słodki na nasiona suche","A",752.27662608872492,"Łubin słodki na nasiona sucheA",827.50428869759753]
["Łubin słodki na nasiona suche","B",704.43043600544831,"Łubin słodki na nasiona sucheB",{"$f":"C132*1.1","v":774.87347960599323}]
["Łubin słodki na nasiona suche","C",743.48625017106758,"Łubin słodki na nasiona sucheC",817.83487518817435]
["Łubin słodki na nasiona suche","D",768.11266194833183,"Łubin słodki na nasiona sucheD",844.92392814316509]
["Wyka ogółem na nasiona suche","A",723.88743891938748,"Wyka ogółem na nasiona sucheA",796.27618281132629]
["Wyka ogółem na nasiona suche","B",747.40155259474011,"Wyka ogółem na nasiona sucheB",822.14170785421413]
["Wyka ogółem na nasiona suche","C",663.47370615012221,"Wyka ogółem na nasiona sucheC",729.82107676513453]
["Wyka ogółem na nasiona suche","D",768.44588821513707,"Wyka ogółem na nasiona sucheD",845.29047703665083]
["Wyka jara na nasiona suche","A",706.89178820778068,"Wyka jara na nasiona sucheA",777.5809670285588]
["Wyka jara na nasiona suche","B",748.94804121021082,"Wyka jara na nasiona sucheB",823.84284533123196]
["Wyka jara na nasiona suche","C",670.4488656268752,"Wyka jara na nasiona sucheC",737.49375218956277]
["Wyka jara na nasiona suche","D",806.75018675336264,"Wyka jara na nasiona sucheD",887.42520542869897]
["Seradela na nasiona suche","A",926.64862023239198,"Seradela na nasiona sucheA",1019.3134822556312]
["Seradela na nasiona suche","B",641.94643774910401,"Seradela na nasiona sucheB",706.14108152401445]
["Seradela na nasiona suche","C",717.61823259233915,"Seradela na nasiona sucheC",789.38005585157316]
["Seradela na nasiona suche","D",624.650007811563,"Seradela na nasiona sucheD",687.11500859271939]
["Pozostałe strączkowe pastewne na nasiona suche","A",763.57875618361368,"Pozostałe strączkowe pastewne na nasiona sucheA",839.93663180197507]
["Pozostałe strączkowe pastewne na nasiona suche","B",594.45639296820025,"Pozostałe strączkowe pastewne na nasiona sucheB",653.90203226502035]
["Pozostałe strączkowe pastewne na nasiona suche","C",615.50499393696862,"Pozostałe strączkowe pastewne na nasiona sucheC",677.05549333066551]
["Pozostałe strączkowe pastewne na nasiona suche","D",1085.8236346198266,"Pozostałe strączkowe pastewne na nasiona sucheD",1194.4059980818095]
["Mieszanki strączkowych z innymi roślinami ogółem na nasiona suche","A",755.66164825616613,"Mieszanki strączkowych z innymi roślinami ogółem na nasiona sucheA",831.22781308178276]
["Mieszanki strączkowych z innymi roślinami ogółem na nasiona suche","B",801.4868501343509,"Mieszanki strączkowych z innymi roślinami ogółem na nasiona sucheB",881.63553514778607]
["Mieszanki strączkowych z innymi roślinami ogółem na nasiona suche","C",702.51626780257016,"Mieszanki strączkowych z innymi roślinami ogółem na nasiona sucheC",772.76789458282724]
["Mieszanki strączkowych z innymi roślinami ogółem na nasiona suche","D",828.47125925646446,{"$f":"A154&B154","v":"Mieszanki strączkowych z innymi roślinami ogółem na nasiona sucheD"},911.318385182111]
["Mieszanki strączkowych z innymi roślinami jare na nasiona suche","A",753.37349355188803,{"$f":"A155&B155","v":"Mieszanki strączkowych z innymi roślinami jare na nasiona sucheA"},828.71084290707688]
["Mieszanki strączkowych z innymi roślinami jare na nasiona suche","B",809.86067062950178,"Mieszanki strączkowych z innymi roślinami jare na nasiona sucheB",890.84673769245205]
["Mieszanki strączkowych z innymi roślinami jare na nasiona suche","C",708.59101525536721,"Mieszanki strączkowych z innymi roślinami jare na nasiona sucheC",779.45011678090395]
["Mieszanki strączkowych z innymi roślinami jare na nasiona suche","D",835.62376218135091,"Mieszanki strączkowych z innymi roślinami jare na nasiona sucheD",919.18613839948603]
["Rośliny przemysłowe","A",986.0243299990442,"Rośliny przemysłoweA",1084.6267629989486]
["Rośliny przemysłowe","B",1019.8652601174666,"Rośliny przemysłoweB",1121.8517861292135]
["Rośliny przemysłowe","C",1031.0168977671844,"Rośliny przemysłoweC",1134.118587543903]
["Rośliny przemysłowe","D",1090.9531950780872,"Rośliny przemysłoweD",1200.0485145858961]
["Buraki cukrowe na korzeń","A",1146.6535706924749,"Buraki cukrowe na korzeńA",1261.3189277617225]
["Buraki cukrowe na korzeń","B",1068.5210170914265,"Buraki cukrowe na korzeńB",1175.3731188005693]
["Buraki cukrowe na korzeń","C",1073.3295561089292,"Buraki cukrowe na korzeńC",1180.6625117198223]
["Buraki cukrowe na korzeń","D",1197.2582854504537,"Buraki cukrowe na korzeńD",1316.9841139954992]
["Cykoria przemysłowa na korzeń","A",684.0439321596092,"Cykoria przemysłowa na korzeńA",752.44832537557022]
["Cykoria przemysłowa na korzeń","B",684.0439321596092,"Cykoria przemysłowa na korzeńB",752.44832537557022]
["Cykoria przemysłowa na korzeń","C",684.0439321596092,"Cykoria przemysłowa na korzeńC",752.44832537557022]
["Cykoria przemysłowa na korzeń","D",684.0439321596092,"Cykoria przemysłowa na korzeńD",752.44832537557022]
["Rośliny oleiste","A",748.58183744421501,"Rośliny oleisteA",823.44002118863659]
["Rośliny oleiste","B",749.24325848547335,"Rośliny oleisteB",824.16758433402072]
["Rośliny oleiste","C",718.6365987940643,"Rośliny oleisteC",790.50025867347074]
["Rośliny oleiste","D",747.21371442449799,"Rośliny oleisteD",821.93508586694782]
["Rzepak i rzepik ogółem oleisty","A",747.57862554289966,"Rzepak i rzepik ogółem oleistyA",822.33648809718966]
["Rzepak i rzepik ogółem oleisty","B",740.59127425012741,"Rzepak i rzepik ogółem oleistyB",814.65040167514019]
["Rzepak i rzepik ogółem oleisty","C",721.68558970659615,"Rzepak i rzepik ogółem oleistyC",793.85414867725581]
["Rzepak i rzepik ogółem oleisty","D",750.92126801639131,"Rzepak i rzepik ogółem oleistyD",826.01339481803052]
["Rzepak i rzepik jary oleisty","A",685.37056891078305,"Rzepak i rzepik jary oleistyA",753.9076258018614]
["Rzepak i rzepik jary oleisty","B",718.29245716056789,"Rzepak i rzepik jary oleistyB",790.12170287662479]
["Rzepak i rzepik jary oleisty","C",699.47057277031547,"Rzepak i rzepik jary oleistyC",769.41763004734707]
["Rzepak i rzepik jary oleisty","D",800.94903476540435,"Rzepak i rzepik jary oleistyD",881.04393824194483]
["Rzepak i rzepik ozimy oleisty","A",747.77280002349357,"Rzepak i rzepik ozimy oleistyA",822.55008002584304]
["Rzepak i rzepik ozimy oleisty","B",741.88219367702879,"Rzepak i rzepik ozimy oleistyB",816.07041304473171]
["Rzepak i rzepik ozimy oleisty","C",723.30602468039172,"Rzepak i rzepik ozimy oleistyC",795.63662714843099]
["Rzepak i rzepik ozimy oleisty","D",748.03143790411343,"Rzepak i rzepik ozimy oleistyD",822.83458169452479]
["Słonecznik oleisty","A",938.13788802844022,"Słonecznik oleistyA",1031.9516768312844]
["Słonecznik oleisty","B",1202.2813405134582,"Słonecznik oleistyB",1322.5094745648041]
["Słonecznik oleisty","C",900.06931283773849,"Słonecznik oleistyC",990.07624412151245]
["Słonecznik oleisty","D",828.0338990076973,"Słonecznik oleistyD",910.83728890846714]
["Len i lnianka oleiste","A",793.9104782896095,"Len i lnianka oleisteA",873.30152611857056]
["Len i lnianka oleiste","B",637.91784609160993,"Len i lnianka oleisteB",701.70963070077096]
["Len i lnianka oleiste","C",440.75333903449956,"Len i lnianka oleisteC",484.82867293794953]
["Len i lnianka oleiste","D",736.10620480655314,"Len i lnianka oleisteD",809.71682528720851]
["Soja oleista","A",617.19731563542553,"Soja oleistaA",678.91704719896813]
["Soja oleista","B",617.19731563542553,{"$f":"A196&B196","v":"Soja oleistaB"},{"$f":"C196*1.1","v":678.91704719896813}]
["Soja oleista","C",605.14885305049427,"Soja oleistaC",665.66373835554373]
["Soja oleista","D",617.19731563542553,"Soja oleistaD",678.91704719896813]
["Pozostałe rośliny oleiste","A",744.97805133599616,"Pozostałe rośliny oleisteA",819.47585646959578]
["Pozostałe rośliny oleiste","B",611.7435183276624,"Pozostałe rośliny oleisteB",672.91787016042872]
["Pozostałe rośliny oleiste","C",919.18633414210512,"Pozostałe rośliny oleisteC",1011.1049675563157]
["Pozostałe rośliny oleiste","D",632.00298670546044,"Pozostałe rośliny oleisteD",695.20328537600653]
["Rośliny włókniste (uprawa lub słoma)","A",510.85348182204791,"Rośliny włókniste (uprawa lub słoma)A",561.93883000425274]
["Rośliny włókniste (uprawa lub słoma)","B",510.85348182204791,"Rośliny włókniste (uprawa lub słoma)B",561.93883000425274]
["Rośliny włókniste (uprawa lub słoma)","C",266.70363319639046,"Rośliny włókniste (uprawa lub słoma)C",293.37399651602954]
["Rośliny włókniste (uprawa lub słoma)","D",510.85348182204791,"Rośliny włókniste (uprawa lub słoma)D",561.93883000425274]
["Konopie włókniste","A",527.9636510118072,"Konopie włóknisteA",580.76001611298796]
["Konopie włókniste","B",527.9636510118072,"Konopie włóknisteB",580.76001611298796]
["Konopie włókniste","C",242.795490199092,"Konopie włóknisteC",267.07503921900121]
["Konopie włókniste","D",527.9636510118072,"Konopie włóknisteD",580.76001611298796]
["Rośliny przemysłowe specjalne","A",975.90833235393666,"Rośliny przemysłowe specjalneA",1073.4991655893305]
["Rośliny przemysłowe specjalne","B",2630.097661363257,"Rośliny przemysłowe specjalneB",2893.1074274995831]
["Rośliny przemysłowe specjalne","C",4843.0040123924773,"Rośliny przemysłowe specjalneC",5327.3044136317258]
["Rośliny przemysłowe specjalne","D",4109.9305097091828,"Rośliny przemysłowe specjalneD",4520.9235606801012]
["Tytoń na liście","A",5950.6768201791747,"Tytoń na liścieA",6545.7445021970925]
["Tytoń na liście","B",5950.6768201791747,"Tytoń na liścieB",6545.7445021970925]
["Tytoń na liście","C",6021.2283921832304,"Tytoń na liścieC",6623.3512314015543]
["Tytoń na liście","D",5072.6951804759401,"Tytoń na liścieD",5579.9646985235349]
["Chmiel na szyszki","A",8590.9297611954335,"Chmiel na szyszkiA",9450.0227373149773]
["Chmiel na szyszki","B",8590.9297611954335,"Chmiel na szyszkiB",9450.0227373149773]
["Chmiel na szyszki","C",9097.6656783185626,"Chmiel na szyszkiC",10007.43224615042]
["Chmiel na szyszki","D",8590.9297611954335,"Chmiel na szyszkiD",9450.0227373149773]
["Rośliny zielarskie (lecznicze, przyprawowe, aromatyczne)","A",887.71375555428472,"Rośliny zielarskie (lecznicze, przyprawowe, aromatyczne)A",976.48513110971328]
["Rośliny zielarskie (lecznicze, przyprawowe, aromatyczne)","B",2390.0698646252554,"Rośliny zielarskie (lecznicze, przyprawowe, aromatyczne)B",2629.0768510877811]
["Rośliny zielarskie (lecznicze, przyprawowe, aromatyczne)","C",3077.5028056796818,"Rośliny zielarskie (lecznicze, przyprawowe, aromatyczne)C",3385.2530862476501]
["Rośliny zielarskie (lecznicze, przyprawowe, aromatyczne)","D",2641.6492644347381,"Rośliny zielarskie (lecznicze, przyprawowe, aromatyczne)D",2905.8141908782122]
["Wiklina","A",2208.1114389265799,"WiklinaA",2428.922582819238]
["Wiklina","B",2208.1114389265799,"WiklinaB",2428.922582819238]
["Wiklina","C",2208.1114389265799,"WiklinaC",2428.922582819238]
["Wiklina","D",2208.1114389265799,"WiklinaD",2428.922582819238]
["Ziemniaki","A",2269.4354257422265,"ZiemniakiA",2496.3789683164491]
["Ziemniaki","B",2184.0448697818733,"ZiemniakiB",2402.4493567600607]
["Ziemniaki","C",2330.0397379665947,"ZiemniakiC",2563.0437117632541]
["Ziemniaki","D",2499.8153923175487,"ZiemniakiD",2749.7969315493037]
["Ziemniaki sadzeniaki (kwalifikowane)","A",2619.1154720217,"Ziemniaki sadzeniaki (kwalifikowane)A",2881.0270192238704]
["Ziemniaki sadzeniaki (kwalifikowane)","B",2327.8620620713436,"Ziemniaki sadzeniaki (kwalifikowane)B",2560.6482682784781]
["Ziemniaki sadzeniaki (kwalifikowane)","C",2619.1154720217,"Ziemniaki sadzeniaki (kwalifikowane)C",2881.0270192238704]
["Ziemniaki sadzeniaki (kwalifikowane)","D",2619.1154720217,"Ziemniaki sadzeniaki (kwalifikowane)D",2881.0270192238704]
["Ziemniaki jadalne","A",2467.5065206085083,"Ziemniaki jadalneA",2714.2571726693591]
["Ziemniaki jadalne","B",2172.409195451869,"Ziemniaki jadalneB",2389.6501149970559]
["Ziemniaki jadalne","C",2322.3411168245489,"Ziemniaki jadalneC",2554.5752285070039]
["Ziemniaki jadalne","D",2609.5606099264205,"Ziemniaki jadalneD",2870.516670919063]
["Ziemniaki skrobiowe","A",2357.2953425816772,"Ziemniaki skrobioweA",2593.0248768398451]
["Ziemniaki skrobiowe","B",2301.2612178687355,"Ziemniaki skrobioweB",2531.3873396556091]
["Ziemniaki skrobiowe","C",2018.5605354476231,"Ziemniaki skrobioweC",2220.4165889923856]
["Ziemniaki skrobiowe","D",2266.707682104111,"Ziemniaki skrobioweD",2493.3784503145221]
["Ziemniaki ogólnoużytkowe","A",2302.3761969278553,"Ziemniaki ogólnoużytkoweA",2532.613816620641]
["Ziemniaki ogólnoużytkowe","B",2473.0539236333898,"Ziemniaki ogólnoużytkoweB",2720.359315996729]
["Ziemniaki ogólnoużytkowe","C",2168.6771510946869,"Ziemniaki ogólnoużytkoweC",2385.5448662041558]
["Ziemniaki ogólnoużytkowe","D",2311.4543890771351,"Ziemniaki ogólnoużytkoweD",2542.5998279848491]
["Rośliny pastewne objętościowe na gruntach ornych","A",739.29511561028085,"Rośliny pastewne objętościowe na gruntach ornychA",813.22462717130895]
["Rośliny pastewne objętościowe na gruntach ornych","B",839.96697754772697,"Rośliny pastewne objętościowe na gruntach ornychB",923.96367530249972]
["Rośliny pastewne objętościowe na gruntach ornych","C",872.45637675929402,"Rośliny pastewne objętościowe na gruntach ornychC",959.70201443522353]
["Rośliny pastewne objętościowe na gruntach ornych","D",831.6070036589,"Rośliny pastewne objętościowe na gruntach ornychD",914.76770402479008]
["Okopowe pastewne na pasze","A",790.18387790329416,"Okopowe pastewne na paszeA",869.20226569362364]
["Okopowe pastewne na pasze","B",914.61933942923633,"Okopowe pastewne na paszeB",1006.08127337216]
["Okopowe pastewne na pasze","C",659.24189278058236,"Okopowe pastewne na paszeC",725.16608205864065]
["Okopowe pastewne na pasze","D",881.83021241440031,"Okopowe pastewne na paszeD",970.01323365584039]
["Buraki pastewne na pasze","A",864.45236011972395,"Buraki pastewne na paszeA",950.89759613169645]
["Buraki pastewne na pasze","B",946.88411106077513,{"$f":"A260&B260","v":"Buraki pastewne na paszeB"},{"$f":"C260*1.1","v":1041.5725221668527}]
["Buraki pastewne na pasze","C",1042.2805865244879,"Buraki pastewne na paszeC",1146.5086451769369]
["Buraki pastewne na pasze","D",997.71005909674091,"Buraki pastewne na paszeD",1097.4810650064151]
["Brukiew pastewna na pasze","A",461.46300013423064,"Brukiew pastewna na paszeA",507.60930014765376]
["Brukiew pastewna na pasze","B",461.46300013423064,"Brukiew pastewna na paszeB",507.60930014765376]
["Brukiew pastewna na pasze","C",461.46300013423064,"Brukiew pastewna na paszeC",507.60930014765376]
["Brukiew pastewna na pasze","D",461.46300013423064,"Brukiew pastewna na paszeD",507.60930014765376]
["Marchew pastewna na pasze","A",3165.5068402420584,"Marchew pastewna na paszeA",3482.0575242662644]
["Marchew pastewna na pasze","B",2560.5195175805293,"Marchew pastewna na paszeB",2816.5714693385826]
["Marchew pastewna na pasze","C",3611.2979723832286,"Marchew pastewna na paszeC",3972.4277696215518]
["Marchew pastewna na pasze","D",3165.5068402420584,"Marchew pastewna na paszeD",3482.0575242662644]
["Dynia pastewna na pasze","A",660.0120245226974,"Dynia pastewna na paszeA",726.01322697496721]
["Dynia pastewna na pasze","B",551.35423858254069,"Dynia pastewna na paszeB",606.48966244079486]
["Dynia pastewna na pasze","C",688.61526194509565,"Dynia pastewna na paszeC",757.47678813960533]
["Dynia pastewna na pasze","D",698.07138016279578,"Dynia pastewna na paszeD",767.8785181790754]
["Kukurydza pastewna na zielonkę","A",938.0574570211071,"Kukurydza pastewna na zielonkęA",1031.8632027232179]
["Kukurydza pastewna na zielonkę","B",914.15941089056059,"Kukurydza pastewna na zielonkęB",1005.5753519796167]
["Kukurydza pastewna na zielonkę","C",1008.1509693876535,"Kukurydza pastewna na zielonkęC",1108.966066326419]
["Kukurydza pastewna na zielonkę","D",1063.0020028370398,"Kukurydza pastewna na zielonkęD",1169.3022031207438]
["Zboża i mieszanki zbóż z innymi roślinami na zielonkę","A",608.48546536634467,{"$f":"A279&B279","v":"Zboża i mieszanki zbóż z innymi roślinami na zielonkęA"},669.33401190297923]
["Zboża i mieszanki zbóż z innymi roślinami na zielonkę","B",738.51405161986736,"Zboża i mieszanki zbóż z innymi roślinami na zielonkęB",812.36545678185416]
["Zboża i mieszanki zbóż z innymi roślinami na zielonkę","C",648.05004736593173,"Zboża i mieszanki zbóż z innymi roślinami na zielonkęC",712.85505210252495]
["Zboża i mieszanki zbóż z innymi roślinami na zielonkę","D",611.70896222192903,"Zboża i mieszanki zbóż z innymi roślinami na zielonkęD",672.87985844412196]
["Trawy w uprawie polowej na zielonkę (UZ)","A",1158.6072169757142,{"$f":"A283&B283","v":"Trawy w uprawie polowej na zielonkę (UZ)A"},1274.4679386732857]
["Trawy w uprawie polowej na zielonkę (UZ)","B",1257.6461519623419,"Trawy w uprawie polowej na zielonkę (UZ)B",1383.4107671585762]
["Trawy w uprawie polowej na zielonkę (UZ)","C",1481.8216523369651,"Trawy w uprawie polowej na zielonkę (UZ)C",1630.0038175706618]
["Trawy w uprawie polowej na zielonkę (UZ)","D",1407.5060467588155,"Trawy w uprawie polowej na zielonkę (UZ)D",1548.2566514346972]
["Strączkowe na zielonkę","A",556.95059536050496,"Strączkowe na zielonkęA",612.64565489655547]
["Strączkowe na zielonkę","B",534.61432942694307,"Strączkowe na zielonkęB",588.07576236963746]
["Strączkowe na zielonkę","C",524.737265385358,"Strączkowe na zielonkęC",577.21099192389386]
["Strączkowe na zielonkę","D",625.76120060396011,"Strączkowe na zielonkęD",688.33732066435618]
["Motylkowe drobnonasienne na zielonkę (UZ)","A",1218.753928109491,"Motylkowe drobnonasienne na zielonkę (UZ)A",1340.6293209204403]
["Motylkowe drobnonasienne na zielonkę (UZ)","B",1364.1610922046757,"Motylkowe drobnonasienne na zielonkę (UZ)B",1500.5772014251434]
["Motylkowe drobnonasienne na zielonkę (UZ)","C",1565.175785780599,"Motylkowe drobnonasienne na zielonkę (UZ)C",1721.693364358659]
["Motylkowe drobnonasienne na zielonkę (UZ)","D",1813.4908551002109,"Motylkowe drobnonasienne na zielonkę (UZ)D",1994.8399406102321]
["Mieszanki motylkowych z trawami (UZ)","A",1206.7294251267851,"Mieszanki motylkowych z trawami (UZ)A",1327.4023676394638]
["Mieszanki motylkowych z trawami (UZ)","B",1272.3039905103208,"Mieszanki motylkowych z trawami (UZ)B",1399.534389561353]
["Mieszanki motylkowych z trawami (UZ)","C",1728.934478650292,"Mieszanki motylkowych z trawami (UZ)C",1901.8279265153215]
["Mieszanki motylkowych z trawami (UZ)","D",1483.459535647195,"Mieszanki motylkowych z trawami (UZ)D",1631.8054892119146]
["Pozostałe polowe uprawy pastewne na zielonkę","A",779.48136616365412,"Pozostałe polowe uprawy pastewne na zielonkęA",857.42950278001956]
["Pozostałe polowe uprawy pastewne na zielonkę","B",937.30281931669651,"Pozostałe polowe uprawy pastewne na zielonkęB",1031.0331012483662]
["Pozostałe polowe uprawy pastewne na zielonkę","C",930.19995678654993,"Pozostałe polowe uprawy pastewne na zielonkęC",1023.219952465205]
["Pozostałe polowe uprawy pastewne na zielonkę","D",873.2464395420219,"Pozostałe polowe uprawy pastewne na zielonkęD",960.57108349622422]
["Rośliny pastewne objętościowe z użytków zielonych (uprawa lub zielonka) (UZ)","A",1159.3337603853138,"Rośliny pastewne objętościowe z użytków zielonych (uprawa lub zielonka) (UZ)A",1275.2671364238452]
["Rośliny pastewne objętościowe z użytków zielonych (uprawa lub zielonka) (UZ)","B",1251.2486579570123,"Rośliny pastewne objętościowe z użytków zielonych (uprawa lub zielonka) (UZ)B",1376.3735237527135]
["Rośliny pastewne objętościowe z użytków zielonych (uprawa lub zielonka) (UZ)","C",1417.9576943884674,"Rośliny pastewne objętościowe z użytków zielonych (uprawa lub zielonka) (UZ)C",1559.7534638273144]
["Rośliny pastewne objętościowe z użytków zielonych (uprawa lub zielonka) (UZ)","D",1411.6638102541485,"Rośliny pastewne objętościowe z użytków zielonych (uprawa lub zielonka) (UZ)D",1552.8301912795635]
["Rośliny pastewne objętościowe z łąk - zielonka (UZ)","A",1135.2045719115599,"Rośliny pastewne objętościowe z łąk - zielonka (UZ)A",1248.725029102716]
["Rośliny pastewne objętościowe z łąk - zielonka (UZ)","B",1256.8391513249678,"Rośliny pastewne objętościowe z łąk - zielonka (UZ)B",1382.5230664574647]
["Rośliny pastewne objętościowe z łąk - zielonka (UZ)","C",1413.2900506871861,"Rośliny pastewne objętościowe z łąk - zielonka (UZ)C",1554.6190557559048]
["Rośliny pastewne objętościowe z łąk - zielonka (UZ)","D",1455.458648128418,"Rośliny pastewne objętościowe z łąk - zielonka (UZ)D",1601.0045129412599]
["Rośliny pastewne objętościowe z pastwisk (UZ)","A",0,"Rośliny pastewne objętościowe z pastwisk (UZ)A",0]
["Rośliny pastewne objętościowe z pastwisk (UZ)","B",0,"Rośliny pastewne objętościowe z pastwisk (UZ)B",0]
["Rośliny pastewne objętościowe z pastwisk (UZ)","C",0,"Rośliny pastewne objętościowe z pastwisk (UZ)C",0]
["Rośliny pastewne objętościowe z pastwisk (UZ)","D",0,"Rośliny pastewne objętościowe z pastwisk (UZ)D",0]
["Rośliny pastewne objętościowe z pastwisk pielęgnowanych (UZ)","A",0,"Rośliny pastewne objętościowe z pastwisk pielęgnowanych (UZ)A",0]
["Rośliny pastewne objętościowe z pastwisk pielęgnowanych (UZ)","B",0,"Rośliny pastewne objętościowe z pastwisk pielęgnowanych (UZ)B",0]
["Rośliny pastewne objętościowe z pastwisk pielęgnowanych (UZ)","C",0,"Rośliny pastewne objętościowe z pastwisk pielęgnowanych (UZ)C",0]
["Rośliny pastewne objętościowe z pastwisk pielęgnowanych (UZ)","D",0,"Rośliny pastewne objętościowe z pastwisk pielęgnowanych (UZ)D",0]
["Rośliny pastewne objętościowe z pastwisk niepielęgnowanych (UZ)","A",0,"Rośliny pastewne objętościowe z pastwisk niepielęgnowanych (UZ)A",0]
["Rośliny pastewne objętościowe z pastwisk niepielęgnowanych (UZ)","B",0,{"$f":"A320&B320","v":"Rośliny pastewne objętościowe z pastwisk niepielęgnowanych (UZ)B"},0]
["Rośliny pastewne objętościowe z pastwisk niepielęgnowanych (UZ)","C",0,"Rośliny pastewne objętościowe z pastwisk niepielęgnowanych (UZ)C",0]
["Rośliny pastewne objętościowe z pastwisk niepielęgnowanych (UZ)","D",0,"Rośliny pastewne objętościowe z pastwisk niepielęgnowanych (UZ)D",0]
["Warzywa","A",4776.977186271537,"WarzywaA",5254.6749048986912]
["Warzywa","B",10438.389183715539,"WarzywaB",{"$f":"C324*1.1","v":11482.228102087094}]
["Warzywa","C",8177.0787470964824,"WarzywaC",8994.7866218061317]
["Warzywa","D",9439.5190422731266,"WarzywaD",10383.47094650044]
["Warzywa w uprawie polowej","A",4400.3671772690213,"Warzywa w uprawie polowejA",4840.403894995924]
["Warzywa w uprawie polowej","B",5233.0540960945145,"Warzywa w uprawie polowejB",5756.3595057039665]
["Warzywa w uprawie polowej","C",5880.1495861113362,"Warzywa w uprawie polowejC",6468.1645447224701]
["Warzywa w uprawie polowej","D",6029.1197355948807,"Warzywa w uprawie polowejD",6632.0317091543693]
["Warzywa uprawiane dla owoców i kwiatów w uprawie polowej","A",3538.5091400519841,"Warzywa uprawiane dla owoców i kwiatów w uprawie polowejA",3892.3600540571829]
["Warzywa uprawiane dla owoców i kwiatów w uprawie polowej","B",6395.6831944282339,"Warzywa uprawiane dla owoców i kwiatów w uprawie polowejB",7035.2515138710578]
["Warzywa uprawiane dla owoców i kwiatów w uprawie polowej","C",6352.7505130411464,"Warzywa uprawiane dla owoców i kwiatów w uprawie polowejC",6988.025564345262]
["Warzywa uprawiane dla owoców i kwiatów w uprawie polowej","D",7067.667705475239,"Warzywa uprawiane dla owoców i kwiatów w uprawie polowejD",7774.4344760227632]
["Pomidory w uprawie polowej","A",7603.7186083611114,"Pomidory w uprawie polowejA",8364.0904691972228]
["Pomidory w uprawie polowej","B",8221.7211617254616,"Pomidory w uprawie polowejB",9043.8932778980088]
["Pomidory w uprawie polowej","C",6541.6220808068711,"Pomidory w uprawie polowejC",7195.7842888875584]
["Pomidory w uprawie polowej","D",7088.0256725716954,"Pomidory w uprawie polowejD",7796.8282398288657]
["Warzywa liściaste i łodygowe w uprawie polowej","A",7136.2291678268621,"Warzywa liściaste i łodygowe w uprawie polowejA",7849.8520846095489]
["Warzywa liściaste i łodygowe w uprawie polowej","B",3770.8454036882345,"Warzywa liściaste i łodygowe w uprawie polowejB",4147.9299440570585]
["Warzywa liściaste i łodygowe w uprawie polowej","C",6111.311547432837,"Warzywa liściaste i łodygowe w uprawie polowejC",6722.4427021761212]
["Warzywa liściaste i łodygowe w uprawie polowej","D",4378.9242505487446,"Warzywa liściaste i łodygowe w uprawie polowejD",4816.8166756036198]
["Ogórki w uprawie polowej","A",7069.8280156747924,"Ogórki w uprawie polowejA",7776.8108172422726]
["Ogórki w uprawie polowej","B",9994.1805523286384,"Ogórki w uprawie polowejB",10993.598607561504]
["Ogórki w uprawie polowej","C",7209.6133776657543,"Ogórki w uprawie polowejC",7930.5747154323308]
["Ogórki w uprawie polowej","D",8071.6767714396774,"Ogórki w uprawie polowejD",8878.8444485836462]
["Warzywa korzeniowe i bulwiaste w uprawie polowej","A",7148.5220068288336,"Warzywa korzeniowe i bulwiaste w uprawie polowejA",7863.3742075117179]
["Warzywa korzeniowe i bulwiaste w uprawie polowej","B",5505.5851441350378,"Warzywa korzeniowe i bulwiaste w uprawie polowejB",6056.1436585485417]
["Warzywa korzeniowe i bulwiaste w uprawie polowej","C",5504.1636043748067,"Warzywa korzeniowe i bulwiaste w uprawie polowejC",6054.5799648122875]
["Warzywa korzeniowe i bulwiaste w uprawie polowej","D",7549.6824068574842,"Warzywa korzeniowe i bulwiaste w uprawie polowejD",8304.6506475432325]
["Kalafiory i brokuły w uprawie polowej","A",5571.5714797978044,"Kalafiory i brokuły w uprawie polowejA",6128.7286277775856]
["Kalafiory i brokuły w uprawie polowej","B",5672.5241940862497,"Kalafiory i brokuły w uprawie polowejB",6239.7766134948752]
["Kalafiory i brokuły w uprawie polowej","C",5573.9675869355078,"Kalafiory i brokuły w uprawie polowejC",6131.3643456290592]
["Kalafiory i brokuły w uprawie polowej","D",5596.6540578724389,"Kalafiory i brokuły w uprawie polowejD",6156.3194636596836]
["Warzywa strączkowe do zbioru na zielono w uprawie polowej","A",4082.3390980789868,"Warzywa strączkowe do zbioru na zielono w uprawie polowejA",4490.5730078868855]
["Warzywa strączkowe do zbioru na zielono w uprawie polowej","B",4597.8601773470391,"Warzywa strączkowe do zbioru na zielono w uprawie polowejB",5057.6461950817438]
["Warzywa strączkowe do zbioru na zielono w uprawie polowej","C",5699.6439136385325,"Warzywa strączkowe do zbioru na zielono w uprawie polowejC",6269.6083050023863]
["Warzywa strączkowe do zbioru na zielono w uprawie polowej","D",6893.8710737462334,"Warzywa strączkowe do zbioru na zielono w uprawie polowejD",7583.2581811208574]
["Inne warzywa uprawiane dla owoców i kwiatów w uprawie polowej","A",6546.158953564257,"Inne warzywa uprawiane dla owoców i kwiatów w uprawie polowejA",7200.7748489206833]
["Inne warzywa uprawiane dla owoców i kwiatów w uprawie polowej","B",7618.0769984828994,"Inne warzywa uprawiane dla owoców i kwiatów w uprawie polowejB",8379.8846983311905]
["Inne warzywa uprawiane dla owoców i kwiatów w uprawie polowej","C",7010.5580117192667,"Inne warzywa uprawiane dla owoców i kwiatów w uprawie polowejC",7711.6138128911944]
["Inne warzywa uprawiane dla owoców i kwiatów w uprawie polowej","D",6877.1371301137242,"Inne warzywa uprawiane dla owoców i kwiatów w uprawie polowejD",7564.8508431250975]
["Kapusta w uprawie polowej","A",10202.702562189692,"Kapusta w uprawie polowejA",11222.972818408662]
["Kapusta w uprawie polowej","B",8389.684542557663,"Kapusta w uprawie polowejB",9228.6529968134309]
["Kapusta w uprawie polowej","C",10372.761370115562,"Kapusta w uprawie polowejC",11410.037507127119]
["Kapusta w uprawie polowej","D",8635.1259050753215,"Kapusta w uprawie polowejD",9498.6384955828544]
["Inne warzywa liściaste i łodygowe (bez kapusty) w uprawie polowej","A",3324.3878153884871,"Inne warzywa liściaste i łodygowe (bez kapusty) w uprawie polowejA",3656.8265969273361]
["Inne warzywa liściaste i łodygowe (bez kapusty) w uprawie polowej","B",3657.6547796151026,"Inne warzywa liściaste i łodygowe (bez kapusty) w uprawie polowejB",4023.420257576613]
["Inne warzywa liściaste i łodygowe (bez kapusty) w uprawie polowej","C",3716.403157692198,"Inne warzywa liściaste i łodygowe (bez kapusty) w uprawie polowejC",4088.0434734614182]
["Inne warzywa liściaste i łodygowe (bez kapusty) w uprawie polowej","D",2821.1699825611618,"Inne warzywa liściaste i łodygowe (bez kapusty) w uprawie polowejD",3103.2869808172782]
["Cebula w uprawie polowej","A",6078.8101758860766,"Cebula w uprawie polowejA",6686.691193474685]
["Cebula w uprawie polowej","B",6036.8044592021661,"Cebula w uprawie polowejB",6640.4849051223828]
["Cebula w uprawie polowej","C",5755.0066214523549,"Cebula w uprawie polowejC",6330.5072835975907]
["Cebula w uprawie polowej","D",6171.1434008942488,"Cebula w uprawie polowejD",6788.257740983674]
["Inne warzywa korzeniowe i bulwiaste (bez cebuli) w uprawie polowej","A",3040.1707154861133,"Inne warzywa korzeniowe i bulwiaste (bez cebuli) w uprawie polowejA",3344.1877870347248]
["Inne warzywa korzeniowe i bulwiaste (bez cebuli) w uprawie polowej","B",3101.6569023727943,"Inne warzywa korzeniowe i bulwiaste (bez cebuli) w uprawie polowejB",3411.822592610074]
["Inne warzywa korzeniowe i bulwiaste (bez cebuli) w uprawie polowej","C",3161.6493949516812,"Inne warzywa korzeniowe i bulwiaste (bez cebuli) w uprawie polowejC",3477.8143344468494]
["Inne warzywa korzeniowe i bulwiaste (bez cebuli) w uprawie polowej","D",3523.8454300318972,"Inne warzywa korzeniowe i bulwiaste (bez cebuli) w uprawie polowejD",3876.2299730350874]
["Warzywa strączkowe do zbioru na zielono w uprawie polowej","A",2203.8136387290051,"Warzywa strączkowe do zbioru na zielono w uprawie polowejA",2424.1950026019058]
["Warzywa strączkowe do zbioru na zielono w uprawie polowej","B",2312.1441956626472,"Warzywa strączkowe do zbioru na zielono w uprawie polowejB",2543.3586152289122]
["Warzywa strączkowe do zbioru na zielono w uprawie polowej","C",2397.4145316633562,"Warzywa strączkowe do zbioru na zielono w uprawie polowejC",2637.155984829692]
["Warzywa strączkowe do zbioru na zielono w uprawie polowej","D",3395.425212463972,"Warzywa strączkowe do zbioru na zielono w uprawie polowejD",3734.9677337103694]
["Warzywa pod osłonami wysokimi","A",85835.646183887395,"Warzywa pod osłonami wysokimiA",94419.210802276139]
["Warzywa pod osłonami wysokimi","B",166511.70182581531,{"$f":"A384&B384","v":"Warzywa pod osłonami wysokimiB"},183162.87200839687]
["Warzywa pod osłonami wysokimi","C",26014.267247836604,"Warzywa pod osłonami wysokimiC",28615.693972620265]
["Warzywa pod osłonami wysokimi","D",94856.412280740857,"Warzywa pod osłonami wysokimiD",104342.05350881495]
["Warzywa uprawiane dla owoców i kwiatów w uprawie pod osłonami wysokimi","A",62150.948811720576,"Warzywa uprawiane dla owoców i kwiatów w uprawie pod osłonami wysokimiA",68366.043692892636]
["Warzywa uprawiane dla owoców i kwiatów w uprawie pod osłonami wysokimi","B",150628.18614579967,"Warzywa uprawiane dla owoców i kwiatów w uprawie pod osłonami wysokimiB",{"$f":"C388*1.1","v":165691.00476037964}]
["Warzywa uprawiane dla owoców i kwiatów w uprawie pod osłonami wysokimi","C",25051.346372424843,"Warzywa uprawiane dla owoców i kwiatów w uprawie pod osłonami wysokimiC",27556.481009667328]
["Warzywa uprawiane dla owoców i kwiatów w uprawie pod osłonami wysokimi","D",90541.673017339213,"Warzywa uprawiane dla owoców i kwiatów w uprawie pod osłonami wysokimiD",99595.840319073148]
["Pomidory w uprawie pod osłonami wysokimi","A",86348.856908058486,"Pomidory w uprawie pod osłonami wysokimiA",94983.742598864337]
["Pomidory w uprawie pod osłonami wysokimi","B",82228.877362305109,"Pomidory w uprawie pod osłonami wysokimiB",90451.76509853563]
["Pomidory w uprawie pod osłonami wysokimi","C",92404.212603471475,"Pomidory w uprawie pod osłonami wysokimiC",101644.63386381863]
["Pomidory w uprawie pod osłonami wysokimi","D",82345.926437462767,"Pomidory w uprawie pod osłonami wysokimiD",90580.519081209059]
["Warzywa liściaste i łodygowe w uprawie pod osłonami wysokimi","A",19935.88457821414,"Warzywa liściaste i łodygowe w uprawie pod osłonami wysokimiA",21929.473036035557]
["Warzywa liściaste i łodygowe w uprawie pod osłonami wysokimi","B",14742.472860513302,"Warzywa liściaste i łodygowe w uprawie pod osłonami wysokimiB",16216.720146564634]
["Warzywa liściaste i łodygowe w uprawie pod osłonami wysokimi","C",21141.867670570806,"Warzywa liściaste i łodygowe w uprawie pod osłonami wysokimiC",23256.054437627889]
["Warzywa liściaste i łodygowe w uprawie pod osłonami wysokimi","D",14985.905208197233,"Warzywa liściaste i łodygowe w uprawie pod osłonami wysokimiD",16484.495729016959]
["Ogórki w uprawie pod osłonami wysokimi","A",85496.718809203288,"Ogórki w uprawie pod osłonami wysokimiA",94046.390690123619]
["Ogórki w uprawie pod osłonami wysokimi","B",79369.48224237487,"Ogórki w uprawie pod osłonami wysokimiB",87306.430466612364]
["Ogórki w uprawie pod osłonami wysokimi","C",67827.124877594455,"Ogórki w uprawie pod osłonami wysokimiC",74609.837365353902]
["Ogórki w uprawie pod osłonami wysokimi","D",76439.483302432316,"Ogórki w uprawie pod osłonami wysokimiD",84083.431632675551]
["Warzywa korzeniowe i bulwiaste w uprawie pod osłonami wysokimi","A",15078.375219813364,"Warzywa korzeniowe i bulwiaste w uprawie pod osłonami wysokimiA",16586.212741794701]
["Warzywa korzeniowe i bulwiaste w uprawie pod osłonami wysokimi","B",15078.375219813364,"Warzywa korzeniowe i bulwiaste w uprawie pod osłonami wysokimiB",16586.212741794701]
["Warzywa korzeniowe i bulwiaste w uprawie pod osłonami wysokimi","C",12574.788985660942,"Warzywa korzeniowe i bulwiaste w uprawie pod osłonami wysokimiC",13832.267884227038]
["Warzywa korzeniowe i bulwiaste w uprawie pod osłonami wysokimi","D",15078.375219813364,"Warzywa korzeniowe i bulwiaste w uprawie pod osłonami wysokimiD",16586.212741794701]
["Warzywa strączkowe do zbioru na zielono w uprawie pod osłonami wysokimi","A",26225.240416759803,"Warzywa strączkowe do zbioru na zielono w uprawie pod osłonami wysokimiA",28847.764458435788]
["Warzywa strączkowe do zbioru na zielono w uprawie pod osłonami wysokimi","B",26225.240416759803,"Warzywa strączkowe do zbioru na zielono w uprawie pod osłonami wysokimiB",28847.764458435788]
["Warzywa strączkowe do zbioru na zielono w uprawie pod osłonami wysokimi","C",26058.180767189337,"Warzywa strączkowe do zbioru na zielono w uprawie pod osłonami wysokimiC",28663.998843908274]
["Warzywa strączkowe do zbioru na zielono w uprawie pod osłonami wysokimi","D",26225.240416759803,"Warzywa strączkowe do zbioru na zielono w uprawie pod osłonami wysokimiD",28847.764458435788]
["Inne warzywa uprawiane dla owoców i kwiatów w uprawie pod osłonami wysokimi","A",25443.083873138403,"Inne warzywa uprawiane dla owoców i kwiatów w uprawie pod osłonami wysokimiA",27987.392260452245]
["Inne warzywa uprawiane dla owoców i kwiatów w uprawie pod osłonami wysokimi","B",25443.083873138403,"Inne warzywa uprawiane dla owoców i kwiatów w uprawie pod osłonami wysokimiB",27987.392260452245]
["Inne warzywa uprawiane dla owoców i kwiatów w uprawie pod osłonami wysokimi","C",25500.703011348374,"Inne warzywa uprawiane dla owoców i kwiatów w uprawie pod osłonami wysokimiC",28050.773312483216]
["Inne warzywa uprawiane dla owoców i kwiatów w uprawie pod osłonami wysokimi","D",21078.399434261832,"Inne warzywa uprawiane dla owoców i kwiatów w uprawie pod osłonami wysokimiD",23186.239377688016]
["Kapusta w uprawie pod osłonami wysokimi","A",12155.411969775985,"Kapusta w uprawie pod osłonami wysokimiA",13370.953166753585]
["Kapusta w uprawie pod osłonami wysokimi","B",12155.411969775985,"Kapusta w uprawie pod osłonami wysokimiB",13370.953166753585]
["Kapusta w uprawie pod osłonami wysokimi","C",13001.257778948551,"Kapusta w uprawie pod osłonami wysokimiC",14301.383556843408]
["Kapusta w uprawie pod osłonami wysokimi","D",12155.411969775985,"Kapusta w uprawie pod osłonami wysokimiD",13370.953166753585]
["Inne warzywa liściaste i łodygowe (bez kapusty) w uprawie pod osłonami wysokimi","A",32225.109970108606,"Inne warzywa liściaste i łodygowe (bez kapusty) w uprawie pod osłonami wysokimiA",35447.620967119467]
["Inne warzywa liściaste i łodygowe (bez kapusty) w uprawie pod osłonami wysokimi","B",10858.255531223738,"Inne warzywa liściaste i łodygowe (bez kapusty) w uprawie pod osłonami wysokimiB",11944.081084346113]
["Inne warzywa liściaste i łodygowe (bez kapusty) w uprawie pod osłonami wysokimi","C",32121.552001921002,"Inne warzywa liściaste i łodygowe (bez kapusty) w uprawie pod osłonami wysokimiC",35333.707202113103]
["Inne warzywa liściaste i łodygowe (bez kapusty) w uprawie pod osłonami wysokimi","D",67247.211429982839,"Inne warzywa liściaste i łodygowe (bez kapusty) w uprawie pod osłonami wysokimiD",73971.932572981124]
["Inne warzywa korzeniowe i bulwiaste (bez cebuli) w uprawie pod osłonami wysokimi","A",29492.141164229171,"Inne warzywa korzeniowe i bulwiaste (bez cebuli) w uprawie pod osłonami wysokimiA",32441.355280652093]
["Inne warzywa korzeniowe i bulwiaste (bez cebuli) w uprawie pod osłonami wysokimi","B",29492.141164229171,"Inne warzywa korzeniowe i bulwiaste (bez cebuli) w uprawie pod osłonami wysokimiB",32441.355280652093]
["Inne warzywa korzeniowe i bulwiaste (bez cebuli) w uprawie pod osłonami wysokimi","C",22796.180477266891,"Inne warzywa korzeniowe i bulwiaste (bez cebuli) w uprawie pod osłonami wysokimiC",25075.798524993581]
["Inne warzywa korzeniowe i bulwiaste (bez cebuli) w uprawie pod osłonami wysokimi","D",29492.141164229171,"Inne warzywa korzeniowe i bulwiaste (bez cebuli) w uprawie pod osłonami wysokimiD",32441.355280652093]
["Warzywa strączkowe do zbioru na zielono w uprawie pod osłonami wysokimi","A",16823.572862587873,"Warzywa strączkowe do zbioru na zielono w uprawie pod osłonami wysokimiA",18505.930148846663]
["Warzywa strączkowe do zbioru na zielono w uprawie pod osłonami wysokimi","B",16823.572862587873,"Warzywa strączkowe do zbioru na zielono w uprawie pod osłonami wysokimiB",18505.930148846663]
["Warzywa strączkowe do zbioru na zielono w uprawie pod osłonami wysokimi","C",17181.323551958754,"Warzywa strączkowe do zbioru na zielono w uprawie pod osłonami wysokimiC",18899.455907154632]
["Warzywa strączkowe do zbioru na zielono w uprawie pod osłonami wysokimi","D",16823.572862587873,"Warzywa strączkowe do zbioru na zielono w uprawie pod osłonami wysokimiD",18505.930148846663]
["Warzywa w ogrodach towarowych (w płodozmianie z warzywami)","A",8882.2108237436642,{"$f":"A431&B431","v":"Warzywa w ogrodach towarowych (w płodozmianie z warzywami)A"},9770.4319061180322]
["Warzywa w ogrodach towarowych (w płodozmianie z warzywami)","B",3270.3837193294194,"Warzywa w ogrodach towarowych (w płodozmianie z warzywami)B",3597.4220912623614]
["Warzywa w ogrodach towarowych (w płodozmianie z warzywami)","C",13266.953427959363,"Warzywa w ogrodach towarowych (w płodozmianie z warzywami)C",14593.648770755301]
["Warzywa w ogrodach towarowych (w płodozmianie z warzywami)","D",6625.9552973809195,"Warzywa w ogrodach towarowych (w płodozmianie z warzywami)D",7288.550827119012]
["Kwiaty i inne rośliny ozdobne","A",17882.903165140375,"Kwiaty i inne rośliny ozdobneA",19671.193481654413]
["Kwiaty i inne rośliny ozdobne","B",54513.752015844824,"Kwiaty i inne rośliny ozdobneB",59965.127217429312]
["Kwiaty i inne rośliny ozdobne","C",16127.42871557217,"Kwiaty i inne rośliny ozdobneC",17740.171587129389]
["Kwiaty i inne rośliny ozdobne","D",71339.301878883532,"Kwiaty i inne rośliny ozdobneD",78473.232066771889]
["Kwiaty i inne rośliny ozdobne w uprawie polowej","A",7083.0629146552092,"Kwiaty i inne rośliny ozdobne w uprawie polowejA",7791.3692061207303]
["Kwiaty i inne rośliny ozdobne w uprawie polowej","B",7083.0629146552092,"Kwiaty i inne rośliny ozdobne w uprawie polowejB",7791.3692061207303]
["Kwiaty i inne rośliny ozdobne w uprawie polowej","C",8497.7571318154169,"Kwiaty i inne rośliny ozdobne w uprawie polowejC",9347.5328449969602]
["Kwiaty i inne rośliny ozdobne w uprawie polowej","D",5625.3828193025865,"Kwiaty i inne rośliny ozdobne w uprawie polowejD",6187.921101232846]
["Kwiaty cięte w uprawie polowej","A",1334.9657304894488,"Kwiaty cięte w uprawie polowejA",1468.4623035383938]
["Kwiaty cięte w uprawie polowej","B",8192.8283356646261,{"$f":"A444&B444","v":"Kwiaty cięte w uprawie polowejB"},9012.1111692310897]
["Kwiaty cięte w uprawie polowej","C",9526.0184419972411,"Kwiaty cięte w uprawie polowejC",10478.620286196967]
["Kwiaty cięte w uprawie polowej","D",6194.1233134641489,"Kwiaty cięte w uprawie polowejD",6813.535644810564]
["Kwiaty i inne rośliny ozdobne - całe rośliny w uprawie polowej","A",8579.1326096941557,"Kwiaty i inne rośliny ozdobne - całe rośliny w uprawie polowejA",9437.0458706635727]
["Kwiaty i inne rośliny ozdobne - całe rośliny w uprawie polowej","B",8579.1326096941557,"Kwiaty i inne rośliny ozdobne - całe rośliny w uprawie polowejB",9437.0458706635727]
["Kwiaty i inne rośliny ozdobne - całe rośliny w uprawie polowej","C",6784.7677172314879,"Kwiaty i inne rośliny ozdobne - całe rośliny w uprawie polowejC",7463.2444889546377]
["Kwiaty i inne rośliny ozdobne - całe rośliny w uprawie polowej","D",9419.3825092410843,"Kwiaty i inne rośliny ozdobne - całe rośliny w uprawie polowejD",10361.320760165194]
["Kwiaty i inne rośliny ozdobne pod osłonami wysokimi","A",21706.879515994591,"Kwiaty i inne rośliny ozdobne pod osłonami wysokimiA",23877.567467594054]
["Kwiaty i inne rośliny ozdobne pod osłonami wysokimi","B",61452.44011981877,"Kwiaty i inne rośliny ozdobne pod osłonami wysokimiB",{"$f":"C452*1.1","v":67597.684131800648}]
["Kwiaty i inne rośliny ozdobne pod osłonami wysokimi","C",87539.616796134331,"Kwiaty i inne rośliny ozdobne pod osłonami wysokimiC",96293.578475747767]
["Kwiaty i inne rośliny ozdobne pod osłonami wysokimi","D",100271.19323876353,"Kwiaty i inne rośliny ozdobne pod osłonami wysokimiD",110298.3125626399]
["Kwiaty cięte w uprawie pod osłonami wysokimi","A",71782.844010004846,"Kwiaty cięte w uprawie pod osłonami wysokimiA",78961.128411005338]
["Kwiaty cięte w uprawie pod osłonami wysokimi","B",61644.350465450276,"Kwiaty cięte w uprawie pod osłonami wysokimiB",67808.785511995302]
["Kwiaty cięte w uprawie pod osłonami wysokimi","C",81252.194077287742,"Kwiaty cięte w uprawie pod osłonami wysokimiC",89377.413485016528]
["Kwiaty cięte w uprawie pod osłonami wysokimi","D",73222.683986692107,"Kwiaty cięte w uprawie pod osłonami wysokimiD",80544.952385361321]
["Kwiaty i inne rośliny ozdobne - całe rośliny w uprawie pod osłonami wysokimi","A",31215.879758908613,"Kwiaty i inne rośliny ozdobne - całe rośliny w uprawie pod osłonami wysokimiA",34337.46773479948]
["Kwiaty i inne rośliny ozdobne - całe rośliny w uprawie pod osłonami wysokimi","B",38230.516413939098,"Kwiaty i inne rośliny ozdobne - całe rośliny w uprawie pod osłonami wysokimiB",42053.568055333009]
["Kwiaty i inne rośliny ozdobne - całe rośliny w uprawie pod osłonami wysokimi","C",45048.273620637934,"Kwiaty i inne rośliny ozdobne - całe rośliny w uprawie pod osłonami wysokimiC",49553.100982701733]
["Kwiaty i inne rośliny ozdobne - całe rośliny w uprawie pod osłonami wysokimi","D",44280.560349302999,"Kwiaty i inne rośliny ozdobne - całe rośliny w uprawie pod osłonami wysokimiD",48708.616384233304]
["Owoce","A",4079.1625175958593,"OwoceA",4487.0787693554457]
["Owoce","B",4047.4933194442183,"OwoceB",4452.2426513886403]
["Owoce","C",3227.7320888512972,"OwoceC",3550.5052977364271]
["Owoce","D",3486.520107135982,"OwoceD",3835.1721178495804]
["Owoce w uprawie polowej","A",9599.4958630546389,"Owoce w uprawie polowejA",10559.445449360104]
["Owoce w uprawie polowej","B",9729.9515727303242,"Owoce w uprawie polowejB",10702.946730003358]
["Owoce w uprawie polowej","C",8556.96602262337,"Owoce w uprawie polowejC",9412.6626248857083]
["Owoce w uprawie polowej","D",10830.994944784732,"Owoce w uprawie polowejD",11914.094439263206]
["Truskawki w uprawie polowej","A",10010.157909715914,"Truskawki w uprawie polowejA",11011.173700687506]
["Truskawki w uprawie polowej","B",9281.2844178514315,"Truskawki w uprawie polowejB",10209.412859636575]
["Truskawki w uprawie polowej","C",9212.3412066035889,"Truskawki w uprawie polowejC",10133.575327263949]
["Truskawki w uprawie polowej","D",10029.356864028616,"Truskawki w uprawie polowejD",11032.292550431479]
["Owoce w uprawie pod osłonami wysokimi","A",42052.828492043598,"Owoce w uprawie pod osłonami wysokimiA",46258.111341247961]
["Owoce w uprawie pod osłonami wysokimi","B",42052.828492043598,"Owoce w uprawie pod osłonami wysokimiB",46258.111341247961]
["Owoce w uprawie pod osłonami wysokimi","C",42052.828492043598,"Owoce w uprawie pod osłonami wysokimiC",46258.111341247961]
["Owoce w uprawie pod osłonami wysokimi","D",42052.828492043598,"Owoce w uprawie pod osłonami wysokimiD",46258.111341247961]
["Truskawki w uprawie pod osłonami wysokimi","A",42052.828492043598,"Truskawki w uprawie pod osłonami wysokimiA",46258.111341247961]
["Truskawki w uprawie pod osłonami wysokimi","B",42052.828492043598,"Truskawki w uprawie pod osłonami wysokimiB",46258.111341247961]
["Truskawki w uprawie pod osłonami wysokimi","C",42052.828492043598,"Truskawki w uprawie pod osłonami wysokimiC",46258.111341247961]
["Truskawki w uprawie pod osłonami wysokimi","D",42052.828492043598,"Truskawki w uprawie pod osłonami wysokimiD",46258.111341247961]
["Owoce z sadów","A",5546.5661476166069,"Owoce z sadówA",6101.2227623782683]
["Owoce z sadów","B",5974.3121951133235,"Owoce z sadówB",6571.743414624656]
["Owoce z sadów","C",4790.0266929803547,"Owoce z sadówC",5269.0293622783902]
["Owoce z sadów","D",5247.0040809054235,"Owoce z sadówD",5771.7044889959661]
["Owoce miękiszowe - ziarnkowe","A",1563.8091390647226,"Owoce miękiszowe - ziarnkoweA",1720.190052971195]
["Owoce miękiszowe - ziarnkowe","B",4531.1587717411066,"Owoce miękiszowe - ziarnkoweB",4984.2746489152178]
["Owoce miękiszowe - ziarnkowe","C",4012.2139236829057,"Owoce miękiszowe - ziarnkoweC",4413.4353160511964]
["Owoce miękiszowe - ziarnkowe","D",4136.9500614812132,"Owoce miękiszowe - ziarnkoweD",4550.6450676293352]
["Jabłka","A",4094.819810387186,"JabłkaA",4504.3017914259053]
["Jabłka","B",3622.2674542256373,"JabłkaB",3984.4941996482012]
["Jabłka","C",3872.0580183208731,"JabłkaC",4259.2638201529608]
["Jabłka","D",3888.2099729017805,"JabłkaD",4277.0309701919587]
["Gruszki","A",2917.5326584661739,"GruszkiA",3209.2859243127914]
["Gruszki","B",2433.9017964477944,"GruszkiB",2677.2919760925738]
["Gruszki","C",3349.2884254731784,"GruszkiC",3684.2172680204967]
["Gruszki","D",2702.9986632484006,"GruszkiD",2973.298529573241]
["Owoce pestkowe","A",5120.1947858405565,"Owoce pestkoweA",5632.2142644246123]
["Owoce pestkowe","B",4331.8691507755511,"Owoce pestkoweB",4765.0560658531067]
["Owoce pestkowe","C",3543.738912762964,"Owoce pestkoweC",3898.1128040392605]
["Owoce pestkowe","D",3853.8975400909003,"Owoce pestkoweD",4239.2872940999905]
["Śliwki","A",3813.5967517902632,"ŚliwkiA",4194.9564269692901]
["Śliwki","B",3435.3906409861011,"ŚliwkiB",3778.9297050847113]
["Śliwki","C",3761.7761013250024,"ŚliwkiC",4137.9537114575032]
["Śliwki","D",3333.3560005310533,"ŚliwkiD",3666.691600584159]
["Wiśnie","A",7300.4988240551857,"WiśnieA",8030.548706460705]
["Wiśnie","B",8290.7914254084753,{"$f":"A508&B508","v":"WiśnieB"},9119.8705679493232]
["Wiśnie","C",7465.8825726939567,"WiśnieC",8212.470829963353]
["Wiśnie","D",6803.0996569058907,"WiśnieD",7483.4096225964804]
["Czereśnie","A",2413.0441689241161,"CzereśnieA",2654.3485858165277]
["Czereśnie","B",4120.1761874909407,"CzereśnieB",4532.193806240035]
["Czereśnie","C",4475.0431801042114,"CzereśnieC",4922.5474981146326]
["Czereśnie","D",4804.3951342457522,"CzereśnieD",5284.8346476703282]
["Brzoskwinie","A",3137.9341373352677,"BrzoskwinieA",3451.7275510687946]
["Brzoskwinie","B",3519.6247671418123,"BrzoskwinieB",{"$f":"C516*1.1","v":3871.5872438559936}]
["Brzoskwinie","C",3137.9341373352677,"BrzoskwinieC",3451.7275510687946]
["Brzoskwinie","D",2855.0527089194366,"BrzoskwinieD",3140.5579798113804]
["Morele","A",2294.8133125449503,"MoreleA",2524.2946437994456]
["Morele","B",2294.8133125449503,"MoreleB",2524.2946437994456]
["Morele","C",2749.1334079064513,"MoreleC",3024.0467486970965]
["Morele","D",2133.5876423280702,"MoreleD",2346.9464065608772]
["Orzechy","A",2926.0312276790592,"OrzechyA",3218.6343504469655]
["Orzechy","B",1425.7196735009445,"OrzechyB",1568.2916408510391]
["Orzechy","C",2640.6480499092609,"OrzechyC",2904.7128549001873]
["Orzechy","D",3381.0986343872019,"OrzechyD",3719.2084978259222]
["Orzechy włoskie","A",1385.9139121946005,"Orzechy włoskieA",1524.5053034140606]
["Orzechy włoskie","B",1385.9139121946005,"Orzechy włoskieB",1524.5053034140606]
["Orzechy włoskie","C",1061.6558081795029,"Orzechy włoskieC",1167.8213889974531]
["Orzechy włoskie","D",1731.9314807463279,"Orzechy włoskieD",1905.1246288209609]
["Orzechy laskowe","A",3952.0575964859986,"Orzechy laskoweA",4347.2633561345992]
["Orzechy laskowe","B",5963.4854249245554,"Orzechy laskoweB",6559.8339674170111]
["Orzechy laskowe","C",3788.9745572162774,"Orzechy laskoweC",4167.8720129379053]
["Orzechy laskowe","D",4065.8969003575608,"Orzechy laskoweD",4472.4865903933169]
["Owoce jagodowe","A",8149.3224088941415,"Owoce jagodoweA",8964.2546497835556]
["Owoce jagodowe","B",7802.2898958082187,"Owoce jagodoweB",8582.5188853890413]
["Owoce jagodowe","C",5587.1180374221522,"Owoce jagodoweC",6145.8298411643682]
["Owoce jagodowe","D",5345.8829635941593,"Owoce jagodoweD",5880.471259953576]
["Agrest","A",2425.9609047802537,"AgrestA",2668.5569952582791]
["Agrest","B",2425.9609047802537,"AgrestB",2668.5569952582791]
["Agrest","C",2554.4871204875394,"AgrestC",2809.9358325362937]
["Agrest","D",2425.9609047802537,"AgrestD",2668.5569952582791]
["Aronia","A",3896.002004365213,"AroniaA",{"$f":"C543*1.1-800","v":3485.6022048017348}]
["Aronia","B",3896.002004365213,"AroniaB",{"$f":"C544*1.1-800","v":3485.6022048017348}]
["Aronia","C",3804.1787578013127,"AroniaC",{"$f":"C545*1.1-800","v":3384.5966335814446}]
["Aronia","D",4265.4669179441325,"AroniaD",{"$f":"C546*1.1-800","v":3892.0136097385466}]
["Porzeczki czarne","A",3145.1471915609468,"Porzeczki czarneA",3459.6619107170418]
["Porzeczki czarne","B",2558.2950837741109,"Porzeczki czarneB",2814.1245921515224]
["Porzeczki czarne","C",4037.0276739280307,"Porzeczki czarneC",4440.730441320834]
["Porzeczki czarne","D",3096.5676898856241,"Porzeczki czarneD",3406.2244588741869]
["Porzeczki czerwone","A",3130.4063857869869,"Porzeczki czerwoneA",3443.447024365686]
["Porzeczki czerwone","B",2417.9804382148882,"Porzeczki czerwoneB",2659.7784820363772]
["Porzeczki czerwone","C",2418.1282375363558,"Porzeczki czerwoneC",2659.9410612899915]
["Porzeczki czerwone","D",2391.4723294787764,"Porzeczki czerwoneD",2630.6195624266543]
["Maliny ogrodowe","A",6855.0616316352352,"Maliny ogrodoweA",7540.5677947987597]
["Maliny ogrodowe","B",9203.7377231184273,"Maliny ogrodoweB",10124.11149543027]
["Maliny ogrodowe","C",11057.563842588024,"Maliny ogrodoweC",12163.320226846829]
["Maliny ogrodowe","D",8291.7546208755048,"Maliny ogrodoweD",9120.9300829630556]
["Jeżyny","A",2423.4853032911183,"JeżynyA",2665.8338336202305]
["Jeżyny","B",2423.4853032911183,"JeżynyB",2665.8338336202305]
["Jeżyny","C",2423.4853032911183,"JeżynyC",2665.8338336202305]
["Jeżyny","D",2423.4853032911183,"JeżynyD",2665.8338336202305]
["Borówki","A",12200.517089125395,"BorówkiA",13420.568798037935]
["Borówki","B",9888.0168383904802,"BorówkiB",10876.818522229529]
["Borówki","C",12303.159901584053,"BorówkiC",13533.475891742459]
["Borówki","D",13621.457432045911,"BorówkiD",14983.603175250502]
["Pozostałe owoce jagodowe","A",4848.331037295332,{"$f":"A567&B567","v":"Pozostałe owoce jagodoweA"},5333.1641410248658]
["Pozostałe owoce jagodowe","B",4848.331037295332,"Pozostałe owoce jagodoweB",5333.1641410248658]
["Pozostałe owoce jagodowe","C",4934.4061591036198,"Pozostałe owoce jagodoweC",5427.8467750139826]
["Pozostałe owoce jagodowe","D",4848.331037295332,"Pozostałe owoce jagodoweD",5333.1641410248658]
["Winogrona","A",5224.3350104004385,"WinogronaA",5746.7685114404831]
["Winogrona","B",5224.3350104004385,"WinogronaB",5746.7685114404831]
["Winogrona","C",5224.3350104004385,"WinogronaC",5746.7685114404831]
["Winogrona","D",5224.3350104004385,{"$f":"A574&B574","v":"WinogronaD"},5746.7685114404831]
["Pozostałe owoce z sadów","A",4545.0660418180041,{"$f":"A575&B575","v":"Pozostałe owoce z sadówA"},4999.572645999805]
["Pozostałe owoce z sadów","B",4545.0660418180041,"Pozostałe owoce z sadówB",4999.572645999805]
["Pozostałe owoce z sadów","C",4768.7703147208395,"Pozostałe owoce z sadówC",5245.6473461929236]
["Pozostałe owoce z sadów","D",4545.0660418180041,"Pozostałe owoce z sadówD",4999.572645999805]
["Plantacje nasienne traw","A",479.62956797202895,{"$f":"A579&B579","v":"Plantacje nasienne trawA"},527.59252476923189]
["Plantacje nasienne traw","B",405.71162970829226,"Plantacje nasienne trawB",{"$f":"C580*1.1","v":446.28279267912154}]
["Plantacje nasienne traw","C",414.76404970095882,"Plantacje nasienne trawC",456.24045467105475]
["Plantacje nasienne traw","D",438.48689585351434,"Plantacje nasienne trawD",482.33558543886579]
["Plantacje nasienne motylkowych drobnonasiennych","A",445.54781312754483,{"$f":"A583&B583","v":"Plantacje nasienne motylkowych drobnonasiennychA"},490.10259444029936]
["Plantacje nasienne motylkowych drobnonasiennych","B",687.33929514448414,"Plantacje nasienne motylkowych drobnonasiennychB",756.07322465893265]
["Plantacje nasienne motylkowych drobnonasiennych","C",466.48426165965861,"Plantacje nasienne motylkowych drobnonasiennychC",513.13268782562454]
["Plantacje nasienne motylkowych drobnonasiennych","D",445.54781312754483,"Plantacje nasienne motylkowych drobnonasiennychD",490.10259444029936]
["Uprawy nasienne i rozsadniki warzyw i kwiatów","A",6307.0571480736417,"Uprawy nasienne i rozsadniki warzyw i kwiatówA",6937.7628628810062]
["Uprawy nasienne i rozsadniki warzyw i kwiatów","B",5361.6643505682805,{"$f":"A588&B588","v":"Uprawy nasienne i rozsadniki warzyw i kwiatówB"},5897.8307856251095]
["Uprawy nasienne i rozsadniki warzyw i kwiatów","C",4657.1254978195175,"Uprawy nasienne i rozsadniki warzyw i kwiatówC",5122.83804760147]
["Uprawy nasienne i rozsadniki warzyw i kwiatów","D",19173.32036013457,"Uprawy nasienne i rozsadniki warzyw i kwiatówD",21090.652396148031]
["Uprawy nasienne i rozsadniki warzyw i kwiatów w uprawie polowej","A",3665.2664537135743,"Uprawy nasienne i rozsadniki warzyw i kwiatów w uprawie polowejA",4031.7930990849322]
["Uprawy nasienne i rozsadniki warzyw i kwiatów w uprawie polowej","B",3665.2664537135743,"Uprawy nasienne i rozsadniki warzyw i kwiatów w uprawie polowejB",4031.7930990849322]
["Uprawy nasienne i rozsadniki warzyw i kwiatów w uprawie polowej","C",4215.498758774178,"Uprawy nasienne i rozsadniki warzyw i kwiatów w uprawie polowejC",4637.0486346515963]
["Uprawy nasienne i rozsadniki warzyw i kwiatów w uprawie polowej","D",3665.2664537135743,"Uprawy nasienne i rozsadniki warzyw i kwiatów w uprawie polowejD",4031.7930990849322]
["Uprawy nasienne i rozsadniki warzyw w uprawie polowej","A",4064.6043326186432,"Uprawy nasienne i rozsadniki warzyw w uprawie polowejA",4471.0647658805083]
["Uprawy nasienne i rozsadniki warzyw w uprawie polowej","B",4064.6043326186432,"Uprawy nasienne i rozsadniki warzyw w uprawie polowejB",4471.0647658805083]
["Uprawy nasienne i rozsadniki warzyw w uprawie polowej","C",3969.443168299475,"Uprawy nasienne i rozsadniki warzyw w uprawie polowejC",4366.3874851294231]
["Uprawy nasienne i rozsadniki warzyw w uprawie polowej","D",4064.6043326186432,"Uprawy nasienne i rozsadniki warzyw w uprawie polowejD",4471.0647658805083]
["Uprawy nasienne i rozsadniki warzyw i kwiatów pod osłonami wysokimi","A",146664.30950265954,"Uprawy nasienne i rozsadniki warzyw i kwiatów pod osłonami wysokimiA",161330.7404529255]
["Uprawy nasienne i rozsadniki warzyw i kwiatów pod osłonami wysokimi","B",146664.30950265954,"Uprawy nasienne i rozsadniki warzyw i kwiatów pod osłonami wysokimiB",161330.7404529255]
["Uprawy nasienne i rozsadniki warzyw i kwiatów pod osłonami wysokimi","C",146664.30950265954,"Uprawy nasienne i rozsadniki warzyw i kwiatów pod osłonami wysokimiC",161330.7404529255]
["Uprawy nasienne i rozsadniki warzyw i kwiatów pod osłonami wysokimi","D",184699.35963621209,"Uprawy nasienne i rozsadniki warzyw i kwiatów pod osłonami wysokimiD",203169.29559983331]
["Nasienniki i rozsadniki warzyw w uprawie pod osłonami wysokimi","A",146211.49337744614,"Nasienniki i rozsadniki warzyw w uprawie pod osłonami wysokimiA",160832.64271519077]
["Nasienniki i rozsadniki warzyw w uprawie pod osłonami wysokimi","B",146211.49337744614,"Nasienniki i rozsadniki warzyw w uprawie pod osłonami wysokimiB",160832.64271519077]
["Nasienniki i rozsadniki warzyw w uprawie pod osłonami wysokimi","C",146211.49337744614,"Nasienniki i rozsadniki warzyw w uprawie pod osłonami wysokimiC",160832.64271519077]
["Nasienniki i rozsadniki warzyw w uprawie pod osłonami wysokimi","D",162503.23372091891,"Nasienniki i rozsadniki warzyw w uprawie pod osłonami wysokimiD",178753.55709301081]
["Nasienniki i rozsadniki kwiatów w uprawie pod osłonami wysokimi","A",120798.47572791215,"Nasienniki i rozsadniki kwiatów w uprawie pod osłonami wysokimiA",132878.32330070337]
["Nasienniki i rozsadniki kwiatów w uprawie pod osłonami wysokimi","B",120798.47572791215,"Nasienniki i rozsadniki kwiatów w uprawie pod osłonami wysokimiB",132878.32330070337]
["Nasienniki i rozsadniki kwiatów w uprawie pod osłonami wysokimi","C",120798.47572791215,"Nasienniki i rozsadniki kwiatów w uprawie pod osłonami wysokimiC",132878.32330070337]
["Nasienniki i rozsadniki kwiatów w uprawie pod osłonami wysokimi","D",224293.86239356876,"Nasienniki i rozsadniki kwiatów w uprawie pod osłonami wysokimiD",246723.24863292565]
["Inne uprawy nasienne","A",1913.33463914905,"Inne uprawy nasienneA",2104.6681030639552]
["Inne uprawy nasienne","B",1917.6053674102973,"Inne uprawy nasienneB",2109.365904151327]
["Inne uprawy nasienne","C",1913.33463914905,"Inne uprawy nasienneC",2104.6681030639552]
["Inne uprawy nasienne","D",1913.33463914905,"Inne uprawy nasienneD",2104.6681030639552]
["Inne uprawy nasienne i rozsadniki w uprawie polowej","A",1422.0340914843628,"Inne uprawy nasienne i rozsadniki w uprawie polowejA",1564.2375006327991]
["Inne uprawy nasienne i rozsadniki w uprawie polowej","B",1917.6053674102973,"Inne uprawy nasienne i rozsadniki w uprawie polowejB",2109.365904151327]
["Inne uprawy nasienne i rozsadniki w uprawie polowej","C",1422.0340914843628,"Inne uprawy nasienne i rozsadniki w uprawie polowejC",1564.2375006327991]
["Inne uprawy nasienne i rozsadniki w uprawie polowej","D",1422.0340914843628,"Inne uprawy nasienne i rozsadniki w uprawie polowejD",1564.2375006327991]
["Pozostałe plantacje nasienne","A",418.65595780797099,{"$f":"A619&B619","v":"Pozostałe plantacje nasienneA"},460.52155358876814]
["Pozostałe plantacje nasienne","B",915.20587044709953,"Pozostałe plantacje nasienneB",1006.7264574918096]
["Pozostałe plantacje nasienne","C",577.61280369839119,"Pozostałe plantacje nasienneC",635.37408406823033]
["Pozostałe plantacje nasienne","D",794.7961539762772,"Pozostałe plantacje nasienneD",874.27576937390495]
["Szkółki drzew i krzewów owocowych","A",null,"Szkółki drzew i krzewów owocowychA"]
["Szkółki drzew i krzewów owocowych","B",null,"Szkółki drzew i krzewów owocowychB"]
["Szkółki drzew i krzewów owocowych","C",null,"Szkółki drzew i krzewów owocowychC"]
["Szkółki drzew i krzewów owocowych","D",null,"Szkółki drzew i krzewów owocowychD"]

{"sheet":"Kalendarz","index":13,"n_rows":33,"n_cols":6,"rows_kept":33,"cut":false,"hidden":true,"merged":[]}
[null,"Miesiąc",null,null,null,"Dzień"]
[]
[1,"Styczeń",null,null,null,1]
[2,"Luty",null,null,null,2]
[3,"Marzec",null,null,null,3]
[4,"Kwiecień",null,null,null,4]
[5,"Maj",null,null,null,5]
[6,"Czerwiec",null,null,null,6]
[7,"Lipiec",null,null,null,7]
[8,"Sierpień",null,null,null,8]
[9,"Wrzesień",null,null,null,9]
[10,"Październik",null,null,null,10]
[11,"Listopad",null,null,null,11]
[12,"Grudzień",null,null,null,12]
[null,null,null,null,null,13]
[null,null,null,null,null,14]
[null,null,null,null,null,15]
[null,null,null,null,null,16]
[null,null,null,null,null,17]
[null,null,null,null,null,18]
[null,null,null,null,null,19]
[null,null,null,null,null,20]
[null,null,null,null,null,21]
[null,null,null,null,null,22]
[null,null,null,null,null,23]
[null,null,null,null,null,24]
[null,null,null,null,null,25]
[null,null,null,null,null,26]
[null,null,null,null,null,27]
[null,null,null,null,null,28]
[null,null,null,null,null,29]
[null,null,null,null,null,30]
[null,null,null,null,null,31]